Workbook

Sheet Rosto¹

Sheet Rosto EN

Sheet Consolidado"
A2: EDP Brasil - Consolidado
A4: R$ Mil | B4: 2023-06-01 | C4: 2023-03-01 | D4: 2022-12-01 | E4: 2022-09-01 | F4: 2022-06-01 | G4: 2022-03-01 | H4: 2021-12-01 | I4: 2021-09-01 | J4: 2021-06-30 | K4: 2021-03-31 | L4: 2020-12-01 | M4: 2020-09-30 | N4: 2020-06-30 | O4: 2020-03-31 | P4: 2019-12-01 | Q4: 2019-09-30 | R4: 2019-06-30 | S4: 2019-03-31 | T4: 2018-12-30 | U4: 2018-09-30 | V4: 2018-06-30 | W4: 2018-03-31 | X4: 2017-12-31 | Y4: 2017-09-30 | Z4: 2017-06-30 | AA4: 2017-03-31 | AB4: 2016-12-31 | AC4: 2016-09-30 | AD4: 2016-06-30 | AE4: 2016-03-31 | AF4: 2015-12-31 | AG4: 2015-09-30 | AH4: 2015-06-30 | AI4: 2015-03-31 | AJ4: 2014-12-31 | AK4: 2014-09-30 | AL4: 2014-06-30 | AM4: 2014-03-31 | AN4: 2013-12-31 | AO4: 2013-09-30 | AP4: 2013-06-30 | AQ4: 2013-03-31 | AR4: 2012-12-30 | AS4: 2012-09-30 | AT4: 2012-06-30 | AU4: 2012-03-31 | AV4: 2011-12-31 | AW4: 2011-09-30 | AX4: 2011-06-30 | AY4: 2011-03-31 | AZ4: 2010-12-31
B5: 2T23 | C5: 1T23 | D5: 4T22 | E5: 3T22 | F5: 2T22 | G5: 1T22 | H5: 4T21 | I5: 3T21 | J5: 2T21 | K5: 1T21 | L5: 4T20 | M5: 3T20 | N5: 2T20 | O5: 1T20 | P5: 4T19 | Q5: 3T19 | R5: 2T19 | S5: 1T19 | T5: 4T18 | U5: 3T18 | V5: 2T18 | W5: 1T18 | X5: 4T17 | Y5: 3T17 | Z5: 2T17 | AA5: 1T17 | AB5: 4T16 | AC5: 3T16 | AD5: 2T16 | AE5: 1T16 | AF5: 4T15 | AG5: 3T15 | AH5: 2T15 | AI5: 1T15 | AJ5: 4T14 | AK5: 3T14 | AL5: 2T14 | AM5: 1T14 | AN5: 4T13 | AO5: 3T13 | AP5: 2T13 | AQ5: 1T13 | AR5: 4T12 | AS5: 3T12 | AT5: 2T12 | AU5: 1T12 | AV5: 4T11 | AW5: 3T11 | AX5: 2T11 | AY5: 1T11 | AZ5: 4T10
A7: ATIVO
A8: CIRCULANTE | B8: =SUM(B9:B34) -> 9906042 | C8: =SUM(C9:C34) -> 9480636 | D8: =SUM(D9:D34) -> 10304027 | E8: =SUM(E9:E34) -> 10315098 | F8: 9648993 | G8: 10623344 | H8: 10121303 | I8: 9281150 | J8: 7609218 | K8: 7839437 | L8: 7469079 | M8: 7269795 | N8: 7549493 | O8: 7085522 | P8: 7324975 | Q8: 7773242 | R8: 7295757 | S8: 7312627 | T8: 7017730 | U8: 5802909 | V8: 5707881 | W8: 5578785 | X8: 5454157 | Y8: 5172294 | Z8: 4610498 | AA8: 4620962 | AB8: 4663745 | AC8: 5285774 | AD8: 5395281 | AE8: 4830133 | AF8: 4863321 | AG8: 4839811 | AH8: 4847626 | AI8: 4329298 | AJ8: 3123619 | AK8: 3307675 | AL8: 3342186 | AM8: 5217838 | AN8: 4706944 | AO8: 2736867 | AP8: 2874246 | AQ8: 2886795 | AR8: 2278342 | AS8: 2743809 | AT8: 2391143 | AU8: 2278307 | AV8: 2666010 | AW8: 2609832 | AX8: 2424448 | AY8: 2647692 | AZ8: 2874677.301
A9: Caixa e equivalentes de caixa | B9: 2151670 | C9: 3333603 | D9: 4197196 | E9: 3835467 | F9: 2203804 | G9: 2545719 | H9: 2699490 | I9: 1567155 | J9: 1535985 | K9: 2973921 | L9: 2735859 | M9: 2981027 | N9: 2935649 | O9: 2253496 | P9: 2638610 | Q9: 2510634 | R9: 2325380 | S9: 2350846 | T9: 2203392 | U9: 1240974 | V9: 1477501 | W9: 1543765 | X9: 1603158 | Y9: 1453691 | Z9: 2027594 | AA9: 1975060 | AB9: 2017709 | AC9: 2477020 | AD9: 2562443 | AE9: 1712296 | AF9: 1149998 | AG9: 1271280 | AH9: 1635023 | AI9: 1764197 | AJ9: 826971 | AK9: 1397733 | AL9: 1562138 | AM9: 780131 | AN9: 924146 | AO9: 954838 | AP9: 1175249 | AQ9: 936456 | AR9: 571375 | AS9: 911353 | AT9: 699342 | AU9: 571375 | AV9: 895868 | AW9: 950197 | AX9: 755309 | AY9: 1015491 | AZ9: 1126449
A10: Títulos e valores mobiliários | B10: 88340 | C10: 85603 | D10: 1952 | E10: 310973 | F10: 357965 | G10: 175881 | H10: 11722 | I10: 230106 | J10: 107799 | K10: 158240 | L10: 153990 | M10: 331218 | N10: 328301 | O10: 238222 | P10: 135263 | Q10: 244808 | R10: 164236 | S10: 256551 | T10: 174463 | U10: 165026 | V10: 287653 | W10: 280571 | X10: 112474 | Y10: 0 | Z10: 0 | AA10: 0 | AB10: 0 | AC10: 0 | AF10: 0 | AG10: 0 | AH10: 0 | AI10: 0 | AJ10: 0 | AK10: 0 | AL10: 0 | AM10: 0 | AN10: 0 | AO10: 0 | AP10: 0 | AQ10: 0 | AR10: 0 | AS10: 0 | AT10: 0 | AU10: 0 | AV10: 0 | AW10: 0 | AX10: 0 | AY10: 0 | AZ10: 0
A11: Tributos diferidos | B11: 137746 | C11: 145249 | D11: 139427 | E11: 107597 | F11: 113050 | G11: 93137 | H11: 56661 | I11: 168198 | J11: 195674 | K11: 31971 | L11: 7701 | M11: 2323 | N11: 0 | O11: 0 | P11: 0 | Q11: 0 | R11: - | S11: - | T11: - | U11: - | V11: - | W11: - | X11: - | Y11: 0 | Z11: 25785 | AA11: 33971 | AB11: 37390 | AC11: 46855 | AD11: 29493 | AF11: 0
A12: Títulos a receber | B12: 0 | C12: 0 | D12: 0 | E12: -1 | F12: 0 | G12: 0 | H12: 0 | I12: 0 | J12: 0 | K12: 0 | L12: 0 | M12: 0 | N12: 0 | O12: 0 | P12: 0 | Q12: 0 | R12: - | S12: - | T12: - | U12: - | V12: - | W12: - | X12: - | Y12: 0 | Z12: 0 | AA12: 0 | AB12: 0 | AC12: 0 | AD12: 106 | AE12: 106 | AF12: 106 | AG12: 106 | AH12: 106 | AI12: 6221 | AJ12: 5606 | AK12: 5448 | AL12: 5309 | AM12: 5079 | AN12: 4965 | AO12: 4767 | AP12: 5041 | AQ12: 4585 | AR12: 4530 | AS12: 9397 | AT12: 9308 | AU12: 4530 | AV12: 4165 | AW12: 8954 | AX12: 8839 | AY12: 8764 | AZ12: 8659
A13: Ativo financeiro indenizável | B13: 0 | C13: 0 | D13: 0 | E13: 0 | F13: 0 | G13: 0 | H13: 0 | I13: 0 | J13: 0 | K13: 0 | L13: 0 | M13: 0 | N13: 0 | O13: 0 | P13: 0 | Q13: 0 | R13: - | S13: - | T13: - | U13: - | V13: - | W13: - | X13: - | Y13: 0 | Z13: 0 | AA13: 0 | AB13: 0 | AC13: 0 | AD13: 0 | AE13: 0 | AF13: 0 | AG13: 0 | AH13: 0 | AI13: 0 | AJ13: 0 | AK13: 0 | AL13: 0 | AM13: 0 | AN13: 0 | AO13: 0 | AP13: 0 | AQ13: 0 | AR13: 0 | AS13: 0 | AT13: 0 | AU13: 0 | AV13: 797 | AW13: 823 | AX13: 823 | AY13: 823 | AZ13: 823
A14: Contas a receber | B14: 2279225 | C14: 2597602 | D14: 2445137 | E14: 2434263 | F14: 2477448 | G14: 2944645 | H14: 2856290 | I14: 2863226 | J14: 2309189 | K14: 2614835 | L14: 2958032 | M14: 2535231 | N14: 2428880 | O14: 2551065 | P14: 2625935 | Q14: 2862585 | R14: 2634623 | S14: 2800908 | T14: 2486112 | U14: 2972150 | V14: 2547639 | W14: 2489255 | X14: 2406437 | Y14: 2224578 | Z14: 1840642 | AA14: 1838256 | AB14: 1696312 | AC14: 1827410 | AD14: 1801574 | AE14: 1983465 | AF14: 2173335 | AG14: 1827005 | AH14: 1767303 | AI14: 1600835 | AJ14: 1354605 | AK14: 1388437 | AL14: 1239643 | AM14: 1360022 | AN14: 1126547 | AO14: 1154423 | AP14: 1169120 | AQ14: 1509490 | AR14: 1252551 | AS14: 1104149 | AT14: 1019705 | AU14: 1252551 | AV14: 963226 | AW14: 931804 | AX14: 931263 | AY14: 935415 | AZ14: 888806
A15: Imposto de renda e Contribuição social a compensar | B15: 99512 | C15: 118252 | D15: 238560 | E15: 245720 | F15: 228575 | G15: 228170 | H15: 280791 | I15: 221406 | J15: 202294 | K15: 178681 | L15: 206929 | M15: 151020 | N15: 149489 | O15: 138388 | P15: 123282 | Q15: 142899 | R15: 150328 | S15: 192801 | T15: 350533 | U15: 549289 | V15: 580235 | W15: 660228 | X15: 869775 | Y15: 1012053 | Z15: 302742 | AA15: 287696 | AB15: 426147 | AC15: 277036 | AD15: 242592 | AE15: 177038 | AF15: 284735 | AG15: 234794 | AH15: 226441 | AI15: 179792 | AJ15: 235154 | AK15: 146714 | AL15: 181810 | AM15: 168286 | AN15: 195291 | AO15: 143713 | AP15: 156608 | AQ15: 151089 | AR15: 166075 | AS15: 369021 | AT15: 321002 | AU15: 166040 | AV15: 519210 | AW15: 435553 | AX15: 446274 | AY15: 398107 | AZ15: 540314
A16: Outros tributos compensáveis | B16: 324597 | C16: 366551 | D16: 456679 | E16: 427652 | F16: 595615 | G16: 584820 | H16: 552974 | I16: 559194 | J16: 542892 | K16: 585398 | L16: 633670 | M16: 673889 | N16: 651750 | O16: 652961 | P16: 670383 | Q16: 275417 | R16: 268694 | S16: 274770 | T16: 282349 | U16: - | V16: - | W16: - | X16: - | Y16: 0 | Z16: 0 | AA16: 0 | AB16: 0 | AC16: 0 | AD16: 0 | AE16: 0 | AF16: 0 | AG16: 0 | AH16: 0 | AI16: 0 | AJ16: 0 | AK16: 0 | AL16: 0 | AM16: 0 | AN16: 0 | AO16: 0 | AP16: 0 | AQ16: 0 | AR16: 0 | AS16: 0 | AT16: 0 | AU16: 0 | AV16: 0 | AW16: 0 | AX16: 0 | AY16: 0 | AZ16: 0
A17: Partes relacionadas | B17: 0 | C17: 0 | D17: 0 | E17: 0 | F17: - | G17: - | H17: - | I17: 0 | J17: 0 | K17: 0 | L17: 0 | M17: 0 | N17: 0 | O17: 0 | P17: 0 | Q17: 0 | R17: - | S17: - | T17: - | U17: - | V17: - | W17: - | X17: - | Y17: 0 | Z17: 0 | AA17: 0 | AB17: 0 | AC17: 0 | AD17: 0 | AE17: 0 | AF17: 0 | AG17: 0 | AH17: 0 | AI17: 0 | AJ17: 0 | AK17: 74469 | AL17: 13647 | AM17: 12715 | AN17: 12359 | AO17: 763 | AP17: 745 | AQ17: 730 | AR17: 718 | AS17: 0 | AT17: 0 | AU17: 718 | AV17: 0 | AW17: 0 | AX17: 0 | AY17: 0 | AZ17: 0
A18: Empréstimos a receber | B18: 2010 | C18: 1960 | D18: 0 | E18: -1 | F18: 0 | G18: 0 | H18: 0 | I18: 0 | J18: 0 | K18: 0 | L18: 0 | M18: 0 | N18: 0 | O18: 0 | P18: 0 | Q18: 0 | R18: - | S18: - | T18: - | U18: - | V18: - | W18: - | X18: - | Y18: 49786 | Z18: 48503 | AA18: 51311 | AB18: 50773 | AC18: 114156 | AD18: 109905 | AE18: 86492 | AF18: 70179 | AG18: 0 | AH18: - | AI18: - | AJ18: 0 | AK18: - | AL18: - | AM18: - | AN18: - | AO18: - | AP18: - | AQ18: - | AR18: - | AS18: - | AT18: - | AU18: - | AV18: - | AW18: - | AX18: - | AY18: - | AZ18: -
A19: Instrumentos Financeiros Derivativos | B19: 67288 | C19: 32942 | D19: 13463 | E19: 15298 | F19: 10969
A20: Dividendos a receber | B20: 110488 | C20: 82614 | D20: 71004 | E20: 48871 | F20: 38239 | G20: 64799 | H20: 50015 | I20: 26972 | J20: 17666 | K20: 51246 | L20: 35686 | M20: 16423 | N20: 39197 | O20: 27513 | P20: 22521 | Q20: 5454 | R20: 10403 | S20: 14950 | T20: 5717 | U20: 2843 | V20: 2223 | W20: 2223 | X20: 2223 | Y20: 338 | Z20: 338 | AA20: 338 | AB20: 338 | AC20: 248 | AD20: 248 | AE20: 248 | AF20: 248 | AG20: 172 | AH20: 172 | AI20: 0 | AJ20: 0 | AK20: 0 | AL20: 0 | AM20: 0 | AN20: 0 | AO20: 0 | AP20: 0 | AQ20: 0 | AR20: 0 | AS20: 0 | AT20: 0 | AU20: 0 | AV20: 0 | AW20: 0 | AX20: 0 | AY20: 0 | AZ20: 0
A21: Estoques | B21: 162622 | C21: 258902 | D21: 275722 | E21: 370812 | F21: 436432 | G21: 496258 | H21: 460408 | I21: 193518 | J21: 313838 | K21: 315212 | L21: 183080 | M21: 246945 | N21: 241053 | O21: 213317 | P21: 168719 | Q21: 197241 | R21: 198088 | S21: 158328 | T21: 266965 | U21: 248156 | V21: 191122 | W21: 207575 | X21: 144816 | Y21: 161335 | Z21: 143109 | AA21: 183044 | AB21: 129997 | AC21: 90936 | AD21: 63928 | AE21: 68225 | AF21: 74313 | AG21: 98129 | AH21: 112982 | AI21: 21349 | AJ21: 23136 | AK21: 22807 | AL21: 25543 | AM21: 22245 | AN21: 19581 | AO21: 18467 | AP21: 43197 | AQ21: 42337 | AR21: 40579 | AS21: 113227 | AT21: 100696 | AU21: 40579 | AV21: 68077 | AW21: 53966 | AX21: 30088 | AY21: 29097 | AZ21: 28112
A22: Cauções e depósitos vinculados | B22: 4553 | C22: 13461 | D22: 19782 | E22: 19632 | F22: 22800 | G22: 23369 | H22: 10001 | I22: 10298 | J22: 10416 | K22: 3949 | L22: 4876 | M22: 5570 | N22: 133835 | O22: 134229 | P22: 130910 | Q22: 689755 | R22: 705098 | S22: 696474 | T22: 687232 | U22: 2224 | V22: 10261 | W22: 2176 | X22: 4298 | Y22: 3198 | Z22: 3307 | AA22: 3151 | AB22: 11115 | AC22: 109167 | AD22: 49161 | AE22: 52291 | AF22: 22273 | AG22: 79243 | AH22: 120584 | AI22: 49067 | AJ22: 12277 | AK22: 9769 | AL22: 21635 | AM22: 11172 | AN22: 4642 | AO22: 2300 | AP22: 8163 | AQ22: 11193 | AR22: 24207 | AS22: 45860 | AT22: 44643 | AU22: 24207 | AV22: 10107 | AW22: 47440 | AX22: 46394 | AY22: 51554 | AZ22: 62898
A23: Prêmio de risco - GSF | B23: 2750 | C23: 2749 | D23: 2750 | E23: 2749 | F23: 2749 | G23: 2749 | H23: 2749 | I23: 3290 | J23: 3290 | K23: 3290 | L23: 3290 | M23: 3290 | N23: 3290 | O23: 2749 | P23: 2749 | Q23: 2750 | R23: 2750 | S23: - | T23: - | U23: 4085 | V23: 4085 | W23: 4085 | X23: 4085 | Y23: 61824 | Z23: 4085 | AA23: 4085 | AB23: 4085 | AC23: 4085 | AD23: 4108 | AE23: 4108 | AF23: 2750 | AJ23: 0
A24: Despesas pagas antecipadamente | B24: 0 | C24: 0 | D24: 0 | E24: 0 | F24: - | G24: - | H24: - | I24: 0 | J24: 0 | K24: 0 | L24: 0 | M24: 0 | N24: 0 | O24: 0 | P24: 0 | Q24: - | R24: - | S24: - | T24: - | U24: - | V24: - | W24: - | X24: - | Y24: 0 | Z24: 0 | AA24: 0 | AB24: 0 | AC24: 0 | AD24: 0 | AE24: 0 | AF24: 0 | AG24: 26237 | AH24: 5215 | AI24: 5413 | AJ24: 0 | AK24: 2012 | AL24: 4225 | AM24: 5332 | AN24: 159 | AO24: 2853 | AP24: 3667 | AQ24: 4518 | AR24: 704 | AS24: 2650 | AT24: 4128 | AU24: 704 | AV24: 4887 | AW24: 2522 | AX24: 3352 | AY24: 3896 | AZ24: 5254
A25: Ressarcimento de custos - CCEE | B25: 0 | C25: 0 | D25: 0 | E25: 0 | F25: - | G25: - | H25: - | I25: 0 | J25: 0 | K25: 0 | L25: 0 | M25: 0 | N25: 0 | O25: 0 | P25: 0 | Q25: - | R25: - | S25: - | T25: - | U25: - | V25: - | W25: - | X25: - | Z25: 0 | AA25: 0 | AB25: 0 | AC25: 0 | AD25: 0 | AE25: 0 | AF25: 0 | AG25: 0 | AH25: 0 | AI25: 0 | AJ25: 0 | AK25: 102654 | AL25: 142057 | AM25: 370483
A26: Conta de compensação de variação de custos da parcela "A" | B26: 0 | C26: 0 | D26: 0 | E26: 0 | F26: - | G26: - | H26: - | I26: 0 | J26: 0 | K26: 0 | L26: 0 | M26: 0 | N26: 0 | O26: 0 | P26: 0 | Q26: - | R26: - | S26: - | T26: - | U26: - | V26: - | W26: - | X26: - | Y26: 0 | Z26: 0 | AA26: 0 | AB26: 0 | AC26: 0 | AD26: 0 | AE26: 0 | AF26: 0 | AG26: 0 | AH26: 0 | AI26: 0 | AJ26: 0 | AK26: 0 | AL26: 0 | AM26: 0 | AN26: 0 | AO26: 0 | AP26: 0 | AQ26: 0 | AR26: 0 | AU26: 0 | AX26: 0 | AY26: 0
A27: Rendas a receber | B27: 4593 | C27: 4593 | D27: 5217 | E27: 5217 | F27: 5217 | G27: 5217 | H27: 2927 | I27: 2926 | J27: 2926 | K27: 2926 | L27: 3429 | M27: 3429 | N27: 3429 | O27: 3429 | P27: 4475 | Q27: 4475 | R27: 4475 | S27: - | T27: - | U27: 3424 | V27: 3424 | W27: 3424 | X27: 4218 | Y27: 4218 | Z27: 4218 | AA27: 4218 | AB27: 6767 | AC27: 6768 | AD27: 6768 | AE27: 6768 | AF27: 5188 | AG27: 5188 | AH27: 5188 | AI27: 5188 | AJ27: 4974 | AK27: 4974 | AL27: 4974 | AM27: 4974 | AN27: 4758 | AO27: 4759 | AP27: 4758 | AQ27: 4758 | AR27: 6150 | AS27: 0 | AT27: 0 | AU27: 6150 | AV27: 4825 | AW27: 0 | AX27: 0 | AY27: 0 | AZ27: 0
A28: Ativos financeiros disponíveis para venda | B28: 0 | C28: 0 | D28: 0 | E28: 0 | F28: - | G28: - | H28: - | I28: 0 | J28: 0 | K28: 0 | L28: 0 | M28: 0 | N28: 0 | O28: 0 | P28: 0 | Q28: - | R28: - | S28: - | T28: - | U28: - | V28: - | W28: - | X28: - | Y28: 0 | Z28: 0 | AA28: 0 | AB28: 0 | AC28: 0 | AD28: 0 | AE28: 0 | AF28: 0 | AG28: 0 | AH28: 0 | AI28: 0 | AJ28: 0 | AK28: 5282 | AL28: 5084 | AM28: 5480 | AN28: 11026 | AO28: 12214 | AP28: 6932 | AQ28: 15713 | AR28: 19806 | AS28: 15845 | AT28: 16505 | AU28: 19806 | AV28: 33011 | AW28: 24692 | AX28: 28323 | AY28: 30106 | AZ28: 40801
A29: Ativos não circulantes mantidos para venda | B29: 2162530 | C29: 0 | D29: 0 | E29: 401578 | F29: 1311194 | G29: 1375452 | H29: 1328481 | I29: 1230890 | J29: 0 | K29: 0 | L29: 0 | M29: 0 | N29: 0 | O29: 371485 | P29: 341781 | Q29: 427301 | R29: 334468 | S29: - | T29: - | U29: - | V29: 23745 | W29: 24887 | X29: 31794 | Y29: 0 | Z29: 0 | AA29: 0 | AB29: 0 | AC29: 0 | AD29: 0 | AE29: 0 | AF29: 122442 | AG29: 228509 | AH29: 107054 | AI29: 107054 | AJ29: 107054 | AK29: 4061 | AL29: 0 | AM29: 2379900 | AN29: 2327633 | AO29: 0 | AP29: 0 | AQ29: 0 | AR29: 0 | AS29: 29016 | AT29: 27658 | AU29: 0 | AV29: 0
A30: Ressarcimento de custos - GSF | B30: 0 | C30: 0 | D30: 0 | E30: 0 | F30: 0 | G30: 0 | H30: 0 | I30: 0 | J30: 0 | K30: 0 | L30: 0 | M30: 0 | N30: 0 | O30: 0 | P30: 0 | Q30: - | R30: - | S30: - | T30: - | U30: - | V30: - | W30: - | X30: - | Y30: 0
A31: Ativos da concessão | B31: 746978 | C31: 726816 | D31: 700042 | E31: 683897 | F31: 420663 | G31: 409574 | H31: 55184 | I31: 73513 | J31: 137213 | K31: 86796 | L31: 33855 | M31: 41246 | N31: 54518 | O31: 62870 | P31: 17405
A32: Ativos financeiros setoriais | B32: 34231 | C32: 58239 | D32: 80687 | E32: 130989 | F32: 344157 | G32: 693212 | H32: 643174 | I32: 678336 | J32: 488335 | K32: 322580 | L32: 226899 | M32: 88983 | N32: 327067 | O32: 247434 | P32: 227979 | Q32: 195217 | R32: 263153 | S32: 317700 | T32: 366149 | U32: 447411 | V32: 402852 | W32: 182266 | X32: 108794 | Y32: 26726 | Z32: 25047 | AA32: 45769 | AB32: 58662 | AC32: 74664 | AD32: 234644 | AE32: 466042 | AF32: 664410 | AG32: 774866 | AH32: 586104 | AI32: 401251 | AJ32: 383378
A33: Compromissos futuros | B33: 1233224 | C33: 1354110 | D33: 1347737 | E33: 889710 | F33: 743572 | G33: 626770 | H33: 440678 | I33: 1151379 | J33: 1472554 | K33: 271956 | L33: 76621
A34: Outros créditos | B34: 293685 | C34: 297390 | D34: 308672 | E34: 384675 | F34: 336544 | G34: 353572 | H34: 669758 | I34: 300743 | J34: 269147 | K34: 238436 | L34: 205162 | M34: 189201 | N34: 253035 | O34: 188364 | P34: 214963 | Q34: 214706 | R34: 234061 | S34: 249299 | T34: 194818 | U34: 167327 | V34: 177141 | W34: 178330 | X34: 162085 | Y34: 174547 | Z34: 185128 | AA34: 194063 | AB34: 224450 | AC34: 257429 | AD34: 290311 | AE34: 273054 | AF34: 293344 | AG34: 294282 | AH34: 281454 | AI34: 188931 | AJ34: 170464 | AK34: 143315 | AL34: 136121 | AM34: 92019 | AN34: 75837 | AO34: 437770 | AP34: 300766 | AQ34: 205926 | AR34: 191647 | AS34: 143291 | AT34: 148156 | AU34: 191647 | AV34: 161837 | AW34: 153881 | AX34: 173783 | AY34: 174439 | AZ34: 172561.3011
A35: NÃO CIRCULANTE
A36: Realizável a Longo Prazo | B36: =SUM(B37:B55) -> 17521435 | C36: =SUM(C37:C55) -> 17176269 | D36: =SUM(D37:D55) -> 16014014 | E36: =SUM(E37:E55) -> 14942117 | F36: 14240951 | G36: 14212335 | H36: 13505015 | I36: 12981693 | J36: 12937928 | K36: 12057122 | L36: 11847115 | M36: 10681526 | N36: 10075963 | O36: 9628345 | P36: 9423329 | Q36: 7201267 | R36: 6396356 | S36: 5127383 | T36: 4729324 | U36: 4191056 | V36: 3879202 | W36: 3743828 | X36: 3658812 | Y36: 3474068 | Z36: 3305081 | AA36: 3309453 | AB36: 3245164 | AC36: 3100471 | AD36: 2664391 | AE36: 2483054 | AF36: 2364388 | AG36: 2090671 | AH36: 2178187 | AI36: 2277001 | AJ36: 2328899 | AK36: 1968213 | AL36: 2013474 | AM36: 1946909 | AN36: 1933067 | AO36: 1942623 | AP36: 1965619 | AQ36: 1911423 | AR36: 1849574 | AS36: 1676897 | AT36: 1605824 | AU36: 1849574 | AV36: 1688185 | AW36: 1619716 | AX36: 1608532 | AY36: 1587016 | AZ36: 1569149
A37: Títulos e valores mobiliários | B37: 11586 | C37: 11593 | D37: 6697 | E37: 2500 | F37: 2500 | G37: 2500 | H37: 2500 | I37: 2500 | J37: 2500 | K37: 2500 | L37: 1750 | M37: 1750 | N37: 1750 | O37: 1750 | P37: 1750 | Q37: 1250 | R37: - | S37: - | T37: - | U37: - | V37: - | W37: - | X37: - | Y37: 109387 | Z37: 105811 | AA37: 102181 | AB37: 98122 | AC37: 94050 | AD37: 0 | AE37: 0 | AF37: 0 | AG37: 0 | AH37: 0 | AI37: 0 | AJ37: 0 | AK37: 0 | AL37: 0 | AM37: 0 | AN37: 0 | AO37: 0 | AP37: 0 | AQ37: 0 | AR37: 0 | AS37: 0 | AT37: 0 | AU37: 0 | AV37: 0 | AW37: 0 | AX37: 0 | AY37: 0 | AZ37: 0
A38: Títulos a receber | B38: 0 | C38: 0 | D38: 0 | E38: -1 | F38: 0 | G38: 0 | H38: 0 | I38: 0 | J38: 0 | K38: 0 | L38: 0 | M38: 0 | N38: 0 | O38: 0 | P38: 0 | Q38: - | R38: - | S38: - | T38: - | U38: - | V38: - | W38: - | X38: - | Y38: 0 | Z38: 0 | AA38: 0 | AB38: 0 | AC38: 0 | AD38: 3501 | AE38: 3457 | AF38: 3407 | AG38: 8310 | AH38: 6066 | AI38: 3305 | AJ38: 5037 | AK38: 6236 | AL38: 7418 | AM38: 7446 | AN38: 17049 | AO38: 18169 | AP38: 18786 | AQ38: 20139 | AR38: 21324 | AS38: 17146 | AT38: 17836 | AU38: 21324 | AV38: 23897 | AW38: 18120 | AX38: 18378 | AY38: 18475 | AZ38: 20036
A39: Ativo financeiro indenizável | B39: 6500355 | C39: 6090048 | D39: 5706847 | E39: 5365456 | F39: 5082839 | G39: 4772345 | H39: 4362393 | I39: 4097120 | J39: 3877390 | K39: 3696115 | L39: 3486960 | M39: 3261487 | N39: 3147051 | O39: 3092296 | P39: 3000631 | Q39: 2878301 | R39: 2590781 | S39: 2475042 | T39: 2308855 | U39: 2506193 | V39: 2249921 | W39: 2080521 | X39: 1951930 | Y39: 1848493 | Z39: 1781881 | AA39: 1725067 | AB39: 1653978 | AC39: 1608124 | AD39: 1257703 | AE39: 1277100 | AF39: 1230134 | AG39: 977586 | AH39: 956374 | AI39: 978567 | AJ39: 940160 | AK39: 887226 | AL39: 874566 | AM39: 829187 | AN39: 779354 | AO39: 786073 | AP39: 751901 | AQ39: 727990 | AR39: 690278 | AS39: 566024 | AT39: 532224 | AU39: 690278 | AV39: 482285 | AW39: 492900 | AX39: 460224 | AY39: 416492 | AZ39: 397324
A40: Contas a receber | B40: 226172 | C40: 224027 | D40: 227962 | E40: 177275 | F40: 115448 | G40: 101494 | H40: 103977 | I40: 106247 | J40: 110363 | K40: 112256 | L40: 82987 | M40: 85201 | N40: 87726 | O40: 94329 | P40: 100545 | Q40: 93960 | R40: 93528 | S40: 92363 | T40: 92246 | U40: 89090 | V40: 89549 | W40: 92941 | X40: 119633 | Y40: 100537 | Z40: 100722 | AA40: 100663 | AB40: 106513 | AC40: 87448 | AD40: 78396 | AE40: 80701 | AF40: 72365 | AG40: 50475 | AH40: 51727 | AI40: 276750 | AJ40: 284759 | AK40: 44795 | AL40: 47460 | AM40: 52777 | AN40: 54908 | AO40: 46821 | AP40: 50563 | AQ40: 39799 | AR40: 40294 | AS40: 32545 | AT40: 31369 | AU40: 40294 | AV40: 63657 | AW40: 62379 | AX40: 64916 | AY40: 65936 | AZ40: 63733
A41: Outros tributos compensáveis | B41: 468276 | C41: 451465 | D41: 433092 | E41: 499195 | F41: 577137 | G41: 794956 | H41: 930969 | I41: 1071186 | J41: 1175694 | K41: 1403898 | L41: 1479728 | M41: 1527808 | N41: 1636348 | O41: 1570695 | P41: 1663011 | Q41: 1011888 | R41: 995501 | S41: 245930 | T41: 238768 | U41: 231280 | V41: 220990 | W41: 247338 | X41: 241525 | Y41: 125276 | Z41: 118215 | AA41: 114161 | AB41: 107185 | AC41: 100924 | AD41: 92299 | AE41: 86760 | AF41: 84527 | AG41: 80965 | AH41: 78418 | AI41: 72340 | AJ41: 70719 | AK41: 69980 | AL41: 62591 | AM41: 60349 | AN41: 55327 | AO41: 80248 | AP41: 67244 | AQ41: 65615 | AR41: 55512 | AS41: 52683 | AT41: 50476 | AU41: 55512 | AV41: 38184 | AW41: 37943 | AX41: 35593 | AY41: 36874 | AZ41: 35933
A42: Tributos diferidos | B42: 475368 | C42: 714753 | D42: 645648 | E42: 552533 | F42: 554631 | G42: 619485 | H42: 601422 | I42: 653856 | J42: 725440 | K42: 661230 | L42: 710558 | M42: 782577 | N42: 723071 | O42: 728236 | P42: 741695 | Q42: 662252 | R42: 732857 | S42: 755360 | T42: 741134 | U42: 759182 | V42: 783780 | W42: 807990 | X42: 806689 | Y42: 760118 | Z42: 905770 | AA42: 915956 | AB42: 916507 | AC42: 883149 | AD42: 873868 | AE42: 755349 | AF42: 620814 | AG42: 594088 | AH42: 627200 | AI42: 330462 | AJ42: 347770
A43: Empréstimos a receber | B43: 14532 | C43: 12371 | D43: 14689 | E43: 14646 | F43: 14469 | G43: 12348 | H43: 12713 | I43: 189720 | J43: 5356 | K43: 5111 | L43: 4518 | M43: 29946 | N43: 27585 | O43: 26570 | P43: 26186 | Q43: 27636 | R43: 24959 | S43: 24447 | T43: 22809 | U43: 22366 | V43: 21921 | W43: 21492 | X43: 21064 | Y43: 20609 | Z43: 20059 | AA43: 19468 | AB43: 17640 | AC43: 16995 | AD43: 16336 | AE43: 15720 | AF43: 16149 | AG43: 15541 | AH43: 14946 | AI43: 206203 | AJ43: 200149
A44: Instrumentos Financeiros Derivativos | B44: 181571 | C44: 134636 | D44: 66824 | E44: 0 | F44: 0
A45: Imposto de renda e Contribuição social a compensar | B45: 85478 | C45: 92529 | D45: 99234 | E45: 85211 | F45: 61139 | G45: 77379 | H45: 139812 | I45: 120637 | J45: 65698 | K45: 74903 | L45: 95909 | M45: 88613 | N45: 89400 | O45: 84173 | P45: 93761 | Q45: - | R45: - | S45: - | T45: - | U45: - | V45: - | W45: - | X45: 0 | Y45: 0 | Z45: 0 | AA45: 0 | AB45: 0 | AC45: 0 | AD45: 0 | AE45: 0 | AF45: 0 | AG45: 0 | AH45: 0 | AI45: 0 | AJ45: 0
A46: Imposto de renda e contribuição social diferidos | B46: 0 | C46: 0 | D46: 0 | E46: 0 | F46: - | G46: - | H46: - | I46: 0 | J46: 0 | K46: 0 | L46: 0 | M46: 0 | N46: 0 | O46: 0 | P46: 0 | Q46: - | R46: - | S46: - | T46: - | U46: - | V46: - | W46: - | X46: 0 | Y46: 0 | Z46: 0 | AA46: 0 | AB46: 0 | AC46: 0 | AD46: 0 | AE46: 0 | AF46: 0 | AG46: 0 | AH46: 0 | AI46: 0 | AJ46: 0 | AK46: 579814 | AL46: 558981 | AM46: 530593 | AN46: 552573 | AO46: 536268 | AP46: 608010 | AQ46: 610560 | AR46: 614957 | AS46: 740985 | AT46: 726947 | AU46: 614957 | AV46: 791997 | AW46: 756450 | AX46: 728977 | AY46: 776023 | AZ46: 778680
A47: Partes relacionadas | B47: 0 | C47: 0 | D47: 0 | E47: 0 | F47: - | G47: - | H47: - | I47: 0 | J47: 0 | K47: 0 | L47: 0 | M47: 0 | N47: 0 | O47: 0 | P47: 0 | Q47: - | R47: - | S47: - | T47: - | U47: - | V47: - | W47: - | X47: - | Y47: 0 | Z47: 0 | AA47: 0 | AB47: 0 | AC47: 0 | AD47: - | AE47: 0 | AF47: 0 | AG47: 0 | AH47: 0 | AI47: 0 | AJ47: 0 | AK47: 123714 | AL47: 180409 | AM47: 175560 | AN47: 171074 | AO47: 166414 | AP47: 162950 | AQ47: 159746 | AR47: 136232 | AS47: 28223 | AT47: 2452 | AU47: 136232 | AV47: 2223 | AW47: 7 | AX47: 0 | AY47: 0 | AZ47: 0
A48: Adiantamentos para futuro aumento de capital | B48: 0 | C48: 0 | D48: 0 | E48: 0 | F48: - | G48: - | H48: - | I48: 0 | J48: 0 | K48: 0 | L48: 0 | M48: 0 | N48: 0 | O48: 0 | P48: 0 | Q48: - | R48: - | S48: 36000 | T48: 36000 | U48: - | V48: - | W48: 35500 | X48: 35500 | Y48: 0 | Z48: 0 | AA48: 64600 | AB48: 64600 | AC48: 0 | AD48: 0 | AE48: 13000 | AF48: 13000 | AG48: 43500 | AH48: 27500 | AI48: 0 | AJ48: 0 | AK48: 0 | AL48: 0 | AM48: 0 | AN48: 0 | AO48: 0 | AP48: 0 | AQ48: 0 | AR48: 0 | AS48: 349 | AT48: 3000 | AU48: 0 | AV48: 0 | AW48: 458 | AX48: 458 | AY48: 458 | AZ48: 458
A49: Ativos da Concessão | B49: 7780267 | C49: 7733143 | D49: 7483925 | E49: 7205720 | F49: 6936872 | G49: 6665027 | H49: 5685037 | I49: 5174358 | J49: 5685281 | K49: 5207931 | L49: 4844304 | M49: 4265142 | N49: 3858738 | O49: 3476997 | P49: 3200239 | Q49: 2069564 | R49: 1595552 | S49: 1077282 | T49: 818662 | U49: - | V49: - | W49: - | X49: -
A50: Ativos financeiros setoriais | B50: 75404 | C50: 37666 | D50: 72641 | E50: 68511 | F50: 61879 | G50: 323506 | H50: 786263 | I50: 475728 | J50: 109648 | K50: 187930 | L50: 318585 | M50: 120944 | N50: 35416 | O50: 78509 | P50: 131430 | Q50: - | R50: 5613 | S50: 58932 | T50: 122438 | U50: 248491 | V50: 205150 | W50: 150619 | X50: 198641 | Y50: 252683 | Z50: 7152 | AA50: 878 | AB50: 12701 | AC50: 39686 | AD50: 65342 | AE50: 18106 | AF50: 98234 | AG50: 81704 | AH50: 176840 | AI50: 174978 | AJ50: 218164 | AK50: 0 | AL50: 0 | AM50: 0 | AN50: 0 | AO50: 0 | AP50: 0 | AQ50: 0 | AR50: 0 | AS50: 0 | AT50: 0 | AU50: 0 | AV50: 0 | AW50: 0 | AX50: 0 | AY50: 0 | AZ50: 0
A51: Cauções e depósitos vinculados | B51: 504733 | C51: 491482 | D51: 471746 | E51: 429473 | F51: 414250 | G51: 404394 | H51: 419776 | I51: 426166 | J51: 440677 | K51: 443064 | L51: 433037 | M51: 424860 | N51: 420498 | O51: 412870 | P51: 402367 | Q51: 390803 | R51: 294667 | S51: 295828 | T51: 282458 | U51: 267911 | V51: 241096 | W51: 237810 | X51: 208747 | Y51: 182472 | Z51: 196993 | AA51: 192361 | AB51: 188592 | AC51: 187201 | AD51: 193729 | AE51: 186604 | AF51: 179581 | AG51: 207507 | AH51: 207005 | AI51: 204549 | AJ51: 232210 | AK51: 231010 | AL51: 236786 | AM51: 232970 | AN51: 242704 | AO51: 253873 | AP51: 251275 | AQ51: 243295 | AR51: 244650 | AS51: 193045 | AT51: 197112 | AU51: 244650 | AV51: 245635 | AW51: 207405 | AX51: 266998 | AY51: 239781 | AZ51: 239669
A52: Prêmio de risco - GSF | B52: 13060 | C52: 13746 | D52: 14435 | E52: 15122 | F52: 15809 | G52: 16497 | H52: 17184 | I52: 18636 | J52: 19459 | K52: 20282 | L52: 21104 | M52: 21927 | N52: 22749 | O52: 21995 | P52: 22682 | Q52: 23369 | R52: 24057 | S52: - | T52: - | U52: 32836 | V52: 33852 | W52: 34867 | X52: 35881 | Y52: 36897 | Z52: 37912 | AA52: 38926 | AB52: 39941 | AC52: 40956 | AD52: 41901 | AE52: 5988 | AF52: 5879 | AJ52: 0
A53: Despesas pagas antecipadamente | B53: 0 | C53: 0 | D53: 0 | E53: 0 | F53: - | G53: - | H53: - | I53: 0 | J53: 0 | K53: 0 | L53: 0 | M53: 0 | N53: 0 | O53: 0 | P53: 0 | Q53: - | R53: - | S53: - | T53: - | U53: - | V53: - | W53: - | X53: - | Y53: 0 | Z53: 0 | AA53: 0 | AB53: 0 | AC53: 0 | AD53: 0 | AE53: 0 | AF53: 0 | AG53: 0 | AH53: 0 | AI53: 33 | AJ53: 0 | AK53: 0 | AL53: 0 | AM53: 0 | AN53: 0 | AO53: 891 | AP53: 1050 | AQ53: 0 | AR53: 0 | AS53: 431 | AT53: 955 | AU53: 0 | AV53: 496 | AW53: 586 | AX53: 676 | AY53: 764 | AZ53: 937
A54: Compromissos futuros | B54: 1160607 | C54: 1151598 | D54: 754187 | E54: 502795 | F54: 388373 | G54: 406131 | H54: 427583 | I54: 630052 | J54: 704747 | K54: 220146 | L54: 349330
A55: Outros créditos | B55: 24026 | C55: 17212 | D55: 16087 | E55: 23681 | F55: 15605 | G55: 16273 | H55: 15386 | I55: 15487 | J55: 15675 | K55: 21756 | L55: 18345 | M55: 71271 | N55: 25631 | O55: 39925 | P55: 39032 | Q55: 42244 | R55: 38841 | S55: 66199 | T55: 65954 | U55: 33707 | V55: 32943 | W55: 34750 | X55: 39202 | Y55: 37596 | Z55: 30566 | AA55: 35192 | AB55: 39385 | AC55: 41938 | AD55: 41316 | AE55: 40269 | AF55: 40298 | AG55: 30995 | AH55: 32111 | AI55: 29814 | AJ55: 29931 | AK55: 25438 | AL55: 45263 | AM55: 58027 | AN55: 60078 | AO55: 53866 | AP55: 53840 | AQ55: 44279 | AR55: 46327 | AS55: 45466 | AT55: 43453 | AU55: 46327 | AV55: 39811 | AW55: 43468 | AX55: 32312 | AY55: 32213 | AZ55: 32379
A56: Permanente | B56: =SUM(B57:B60) -> 8982378 | C56: =SUM(C57:C60) -> 10595676 | D56: =SUM(D57:D60) -> 10683151 | E56: =SUM(E57:E60) -> 11980260 | F56: 11674094 | G56: 11690081 | H56: 10002421 | I56: 11299632 | J56: 11174263 | K56: 11105732 | L56: 10975066 | M56: 10628125 | N56: 10589510 | O56: 10480551 | P56: 10740764 | Q56: 10706376 | R56: 10743251 | S56: 10990026 | T56: 11025017 | U56: 11645539 | V56: 11661242 | W56: 11592660 | X56: 11494983 | Y56: 11418748 | Z56: 11414908 | AA56: 11313257 | AB56: 11334917 | AC56: 11348944 | AD56: 11375640 | AE56: 11250149 | AF56: 11184631 | AG56: 11126749 | AH56: 11276478 | AI56: 7647124 | AJ56: 7719281 | AK56: 7819513 | AL56: 7784142 | AM56: 7445283 | AN56: 7501483 | AO56: 8990079 | AP56: 8780982 | AQ56: 8702349 | AR56: 8700456 | AS56: 9500618 | AT56: 9386566 | AU56: 8691389 | AV56: 9261758 | AW56: 8462056 | AX56: 8378338 | AY56: 8379682.837 | AZ56: 8367571
A57: Investimentos | B57: 2444872 | C57: 2414899 | D57: 2409755 | E57: 2411440 | F57: 1443943 | G57: 1383537 | H57: 1311885 | I57: 2234680 | J57: 2190529 | K57: 2141335 | L57: 2032260 | M57: 2040840 | N57: 1963154 | O57: 1943249 | P57: 2097673 | Q57: 2024976 | R57: 2037041 | S57: 1984307 | T57: 2024618 | U57: 1929087 | V57: 1926082 | W57: 1769679 | X57: 1514827 | Y57: 1432074 | Z57: 1375762 | AA57: 1213003 | AB57: 1181259 | AC57: 1226694 | AD57: 1090711 | AE57: 982827 | AF57: 850368 | AG57: 737856 | AH57: 730672 | AI57: 1105704 | AJ57: 1111675 | AK57: 1123178 | AL57: 1070950 | AM57: 668977 | AN57: 672337 | AO57: 679260 | AP57: 691575 | AQ57: 702227 | AR57: 708682 | AS57: 35778 | AT57: 32301 | AU57: 708682 | AV57: 32896 | AW57: 29846 | AX57: 36897 | AY57: 34898.83712 | AZ57: 32920
A58: Propriedades para investimentos | B58: 63853 | C58: 63855 | D58: 63858 | E58: 63862 | F58: 58183 | G58: 74894 | H58: 11381 | I58: 11384 | J58: 11387 | K58: 11390 | L58: 11393 | M58: 11406 | N58: 11456 | O58: 11504 | P58: 11552 | Q58: 11601 | R58: 12066 | S58: 12115 | T58: 12163 | U58: 12210 | V58: 12259 | W58: 12308 | X58: 12356 | Y58: 12404 | Z58: 12453 | AA58: 12502 | AB58: 12551 | AC58: 12599 | AD58: 12648 | AE58: 12696 | AF58: 12745 | AG58: 12794 | AH58: 12852 | AI58: 12482 | AJ58: 13453 | AK58: 13453 | AL58: 13453 | AM58: 13583 | AN58: 13583 | AO58: 4094 | AP58: 4127 | AQ58: 4127 | AR58: 4127 | AS58: 4127 | AT58: 4186 | AU58: 4127 | AV58: 4186 | AW58: 4347 | AZ58: 4351
A59: Imobilizado | B59: 2953821 | C59: 4592794 | D59: 4656890 | E59: 5879683 | F59: 5940731 | G59: 5995617 | H59: 6068213 | I59: 6264408 | J59: 6267547 | K59: 6247315 | L59: 6271823 | M59: 6332423 | N59: 6353536 | O59: 6237313 | P59: 6306057 | Q59: 6331970 | R59: 6376240 | S59: 6664829 | T59: 6661984 | U59: 7023533 | V59: 7082219 | W59: 7155974 | X59: 7225384 | Y59: 7246484 | Z59: 7315310 | AA59: 7369104 | AB59: 7422433 | AC59: 7437275 | AD59: 7498320 | AE59: 7554426 | AF59: 7621448 | AG59: 7649544 | AH59: 7790383 | AI59: 3917225 | AJ59: 3941235 | AK59: 3958768 | AL59: 3981188 | AM59: 4001709 | AN59: 4026216 | AO59: 4959633 | AP59: 4706093 | AQ59: 4617451 | AR59: 4554328 | AS59: 6032489 | AT59: 5893093 | AU59: 4554328 | AV59: 5659533 | AW59: 5458495 | AX59: 5372464 | AY59: 5337188 | AZ59: 5303587
A60: Intangível | B60: 3519832 | C60: 3524128 | D60: 3552648 | E60: 3625275 | F60: 4231237 | G60: 4236033 | H60: 2610942 | I60: 2789160 | J60: 2704800 | K60: 2705692 | L60: 2659590 | M60: 2243456 | N60: 2261364 | O60: 2288485 | P60: 2325482 | Q60: 2337829 | R60: 2317904 | S60: 2328775 | T60: 2326252 | U60: 2680709 | V60: 2640682 | W60: 2654699 | X60: 2742416 | Y60: 2727786 | Z60: 2711383 | AA60: 2718648 | AB60: 2718674 | AC60: 2672376 | AD60: 2773961 | AE60: 2700200 | AF60: 2700070 | AG60: 2726555 | AH60: 2742571 | AI60: 2611713 | AJ60: 2652918 | AK60: 2724114 | AL60: 2718551 | AM60: 2761014 | AN60: 2789347 | AO60: 3347092 | AP60: 3379187 | AQ60: 3378544 | AR60: 3433319 | AS60: 3428224 | AT60: 3456986 | AU60: 3424252 | AV60: 3565143 | AW60: 2969368 | AX60: 2968977 | AY60: 3007596 | AZ60: 3026713
A61: TOTAL DO ATIVO | B61: =SUM(B56+B36+B8) -> 36409855 | C61: =SUM(C56+C36+C8) -> 37252581 | D61: =SUM(D56+D36+D8) -> 37001192 | E61: =SUM(E56+E36+E8) -> 37237475 | F61: 35564038 | G61: 36525760 | H61: 33628739 | I61: 33562475 | J61: 31721409 | K61: 31002291 | L61: 30291260 | M61: 28579446 | N61: 28214966 | O61: 27194418 | P61: 27489068 | Q61: 25680885 | R61: 24435364 | S61: 23430036 | T61: 22772071 | U61: 21639504 | V61: 21248325 | W61: 20915273 | X61: 20607952 | Y61: 20065110 | Z61: 19330487 | AA61: 19243672 | AB61: 19243826 | AC61: 19735189 | AD61: 19435312 | AE61: 18563336 | AF61: 18412340 | AG61: 18057231 | AH61: 18302291 | AI61: 14253423 | AJ61: 13171799 | AK61: 13095401 | AL61: 13139802 | AM61: 14610030 | AN61: 14141494 | AO61: 13669569 | AP61: 13620847 | AQ61: 13500567 | AR61: 12828372 | AS61: 13921324 | AT61: 13383533 | AU61: 12819270 | AV61: 13615953 | AW61: 12691604 | AX61: 12411318 | AY61: 12614390.84 | AZ61: 12811397.3
A63: PASSIVO
A64: CIRCULANTE | B64: =SUM(B65:B87) -> 11736393 | C64: =SUM(C65:C87) -> 10434271 | D64: =SUM(D65:D87) -> 9152085 | E64: =SUM(E65:E87) -> 6985656 | F64: 5802030 | G64: 7279312 | H64: 7239584 | I64: 8601212 | J64: 7284492 | K64: 6749321 | L64: 8059083 | M64: 6672291 | N64: 6313351 | O64: 5483557 | P64: 5733526 | Q64: 5043484 | R64: 5071270 | S64: 5041100 | T64: 4567831 | U64: 4518540 | V64: 4640613 | W64: 4302195 | X64: 4526264 | Y64: 4478366 | Z64: 3766004 | AA64: 3883469 | AB64: 3976461 | AC64: 3823979 | AD64: 3310069 | AE64: 3595561 | AF64: 3924170 | AG64: 4531313 | AH64: 5000416 | AI64: 4449633 | AJ64: 3556358 | AK64: 3511547 | AL64: 3049332 | AM64: 4623372 | AN64: 4598037 | AO64: 3504124 | AP64: 3485642 | AQ64: 3380087 | AR64: 2611800 | AS64: 2307731 | AT64: 2381213 | AU64: 2611765 | AV64: 2688438 | AW64: 2199910 | AX64: 2038333 | AY64: 2173120 | AZ64: 2525411
A65: Fornecedores | B65: 1358167 | C65: 1392155 | D65: 1486113 | E65: 1474992 | F65: 1400671 | G65: 1409346 | H65: 1944092 | I65: 2068469 | J65: 1559977 | K65: 1825860 | L65: 2251446 | M65: 1794739 | N65: 1727019 | O65: 1770582 | P65: 2104901 | Q65: 1902758 | R65: 1696457 | S65: 1832932 | T65: 1610976 | U65: 2253733 | V65: 1917569 | W65: 1611523 | X65: 1754393 | Y65: 1878203 | Z65: 1161680 | AA65: 1109823 | AB65: 1123578 | AC65: 1115508 | AD65: 963983 | AE65: 1066993 | AF65: 1308019 | AG65: 1374010 | AH65: 1262367 | AI65: 1064517 | AJ65: 1098703 | AK65: 1050210 | AL65: 921336 | AM65: 1185656 | AN65: 802129 | AO65: 754979 | AP65: 849119 | AQ65: 1005586 | AR65: 912180 | AS65: 800131 | AT65: 727500 | AU65: 912180 | AV65: 703742 | AW65: 606272 | AX65: 541801 | AY65: 585805 | AZ65: 626381
A66: Encargos de dívidas | B66: 0 | C66: 0 | D66: 0 | E66: 0 | F66: - | G66: - | H66: - | I66: 0 | J66: 0 | K66: 0 | L66: 0 | M66: 0 | N66: 0 | O66: 0 | P66: 0 | R66: - | S66: - | T66: - | U66: - | V66: - | W66: - | X66: - | Y66: 0 | Z66: 0 | AA66: 0 | AB66: 0 | AC66: 0 | AD66: 0 | AE66: 0 | AF66: 0 | AG66: 0 | AH66: 0 | AI66: 0 | AJ66: 0 | AK66: 0 | AL66: 0 | AM66: 0 | AN66: 0 | AO66: 0 | AP66: 0 | AQ66: 0 | AR66: 0 | AS66: 0 | AT66: 0 | AU66: 0 | AV66: 0 | AW66: 0 | AX66: 0 | AY66: 0 | AZ66: 0
A67: Imposto de renda e Contribuição social a recolher | B67: 115794 | C67: 96152 | D67: 211838 | E67: 176334 | F67: 154054 | G67: 171600 | H67: 136043 | I67: 151373 | J67: 91640 | K67: 72214 | L67: 100260 | M67: 157174 | N67: 75115 | O67: 39550 | P67: 43760 | Q67: 80996 | R67: 50583 | S67: 53248 | T67: 58994 | U67: 465422 | V67: 422185 | W67: 435368 | X67: 572053 | Y67: 510999 | Z67: 323925 | AA67: 330934 | AB67: 453928 | AC67: 465385 | AD67: 451531 | AE67: 454186 | AF67: 452742 | AG67: 338588 | AH67: 314134 | AI67: 330631 | AJ67: 304173 | AK67: 243884 | AL67: 263024 | AM67: 224564 | AN67: 351487 | AO67: 302651 | AP67: 280126 | AQ67: 265027 | AR67: 278295 | AS67: 441722 | AT67: 382660 | AU67: 278260 | AV67: 551130 | AW67: 506936 | AX67: 445758 | AY67: 420844 | AZ67: 609891
A68: Tributos diferidos | B68: 225975 | C68: 168300 | D68: 162533 | E68: 128585 | F68: 130601 | G68: 103603 | H68: 67558 | I68: 172656 | J68: 199869 | K68: 39460 | L68: 11550 | M68: 4458 | N68: 1610 | O68: 1582 | P68: 1501 | Q68: 370439 | R68: 1365 | S68: 1277 | T68: 1214 | U68: 1202 | V68: 916 | W68: 895 | X68: 529 | Y68: 529 | Z68: 471 | AA68: 382 | AB68: 884 | AC68: 718 | AD68: 671 | AE68: 32056 | AF68: 56209 | AG68: 67155 | AH68: 53267 | AI68: 34939 | AJ68: 32114
A69: Outros tributos a recolher | B69: 333388 | C69: 367992 | D69: 433864 | E69: 263712 | F69: 379683 | G69: 503809 | H69: 634891 | I69: 483246 | J69: 397918 | K69: 407890 | L69: 531516 | M69: 461269 | N69: 463863 | O69: 382420 | P69: 493977 | Q69: 1464 | R69: 363872 | S69: 412697 | T69: 509449 | U69: - | V69: - | W69: - | X69: - | Y69: 0 | Z69: 0 | AA69: 0 | AB69: 0 | AC69: 0 | AD69: 0 | AE69: 0 | AF69: 0 | AG69: 0 | AH69: 0 | AI69: 0 | AJ69: 0 | AK69: 0 | AL69: 14519 | AM69: 34269 | AN69: 0 | AO69: 21830 | AP69: 2436 | AQ69: 0 | AR69: 0 | AS69: 0 | AT69: 0 | AU69: 0 | AV69: 0 | AW69: 0 | AX69: 0 | AY69: 0 | AZ69: 0
A70: Dividendos | B70: 217256 | C70: 754993 | D70: 731665 | E70: 69140 | F70: 66590 | G70: 695228 | H70: 680874 | I70: 79658 | J70: 63399 | K70: 520749 | L70: 514171 | M70: 58012 | N70: 417309 | O70: 403189 | P70: 399596 | Q70: 39819 | R70: 452460 | S70: 474551 | T70: 429957 | U70: 40785 | V70: 393023 | W70: 221598 | X70: 231850 | Y70: 53376 | Z70: 350197 | AA70: 385362 | AB70: 368709 | AC70: 17500 | AD70: 47081 | AE70: 363155 | AF70: 420949 | AG70: 278187 | AH70: 274730 | AI70: 307360 | AJ70: 305922 | AK70: 459849 | AL70: 498681 | AM70: 163129 | AN70: 160718 | AO70: 44295 | AP70: 358547 | AQ70: 209526 | AR70: 201472 | AS70: 77694 | AT70: 273754 | AU70: 201472 | AV70: 192612 | AW70: 108758 | AX70: 104345 | AY70: 193251 | AZ70: 191142
A71: Partes Relacionadas | B71: 0 | C71: 0 | D71: 0 | E71: 0 | F71: 0 | G71: 0 | H71: 0 | I71: 0 | J71: 0 | K71: 0 | L71: 0 | M71: 0 | N71: 0 | O71: 0 | P71: 0 | R71: - | S71: - | T71: - | U71: - | V71: - | W71: - | X71: - | Y71: 0 | Z71: 0 | AA71: 0 | AB71: 0 | AC71: 0 | AD71: 0 | AE71: 0 | AF71: 0 | AG71: 0 | AH71: 0 | AI71: 0 | AJ71: 0 | AK71: 0 | AL71: 0 | AM71: 0 | AN71: 0 | AO71: 0 | AP71: 0 | AQ71: 0 | AR71: 0 | AS71: 0 | AT71: 0 | AU71: 0 | AV71: 0 | AW71: 0 | AX71: 0 | AY71: 0 | AZ71: 0
A72: Debêntures | B72: 2873140 | C72: 2119800 | D72: 1412755 | E72: 798491 | F72: 505110 | G72: 729181 | H72: 779421 | I72: 889798 | J72: 909557 | K72: 1111158 | L72: 1260750 | M72: 1320673 | N72: 1338641 | O72: 1389383 | P72: 1371206 | Q72: 1167700 | R72: 1127296 | S72: 836623 | T72: 586067 | U72: 636438 | V72: 874555 | W72: 939632 | X72: 863053 | Y72: 811607 | Z72: 723961 | AA72: 743769 | AB72: 693931 | AC72: 529070 | AD72: 285274 | AE72: 468466 | AF72: 538639 | AG72: 539443 | AH72: 775068 | AI72: 824886 | AJ72: 790154 | AK72: 803829 | AL72: 539889 | AM72: 297589 | AN72: 699122 | AO72: 1020140 | AP72: 930972 | AQ72: 905674 | AR72: 435535 | AS72: 99334 | AT72: 105325 | AU72: 435535 | AV72: 107923 | AW72: 141767 | AX72: 158314 | AY72: 144645 | AZ72: 231730
A73: Empréstimos, financiamentos e encargos de dívidas | B73: 2128061 | C73: 2464797 | D73: 1678112 | E73: 1567860 | F73: 947745 | G73: 1013769 | H73: 801082 | I73: 1397653 | J73: 1434762 | K73: 1328354 | L73: 2053615 | M73: 1725917 | N73: 1663069 | O73: 838417 | P73: 617472 | Q73: 726549 | R73: 698371 | S73: 829571 | T73: 805169 | U73: 583808 | V73: 415964 | W73: 517863 | X73: 473526 | Y73: 484479 | Z73: 448507 | AA73: 386513 | AB73: 378169 | AC73: 569056 | AD73: 542914 | AE73: 435705 | AF73: 270989 | AG73: 1011076 | AH73: 1397127 | AI73: 1327227 | AJ73: 675539 | AK73: 662645 | AL73: 553696 | AM73: 501945 | AN73: 432943 | AO73: 913875 | AP73: 380170 | AQ73: 497454 | AR73: 269236 | AS73: 380192 | AT73: 443499 | AU73: 269236 | AV73: 471798 | AW73: 381487 | AX73: 363582 | AY73: 372985 | AZ73: 375701
A74: Instrumentos Financeiros Derivativos | B74: 437287 | C74: 286418 | D74: 164823 | E74: 97042 | F74: 64455
A75: Benefícios pós-emprego | B75: 79452 | C75: 71050 | D75: 79566 | E75: 51506 | F75: 45860 | G75: 51506 | H75: 51615 | I75: 45225 | J75: 45292 | K75: 45487 | L75: 45538 | M75: 48127 | N75: 48128 | O75: 46627 | P75: 46631 | Q75: 48896 | R75: 48905 | S75: 49457 | T75: 49442 | U75: 45600 | V75: 45581 | W75: 45577 | X75: 45573 | Y75: 40370 | Z75: 34316 | AA75: 34377 | AB75: 34933 | AC75: 28702 | AD75: 28546 | AE75: 28708 | AF75: 28391 | AG75: 40376 | AH75: 43143 | AI75: 39101 | AJ75: 42998 | AK75: 24787 | AL75: 24657 | AM75: 24738 | AN75: 24667 | AO75: 35648 | AP75: 35554 | AQ75: 35516 | AR75: 35517 | AS75: 29991 | AT75: 29991 | AU75: 35517 | AV75: 30035 | AW75: 24890 | AX75: 26899 | AY75: 27582 | AZ75: 27610
A76: Conta de compensação de variação de custos da parcela "A" | B76: 0 | C76: 0 | D76: 0 | E76: 0 | F76: - | G76: - | H76: - | I76: 0 | J76: 0 | K76: 0 | L76: 0 | M76: 0 | N76: 0 | O76: 0 | P76: 0 | R76: - | S76: - | T76: - | U76: - | V76: - | W76: - | X76: - | Y76: 0 | Z76: 0 | AA76: 0 | AB76: 0 | AC76: 0 | AD76: - | AE76: 0 | AF76: 0 | AG76: 0 | AH76: 0 | AI76: 0 | AJ76: 0 | AK76: 0 | AL76: 0 | AM76: 0 | AN76: 0 | AO76: 0 | AP76: 0 | AQ76: 0 | AR76: 0 | AU76: 0 | AW76: 0 | AX76: 0 | AY76: 0 | AZ76: 0
A77: Devolução tarifária | B77: 0 | C77: 0 | D77: 0 | E77: 0 | F77: - | G77: - | H77: - | I77: 0 | J77: 0 | K77: 0 | L77: 0 | M77: 0 | N77: 0 | O77: 0 | P77: 0 | R77: - | S77: - | T77: - | U77: - | V77: - | W77: - | X77: - | Y77: 0 | Z77: 0 | AA77: 0 | AB77: 0 | AC77: 0 | AD77: 0 | AE77: 0 | AF77: 0 | AG77: 0 | AH77: 0 | AI77: 0 | AJ77: 0 | AK77: 0 | AL77: 0 | AM77: 0 | AN77: 0 | AO77: 0 | AP77: 0 | AQ77: 0 | AR77: 0 | AS77: 0 | AT77: 0 | AU77: 0 | AV77: 0 | AW77: 0 | AX77: 0 | AY77: 0 | AZ77: 0
A78: Obrigações sociais e trabalhistas | B78: 90804 | C78: 128918 | D78: 120219 | E78: 118331 | F78: 100201 | G78: 123551 | H78: 116987 | I78: 102840 | J78: 93891 | K78: 131221 | L78: 109273 | M78: 101435 | N78: 80786 | O78: 90894 | P78: 101201 | Q78: 94383 | R78: 76658 | S78: - | T78: - | U78: 83474 | V78: 65915 | W78: 89995 | X78: 87623 | Y78: 84483 | Z78: 67257 | AA78: 89918 | AB78: 87096 | AC78: 91975 | AD78: 78491 | AE78: 100104 | AF78: 98495 | AG78: 76985 | AH78: 63290 | AI78: 86156 | AJ78: 75102 | AK78: 63282 | AL78: 49306 | AM78: 73581 | AN78: 65367 | AO78: 66576 | AP78: 49422 | AQ78: 74596 | AR78: 65011 | AS78: 60333 | AT78: 43936 | AU78: 65011 | AV78: 59164 | AW78: 55459 | AX78: 41222 | AY78: 60417 | AZ78: 50450
A79: Encargos Setoriais | B79: 109414 | C79: 115871 | D79: 110439 | E79: 117999 | F79: 119707 | G79: 138467 | H79: 132454 | I79: 127311 | J79: 111329 | K79: 114719 | L79: 111251 | M79: 104272 | N79: 115683 | O79: 105391 | P79: 98155 | Q79: 28790 | R79: 124372 | S79: 130845 | T79: 154262 | U79: 163519 | V79: 236571 | W79: 157843 | X79: 211109 | Y79: 195329 | Z79: 165542 | AA79: 205759 | AB79: 204690 | AC79: 201747 | AD79: 126840 | AE79: 245240 | AF79: 288244 | AG79: 285515 | AH79: 289374 | AI79: 279783 | AJ79: 86695 | AK79: 84979 | AL79: 77851 | AM79: 75119 | AN79: 74858 | AO79: 173872 | AP79: 190455 | AQ79: 186666 | AR79: 205108 | AS79: 213772 | AT79: 234046 | AU79: 205108 | AV79: 275374 | AW79: 260495 | AX79: 230972 | AY79: 229600 | AZ79: 225380
A80: Uso do bem público | B80: 48452 | C80: 46139 | D80: 46082 | E80: 45738 | F80: 45234 | G80: 43947 | H80: 43269 | I80: 41070 | J80: 39113 | K80: 36744 | L80: 35609 | M80: 32991 | N80: 30343 | O80: 29644 | P80: 29326 | Q80: 90684 | R80: 28565 | S80: 28112 | T80: 28405 | U80: 28985 | V80: 28252 | W80: 27564 | X80: 29224 | Y80: 29225 | Z80: 29350 | AA80: 29633 | AB80: 29502 | AC80: 28931 | AD80: 27903 | AE80: 27497 | AF80: 27206 | AG80: 26677 | AH80: 26853 | AI80: 26302 | AJ80: 25835 | AK80: 25628 | AL80: 24162 | AM80: 23981 | AN80: 23723 | AO80: 22809 | AP80: 22161 | AQ80: 21965 | AR80: 21953 | AS80: 21750 | AT80: 21079 | AU80: 21953 | AV80: 20184 | AW80: 19971 | AX80: 19774 | AY80: 19340 | AZ80: 19440
A81: Reserva para reversão e amortização | B81: 1957 | C81: 1755 | D81: 1945 | E81: 1946 | F81: 1944 | G81: 1944 | H81: 1944 | I81: 1944 | J81: 1944 | K81: 1944 | L81: 1945 | M81: 1944 | N81: 1944 | O81: 1944 | P81: 1944 | Q81: 1944 | R81: 1944 | S81: - | T81: - | U81: 1944 | V81: - | W81: - | X81: -
A82: Provisões | B82: 75503 | C82: 93339 | D82: 87946 | E82: 91221 | F82: 72916 | G82: 71003 | H82: 65503 | I82: 107666 | J82: 109440 | K82: 113337 | L82: 102915 | M82: 99522 | N82: 90416 | O82: 86808 | P82: 81470 | Q82: 47315 | R82: 42428 | S82: 35949 | T82: 29871 | U82: 30136 | V82: 34556 | W82: 29576 | X82: 100695 | Y82: 177093 | Z82: 149919 | AA82: 169898 | AB82: 154669 | AC82: 175854 | AD82: 169379 | AE82: 186428 | AF82: 197013 | AG82: 34405 | AH82: 34778 | AI82: 30517 | AJ82: 22672 | AK82: 25437 | AL82: 19423 | AM82: 19671 | AN82: 21021 | AO82: 78956 | AP82: 54711 | AQ82: 55735 | AR82: 53548 | AS82: 55538 | AT82: 57273 | AU82: 53548 | AV82: 162127 | AW82: 33383 | AX82: 30659 | AY82: 30126 | AZ82: 30275
A83: Passivos financeiros setoriais | B83: 860171 | C83: 903627 | D83: 1039653 | E83: 1000066 | F83: 744798 | G83: 1148057 | H83: 627003 | I83: 686754 | J83: 530517 | K83: 532196 | L83: 626801 | M83: 545237 | N83: 0 | O83: 0 | P83: 0 | Q83: 3280 | R83: 1470 | S83: - | T83: 1122 | U83: 601 | V83: 7039 | W83: 29364 | X83: 52272 | Y83: 129760 | Z83: 218998 | AA83: 307490 | AB83: 353527 | AC83: 469817 | AD83: 446549 | AE83: 49763
A84: Passivos não circulantes mantidos para venda | B84: 1417682 | C84: 0 | D84: 0 | E84: 66647 | F84: 58858 | G84: 169809 | H84: 178000 | I84: 895792 | J84: 0 | K84: 0 | L84: 0 | M84: 0 | N84: 0 | O84: 68187 | P84: 76427 | Q84: 165997 | R84: 78354 | S84: - | T84: - | U84: - | V84: 2991 | W84: 2658 | X84: 12960 | Y84: 0 | Z84: 0 | AF84: 11306 | AG84: 9564 | AH84: 0 | AI84: 0 | AJ84: 0 | AK84: 0 | AL84: 0 | AM84: 1934779 | AN84: 1878499 | AO84: 0 | AP84: 0 | AQ84: 0 | AR84: 0 | AS84: 462 | AT84: 477 | AU84: 0 | AV84: 0
A85: Ressarcimento por indisponibilidade | B85: 0 | C85: 915 | D85: 500 | E85: 1101 | F85: 1915 | G85: 2933 | H85: 2945 | I85: 3143 | J85: 3205 | K85: 3993 | L85: 5307 | M85: 6362 | N85: 9595 | O85: 29568 | P85: 62622 | Q85: 63818 | R85: 64217 | S85: 64217 | T85: 64534 | U85: 72332 | V85: 88056 | W85: 85080 | X85: - | Y85: 0 | Z85: 0 | AA85: 0 | AB85: 0 | AC85: 0 | AD85: 0 | AE85: 0 | AF85: 0 | AG85: 162511 | AH85: 210053 | AJ85: 0
A86: Compromissos futuros | B86: 1021732 | C86: 1127678 | D86: 1120243 | E86: 685004 | F86: 575468 | G86: 535353 | H86: 629905 | I86: 1118167 | J86: 1450066 | K86: 213165 | L86: 57060
A87: Outras contas a pagar | B87: 342158 | C87: 294372 | D87: 263789 | E87: 229941 | F87: 386220 | G87: 366206 | H87: 345998 | I87: 228447 | J87: 242573 | K87: 250830 | L87: 240076 | M87: 210159 | N87: 249830 | O87: 199371 | P87: 203337 | Q87: 208652 | R87: 213953 | S87: 291621 | T87: 238369 | U87: 110561 | V87: 107440 | W87: 107659 | X87: 91404 | Y87: 82913 | Z87: 91881 | AA87: 89611 | AB87: 92845 | AC87: 129716 | AD87: 140907 | AE87: 137260 | AF87: 225968 | AG87: 286821 | AH87: 256232 | AI87: 98214 | AJ87: 96451 | AK87: 67017 | AL87: 62788 | AM87: 64351 | AN87: 63503 | AO87: 68493 | AP87: 331969 | AQ87: 122342 | AR87: 133945 | AS87: 126812 | AT87: 61673 | AU87: 133945 | AV87: 114349 | AW87: 60492 | AX87: 75007 | AY87: 88525 | AZ87: 137411
A88: NÃO CIRCULANTE | B88: 0 | C88: 0 | D88: 0 | E88: 0 | F88: - | G88: - | H88: - | I88: - | J88: 0
A89: Exigível a Longo Prazo | B89: =SUM(B90:B110) -> 12702555 | C89: =SUM(C90:C110) -> 14452094 | D89: =SUM(D90:D110) -> 15953348 | E89: =SUM(E90:E110) -> 17210277 | F89: 17317897 | G89: 16519663 | H89: 14095143 | I89: 12732214 | J89: 12781239 | K89: 12742163 | L89: 10975903 | M89: 10868578 | N89: 11128471 | O89: 11233850 | P89: 11423945 | Q89: 10224291 | R89: 9319347 | S89: 8480218 | T89: 8529659 | U89: 7532995 | V89: 7322829 | W89: 7353476 | X89: 7044091 | Y89: 6182502 | Z89: 6283036 | AA89: 6229957 | AB89: 6282307 | AC89: 6347168 | AD89: 6755549 | AE89: 7147994 | AF89: 6999723 | AG89: 5998028 | AH89: 5863508 | AI89: 3128304 | AJ89: 3048638 | AK89: 3198868 | AL89: 3771380 | AM89: 3605609 | AN89: 3290284 | AO89: 3888115 | AP89: 4096871 | AQ89: 3651704 | AR89: 3884186 | AS89: 5039812 | AT89: 4475598 | AU89: 3875119 | AV89: 4379877 | AW89: 3779540.501 | AX89: 3775216 | AY89: 3781950 | AZ89: 3830865.001
A90: Fornecedores | B90: 0 | C90: 0 | D90: 0 | E90: 49 | F90: 87 | G90: 124 | H90: 0 | I90: 0 | J90: 0 | K90: 0 | L90: 0 | M90: 0 | N90: 0 | O90: 0 | P90: 0 | Q90: 0 | R90: - | S90: - | T90: - | U90: - | V90: - | W90: - | X90: - | Y90: 0 | Z90: 0 | AA90: 0 | AB90: 3892 | AC90: 0 | AD90: 0 | AE90: 0 | AF90: 0 | AG90: 0 | AH90: 0 | AI90: 0 | AJ90: 3065 | AK90: 5255 | AL90: 7618 | AM90: 9058 | AN90: 0 | AO90: 0 | AP90: 0 | AQ90: 0 | AR90: 0 | AU90: 0 | AV90: 0 | AW90: 0 | AX90: 0 | AY90: 458 | AZ90: 915
A91: Encargos de dívidas | B91: 0 | C91: 0 | D91: 0 | E91: 0 | F91: - | G91: - | H91: - | I91: 0 | J91: 0 | K91: 0 | L91: 0 | M91: 0 | N91: 0 | O91: 0 | P91: 0 | R91: - | S91: - | T91: - | U91: - | V91: - | W91: - | X91: - | Y91: 0 | Z91: 0 | AA91: - | AB91: 0 | AC91: 0 | AD91: 0 | AE91: 0 | AF91: 0 | AG91: 0 | AH91: 0 | AI91: 0 | AJ91: 0 | AK91: 0 | AL91: 0 | AM91: 0 | AN91: 0 | AO91: 0 | AP91: 0 | AQ91: 0 | AR91: 0 | AS91: 0 | AT91: 0 | AU91: 0 | AV91: 0 | AW91: 0 | AX91: 0 | AY91: 0 | AZ91: 0
A92: Outros tributos a recolher | B92: 259320 | C92: 264495 | D92: 272352 | E92: 280251 | F92: 283828 | G92: 287547 | H92: 291986 | I92: 293486 | J92: 302486 | K92: 306998 | L92: 326422 | M92: 333802 | N92: 341943 | O92: 351582 | P92: 355648 | Q92: 364105 | R92: 368979 | S92: 373645 | T92: 389341 | U92: 393630 | V92: 397870 | W92: 351591 | X92: 356857 | Y92: 365183 | Z92: 51344 | AA92: 51805 | AB92: 51072 | AC92: 51648 | AD92: 60525 | AE92: 60231 | AF92: 61865 | AG92: 72443 | AH92: 71997 | AI92: 71681 | AJ92: 71446 | AK92: 72352 | AL92: 85739 | AM92: 87052 | AN92: 88289 | AO92: 90608 | AP92: 97561 | AQ92: 104704 | AR92: 111855 | AS92: 118825 | AT92: 125338 | AU92: 111855 | AV92: 136817 | AW92: 141785 | AX92: 154670 | AY92: 138523 | AZ92: 137853
A93: Tributos diferidos | B93: 2018313 | C93: 2051516 | D93: 1912520 | E93: 1820505 | F93: 2168914 | G93: 2141834 | H93: 1227836 | I93: 1261418 | J93: 1299565 | K93: 1140756 | L93: 1109341 | M93: 928899 | N93: 835672 | O93: 781870 | P93: 730780 | Q93: 590993 | R93: 536148 | S93: 478252 | T93: 436207 | U93: 413075 | V93: 399343 | W93: 372568 | X93: 370392 | Y93: 337305 | Z93: 336352 | AA93: 332764 | AB93: 338973 | AC93: 346174 | AD93: 349406 | AE93: 342643 | AF93: 377111 | AG93: 360960 | AH93: 364019 | AI93: 243792 | AJ93: 254992
A94: Debêntures | B94: 6600177 | C94: 7270873 | D94: 7822488 | E94: 8557324 | F94: 8851312 | G94: 7838536 | H94: 6944962 | I94: 6148999 | J94: 5450581 | K94: 5485607 | L94: 3955451 | M94: 4285160 | N94: 4317809 | O94: 4598098 | P94: 4816515 | Q94: 5160182 | R94: 4502617 | S94: 4350951 | T94: 4317478 | U94: 3289088 | V94: 2937576 | W94: 2870110 | X94: 2699368 | Y94: 2210379 | Z94: 2618550 | AA94: 2357439 | AB94: 2388048 | AC94: 1990102 | AD94: 2313283 | AE94: 2091171 | AF94: 1864603 | AG94: 982798 | AH94: 1060446 | AI94: 1369806 | AJ94: 1447364 | AK94: 1446893 | AL94: 1659362 | AM94: 1602968 | AN94: 1377907 | AO94: 1125303 | AP94: 1270281 | AQ94: 759595 | AR94: 1052633 | AS94: 1372157 | AT94: 912682 | AU94: 1052633 | AV94: 860637 | AW94: 554864 | AX94: 554685 | AY94: 637809 | AZ94: 637593
A95: Empréstimos, financiamentos e encargos de dívidas | B95: 627986 | C95: 1706239 | D95: 3127081 | E95: 3847284 | F95: 3012690 | G95: 3211970 | H95: 2072049 | I95: 1454612 | J95: 1836247 | K95: 2078102 | L95: 1765076 | M95: 1791423 | N95: 1831801 | O95: 1659734 | P95: 1659645 | Q95: 1691736 | R95: 1448322 | S95: 1499482 | T95: 1750083 | U95: 1743309 | V95: 1909138 | W95: 2107849 | X95: 2021732 | Y95: 1855312 | Z95: 1799178 | AA95: 2069267 | AB95: 2110907 | AC95: 2785730 | AD95: 2821855 | AE95: 3400615 | AF95: 3512260 | AG95: 3562804 | AH95: 3279804 | AI95: 587774 | AJ95: 445408 | AK95: 492147 | AL95: 840457 | AM95: 828664 | AN95: 749474 | AO95: 1222389 | AP95: 1316086 | AQ95: 1417459 | AR95: 1331142 | AS95: 2392998 | AT95: 2319779 | AU95: 1331142 | AV95: 2173228 | AW95: 2232111 | AX95: 2174530 | AY95: 2090450 | AZ95: 2140882
A96: Instrumentos Financeiros Derivativos | B96: 0 | C96: 0 | D96: 157815 | E96: 126885 | F96: 136290
A97: Benefícios pós-emprego | B97: 776267 | C97: 709551 | D97: 699450 | E97: 718290 | F97: 714026 | G97: 799588 | H97: 798634 | I97: 845619 | J97: 845142 | K97: 854067 | L97: 850931 | M97: 838020 | N97: 832238 | O97: 876169 | P97: 868652 | Q97: 701535 | R97: 699395 | S97: 730393 | T97: 723788 | U97: 788875 | V97: 780746 | W97: 778465 | X97: 768795 | Y97: 631792 | Z97: 629492 | AA97: 612640 | AB97: 599715 | AC97: 461600 | AD97: 455163 | AE97: 442618 | AF97: 439581 | AG97: 343073 | AH97: 348424 | AI97: 335294 | AJ97: 336574 | AK97: 480809 | AL97: 472499 | AM97: 440487 | AN97: 432145 | AO97: 544280 | AP97: 540193 | AQ97: 523856 | AR97: 518332 | AS97: 240672 | AT97: 241011 | AU97: 518332 | AV97: 262412 | AW97: 99256 | AX97: 99128 | AY97: 188033 | AZ97: 189228
A98: Devolução tarifária | B98: 0 | C98: 0 | D98: 0 | E98: 0 | F98: - | G98: - | H98: - | I98: 0 | J98: 0 | K98: 0 | L98: 0 | M98: 0 | N98: 0 | O98: 0 | P98: 0 | R98: - | S98: - | T98: - | U98: - | V98: - | W98: - | X98: - | Y98: 0 | Z98: 0 | AA98: 0 | AB98: 0 | AC98: 0 | AD98: 0 | AE98: 0 | AF98: 0 | AG98: 0 | AH98: 0 | AI98: 0 | AJ98: 0 | AK98: 0 | AL98: 0 | AM98: 0 | AN98: 0 | AO98: 0 | AP98: 0 | AQ98: 0 | AR98: 0 | AS98: 0 | AT98: 0 | AU98: 0 | AV98: 0 | AW98: 0 | AX98: 0 | AY98: 0 | AZ98: 0
A99: Conta de compensação de variação de custos da parcela "A" | B99: 0 | C99: 0 | D99: 0 | E99: 0 | F99: - | G99: - | H99: - | I99: 0 | J99: 0 | K99: 0 | L99: 0 | M99: 0 | N99: 0 | O99: 0 | P99: 0 | R99: - | S99: - | T99: - | U99: - | V99: - | W99: - | X99: - | Y99: 0 | Z99: 0 | AA99: 0 | AB99: 0 | AC99: 0 | AD99: 0 | AE99: 0 | AF99: 0 | AG99: 0 | AH99: 0 | AI99: 0 | AJ99: 0 | AL99: 0 | AM99: 0 | AN99: 0 | AO99: 0 | AP99: 0 | AR99: 0 | AU99: 0 | AW99: 0 | AX99: 0 | AY99: 0
A100: Partes relacionadas | B100: 0 | C100: 0 | D100: 0 | E100: 0 | F100: - | G100: - | H100: - | I100: 0 | J100: 0 | K100: 0 | L100: 0 | M100: 0 | N100: 0 | O100: 0 | P100: 0 | R100: - | S100: - | T100: - | U100: - | V100: - | W100: - | X100: - | Y100: 0 | Z100: 0 | AA100: 0 | AB100: 0 | AC100: 0 | AD100: 0 | AE100: 0 | AF100: 0 | AG100: 0 | AH100: 0 | AI100: 0 | AJ100: 0 | AK100: 0 | AL100: 0 | AM100: 0 | AN100: 0 | AO100: 0 | AP100: 0 | AQ100: 0 | AR100: 0 | AS100: 0 | AT100: 0 | AU100: 0 | AV100: 0 | AW100: 0 | AX100: 0 | AY100: 0 | AZ100: 0
A101: Encargos Setoriais | B101: 3345 | C101: 2790 | D101: 2098 | E101: 3460 | F101: 2767 | G101: 2325 | H101: 109 | I101: 582 | J101: 3154 | K101: 1631 | L101: 0 | M101: 0 | N101: 0 | O101: 6896 | P101: 8803 | Q101: 12835 | R101: 12191 | S101: 14862 | T101: 14617 | U101: 14641 | V101: 12101 | W101: 7289 | X101: 10984 | Y101: 29481 | Z101: 32495 | AA101: 22304 | AB101: 18896 | AC101: 14368 | AD101: 20408 | AE101: 0 | AF101: 16594 | AG101: 16601 | AH101: 13743 | AI101: 11661 | AJ101: 7019 | AK101: 5493 | AL101: 10149 | AM101: 16268 | AN101: 12871 | AO101: 11367 | AP101: 5882 | AQ101: 9418 | AR101: 17071 | AS101: 15941 | AT101: 13574 | AU101: 17071 | AV101: 7035 | AW101: 14151 | AX101: 12374 | AY101: 12336 | AZ101: 12913
A102: Adiantamento para futuro aumento de capital | B102: 0 | C102: 0 | D102: 20 | E102: 0 | F102: 17600 | G102: 14999 | H102: 15000 | I102: 10000 | J102: 0 | K102: 3800 | L102: 0 | M102: 0 | N102: 0 | O102: 10000 | P102: 10000 | Q102: 10000 | R102: - | S102: 1350 | T102: 1350 | U102: 1350 | V102: 1350 | W102: 950 | X102: 850 | Y102: 250 | Z102: 0 | AA102: 0 | AB102: 0 | AC102: 0 | AD102: 0 | AE102: 0 | AF102: 0 | AG102: 0 | AH102: 0 | AI102: 0 | AJ102: 0 | AK102: 0 | AL102: 0 | AM102: 0 | AN102: 0 | AO102: 0 | AP102: 0 | AQ102: 0 | AR102: 0 | AS102: 0 | AT102: 0 | AU102: 0 | AV102: 0 | AW102: 0 | AX102: 0 | AY102: 0 | AZ102: 0
A103: Uso do bem público | B103: 456095 | C103: 481217 | D103: 484370 | E103: 482479 | F103: 493494 | G103: 483716 | H103: 462865 | I103: 460828 | J103: 461905 | K103: 436449 | L103: 407226 | M103: 326128 | N103: 301472 | O103: 296236 | P103: 294765 | Q103: 288540 | R103: 292618 | S103: 289149 | T103: 285707 | U103: 290125 | V103: 285021 | W103: 277242 | X103: 275351 | Y103: 273639 | Z103: 276677 | AA103: 286864 | AB103: 287354 | AC103: 287971 | AD103: 284287 | AE103: 282137 | AF103: 277382 | AG103: 268568 | AH103: 267359 | AI103: 263710 | AJ103: 258344 | AK103: 256551 | AL103: 256640 | AM103: 258781 | AN103: 253945 | AO103: 267234 | AP103: 245130 | AQ103: 244444 | AR103: 251207 | AS103: 240346 | AT103: 233287 | AU103: 242140 | AV103: 231139 | AW103: 228348 | AX103: 229318 | AY103: 226658 | AZ103: 215764
A104: Provisões | B104: 709436 | C104: 693615 | D104: 669067 | E104: 681098 | F104: 655229 | G104: 630626 | H104: 587029 | I104: 573930 | J104: 565767 | K104: 562007 | L104: 552212 | M104: 510368 | N104: 495087 | O104: 486576 | P104: 483399 | Q104: 415872 | R104: 404612 | S104: 404375 | T104: 387092 | U104: 370619 | V104: 346507 | W104: 337962 | X104: 353678 | Y104: 309962 | Z104: 334742 | AA104: 336712 | AB104: 344628 | AC104: 305503 | AD104: 335811 | AE104: 381772 | AF104: 386365 | AG104: 231990 | AH104: 230141 | AI104: 199999 | AJ104: 195573 | AK104: 169924 | AL104: 175140 | AM104: 166563 | AN104: 173701 | AO104: 215050 | AP104: 211266 | AQ104: 178358 | AR104: 180428 | AS104: 179961 | AT104: 177457 | AU104: 180428 | AV104: 182568 | AW104: 168284 | AX104: 233716 | AY104: 155085 | AZ104: 153566
A105: Provisão para passivo a descoberto | B105: 6906 | C105: 5694 | D105: 4070 | E105: 3381 | F105: 1325 | G105: 972 | H105: 2329 | I105: 3451 | J105: 3731 | K105: 4212 | L105: 0 | M105: 19575 | N105: 18409 | O105: 17142 | P105: 11046 | Q105: 11206 | R105: 9153 | S105: 8877 | T105: 7857 | U105: 7984 | V105: 6945 | W105: 4449 | X105: 4521 | Y105: 3100 | Z105: 2549 | AA105: 1431 | AB105: 1169 | AC105: 3592 | AD105: 3085 | AE105: 1509 | AF105: 0 | AG105: 747 | AH105: 177 | AI105: 1241 | AJ105: 912 | AK105: 970 | AL105: 441 | AM105: 57 | AN105: 9 | AO105: 13 | AP105: 1425 | AQ105: 1435 | AR105: 1455 | AS105: 1486 | AT105: 1504 | AU105: 1455 | AV105: 1587 | AW105: 1671 | AX105: 2340 | AY105: 2340 | AZ105: 12847
A106: Reserva para reversão e amortização | B106: 4859 | C106: 5507 | D106: 5831 | E106: 6316 | F106: 6802 | G106: 7288 | H106: 7774 | I106: 8260 | J106: 8746 | K106: 9232 | L106: 9718 | M106: 10204 | N106: 10689 | O106: 11175 | P106: 11661 | Q106: 12147 | R106: 12633 | S106: - | T106: - | U106: 14090 | V106: 17248 | W106: 17248 | X106: 17248 | Y106: 17248 | Z106: 17248 | AA106: 17248 | AB106: 17248 | AC106: 17248 | AD106: 17248 | AE106: 17248 | AF106: 17248 | AG106: 17248 | AH106: 17248 | AI106: 17248 | AJ106: 17248 | AK106: 17248 | AL106: 17248 | AM106: 17248 | AN106: 17248 | AO106: 17248 | AP106: 17248 | AQ106: 17248 | AR106: 17248 | AS106: 17248 | AT106: 17248 | AU106: 17248 | AV106: 17248 | AW106: 17248 | AX106: 17248 | AY106: 17248 | AZ106: 17248
A107: Passivos financeiros setoriais | B107: 196792 | C107: 192387 | D107: 117094 | E107: 325244 | F107: 780146 | G107: 914704 | H107: 1496347 | I107: 1270626 | J107: 1437995 | K107: 1736634 | L107: 1770600 | M107: 1747399 | N107: 2077330 | O107: 2069762 | P107: 2099003 | Q107: 871761 | R107: 966936 | S107: 236150 | T107: 171884 | U107: 193878 | V107: 214394 | W107: 209793 | X107: 153745 | Y107: 137893 | Z107: 173438 | AA107: 130508 | AB107: 109434 | AC107: 72571 | AD107: 83595 | AE107: 115948 | AF107: 27797 | AG107: 27330 | AH107: 64000 | AI107: 15041 | AJ107: 0
A108: Ressarcimento por indisponibilidade - Adomp | B108: 0 | C108: 0 | D108: 0 | E108: 0 | F108: - | G108: - | H108: - | I108: 0 | J108: 0 | K108: 0 | L108: 0 | M108: 0 | N108: 0 | O108: 0 | P108: 0 | Q108: 0 | R108: - | S108: - | T108: - | U108: - | V108: 2762 | W108: 5676 | X108: - | Y108: 0 | Z108: 0 | AA108: 0 | AB108: 0 | AC108: 0 | AD108: 0 | AE108: 0 | AF108: 0 | AG108: 99661 | AH108: 133862 | AJ108: 0
A109: Compromissos futuros | B109: 922160 | C109: 918366 | D109: 524899 | E109: 241563 | F109: 82301 | G109: 69911 | H109: 85737 | I109: 297891 | J109: 446863 | K109: 133 | L109: 141445
A110: Outras contas a pagar | B110: 120899 | C110: 149844 | D110: 154193 | E110: 116148 | F110: 111086 | G110: 115523 | H110: 102486 | I110: 102512 | J110: 119057 | K110: 122535 | L110: 87481 | M110: 77600 | N110: 66021 | O110: 68610 | P110: 74028 | Q110: 93379 | R110: 65743 | S110: 92732 | T110: 44255 | U110: 12331 | V110: 11828 | W110: 12284 | X110: 10570 | Y110: 10958 | Z110: 10971 | AA110: 10975 | AB110: 10971 | AC110: 10661 | AD110: 10883 | AE110: 12102 | AF110: 18917 | AG110: 13805 | AH110: 12288 | AI110: 11057 | AJ110: 10693 | AK110: 10985 | AL110: 10694 | AM110: 10806 | AN110: 10975 | AO110: 15338 | AP110: 15509 | AQ110: 15397 | AR110: 15562 | AS110: 44661 | AT110: 16978 | AU110: 15562 | AV110: 38496 | AW110: 37439 | AX110: 27720 | AY110: 21601 | AZ110: 23053.3037
A111: Patrimônio Líquido | B111: =SUM(B112:B118) -> 11970907 | C111: =SUM(C112:C118) -> 12366216 | D111: =SUM(D112:D118) -> 11895759 | E111: =SUM(E112:E118) -> 13041542 | F111: 12444111 | G111: 12726785 | H111: 12294012 | I111: 12229049 | J111: 11655678 | K111: 10352270 | L111: 10121080 | M111: 9879764 | N111: 9623194 | O111: 9346004 | P111: 9229047 | Q111: 9280792 | R111: 8936362 | S111: 8783488 | T111: 8523707 | U111: 8389434 | V111: 8085930 | W111: 8061229 | X111: 7881837 | Y111: 7931803 | Z111: 7791304 | AA111: 7656408 | AB111: 7523306 | AC111: 7911511 | AD111: 7690339 | AE111: 6101168 | AF111: 5811654 | AG111: 5794148 | AH111: 5741039 | AI111: 4976148 | AJ111: 4891013 | AK111: 4692497 | AL111: 4637210 | AM111: 4667317 | AN111: 4573217 | AO111: 4532368 | AP111: 4327723 | AQ111: 4525462 | AR111: 4445684 | AS111: 4604562 | AT111: 4596035 | AU111: 4445703 | AV111: 4605014 | AW111: 4766503 | AX111: 4679466 | AY111: 4735619 | AZ111: 4554478
A112: Capital social | B112: 6002716 | C112: 5502716 | D112: 5502716 | E112: 5502716 | F112: 5502716 | G112: 5502716 | H112: 5502716 | I112: 5502716 | J112: 5502716 | K112: 5502716 | L112: 5502716 | M112: 5502716 | N112: 5502716 | O112: 5502716 | P112: 4682716 | Q112: 4682716 | R112: 4682716 | S112: 4682716 | T112: 4682716 | U112: 4682716 | V112: 4682716 | W112: 4682716 | X112: 4682716 | Y112: 4682716 | Z112: 4682716 | AA112: 4682716 | AB112: 4682716 | AC112: 4682716 | AD112: 3182716 | AE112: 3182716 | AF112: 3182716 | AG112: 3182716 | AH112: 3182716 | AI112: 3182716 | AJ112: 3182716 | AK112: 3182716 | AL112: 3182716 | AM112: 3182716 | AN112: 3182716 | AO112: 3182716 | AP112: 3182715 | AQ112: 3182716 | AR112: 3182716 | AS112: 3182716 | AT112: 3182716 | AU112: 3182716 | AV112: 3182716 | AW112: 3182716 | AX112: 3182716 | AY112: 3182716 | AZ112: 3182716
A113: Reservas de capital | B113: 118082 | C113: 127343 | D113: 127375 | E113: 128079 | F113: 128634 | G113: 132940 | H113: 132834 | I113: 139466 | J113: 139542 | K113: 141864 | L113: 141069 | M113: 140435 | N113: 139305 | O113: 140673 | P113: 139578 | Q113: 138596 | R113: 137897 | S113: 137002 | T113: 136733 | U113: 136697 | V113: 136403 | W113: 135787 | X113: 135787 | Y113: 135771 | Z113: 135606 | AA113: 135191 | AB113: 135499 | AC113: 135808 | AD113: 1638700 | AE113: 139314 | AF113: 139717 | AG113: 140122 | AH113: 140525 | AI113: 140926 | AJ113: 141327 | AK113: 141727 | AL113: 142129 | AM113: 142531 | AN113: 142932 | AO113: 143333 | AP113: 143735 | AQ113: 144137 | AR113: 144540 | AS113: 144998 | AT113: 145456 | AU113: 144540 | AV113: 95598 | AW113: 95598 | AX113: 95598 | AY113: 95598 | AZ113: 95598
A114: Reservas de lucros | B114: 5301489 | C114: 5953946 | D114: 5953946 | E114: 5583748 | F114: 5583748 | G114: 6260565 | H114: 6260565 | I114: 5162037 | J114: 5162038 | K114: 5365110 | L114: 5365110 | M114: 4239602 | N114: 4239602 | O114: 4239602 | P114: 5059602 | Q114: 4073763 | R114: 4073763 | S114: 4110950 | T114: 4110950 | U114: 3310590 | V114: 3310590 | W114: 3521493 | X114: 3521493 | Y114: 3065860 | Z114: 3065860 | AA114: 3065860 | AB114: 3065860 | AC114: 2729258 | AD114: 2729258 | AE114: 2729258 | AF114: 2729258 | AG114: 1766171 | AH114: 1766171 | AI114: 1766171 | AJ114: 1766171 | AK114: 1219245 | AL114: 1219245 | AM114: 1500066 | AN114: 1500066 | AO114: 938944 | AP114: 938944 | AQ114: 1194422 | AR114: 1194422 | AS114: 1268407 | AT114: 1268407 | AU114: 1194422 | AV114: 1507656 | AW114: 1147942 | AX114: 1147942 | AY114: 1386620 | AZ114: 1386620
A115: Outros resultados abrangentes | B115: -642039 | C115: -586858 | D115: -546220 | E115: -539752 | F115: -590939 | G115: -674401 | H115: -654184 | I115: -674243 | J115: -670993 | K115: -684285 | L115: -741827 | M115: -736603 | N115: -735668 | O115: -775867 | P115: -620694 | Q115: -422165 | R115: -422199 | S115: -438077 | T115: -401954 | U115: -447622 | V115: -446044 | W115: -452701 | X115: -452766 | Y115: -363980 | Z115: -364024 | AA115: -356160 | AB115: -354811 | AC115: -261018 | AD115: -254092 | AE115: -245567 | AF115: -233423 | AG115: -171128 | AH115: -169317 | AI115: -190650 | AJ115: -192587 | AK115: -270792 | AL115: -267648 | AM115: -250967 | AN115: -245883 | AO115: -42625 | AP115: -48279 | AQ115: -53417 | AR115: -51721 | AS115: -175884 | AT115: -175404 | AU115: -51721 | AV115: -174342 | AW115: -74826 | AX115: -56716 | AY115: -110443 | AZ115: -103842
A116: Ações em tesouraria | B116: -299270 | C116: -311837 | D116: -311906 | E116: -312107 | F116: -279374 | G116: -189488 | H116: -90534 | I116: -483866 | J116: -486028 | K116: -468917 | L116: -145988 | M116: -74431 | N116: -31034 | O116: -32155 | P116: -32155 | Q116: -32155 | R116: -21884 | S116: -4738 | T116: -4738 | U116: -4718 | V116: -4738 | W116: -5393 | X116: -5393 | Y116: -5393 | Z116: -5611 | AA116: -5958 | AB116: -5958 | AC116: -5958 | AD116: -6150 | AE116: -6614 | AF116: -6614 | AG116: -6614 | AH116: -6614 | AI116: -6614 | AJ116: -6614 | AK116: -6614 | AL116: -6614 | AM116: -6614 | AN116: -6614 | AO116: -6614 | AP116: -6614 | AQ116: -6614 | AR116: -6614 | AS116: -6614 | AT116: -6614 | AU116: -6614 | AV116: -6614 | AW116: -6614 | AX116: -6614 | AY116: -6614 | AZ116: -6614
A117: Lucros acumulados | B117: 264072 | C117: 486826 | D117: 0 | E117: 1418341 | F117: 903909 | G117: 522798 | H117: 0 | I117: 1350790 | J117: 840272 | K117: 495782 | L117: 0 | M117: 808045 | N117: 508273 | O117: 271035 | P117: 0 | Q117: 840037 | R117: 486069 | S117: 295635 | T117: - | U117: 711771 | V117: 407003 | W117: 179327 | X117: - | Y117: 416829 | Z117: 276757 | AA117: 134759 | AB117: 0 | AC117: 630705 | AD117: 399907 | AE117: 302061 | AF117: 0 | AG117: 882881 | AH117: 827558 | AI117: 83599 | AJ117: 0 | AK117: 426215 | AL117: 367382 | AM117: 99585 | AN117: 0 | AO117: 316614 | AP117: 117222 | AQ117: 64218 | AR117: -17659 | AS117: 190939 | AT117: 181474 | AU117: -17640 | AV117: 0 | AW117: 421687 | AX117: 316540 | AY117: 187742 | AZ117: 0
A118: Participações não controladores | B118: 1225857 | C118: 1194080 | D118: 1169848 | E118: 1260517 | F118: 1195417 | G118: 1171655 | H118: 1142615 | I118: 1232149 | J118: 1168131 | K118: 1158537 | L118: 1135194 | M118: 1158813 | N118: 1149950 | O118: 1131007 | P118: 1102550 | Q118: 1132318 | R118: 1108385 | S118: 1125230 | T118: 1150874 | U118: 1198535 | V118: 1198953 | W118: 1198373 | X118: 1155760 | Y118: 1472439 | Z118: 1490143 | AA118: 1473838 | AB118: 1461752 | AC118: 1652531 | AD118: 1679355 | AE118: 1702736 | AF118: 1676793 | AG118: 1733742 | AH118: 1697328 | AI118: 1699338 | AJ118: 1675790 | AK118: 1692489 | AL118: 1681880 | AM118: 1713732 | AN118: 1679956 | AO118: 1744962 | AP118: 1710611 | AQ118: 1943314 | AR118: 1886702 | AS118: 1969219 | AT118: 1930687 | AU118: 1886683 | AV118: 1942624 | AW118: 1945650.38 | AX118: 1918303 | AY118: 1923702 | AZ118: 1900643
A119: TOTAL DO PASSIVO | B119: =SUM(B111+B89+B64) -> 36409855 | C119: =SUM(C111+C89+C64) -> 37252581 | D119: =SUM(D111+D89+D64) -> 37001192 | E119: =SUM(E111+E89+E64) -> 37237475 | F119: 35564038 | G119: 36525760 | H119: 33628739 | I119: 33562475 | J119: 31721409 | K119: 31002291 | L119: 30291260 | M119: 28579446 | N119: 28214966 | O119: 27194418 | P119: 27489068 | Q119: 25680885 | R119: 24435364 | S119: 23430036 | T119: 22772071 | U119: 21639504 | V119: 21248325 | W119: 20915273 | X119: 20607952 | Y119: 20065110 | Z119: 19330487 | AA119: 19243672 | AB119: 19243826 | AC119: 19735189 | AD119: 19435312 | AE119: 18547459 | AF119: 18412340 | AG119: 18057231 | AH119: 18302291 | AI119: 14253423 | AJ119: 13171799 | AK119: 13095401 | AL119: 13139802 | AM119: 14610030 | AN119: 14141494 | AO119: 13669569 | AP119: 13620847 | AQ119: 13500567 | AR119: 12828372 | AS119: 13921324 | AT119: 13383533 | AU119: 12819270 | AV119: 13615953 | AW119: 12691603.88 | AX119: 12411318 | AY119: 12614391 | AZ119: 12811397
B121: =B119-B61 -> 0 | C121: =C119-C61 -> 0 | D121: =D119-D61 -> 0

Sheet EN"
A2: EDP Brasil - Consolidated
A4: R$ Thousand | B4: Jun-23 | C4: Mar-23 | D4: Dec-22 | E4: Sep-22 | F4: 2022-06-01 | G4: 2022-03-01 | H4: Dec-21 | I4: Sep-21 | J4: 2021-06-30 | K4: 2021-03-01 | L4: 2020-12-30 | M4: Sep-20 | N4: 2020-06-30 | O4: 2020-03-31 | P4: 2019-12-30 | Q4: Sep-19 | R4: 2019-06-30 | S4: 2019-03-31 | T4: 2018-12-30 | U4: Sep-18 | V4: 2018-06-30 | W4: 2018-03-31 | X4: 2017-12-31 | Y4: Sep-17 | Z4: 2017-06-30 | AA4: 2017-03-31 | AB4: 2016-12-31 | AC4: Sep-16 | AD4: 2016-06-30 | AE4: 2016-03-31 | AF4: 2015-12-31 | AG4: Sep-15 | AH4: 2015-06-30 | AI4: 2015-03-31 | AJ4: 2014-12-31 | AK4: Sep-14 | AL4: 2014-06-30 | AM4: 2014-03-31 | AN4: 2013-12-31 | AO4: Sep-13 | AP4: 2013-06-30 | AQ4: 2013-03-31 | AR4: 2012-12-30 | AS4: Sep-12 | AT4: 2012-06-30 | AU4: 2012-03-31 | AV4: 2011-12-31 | AW4: Sep-11 | AX4: 2011-06-30 | AY4: 2011-03-31 | AZ4: 2010-12-31
B5: 2Q23 | C5: 1Q23 | D5: 4Q22 | E5: 3Q22 | F5: 2Q22 | G5: 1Q22 | H5: 4Q21 | I5: 3Q21 | J5: 2Q21 | K5: 1Q21 | L5: 4Q20 | M5: 3Q20 | N5: 2Q20 | O5: 1Q20 | P5: 4Q19 | Q5: 3Q19 | R5: 2Q19 | S5: 1Q19 | T5: 4Q18 | U5: 3Q18 | V5: 2Q18 | W5: 1Q18 | X5: 4Q17 | Y5: 3Q17 | Z5: 2Q17 | AA5: 1Q17 | AB5: 4Q16 | AC5: 3Q16 | AD5: 2Q16 | AE5: 1Q16 | AF5: 4Q15 | AG5: 3Q15 | AH5: 2Q15 | AI5: 1Q15 | AJ5: 4Q14 | AK5: 3Q14 | AL5: 2Q14 | AM5: 1Q14 | AN5: 4Q13 | AO5: 3Q13 | AP5: 2Q13 | AQ5: 1Q13 | AR5: 4Q12 | AS5: 3Q12 | AT5: 2Q12 | AU5: 1Q12 | AV5: 4Q11 | AW5: 3Q11 | AX5: 2Q11 | AY5: 1Q11 | AZ5: 4Q10
A7: ASSETS
A8: CURRENT ASSETS | B8: ='Consolidado"'!B8 -> 9906042 | C8: ='Consolidado"'!C8 -> 9480636 | D8: ='Consolidado"'!D8 -> 10304027 | E8: ='Consolidado"'!E8 -> 10315098 | F8: ='Consolidado"'!F8 -> 9648993 | G8: 10623344 | H8: 10121303 | I8: 9281150 | J8: 7609218 | K8: 7839437 | L8: 7469079 | M8: 7269795 | N8: 7549493 | O8: 7085522 | P8: 7324975 | Q8: 7773242 | R8: 7295757 | S8: 7312627 | T8: 7017730 | U8: 5802909 | V8: 5707881 | W8: 5578785 | X8: 5454157 | Y8: 5172294 | Z8: 4610498 | AA8: 4620962 | AB8: 4663745 | AC8: 5285774 | AD8: 5395281 | AE8: 4830133 | AF8: 4863321 | AG8: 4839811 | AH8: 4847626 | AI8: 4329298 | AJ8: 3123619 | AK8: 3307675 | AL8: 3342186 | AM8: 5217838 | AN8: 4706944 | AO8: 2736867 | AP8: 2874246 | AQ8: 2886795 | AR8: 2278342 | AS8: 2743809 | AT8: 2391143 | AU8: 2278307 | AV8: 2666010 | AW8: 2609832 | AX8: 2424448 | AY8: 2647692 | AZ8: 2874677.301
A9: Cash and cash equivalents | B9: ='Consolidado"'!B9 -> 2151670 | C9: ='Consolidado"'!C9 -> 3333603 | D9: ='Consolidado"'!D9 -> 4197196 | E9: ='Consolidado"'!E9 -> 3835467 | F9: ='Consolidado"'!F9 -> 2203804 | G9: 2545719 | H9: 2699490 | I9: 1567155 | J9: 1535985 | K9: 2973921 | L9: 2735859 | M9: 2981027 | N9: 2935649 | O9: 2253496 | P9: 2638610 | Q9: 2510634 | R9: 2325380 | S9: 2350846 | T9: 2203392 | U9: 1240974 | V9: 1477501 | W9: 1543765 | X9: 1603158 | Y9: 1453691 | Z9: 2027594 | AA9: 1975060 | AB9: 2017709 | AC9: 2477020 | AD9: 2562443 | AE9: 1712296 | AF9: 1149998 | AG9: 1271280 | AH9: 1635023 | AI9: 1764197 | AJ9: 826971 | AK9: 1397733 | AL9: 1562138 | AM9: 780131 | AN9: 924146 | AO9: 954838 | AP9: 1175249 | AQ9: 936456 | AR9: 571375 | AS9: 911353 | AT9: 699342 | AU9: 571375 | AV9: 895868 | AW9: 950197 | AX9: 755309 | AY9: 1015491 | AZ9: 1126449
A10: Marketable securities | B10: ='Consolidado"'!B10 -> 88340 | C10: ='Consolidado"'!C10 -> 85603 | D10: ='Consolidado"'!D10 -> 1952 | E10: ='Consolidado"'!E10 -> 310973 | F10: ='Consolidado"'!F10 -> 357965 | G10: 175881 | H10: 11722 | I10: 230106 | J10: 107799 | K10: 158240 | L10: 153990 | M10: 331218 | N10: 328301 | O10: 238222 | P10: 135263 | Q10: 244808 | R10: 164236 | S10: 256551 | T10: 174463 | U10: 165026 | V10: 287653 | W10: 280571 | X10: 112474 | Y10: 0 | Z10: 0 | AA10: 0 | AB10: 0 | AC10: 0 | AF10: 0 | AG10: 0 | AH10: 0 | AI10: 0 | AJ10: 0 | AK10: 0 | AL10: 0 | AM10: 0 | AN10: 0 | AO10: 0 | AP10: 0 | AQ10: 0 | AR10: 0 | AS10: 0 | AT10: 0 | AU10: 0 | AV10: 0 | AW10: 0 | AX10: 0 | AY10: 0 | AZ10: 0
A11: Deferred taxes | B11: ='Consolidado"'!B11 -> 137746 | C11: ='Consolidado"'!C11 -> 145249 | D11: ='Consolidado"'!D11 -> 139427 | E11: ='Consolidado"'!E11 -> 107597 | F11: ='Consolidado"'!F11 -> 113050 | G11: 93137 | H11: 56661 | I11: 168198 | J11: 195674 | K11: 31971 | L11: 7701 | M11: 2323 | N11: 0 | O11: 0 | P11: 0 | Q11: 0 | R11: - | S11: - | T11: - | U11: - | V11: - | W11: - | X11: - | Y11: 0 | Z11: 25785 | AA11: 33971 | AB11: 37390 | AC11: 46855 | AD11: 29493 | AF11: 0
A12: Accounts receivable | B12: ='Consolidado"'!B12 -> 0 | C12: ='Consolidado"'!C12 -> 0 | D12: ='Consolidado"'!D12 -> 0 | E12: ='Consolidado"'!E12 -> -1 | F12: ='Consolidado"'!F12 -> 0 | G12: 0 | H12: 0 | I12: 0 | J12: 0 | K12: 0 | L12: 0 | M12: 0 | N12: 0 | O12: 0 | P12: 0 | Q12: 0 | R12: - | S12: - | T12: - | U12: - | V12: - | W12: - | X12: - | Y12: 0 | Z12: 0 | AA12: 0 | AB12: 0 | AC12: 0 | AD12: 106 | AE12: 106 | AF12: 106 | AG12: 106 | AH12: 106 | AI12: 6221 | AJ12: 5606 | AK12: 5448 | AL12: 5309 | AM12: 5079 | AN12: 4965 | AO12: 4767 | AP12: 5041 | AQ12: 4585 | AR12: 4530 | AS12: 9397 | AT12: 9308 | AU12: 4530 | AV12: 4165 | AW12: 8954 | AX12: 8839 | AY12: 8764 | AZ12: 8659
A13: Financial asset to be indemnified | B13: ='Consolidado"'!B13 -> 0 | C13: ='Consolidado"'!C13 -> 0 | D13: ='Consolidado"'!D13 -> 0 | E13: ='Consolidado"'!E13 -> 0 | F13: ='Consolidado"'!F13 -> 0 | G13: 0 | H13: 0 | I13: 0 | J13: 0 | K13: 0 | L13: 0 | M13: 0 | N13: 0 | O13: 0 | P13: 0 | Q13: 0 | R13: - | S13: - | T13: - | U13: - | V13: - | W13: - | X13: - | Y13: 0 | Z13: 0 | AA13: 0 | AB13: 0 | AC13: 0 | AD13: 0 | AE13: 0 | AF13: 0 | AG13: 0 | AH13: 0 | AI13: 0 | AJ13: 0 | AK13: 0 | AL13: 0 | AM13: 0 | AN13: 0 | AO13: 0 | AP13: 0 | AQ13: 0 | AR13: 0 | AS13: 0 | AT13: 0 | AU13: 0 | AV13: 797 | AW13: 823 | AX13: 823 | AY13: 823 | AZ13: 823
A14: Consumers and concessionaires | B14: ='Consolidado"'!B14 -> 2279225 | C14: ='Consolidado"'!C14 -> 2597602 | D14: ='Consolidado"'!D14 -> 2445137 | E14: ='Consolidado"'!E14 -> 2434263 | F14: ='Consolidado"'!F14 -> 2477448 | G14: 2944645 | H14: 2856290 | I14: 2863226 | J14: 2309189 | K14: 2614835 | L14: 2958032 | M14: 2535231 | N14: 2428880 | O14: 2551065 | P14: 2625935 | Q14: 2862585 | R14: 2634623 | S14: 2800908 | T14: 2486112 | U14: 2972150 | V14: 2547639 | W14: 2489255 | X14: 2406437 | Y14: 2224578 | Z14: 1840642 | AA14: 1838256 | AB14: 1696312 | AC14: 1827410 | AD14: 1801574 | AE14: 1983465 | AF14: 2173335 | AG14: 1827005 | AH14: 1767303 | AI14: 1600835 | AJ14: 1354605 | AK14: 1388437 | AL14: 1239643 | AM14: 1360022 | AN14: 1126547 | AO14: 1154423 | AP14: 1169120 | AQ14: 1509490 | AR14: 1252551 | AS14: 1104149 | AT14: 1019705 | AU14: 1252551 | AV14: 963226 | AW14: 931804 | AX14: 931263 | AY14: 935415 | AZ14: 888806
A15: Income and social contribution taxes | B15: ='Consolidado"'!B15 -> 99512 | C15: ='Consolidado"'!C15 -> 118252 | D15: ='Consolidado"'!D15 -> 238560 | E15: ='Consolidado"'!E15 -> 245720 | F15: ='Consolidado"'!F15 -> 228575 | G15: 228170 | H15: 280791 | I15: 221406 | J15: 202294 | K15: 178681 | L15: 206929 | M15: 151020 | N15: 149489 | O15: 138388 | P15: 123282 | Q15: 142899 | R15: 150328 | S15: 192801 | T15: 350533 | U15: 549289 | V15: 580235 | W15: 660228 | X15: 869775 | Y15: 1012053 | Z15: 302742 | AA15: 287696 | AB15: 426147 | AC15: 277036 | AD15: 242592 | AE15: 177038 | AF15: 284735 | AG15: 234794 | AH15: 226441 | AI15: 179792 | AJ15: 235154 | AK15: 146714 | AL15: 181810 | AM15: 168286 | AN15: 195291 | AO15: 143713 | AP15: 156608 | AQ15: 151089 | AR15: 166075 | AS15: 369021 | AT15: 321002 | AU15: 166040 | AV15: 519210 | AW15: 435553 | AX15: 446274 | AY15: 398107 | AZ15: 540314
A16: Deferred income and social contribution taxes | B16: ='Consolidado"'!B16 -> 324597 | C16: ='Consolidado"'!C16 -> 366551 | D16: ='Consolidado"'!D16 -> 456679 | E16: ='Consolidado"'!E16 -> 427652 | F16: ='Consolidado"'!F16 -> 595615 | G16: 584820 | H16: 552974 | I16: 559194 | J16: 542892 | K16: 585398 | L16: 633670 | M16: 673889 | N16: 651750 | O16: 652961 | P16: 670383 | Q16: 275417 | R16: 268694 | S16: 274770 | T16: 282349 | U16: - | V16: - | W16: - | X16: - | Y16: 0 | Z16: 0 | AA16: 0 | AB16: 0 | AC16: 0 | AD16: 0 | AE16: 0 | AF16: 0 | AG16: 0 | AH16: 0 | AI16: 0 | AJ16: 0 | AK16: 0 | AL16: 0 | AM16: 0 | AN16: 0 | AO16: 0 | AP16: 0 | AQ16: 0 | AR16: 0 | AS16: 0 | AT16: 0 | AU16: 0 | AV16: 0 | AW16: 0 | AX16: 0 | AY16: 0 | AZ16: 0
A17: Related parties | B17: ='Consolidado"'!B17 -> 0 | C17: ='Consolidado"'!C17 -> 0 | D17: ='Consolidado"'!D17 -> 0 | E17: ='Consolidado"'!E17 -> 0 | F17: ='Consolidado"'!F17 -> - | G17: - | H17: - | I17: 0 | J17: 0 | K17: 0 | L17: 0 | M17: 0 | N17: 0 | O17: 0 | P17: 0 | Q17: 0 | R17: - | S17: - | T17: - | U17: - | V17: - | W17: - | X17: - | Y17: 0 | Z17: 0 | AA17: 0 | AB17: 0 | AC17: 0 | AD17: 0 | AE17: 0 | AF17: 0 | AG17: 0 | AH17: 0 | AI17: 0 | AJ17: 0 | AK17: 74469 | AL17: 13647 | AM17: 12715 | AN17: 12359 | AO17: 763 | AP17: 745 | AQ17: 730 | AR17: 718 | AS17: 0 | AT17: 0 | AU17: 718 | AV17: 0 | AW17: 0 | AX17: 0 | AY17: 0 | AZ17: 0
A18: Loans receivable | B18: ='Consolidado"'!B18 -> 2010 | C18: ='Consolidado"'!C18 -> 1960 | D18: ='Consolidado"'!D18 -> 0 | E18: ='Consolidado"'!E18 -> -1 | F18: ='Consolidado"'!F18 -> 0 | G18: 0 | H18: 0 | I18: 0 | J18: 0 | K18: 0 | L18: 0 | M18: 0 | N18: 0 | O18: 0 | P18: 0 | Q18: 0 | R18: - | S18: - | T18: - | U18: - | V18: - | W18: - | X18: - | Y18: 49786 | Z18: 48503 | AA18: 51311 | AB18: 50773 | AC18: 114156 | AD18: 109905 | AE18: 86492 | AF18: 70179 | AG18: 0 | AH18: - | AI18: - | AJ18: 0 | AK18: - | AL18: - | AM18: - | AN18: - | AO18: - | AP18: - | AQ18: - | AR18: - | AS18: - | AT18: - | AU18: - | AV18: - | AW18: - | AX18: - | AY18: - | AZ18: -
A19: Financial Derivatives Instruments | B19: ='Consolidado"'!B19 -> 67288 | C19: ='Consolidado"'!C19 -> 32942 | D19: ='Consolidado"'!D19 -> 13463 | E19: ='Consolidado"'!E19 -> 15298 | F19: ='Consolidado"'!F19 -> 10969
A20: Dividends receivable | B20: ='Consolidado"'!B20 -> 110488 | C20: ='Consolidado"'!C20 -> 82614 | D20: ='Consolidado"'!D20 -> 71004 | E20: ='Consolidado"'!E20 -> 48871 | F20: ='Consolidado"'!F20 -> 38239 | G20: 64799 | H20: 50015 | I20: 26972 | J20: 17666 | K20: 51246 | L20: 35686 | M20: 16423 | N20: 39197 | O20: 27513 | P20: 22521 | Q20: 5454 | R20: 10403 | S20: 14950 | T20: 5717 | U20: 2843 | V20: 2223 | W20: 2223 | X20: 2223 | Y20: 338 | Z20: 338 | AA20: 338 | AB20: 338 | AC20: 248 | AD20: 248 | AE20: 248 | AF20: 248 | AG20: 172 | AH20: 172 | AI20: 0 | AJ20: 0 | AK20: 0 | AL20: 0 | AM20: 0 | AN20: 0 | AO20: 0 | AP20: 0 | AQ20: 0 | AR20: 0 | AS20: 0 | AT20: 0 | AU20: 0 | AV20: 0 | AW20: 0 | AX20: 0 | AY20: 0 | AZ20: 0
A21: Inventories | B21: ='Consolidado"'!B21 -> 162622 | C21: ='Consolidado"'!C21 -> 258902 | D21: ='Consolidado"'!D21 -> 275722 | E21: ='Consolidado"'!E21 -> 370812 | F21: ='Consolidado"'!F21 -> 436432 | G21: 496258 | H21: 460408 | I21: 193518 | J21: 313838 | K21: 315212 | L21: 183080 | M21: 246945 | N21: 241053 | O21: 213317 | P21: 168719 | Q21: 197241 | R21: 198088 | S21: 158328 | T21: 266965 | U21: 248156 | V21: 191122 | W21: 207575 | X21: 144816 | Y21: 161335 | Z21: 143109 | AA21: 183044 | AB21: 129997 | AC21: 90936 | AD21: 63928 | AE21: 68225 | AF21: 74313 | AG21: 98129 | AH21: 112982 | AI21: 21349 | AJ21: 23136 | AK21: 22807 | AL21: 25543 | AM21: 22245 | AN21: 19581 | AO21: 18467 | AP21: 43197 | AQ21: 42337 | AR21: 40579 | AS21: 113227 | AT21: 100696 | AU21: 40579 | AV21: 68077 | AW21: 53966 | AX21: 30088 | AY21: 29097 | AZ21: 28112
A22: Collaterals and committed deposits | B22: ='Consolidado"'!B22 -> 4553 | C22: ='Consolidado"'!C22 -> 13461 | D22: ='Consolidado"'!D22 -> 19782 | E22: ='Consolidado"'!E22 -> 19632 | F22: ='Consolidado"'!F22 -> 22800 | G22: 23369 | H22: 10001 | I22: 10298 | J22: 10416 | K22: 3949 | L22: 4876 | M22: 5570 | N22: 133835 | O22: 134229 | P22: 130910 | Q22: 689755 | R22: 705098 | S22: 696474 | T22: 687232 | U22: 2224 | V22: 10261 | W22: 2176 | X22: 4298 | Y22: 3198 | Z22: 3307 | AA22: 3151 | AB22: 11115 | AC22: 109167 | AD22: 49161 | AE22: 52291 | AF22: 22273 | AG22: 79243 | AH22: 120584 | AI22: 49067 | AJ22: 12277 | AK22: 9769 | AL22: 21635 | AM22: 11172 | AN22: 4642 | AO22: 2300 | AP22: 8163 | AQ22: 11193 | AR22: 24207 | AS22: 45860 | AT22: 44643 | AU22: 24207 | AV22: 10107 | AW22: 47440 | AX22: 46394 | AY22: 51554 | AZ22: 62898
A23: Risk premium - GSF | B23: ='Consolidado"'!B23 -> 2750 | C23: ='Consolidado"'!C23 -> 2749 | D23: ='Consolidado"'!D23 -> 2750 | E23: ='Consolidado"'!E23 -> 2749 | F23: ='Consolidado"'!F23 -> 2749 | G23: 2749 | H23: 2749 | I23: 3290 | J23: 3290 | K23: 3290 | L23: 3290 | M23: 3290 | N23: 3290 | O23: 2749 | P23: 2749 | Q23: 2750 | R23: 2750 | S23: - | T23: - | U23: 4085 | V23: 4085 | W23: 4085 | X23: 4085 | Y23: 61824 | Z23: 4085 | AA23: 4085 | AB23: 4085 | AC23: 4085 | AD23: 4108 | AE23: 4108 | AF23: 2750 | AJ23: 0
A24: Prepaid expenses | B24: ='Consolidado"'!B24 -> 0 | C24: ='Consolidado"'!C24 -> 0 | D24: ='Consolidado"'!D24 -> 0 | E24: ='Consolidado"'!E24 -> 0 | F24: ='Consolidado"'!F24 -> - | G24: - | H24: - | I24: 0 | J24: 0 | K24: 0 | L24: 0 | M24: 0 | N24: 0 | O24: 0 | P24: 0 | Q24: - | R24: - | S24: - | T24: - | U24: - | V24: - | W24: - | X24: - | Y24: 0 | Z24: 0 | AA24: 0 | AB24: 0 | AC24: 0 | AD24: 0 | AE24: 0 | AF24: 0 | AG24: 26237 | AH24: 5215 | AI24: 5413 | AJ24: 0 | AK24: 2012 | AL24: 4225 | AM24: 5332 | AN24: 159 | AO24: 2853 | AP24: 3667 | AQ24: 4518 | AR24: 704 | AS24: 2650 | AT24: 4128 | AU24: 704 | AV24: 4887 | AW24: 2522 | AX24: 3352 | AY24: 3896 | AZ24: 5254
A25: Compensation costs - CCEE | B25: ='Consolidado"'!B25 -> 0 | C25: ='Consolidado"'!C25 -> 0 | D25: ='Consolidado"'!D25 -> 0 | E25: ='Consolidado"'!E25 -> 0 | F25: ='Consolidado"'!F25 -> - | G25: - | H25: - | I25: 0 | J25: 0 | K25: 0 | L25: 0 | M25: 0 | N25: 0 | O25: 0 | P25: 0 | Q25: - | R25: - | S25: - | T25: - | U25: - | V25: - | W25: - | X25: - | Z25: 0 | AA25: 0 | AB25: 0 | AC25: 0 | AD25: 0 | AE25: 0 | AF25: 0 | AG25: 0 | AH25: 0 | AI25: 0 | AJ25: 0 | AK25: 102654 | AL25: 142057 | AM25: 370483
A26: Account for compensation in variation of installment "A" costs | B26: ='Consolidado"'!B26 -> 0 | C26: ='Consolidado"'!C26 -> 0 | D26: ='Consolidado"'!D26 -> 0 | E26: ='Consolidado"'!E26 -> 0 | F26: ='Consolidado"'!F26 -> - | G26: - | H26: - | I26: 0 | J26: 0 | K26: 0 | L26: 0 | M26: 0 | N26: 0 | O26: 0 | P26: 0 | Q26: - | R26: - | S26: - | T26: - | U26: - | V26: - | W26: - | X26: - | Y26: 0 | Z26: 0 | AA26: 0 | AB26: 0 | AC26: 0 | AD26: 0 | AE26: 0 | AF26: 0 | AG26: 0 | AH26: 0 | AI26: 0 | AJ26: 0 | AK26: 0 | AL26: 0 | AM26: 0 | AN26: 0 | AO26: 0 | AP26: 0 | AQ26: 0 | AR26: 0 | AU26: 0 | AX26: 0 | AY26: 0
A27: Other receivable revenues | B27: ='Consolidado"'!B27 -> 4593 | C27: ='Consolidado"'!C27 -> 4593 | D27: ='Consolidado"'!D27 -> 5217 | E27: ='Consolidado"'!E27 -> 5217 | F27: ='Consolidado"'!F27 -> 5217 | G27: 5217 | H27: 2927 | I27: 2926 | J27: 2926 | K27: 2926 | L27: 3429 | M27: 3429 | N27: 3429 | O27: 3429 | P27: 4475 | Q27: 4475 | R27: 4475 | S27: - | T27: - | U27: 3424 | V27: 3424 | W27: 3424 | X27: 4218 | Y27: 4218 | Z27: 4218 | AA27: 4218 | AB27: 6767 | AC27: 6768 | AD27: 6768 | AE27: 6768 | AF27: 5188 | AG27: 5188 | AH27: 5188 | AI27: 5188 | AJ27: 4974 | AK27: 4974 | AL27: 4974 | AM27: 4974 | AN27: 4758 | AO27: 4759 | AP27: 4758 | AQ27: 4758 | AR27: 6150 | AS27: 0 | AT27: 0 | AU27: 6150 | AV27: 4825 | AW27: 0 | AX27: 0 | AY27: 0 | AZ27: 0
A28: Financial assets available for sale | B28: ='Consolidado"'!B28 -> 0 | C28: ='Consolidado"'!C28 -> 0 | D28: ='Consolidado"'!D28 -> 0 | E28: ='Consolidado"'!E28 -> 0 | F28: ='Consolidado"'!F28 -> - | G28: - | H28: - | I28: 0 | J28: 0 | K28: 0 | L28: 0 | M28: 0 | N28: 0 | O28: 0 | P28: 0 | Q28: - | R28: - | S28: - | T28: - | U28: - | V28: - | W28: - | X28: - | Y28: 0 | Z28: 0 | AA28: 0 | AB28: 0 | AC28: 0 | AD28: 0 | AE28: 0 | AF28: 0 | AG28: 0 | AH28: 0 | AI28: 0 | AJ28: 0 | AK28: 5282 | AL28: 5084 | AM28: 5480 | AN28: 11026 | AO28: 12214 | AP28: 6932 | AQ28: 15713 | AR28: 19806 | AS28: 15845 | AT28: 16505 | AU28: 19806 | AV28: 33011 | AW28: 24692 | AX28: 28323 | AY28: 30106 | AZ28: 40801
A29: Non-current assets held for sale | B29: ='Consolidado"'!B29 -> 2162530 | C29: ='Consolidado"'!C29 -> 0 | D29: ='Consolidado"'!D29 -> 0 | E29: ='Consolidado"'!E29 -> 401578 | F29: ='Consolidado"'!F29 -> 1311194 | G29: 1375452 | H29: 1328481 | I29: 1230890 | J29: 0 | K29: 0 | L29: 0 | M29: 0 | N29: 0 | O29: 371485 | P29: 341781 | Q29: 427301 | R29: 334468 | S29: - | T29: - | U29: - | V29: 23745 | W29: 24887 | X29: 31794 | Y29: 0 | Z29: 0 | AA29: 0 | AB29: 0 | AC29: 0 | AD29: 0 | AE29: 0 | AF29: 122442 | AG29: 228509 | AH29: 107054 | AI29: 107054 | AJ29: 107054 | AK29: 4061 | AL29: 0 | AM29: 2379900 | AN29: 2327633 | AO29: 0 | AP29: 0 | AQ29: 0 | AR29: 0 | AS29: 29016 | AT29: 27658 | AU29: 0 | AV29: 0
A30: Cost Reimbursement - GSF | B30: ='Consolidado"'!B30 -> 0 | C30: ='Consolidado"'!C30 -> 0 | D30: ='Consolidado"'!D30 -> 0 | E30: ='Consolidado"'!E30 -> 0 | F30: ='Consolidado"'!F30 -> 0 | G30: 0 | H30: 0 | I30: 0 | J30: 0 | K30: 0 | L30: 0 | M30: 0 | N30: 0 | O30: 0 | P30: 0 | Q30: - | R30: - | S30: - | T30: - | U30: - | V30: - | W30: - | X30: - | Y30: 0
A31: Concession Asset | B31: ='Consolidado"'!B31 -> 746978 | C31: ='Consolidado"'!C31 -> 726816 | D31: ='Consolidado"'!D31 -> 700042 | E31: ='Consolidado"'!E31 -> 683897 | F31: ='Consolidado"'!F31 -> 420663 | G31: 409574 | H31: 55184 | I31: 73513 | J31: 137213 | K31: 86796 | L31: 33855 | M31: 41246 | N31: 54518 | O31: 62870 | P31: 17405
A32: Sectoral financial assets | B32: ='Consolidado"'!B32 -> 34231 | C32: ='Consolidado"'!C32 -> 58239 | D32: ='Consolidado"'!D32 -> 80687 | E32: ='Consolidado"'!E32 -> 130989 | F32: ='Consolidado"'!F32 -> 344157 | G32: 693212 | H32: 643174 | I32: 678336 | J32: 488335 | K32: 322580 | L32: 226899 | M32: 88983 | N32: 327067 | O32: 247434 | P32: 227979 | Q32: 195217 | R32: 263153 | S32: 317700 | T32: 366149 | U32: 447411 | V32: 402852 | W32: 182266 | X32: 108794 | Y32: 26726 | Z32: 25047 | AA32: 45769 | AB32: 58662 | AC32: 74664 | AD32: 234644 | AE32: 466042 | AF32: 664410 | AG32: 774866 | AH32: 586104 | AI32: 401251 | AJ32: 383378
A33: Future commitments | B33: ='Consolidado"'!B33 -> 1233224 | C33: ='Consolidado"'!C33 -> 1354110 | D33: ='Consolidado"'!D33 -> 1347737 | E33: ='Consolidado"'!E33 -> 889710 | F33: ='Consolidado"'!F33 -> 743572 | G33: 626770 | H33: 440678 | I33: 1151379 | J33: 1472554 | K33: 271956 | L33: 76621
A34: Other credits | B34: ='Consolidado"'!B34 -> 293685 | C34: ='Consolidado"'!C34 -> 297390 | D34: ='Consolidado"'!D34 -> 308672 | E34: ='Consolidado"'!E34 -> 384675 | F34: ='Consolidado"'!F34 -> 336544 | G34: 353572 | H34: 669758 | I34: 300743 | J34: 269147 | K34: 238436 | L34: 205162 | M34: 189201 | N34: 253035 | O34: 188364 | P34: 214963 | Q34: 214706 | R34: 234061 | S34: 249299 | T34: 194818 | U34: 167327 | V34: 177141 | W34: 178330 | X34: 162085 | Y34: 174547 | Z34: 185128 | AA34: 194063 | AB34: 224450 | AC34: 257429 | AD34: 290311 | AE34: 273054 | AF34: 293344 | AG34: 294282 | AH34: 281454 | AI34: 188931 | AJ34: 170464 | AK34: 143315 | AL34: 136121 | AM34: 92019 | AN34: 75837 | AO34: 437770 | AP34: 300766 | AQ34: 205926 | AR34: 191647 | AS34: 143291 | AT34: 148156 | AU34: 191647 | AV34: 161837 | AW34: 153881 | AX34: 173783 | AY34: 174439 | AZ34: 172561.3011
A35: NON-CURRENT ASSETS | B35: ='Consolidado"'!B35 -> 0 | C35: ='Consolidado"'!C35 -> 0 | D35: ='Consolidado"'!D35 -> 0 | E35: ='Consolidado"'!E35 -> 0 | F35: ='Consolidado"'!F35 -> 0 | H35: - | I35: 0 | J35: -
A36: Non-Current Assets | B36: ='Consolidado"'!B36 -> 17521435 | C36: ='Consolidado"'!C36 -> 17176269 | D36: ='Consolidado"'!D36 -> 16014014 | E36: ='Consolidado"'!E36 -> 14942117 | F36: ='Consolidado"'!F36 -> 14240951 | G36: 14212335 | H36: 13505015 | I36: 12981693 | J36: 12937928 | K36: 12057122 | L36: 11847115 | M36: 10681526 | N36: 10075963 | O36: 9628345 | P36: 9423329 | Q36: 7201267 | R36: 6396356 | S36: 5127383 | T36: 4729324 | U36: 4191056 | V36: 3879202 | W36: 3743828 | X36: 3658812 | Y36: 3474068 | Z36: 3305081 | AA36: 3309453 | AB36: 3245164 | AC36: 3100471 | AD36: 2664391 | AE36: 2483054 | AF36: 2364388 | AG36: 2090671 | AH36: 2178187 | AI36: 2277001 | AJ36: 2328899 | AK36: 1968213 | AL36: 2013474 | AM36: 1946909 | AN36: 1933067 | AO36: 1942623 | AP36: 1965619 | AQ36: 1911423 | AR36: 1849574 | AS36: 1676897 | AT36: 1605824 | AU36: 1849574 | AV36: 1688185 | AW36: 1619716 | AX36: 1608532 | AY36: 1587016 | AZ36: 1569149
A37: Marketable securities | B37: ='Consolidado"'!B37 -> 11586 | C37: ='Consolidado"'!C37 -> 11593 | D37: ='Consolidado"'!D37 -> 6697 | E37: ='Consolidado"'!E37 -> 2500 | F37: ='Consolidado"'!F37 -> 2500 | G37: 2500 | H37: 2500 | I37: 2500 | J37: 2500 | K37: 2500 | L37: 1750 | M37: 1750 | N37: 1750 | O37: 1750 | P37: 1750 | Q37: 1250 | R37: - | S37: - | T37: - | U37: - | V37: - | W37: - | X37: - | Y37: 109387 | Z37: 105811 | AA37: 102181 | AB37: 98122 | AC37: 94050 | AD37: 0 | AE37: 0 | AF37: 0 | AG37: 0 | AH37: 0 | AI37: 0 | AJ37: 0 | AK37: 0 | AL37: 0 | AM37: 0 | AN37: 0 | AO37: 0 | AP37: 0 | AQ37: 0 | AR37: 0 | AS37: 0 | AT37: 0 | AU37: 0 | AV37: 0 | AW37: 0 | AX37: 0 | AY37: 0 | AZ37: 0
A38: Accounts receivable | B38: ='Consolidado"'!B38 -> 0 | C38: ='Consolidado"'!C38 -> 0 | D38: ='Consolidado"'!D38 -> 0 | E38: ='Consolidado"'!E38 -> -1 | F38: ='Consolidado"'!F38 -> 0 | G38: 0 | H38: 0 | I38: 0 | J38: 0 | K38: 0 | L38: 0 | M38: 0 | N38: 0 | O38: 0 | P38: 0 | Q38: - | R38: - | S38: - | T38: - | U38: - | V38: - | W38: - | X38: - | Y38: 0 | Z38: 0 | AA38: 0 | AB38: 0 | AC38: 0 | AD38: 3501 | AE38: 3457 | AF38: 3407 | AG38: 8310 | AH38: 6066 | AI38: 3305 | AJ38: 5037 | AK38: 6236 | AL38: 7418 | AM38: 7446 | AN38: 17049 | AO38: 18169 | AP38: 18786 | AQ38: 20139 | AR38: 21324 | AS38: 17146 | AT38: 17836 | AU38: 21324 | AV38: 23897 | AW38: 18120 | AX38: 18378 | AY38: 18475 | AZ38: 20036
A39: Financial asset to be indemnified | B39: ='Consolidado"'!B39 -> 6500355 | C39: ='Consolidado"'!C39 -> 6090048 | D39: ='Consolidado"'!D39 -> 5706847 | E39: ='Consolidado"'!E39 -> 5365456 | F39: ='Consolidado"'!F39 -> 5082839 | G39: 4772345 | H39: 4362393 | I39: 4097120 | J39: 3877390 | K39: 3696115 | L39: 3486960 | M39: 3261487 | N39: 3147051 | O39: 3092296 | P39: 3000631 | Q39: 2878301 | R39: 2590781 | S39: 2475042 | T39: 2308855 | U39: 2506193 | V39: 2249921 | W39: 2080521 | X39: 1951930 | Y39: 1848493 | Z39: 1781881 | AA39: 1725067 | AB39: 1653978 | AC39: 1608124 | AD39: 1257703 | AE39: 1277100 | AF39: 1230134 | AG39: 977586 | AH39: 956374 | AI39: 978567 | AJ39: 940160 | AK39: 887226 | AL39: 874566 | AM39: 829187 | AN39: 779354 | AO39: 786073 | AP39: 751901 | AQ39: 727990 | AR39: 690278 | AS39: 566024 | AT39: 532224 | AU39: 690278 | AV39: 482285 | AW39: 492900 | AX39: 460224 | AY39: 416492 | AZ39: 397324
A40: Consumers and concessionaires | B40: ='Consolidado"'!B40 -> 226172 | C40: ='Consolidado"'!C40 -> 224027 | D40: ='Consolidado"'!D40 -> 227962 | E40: ='Consolidado"'!E40 -> 177275 | F40: ='Consolidado"'!F40 -> 115448 | G40: 101494 | H40: 103977 | I40: 106247 | J40: 110363 | K40: 112256 | L40: 82987 | M40: 85201 | N40: 87726 | O40: 94329 | P40: 100545 | Q40: 93960 | R40: 93528 | S40: 92363 | T40: 92246 | U40: 89090 | V40: 89549 | W40: 92941 | X40: 119633 | Y40: 100537 | Z40: 100722 | AA40: 100663 | AB40: 106513 | AC40: 87448 | AD40: 78396 | AE40: 80701 | AF40: 72365 | AG40: 50475 | AH40: 51727 | AI40: 276750 | AJ40: 284759 | AK40: 44795 | AL40: 47460 | AM40: 52777 | AN40: 54908 | AO40: 46821 | AP40: 50563 | AQ40: 39799 | AR40: 40294 | AS40: 32545 | AT40: 31369 | AU40: 40294 | AV40: 63657 | AW40: 62379 | AX40: 64916 | AY40: 65936 | AZ40: 63733
A41: Income and social contribution taxes | B41: ='Consolidado"'!B41 -> 468276 | C41: ='Consolidado"'!C41 -> 451465 | D41: ='Consolidado"'!D41 -> 433092 | E41: ='Consolidado"'!E41 -> 499195 | F41: ='Consolidado"'!F41 -> 577137 | G41: 794956 | H41: 930969 | I41: 1071186 | J41: 1175694 | K41: 1403898 | L41: 1479728 | M41: 1527808 | N41: 1636348 | O41: 1570695 | P41: 1663011 | Q41: 1011888 | R41: 995501 | S41: 245930 | T41: 238768 | U41: 231280 | V41: 220990 | W41: 247338 | X41: 241525 | Y41: 125276 | Z41: 118215 | AA41: 114161 | AB41: 107185 | AC41: 100924 | AD41: 92299 | AE41: 86760 | AF41: 84527 | AG41: 80965 | AH41: 78418 | AI41: 72340 | AJ41: 70719 | AK41: 69980 | AL41: 62591 | AM41: 60349 | AN41: 55327 | AO41: 80248 | AP41: 67244 | AQ41: 65615 | AR41: 55512 | AS41: 52683 | AT41: 50476 | AU41: 55512 | AV41: 38184 | AW41: 37943 | AX41: 35593 | AY41: 36874 | AZ41: 35933
A42: Deferred taxes | B42: ='Consolidado"'!B42 -> 475368 | C42: ='Consolidado"'!C42 -> 714753 | D42: ='Consolidado"'!D42 -> 645648 | E42: ='Consolidado"'!E42 -> 552533 | F42: ='Consolidado"'!F42 -> 554631 | G42: 619485 | H42: 601422 | I42: 653856 | J42: 725440 | K42: 661230 | L42: 710558 | M42: 782577 | N42: 723071 | O42: 728236 | P42: 741695 | Q42: 662252 | R42: 732857 | S42: 755360 | T42: 741134 | U42: 759182 | V42: 783780 | W42: 807990 | X42: 806689 | Y42: 760118 | Z42: 905770 | AA42: 915956 | AB42: 916507 | AC42: 883149 | AD42: 873868 | AE42: 755349 | AF42: 620814 | AG42: 594088 | AH42: 627200 | AI42: 330462 | AJ42: 347770
A43: Loans receivable | B43: ='Consolidado"'!B43 -> 14532 | C43: ='Consolidado"'!C43 -> 12371 | D43: ='Consolidado"'!D43 -> 14689 | E43: ='Consolidado"'!E43 -> 14646 | F43: ='Consolidado"'!F43 -> 14469 | G43: 12348 | H43: 12713 | I43: 189720 | J43: 5356 | K43: 5111 | L43: 4518 | M43: 29946 | N43: 27585 | O43: 26570 | P43: 26186 | Q43: 27636 | R43: 24959 | S43: 24447 | T43: 22809 | U43: 22366 | V43: 21921 | W43: 21492 | X43: 21064 | Y43: 20609 | Z43: 20059 | AA43: 19468 | AB43: 17640 | AC43: 16995 | AD43: 16336 | AE43: 15720 | AF43: 16149 | AG43: 15541 | AH43: 14946 | AI43: 206203 | AJ43: 200149
A44: Financial Derivatives Instruments | B44: ='Consolidado"'!B44 -> 181571 | C44: ='Consolidado"'!C44 -> 134636 | D44: ='Consolidado"'!D44 -> 66824 | E44: ='Consolidado"'!E44 -> 0 | F44: ='Consolidado"'!F44 -> 0
A45: Income tax and social contribution to be offset | B45: ='Consolidado"'!B45 -> 85478 | C45: ='Consolidado"'!C45 -> 92529 | D45: ='Consolidado"'!D45 -> 99234 | E45: ='Consolidado"'!E45 -> 85211 | F45: ='Consolidado"'!F45 -> 61139 | G45: 77379 | H45: 139812 | I45: 120637 | J45: 65698 | K45: 74903 | L45: 95909 | M45: 88613 | N45: 89400 | O45: 84173 | P45: 93761 | Q45: - | R45: - | S45: - | T45: - | U45: - | V45: - | W45: - | X45: 0 | Y45: 0 | Z45: 0 | AA45: 0 | AB45: 0 | AC45: 0 | AD45: 0 | AE45: 0 | AF45: 0 | AG45: 0 | AH45: 0 | AI45: 0 | AJ45: 0
A46: Deferred income and social contribution taxes | B46: ='Consolidado"'!B46 -> 0 | C46: ='Consolidado"'!C46 -> 0 | D46: ='Consolidado"'!D46 -> 0 | E46: ='Consolidado"'!E46 -> 0 | F46: ='Consolidado"'!F46 -> - | G46: - | H46: - | I46: 0 | J46: 0 | K46: 0 | L46: 0 | M46: 0 | N46: 0 | O46: 0 | P46: 0 | Q46: - | R46: - | S46: - | T46: - | U46: - | V46: - | W46: - | X46: 0 | Y46: 0 | Z46: 0 | AA46: 0 | AB46: 0 | AC46: 0 | AD46: 0 | AE46: 0 | AF46: 0 | AG46: 0 | AH46: 0 | AI46: 0 | AJ46: 0 | AK46: 579814 | AL46: 558981 | AM46: 530593 | AN46: 552573 | AO46: 536268 | AP46: 608010 | AQ46: 610560 | AR46: 614957 | AS46: 740985 | AT46: 726947 | AU46: 614957 | AV46: 791997 | AW46: 756450 | AX46: 728977 | AY46: 776023 | AZ46: 778680
A47: Related parties | B47: ='Consolidado"'!B47 -> 0 | C47: ='Consolidado"'!C47 -> 0 | D47: ='Consolidado"'!D47 -> 0 | E47: ='Consolidado"'!E47 -> 0 | F47: ='Consolidado"'!F47 -> - | G47: - | H47: - | I47: 0 | J47: 0 | K47: 0 | L47: 0 | M47: 0 | N47: 0 | O47: 0 | P47: 0 | Q47: - | R47: - | S47: - | T47: - | U47: - | V47: - | W47: - | X47: - | Y47: 0 | Z47: 0 | AA47: 0 | AB47: 0 | AC47: 0 | AD47: - | AE47: 0 | AF47: 0 | AG47: 0 | AH47: 0 | AI47: 0 | AJ47: 0 | AK47: 123714 | AL47: 180409 | AM47: 175560 | AN47: 171074 | AO47: 166414 | AP47: 162950 | AQ47: 159746 | AR47: 136232 | AS47: 28223 | AT47: 2452 | AU47: 136232 | AV47: 2223 | AW47: 7 | AX47: 0 | AY47: 0 | AZ47: 0
A48: Advances for future capital increase | B48: ='Consolidado"'!B48 -> 0 | C48: ='Consolidado"'!C48 -> 0 | D48: ='Consolidado"'!D48 -> 0 | E48: ='Consolidado"'!E48 -> 0 | F48: ='Consolidado"'!F48 -> - | G48: - | H48: - | I48: 0 | J48: 0 | K48: 0 | L48: 0 | M48: 0 | N48: 0 | O48: 0 | P48: 0 | Q48: - | R48: - | S48: 36000 | T48: 36000 | U48: - | V48: - | W48: 35500 | X48: 35500 | Y48: 0 | Z48: 0 | AA48: 64600 | AB48: 64600 | AC48: 0 | AD48: 0 | AE48: 13000 | AF48: 13000 | AG48: 43500 | AH48: 27500 | AI48: 0 | AJ48: 0 | AK48: 0 | AL48: 0 | AM48: 0 | AN48: 0 | AO48: 0 | AP48: 0 | AQ48: 0 | AR48: 0 | AS48: 349 | AT48: 3000 | AU48: 0 | AV48: 0 | AW48: 458 | AX48: 458 | AY48: 458 | AZ48: 458
A49: Concession Asset | B49: ='Consolidado"'!B49 -> 7780267 | C49: ='Consolidado"'!C49 -> 7733143 | D49: ='Consolidado"'!D49 -> 7483925 | E49: ='Consolidado"'!E49 -> 7205720 | F49: ='Consolidado"'!F49 -> 6936872 | G49: 6665027 | H49: 5685037 | I49: 5174358 | J49: 5685281 | K49: 5207931 | L49: 4844304 | M49: 4265142 | N49: 3858738 | O49: 3476997 | P49: 3200239 | Q49: 2069564 | R49: 1595552 | S49: 1077282 | T49: 818662 | U49: - | V49: - | W49: - | X49: -
A50: Account for compensation in variation of installment "A" costs | B50: ='Consolidado"'!B50 -> 75404 | C50: ='Consolidado"'!C50 -> 37666 | D50: ='Consolidado"'!D50 -> 72641 | E50: ='Consolidado"'!E50 -> 68511 | F50: ='Consolidado"'!F50 -> 61879 | G50: 323506 | H50: 786263 | I50: 475728 | J50: 109648 | K50: 187930 | L50: 318585 | M50: 120944 | N50: 35416 | O50: 78509 | P50: 131430 | Q50: - | R50: 5613 | S50: 58932 | T50: 122438 | U50: 248491 | V50: 205150 | W50: 150619 | X50: 198641 | Y50: 252683 | Z50: 7152 | AA50: 878 | AB50: 12701 | AC50: 39686 | AD50: 65342 | AE50: 18106 | AF50: 98234 | AG50: 81704 | AH50: 176840 | AI50: 174978 | AJ50: 218164 | AK50: 0 | AL50: 0 | AM50: 0 | AN50: 0 | AO50: 0 | AP50: 0 | AQ50: 0 | AR50: 0 | AS50: 0 | AT50: 0 | AU50: 0 | AV50: 0 | AW50: 0 | AX50: 0 | AY50: 0 | AZ50: 0
A51: Collaterals and committed deposits | B51: ='Consolidado"'!B51 -> 504733 | C51: ='Consolidado"'!C51 -> 491482 | D51: ='Consolidado"'!D51 -> 471746 | E51: ='Consolidado"'!E51 -> 429473 | F51: ='Consolidado"'!F51 -> 414250 | G51: 404394 | H51: 419776 | I51: 426166 | J51: 440677 | K51: 443064 | L51: 433037 | M51: 424860 | N51: 420498 | O51: 412870 | P51: 402367 | Q51: 390803 | R51: 294667 | S51: 295828 | T51: 282458 | U51: 267911 | V51: 241096 | W51: 237810 | X51: 208747 | Y51: 182472 | Z51: 196993 | AA51: 192361 | AB51: 188592 | AC51: 187201 | AD51: 193729 | AE51: 186604 | AF51: 179581 | AG51: 207507 | AH51: 207005 | AI51: 204549 | AJ51: 232210 | AK51: 231010 | AL51: 236786 | AM51: 232970 | AN51: 242704 | AO51: 253873 | AP51: 251275 | AQ51: 243295 | AR51: 244650 | AS51: 193045 | AT51: 197112 | AU51: 244650 | AV51: 245635 | AW51: 207405 | AX51: 266998 | AY51: 239781 | AZ51: 239669
A52: Risk premium - GSF | B52: ='Consolidado"'!B52 -> 13060 | C52: ='Consolidado"'!C52 -> 13746 | D52: ='Consolidado"'!D52 -> 14435 | E52: ='Consolidado"'!E52 -> 15122 | F52: ='Consolidado"'!F52 -> 15809 | G52: 16497 | H52: 17184 | I52: 18636 | J52: 19459 | K52: 20282 | L52: 21104 | M52: 21927 | N52: 22749 | O52: 21995 | P52: 22682 | Q52: 23369 | R52: 24057 | S52: - | T52: - | U52: 32836 | V52: 33852 | W52: 34867 | X52: 35881 | Y52: 36897 | Z52: 37912 | AA52: 38926 | AB52: 39941 | AC52: 40956 | AD52: 41901 | AE52: 5988 | AF52: 5879 | AJ52: 0
A53: Prepaid expenses | B53: ='Consolidado"'!B53 -> 0 | C53: ='Consolidado"'!C53 -> 0 | D53: ='Consolidado"'!D53 -> 0 | E53: ='Consolidado"'!E53 -> 0 | F53: ='Consolidado"'!F53 -> - | G53: - | H53: - | I53: 0 | J53: 0 | K53: 0 | L53: 0 | M53: 0 | N53: 0 | O53: 0 | P53: 0 | Q53: - | R53: - | S53: - | T53: - | U53: - | V53: - | W53: - | X53: - | Y53: 0 | Z53: 0 | AA53: 0 | AB53: 0 | AC53: 0 | AD53: 0 | AE53: 0 | AF53: 0 | AG53: 0 | AH53: 0 | AI53: 33 | AJ53: 0 | AK53: 0 | AL53: 0 | AM53: 0 | AN53: 0 | AO53: 891 | AP53: 1050 | AQ53: 0 | AR53: 0 | AS53: 431 | AT53: 955 | AU53: 0 | AV53: 496 | AW53: 586 | AX53: 676 | AY53: 764 | AZ53: 937
A54: Future commitments | B54: ='Consolidado"'!B54 -> 1160607 | C54: ='Consolidado"'!C54 -> 1151598 | D54: ='Consolidado"'!D54 -> 754187 | E54: ='Consolidado"'!E54 -> 502795 | F54: ='Consolidado"'!F54 -> 388373 | G54: 406131 | H54: 427583 | I54: 630052 | J54: 704747 | K54: 220146 | L54: 349330
A55: Other credits | B55: ='Consolidado"'!B55 -> 24026 | C55: ='Consolidado"'!C55 -> 17212 | D55: ='Consolidado"'!D55 -> 16087 | E55: ='Consolidado"'!E55 -> 23681 | F55: ='Consolidado"'!F55 -> 15605 | G55: 16273 | H55: 15386 | I55: 15487 | J55: 15675 | K55: 21756 | L55: 18345 | M55: 71271 | N55: 25631 | O55: 39925 | P55: 39032 | Q55: 42244 | R55: 38841 | S55: 66199 | T55: 65954 | U55: 33707 | V55: 32943 | W55: 34750 | X55: 39202 | Y55: 37596 | Z55: 30566 | AA55: 35192 | AB55: 39385 | AC55: 41938 | AD55: 41316 | AE55: 40269 | AF55: 40298 | AG55: 30995 | AH55: 32111 | AI55: 29814 | AJ55: 29931 | AK55: 25438 | AL55: 45263 | AM55: 58027 | AN55: 60078 | AO55: 53866 | AP55: 53840 | AQ55: 44279 | AR55: 46327 | AS55: 45466 | AT55: 43453 | AU55: 46327 | AV55: 39811 | AW55: 43468 | AX55: 32312 | AY55: 32213 | AZ55: 32379
A56: Permanent Assets | B56: ='Consolidado"'!B56 -> 8982378 | C56: ='Consolidado"'!C56 -> 10595676 | D56: ='Consolidado"'!D56 -> 10683151 | E56: ='Consolidado"'!E56 -> 11980260 | F56: ='Consolidado"'!F56 -> 11674094 | G56: 11690081 | H56: 10002421 | I56: 11299632 | J56: 11174263 | K56: 11105732 | L56: 10975066 | M56: 10628125 | N56: 10589510 | O56: 10480551 | P56: 10740764 | Q56: 10706376 | R56: 10743251 | S56: 10990026 | T56: 11025017 | U56: 11645539 | V56: 11661242 | W56: 11592660 | X56: 11494983 | Y56: 11418748 | Z56: 11414908 | AA56: 11313257 | AB56: 11334917 | AC56: 11348944 | AD56: 11375640 | AE56: 11250149 | AF56: 11184631 | AG56: 11126749 | AH56: 11276478 | AI56: 7647124 | AJ56: 7719281 | AK56: 7819513 | AL56: 7784142 | AM56: 7445283 | AN56: 7501483 | AO56: 8990079 | AP56: 8780982 | AQ56: 8702349 | AR56: 8700456 | AS56: 9500618 | AT56: 9386566 | AU56: 8691389 | AV56: 9261758 | AW56: 8462056 | AX56: 8378338 | AY56: 8379682.837 | AZ56: 8367571
A57: Investments | B57: ='Consolidado"'!B57 -> 2444872 | C57: ='Consolidado"'!C57 -> 2414899 | D57: ='Consolidado"'!D57 -> 2409755 | E57: ='Consolidado"'!E57 -> 2411440 | F57: ='Consolidado"'!F57 -> 1443943 | G57: 1383537 | H57: 1311885 | I57: 2234680 | J57: 2190529 | K57: 2141335 | L57: 2032260 | M57: 2040840 | N57: 1963154 | O57: 1943249 | P57: 2097673 | Q57: 2024976 | R57: 2037041 | S57: 1984307 | T57: 2024618 | U57: 1929087 | V57: 1926082 | W57: 1769679 | X57: 1514827 | Y57: 1432074 | Z57: 1375762 | AA57: 1213003 | AB57: 1181259 | AC57: 1226694 | AD57: 1090711 | AE57: 982827 | AF57: 850368 | AG57: 737856 | AH57: 730672 | AI57: 1105704 | AJ57: 1111675 | AK57: 1123178 | AL57: 1070950 | AM57: 668977 | AN57: 672337 | AO57: 679260 | AP57: 691575 | AQ57: 702227 | AR57: 708682 | AS57: 35778 | AT57: 32301 | AU57: 708682 | AV57: 32896 | AW57: 29846 | AX57: 36897 | AY57: 34898.83712 | AZ57: 32920
A58: Intangible assets | B58: ='Consolidado"'!B58 -> 63853 | C58: ='Consolidado"'!C58 -> 63855 | D58: ='Consolidado"'!D58 -> 63858 | E58: ='Consolidado"'!E58 -> 63862 | F58: ='Consolidado"'!F58 -> 58183 | G58: 74894 | H58: 11381 | I58: 11384 | J58: 11387 | K58: 11390 | L58: 11393 | M58: 11406 | N58: 11456 | O58: 11504 | P58: 11552 | Q58: 11601 | R58: 12066 | S58: 12115 | T58: 12163 | U58: 12210 | V58: 12259 | W58: 12308 | X58: 12356 | Y58: 12404 | Z58: 12453 | AA58: 12502 | AB58: 12551 | AC58: 12599 | AD58: 12648 | AE58: 12696 | AF58: 12745 | AG58: 12794 | AH58: 12852 | AI58: 12482 | AJ58: 13453 | AK58: 13453 | AL58: 13453 | AM58: 13583 | AN58: 13583 | AO58: 4094 | AP58: 4127 | AQ58: 4127 | AR58: 4127 | AS58: 4127 | AT58: 4186 | AU58: 4127 | AV58: 4186 | AW58: 4347 | AZ58: 4351
A59: Properties for investment | B59: ='Consolidado"'!B59 -> 2953821 | C59: ='Consolidado"'!C59 -> 4592794 | D59: ='Consolidado"'!D59 -> 4656890 | E59: ='Consolidado"'!E59 -> 5879683 | F59: ='Consolidado"'!F59 -> 5940731 | G59: 5995617 | H59: 6068213 | I59: 6264408 | J59: 6267547 | K59: 6247315 | L59: 6271823 | M59: 6332423 | N59: 6353536 | O59: 6237313 | P59: 6306057 | Q59: 6331970 | R59: 6376240 | S59: 6664829 | T59: 6661984 | U59: 7023533 | V59: 7082219 | W59: 7155974 | X59: 7225384 | Y59: 7246484 | Z59: 7315310 | AA59: 7369104 | AB59: 7422433 | AC59: 7437275 | AD59: 7498320 | AE59: 7554426 | AF59: 7621448 | AG59: 7649544 | AH59: 7790383 | AI59: 3917225 | AJ59: 3941235 | AK59: 3958768 | AL59: 3981188 | AM59: 4001709 | AN59: 4026216 | AO59: 4959633 | AP59: 4706093 | AQ59: 4617451 | AR59: 4554328 | AS59: 6032489 | AT59: 5893093 | AU59: 4554328 | AV59: 5659533 | AW59: 5458495 | AX59: 5372464 | AY59: 5337188 | AZ59: 5303587
A60: Fixed assets | B60: ='Consolidado"'!B60 -> 3519832 | C60: ='Consolidado"'!C60 -> 3524128 | D60: ='Consolidado"'!D60 -> 3552648 | E60: ='Consolidado"'!E60 -> 3625275 | F60: ='Consolidado"'!F60 -> 4231237 | G60: 4236033 | H60: 2610942 | I60: 2789160 | J60: 2704800 | K60: 2705692 | L60: 2659590 | M60: 2243456 | N60: 2261364 | O60: 2288485 | P60: 2325482 | Q60: 2337829 | R60: 2317904 | S60: 2328775 | T60: 2326252 | U60: 2680709 | V60: 2640682 | W60: 2654699 | X60: 2742416 | Y60: 2727786 | Z60: 2711383 | AA60: 2718648 | AB60: 2718674 | AC60: 2672376 | AD60: 2773961 | AE60: 2700200 | AF60: 2700070 | AG60: 2726555 | AH60: 2742571 | AI60: 2611713 | AJ60: 2652918 | AK60: 2724114 | AL60: 2718551 | AM60: 2761014 | AN60: 2789347 | AO60: 3347092 | AP60: 3379187 | AQ60: 3378544 | AR60: 3433319 | AS60: 3428224 | AT60: 3456986 | AU60: 3424252 | AV60: 3565143 | AW60: 2969368 | AX60: 2968977 | AY60: 3007596 | AZ60: 3026713
A61: TOTAL ASSETS | B61: ='Consolidado"'!B61 -> 36409855 | C61: ='Consolidado"'!C61 -> 37252581 | D61: ='Consolidado"'!D61 -> 37001192 | E61: ='Consolidado"'!E61 -> 37237475 | F61: ='Consolidado"'!F61 -> 35564038 | G61: 36525760 | H61: 33628739 | I61: 33562475 | J61: 31721409 | K61: 31002291 | L61: 30291260 | M61: 28579446 | N61: 28214966 | O61: 27194418 | P61: 27489068 | Q61: 25680885 | R61: 24435364 | S61: 23430036 | T61: 22772071 | U61: 21639504 | V61: 21248325 | W61: 20915273 | X61: 20607952 | Y61: 20065110 | Z61: 19330487 | AA61: 19243672 | AB61: 19243826 | AC61: 19735189 | AD61: 19435312 | AE61: 18563336 | AF61: 18412340 | AG61: 18057231 | AH61: 18302291 | AI61: 14253423 | AJ61: 13171799 | AK61: 13095401 | AL61: 13139802 | AM61: 14610030 | AN61: 14141494 | AO61: 13669569 | AP61: 13620847 | AQ61: 13500567 | AR61: 12828372 | AS61: 13921324 | AT61: 13383533 | AU61: 12819270 | AV61: 13615953 | AW61: 12691604 | AX61: 12411318 | AY61: 12614390.84 | AZ61: 12811397.3
A63: LIABILITIES AND SHAREHOLDERS
A64: CURRENT LIABILITIES | B64: ='Consolidado"'!B64 -> 11736393 | C64: ='Consolidado"'!C64 -> 10434271 | D64: ='Consolidado"'!D64 -> 9152085 | E64: ='Consolidado"'!E64 -> 6985656 | F64: ='Consolidado"'!F64 -> 5802030 | G64: 7279312 | H64: 7239584 | I64: 8601212 | J64: 7284492 | K64: 6749321 | L64: 8059083 | M64: 6672291 | N64: 6313351 | O64: 5483557 | P64: 5733526 | Q64: 5043484 | R64: 5071270 | S64: 5041100 | T64: 4567831 | U64: 4518540 | V64: 4640613 | W64: 4302195 | X64: 4526264 | Y64: 4478366 | Z64: 3766004 | AA64: 3883469 | AB64: 3976461 | AC64: 3823979 | AD64: 3310069 | AE64: 3595561 | AF64: 3924170 | AG64: 4531313 | AH64: 5000416 | AI64: 4449633 | AJ64: 3556358 | AK64: 3511547 | AL64: 3049332 | AM64: 4623372 | AN64: 4598037 | AO64: 3504124 | AP64: 3485642 | AQ64: 3380087 | AR64: 2611800 | AS64: 2307731 | AT64: 2381213 | AU64: 2611765 | AV64: 2688438 | AW64: 2199910 | AX64: 2038333 | AY64: 2173120 | AZ64: 2525411
A65: Suppliers | B65: ='Consolidado"'!B65 -> 1358167 | C65: ='Consolidado"'!C65 -> 1392155 | D65: ='Consolidado"'!D65 -> 1486113 | E65: ='Consolidado"'!E65 -> 1474992 | F65: ='Consolidado"'!F65 -> 1400671 | G65: 1409346 | H65: 1944092 | I65: 2068469 | J65: 1559977 | K65: 1825860 | L65: 2251446 | M65: 1794739 | N65: 1727019 | O65: 1770582 | P65: 2104901 | Q65: 1902758 | R65: 1696457 | S65: 1832932 | T65: 1610976 | U65: 2253733 | V65: 1917569 | W65: 1611523 | X65: 1754393 | Y65: 1878203 | Z65: 1161680 | AA65: 1109823 | AB65: 1123578 | AC65: 1115508 | AD65: 963983 | AE65: 1066993 | AF65: 1308019 | AG65: 1374010 | AH65: 1262367 | AI65: 1064517 | AJ65: 1098703 | AK65: 1050210 | AL65: 921336 | AM65: 1185656 | AN65: 802129 | AO65: 754979 | AP65: 849119 | AQ65: 1005586 | AR65: 912180 | AS65: 800131 | AT65: 727500 | AU65: 912180 | AV65: 703742 | AW65: 606272 | AX65: 541801 | AY65: 585805 | AZ65: 626381
A66: Financial charges on debt | B66: ='Consolidado"'!B66 -> 0 | C66: ='Consolidado"'!C66 -> 0 | D66: ='Consolidado"'!D66 -> 0 | E66: ='Consolidado"'!E66 -> 0 | F66: ='Consolidado"'!F66 -> - | G66: - | H66: - | I66: 0 | J66: 0 | K66: 0 | L66: 0 | M66: 0 | N66: 0 | O66: 0 | P66: 0 | R66: - | S66: - | T66: - | U66: - | V66: - | W66: - | X66: - | Y66: 0 | Z66: 0 | AA66: 0 | AB66: 0 | AC66: 0 | AD66: 0 | AE66: 0 | AF66: 0 | AG66: 0 | AH66: 0 | AI66: 0 | AJ66: 0 | AK66: 0 | AL66: 0 | AM66: 0 | AN66: 0 | AO66: 0 | AP66: 0 | AQ66: 0 | AR66: 0 | AS66: 0 | AT66: 0 | AU66: 0 | AV66: 0 | AW66: 0 | AX66: 0 | AY66: 0 | AZ66: 0
A67: Income and social contribution taxes | B67: ='Consolidado"'!B67 -> 115794 | C67: ='Consolidado"'!C67 -> 96152 | D67: ='Consolidado"'!D67 -> 211838 | E67: ='Consolidado"'!E67 -> 176334 | F67: ='Consolidado"'!F67 -> 154054 | G67: 171600 | H67: 136043 | I67: 151373 | J67: 91640 | K67: 72214 | L67: 100260 | M67: 157174 | N67: 75115 | O67: 39550 | P67: 43760 | Q67: 80996 | R67: 50583 | S67: 53248 | T67: 58994 | U67: 465422 | V67: 422185 | W67: 435368 | X67: 572053 | Y67: 510999 | Z67: 323925 | AA67: 330934 | AB67: 453928 | AC67: 465385 | AD67: 451531 | AE67: 454186 | AF67: 452742 | AG67: 338588 | AH67: 314134 | AI67: 330631 | AJ67: 304173 | AK67: 243884 | AL67: 263024 | AM67: 224564 | AN67: 351487 | AO67: 302651 | AP67: 280126 | AQ67: 265027 | AR67: 278295 | AS67: 441722 | AT67: 382660 | AU67: 278260 | AV67: 551130 | AW67: 506936 | AX67: 445758 | AY67: 420844 | AZ67: 609891
A68: Deferred taxes | B68: ='Consolidado"'!B68 -> 225975 | C68: ='Consolidado"'!C68 -> 168300 | D68: ='Consolidado"'!D68 -> 162533 | E68: ='Consolidado"'!E68 -> 128585 | F68: ='Consolidado"'!F68 -> 130601 | G68: 103603 | H68: 67558 | I68: 172656 | J68: 199869 | K68: 39460 | L68: 11550 | M68: 4458 | N68: 1610 | O68: 1582 | P68: 1501 | Q68: 370439 | R68: 1365 | S68: 1277 | T68: 1214 | U68: 1202 | V68: 916 | W68: 895 | X68: 529 | Y68: 529 | Z68: 471 | AA68: 382 | AB68: 884 | AC68: 718 | AD68: 671 | AE68: 32056 | AF68: 56209 | AG68: 67155 | AH68: 53267 | AI68: 34939 | AJ68: 32114
A69: Deferred income and social contribution taxes | B69: ='Consolidado"'!B69 -> 333388 | C69: ='Consolidado"'!C69 -> 367992 | D69: ='Consolidado"'!D69 -> 433864 | E69: ='Consolidado"'!E69 -> 263712 | F69: ='Consolidado"'!F69 -> 379683 | G69: 503809 | H69: 634891 | I69: 483246 | J69: 397918 | K69: 407890 | L69: 531516 | M69: 461269 | N69: 463863 | O69: 382420 | P69: 493977 | Q69: 1464 | R69: 363872 | S69: 412697 | T69: 509449 | U69: - | V69: - | W69: - | X69: - | Y69: 0 | Z69: 0 | AA69: 0 | AB69: 0 | AC69: 0 | AD69: 0 | AE69: 0 | AF69: 0 | AG69: 0 | AH69: 0 | AI69: 0 | AJ69: 0 | AK69: 0 | AL69: 14519 | AM69: 34269 | AN69: 0 | AO69: 21830 | AP69: 2436 | AQ69: 0 | AR69: 0 | AS69: 0 | AT69: 0 | AU69: 0 | AV69: 0 | AW69: 0 | AX69: 0 | AY69: 0 | AZ69: 0
A70: Dividends | B70: ='Consolidado"'!B70 -> 217256 | C70: ='Consolidado"'!C70 -> 754993 | D70: ='Consolidado"'!D70 -> 731665 | E70: ='Consolidado"'!E70 -> 69140 | F70: ='Consolidado"'!F70 -> 66590 | G70: 695228 | H70: 680874 | I70: 79658 | J70: 63399 | K70: 520749 | L70: 514171 | M70: 58012 | N70: 417309 | O70: 403189 | P70: 399596 | Q70: 39819 | R70: 452460 | S70: 474551 | T70: 429957 | U70: 40785 | V70: 393023 | W70: 221598 | X70: 231850 | Y70: 53376 | Z70: 350197 | AA70: 385362 | AB70: 368709 | AC70: 17500 | AD70: 47081 | AE70: 363155 | AF70: 420949 | AG70: 278187 | AH70: 274730 | AI70: 307360 | AJ70: 305922 | AK70: 459849 | AL70: 498681 | AM70: 163129 | AN70: 160718 | AO70: 44295 | AP70: 358547 | AQ70: 209526 | AR70: 201472 | AS70: 77694 | AT70: 273754 | AU70: 201472 | AV70: 192612 | AW70: 108758 | AX70: 104345 | AY70: 193251 | AZ70: 191142
A71: Related parties | B71: ='Consolidado"'!B71 -> 0 | C71: ='Consolidado"'!C71 -> 0 | D71: ='Consolidado"'!D71 -> 0 | E71: ='Consolidado"'!E71 -> 0 | F71: ='Consolidado"'!F71 -> 0 | G71: 0 | H71: 0 | I71: 0 | J71: 0 | K71: 0 | L71: 0 | M71: 0 | N71: 0 | O71: 0 | P71: 0 | R71: - | S71: - | T71: - | U71: - | V71: - | W71: - | X71: - | Y71: 0 | Z71: 0 | AA71: 0 | AB71: 0 | AC71: 0 | AD71: 0 | AE71: 0 | AF71: 0 | AG71: 0 | AH71: 0 | AI71: 0 | AJ71: 0 | AK71: 0 | AL71: 0 | AM71: 0 | AN71: 0 | AO71: 0 | AP71: 0 | AQ71: 0 | AR71: 0 | AS71: 0 | AT71: 0 | AU71: 0 | AV71: 0 | AW71: 0 | AX71: 0 | AY71: 0 | AZ71: 0
A72: Debentures | B72: ='Consolidado"'!B72 -> 2873140 | C72: ='Consolidado"'!C72 -> 2119800 | D72: ='Consolidado"'!D72 -> 1412755 | E72: ='Consolidado"'!E72 -> 798491 | F72: ='Consolidado"'!F72 -> 505110 | G72: 729181 | H72: 779421 | I72: 889798 | J72: 909557 | K72: 1111158 | L72: 1260750 | M72: 1320673 | N72: 1338641 | O72: 1389383 | P72: 1371206 | Q72: 1167700 | R72: 1127296 | S72: 836623 | T72: 586067 | U72: 636438 | V72: 874555 | W72: 939632 | X72: 863053 | Y72: 811607 | Z72: 723961 | AA72: 743769 | AB72: 693931 | AC72: 529070 | AD72: 285274 | AE72: 468466 | AF72: 538639 | AG72: 539443 | AH72: 775068 | AI72: 824886 | AJ72: 790154 | AK72: 803829 | AL72: 539889 | AM72: 297589 | AN72: 699122 | AO72: 1020140 | AP72: 930972 | AQ72: 905674 | AR72: 435535 | AS72: 99334 | AT72: 105325 | AU72: 435535 | AV72: 107923 | AW72: 141767 | AX72: 158314 | AY72: 144645 | AZ72: 231730
A73: Loans, financings and charges | B73: ='Consolidado"'!B73 -> 2128061 | C73: ='Consolidado"'!C73 -> 2464797 | D73: ='Consolidado"'!D73 -> 1678112 | E73: ='Consolidado"'!E73 -> 1567860 | F73: ='Consolidado"'!F73 -> 947745 | G73: 1013769 | H73: 801082 | I73: 1397653 | J73: 1434762 | K73: 1328354 | L73: 2053615 | M73: 1725917 | N73: 1663069 | O73: 838417 | P73: 617472 | Q73: 726549 | R73: 698371 | S73: 829571 | T73: 805169 | U73: 583808 | V73: 415964 | W73: 517863 | X73: 473526 | Y73: 484479 | Z73: 448507 | AA73: 386513 | AB73: 378169 | AC73: 569056 | AD73: 542914 | AE73: 435705 | AF73: 270989 | AG73: 1011076 | AH73: 1397127 | AI73: 1327227 | AJ73: 675539 | AK73: 662645 | AL73: 553696 | AM73: 501945 | AN73: 432943 | AO73: 913875 | AP73: 380170 | AQ73: 497454 | AR73: 269236 | AS73: 380192 | AT73: 443499 | AU73: 269236 | AV73: 471798 | AW73: 381487 | AX73: 363582 | AY73: 372985 | AZ73: 375701
A74: Financial Derivatives Instruments | B74: ='Consolidado"'!B74 -> 437287 | C74: ='Consolidado"'!C74 -> 286418 | D74: ='Consolidado"'!D74 -> 164823 | E74: ='Consolidado"'!E74 -> 97042 | F74: ='Consolidado"'!F74 -> 64455
A75: Post-employment benefits | B75: ='Consolidado"'!B75 -> 79452 | C75: ='Consolidado"'!C75 -> 71050 | D75: ='Consolidado"'!D75 -> 79566 | E75: ='Consolidado"'!E75 -> 51506 | F75: ='Consolidado"'!F75 -> 45860 | G75: 51506 | H75: 51615 | I75: 45225 | J75: 45292 | K75: 45487 | L75: 45538 | M75: 48127 | N75: 48128 | O75: 46627 | P75: 46631 | Q75: 48896 | R75: 48905 | S75: 49457 | T75: 49442 | U75: 45600 | V75: 45581 | W75: 45577 | X75: 45573 | Y75: 40370 | Z75: 34316 | AA75: 34377 | AB75: 34933 | AC75: 28702 | AD75: 28546 | AE75: 28708 | AF75: 28391 | AG75: 40376 | AH75: 43143 | AI75: 39101 | AJ75: 42998 | AK75: 24787 | AL75: 24657 | AM75: 24738 | AN75: 24667 | AO75: 35648 | AP75: 35554 | AQ75: 35516 | AR75: 35517 | AS75: 29991 | AT75: 29991 | AU75: 35517 | AV75: 30035 | AW75: 24890 | AX75: 26899 | AY75: 27582 | AZ75: 27610
A76: Account for compensation in variation of installment "A" costs | B76: ='Consolidado"'!B76 -> 0 | C76: ='Consolidado"'!C76 -> 0 | D76: ='Consolidado"'!D76 -> 0 | E76: ='Consolidado"'!E76 -> 0 | F76: ='Consolidado"'!F76 -> - | G76: - | H76: - | I76: 0 | J76: 0 | K76: 0 | L76: 0 | M76: 0 | N76: 0 | O76: 0 | P76: 0 | R76: - | S76: - | T76: - | U76: - | V76: - | W76: - | X76: - | Y76: 0 | Z76: 0 | AA76: 0 | AB76: 0 | AC76: 0 | AD76: - | AE76: 0 | AF76: 0 | AG76: 0 | AH76: 0 | AI76: 0 | AJ76: 0 | AK76: 0 | AL76: 0 | AM76: 0 | AN76: 0 | AO76: 0 | AP76: 0 | AQ76: 0 | AR76: 0 | AU76: 0 | AW76: 0 | AX76: 0 | AY76: 0 | AZ76: 0
A77: Tariff reimbursement | B77: ='Consolidado"'!B77 -> 0 | C77: ='Consolidado"'!C77 -> 0 | D77: ='Consolidado"'!D77 -> 0 | E77: ='Consolidado"'!E77 -> 0 | F77: ='Consolidado"'!F77 -> - | G77: - | H77: - | I77: 0 | J77: 0 | K77: 0 | L77: 0 | M77: 0 | N77: 0 | O77: 0 | P77: 0 | R77: - | S77: - | T77: - | U77: - | V77: - | W77: - | X77: - | Y77: 0 | Z77: 0 | AA77: 0 | AB77: 0 | AC77: 0 | AD77: 0 | AE77: 0 | AF77: 0 | AG77: 0 | AH77: 0 | AI77: 0 | AJ77: 0 | AK77: 0 | AL77: 0 | AM77: 0 | AN77: 0 | AO77: 0 | AP77: 0 | AQ77: 0 | AR77: 0 | AS77: 0 | AT77: 0 | AU77: 0 | AV77: 0 | AW77: 0 | AX77: 0 | AY77: 0 | AZ77: 0
A78: Estimated employee benefits and social charges | B78: ='Consolidado"'!B78 -> 90804 | C78: ='Consolidado"'!C78 -> 128918 | D78: ='Consolidado"'!D78 -> 120219 | E78: ='Consolidado"'!E78 -> 118331 | F78: ='Consolidado"'!F78 -> 100201 | G78: 123551 | H78: 116987 | I78: 102840 | J78: 93891 | K78: 131221 | L78: 109273 | M78: 101435 | N78: 80786 | O78: 90894 | P78: 101201 | Q78: 94383 | R78: 76658 | S78: - | T78: - | U78: 83474 | V78: 65915 | W78: 89995 | X78: 87623 | Y78: 84483 | Z78: 67257 | AA78: 89918 | AB78: 87096 | AC78: 91975 | AD78: 78491 | AE78: 100104 | AF78: 98495 | AG78: 76985 | AH78: 63290 | AI78: 86156 | AJ78: 75102 | AK78: 63282 | AL78: 49306 | AM78: 73581 | AN78: 65367 | AO78: 66576 | AP78: 49422 | AQ78: 74596 | AR78: 65011 | AS78: 60333 | AT78: 43936 | AU78: 65011 | AV78: 59164 | AW78: 55459 | AX78: 41222 | AY78: 60417 | AZ78: 50450
A79: Regulatory and sector charges | B79: ='Consolidado"'!B79 -> 109414 | C79: ='Consolidado"'!C79 -> 115871 | D79: ='Consolidado"'!D79 -> 110439 | E79: ='Consolidado"'!E79 -> 117999 | F79: ='Consolidado"'!F79 -> 119707 | G79: 138467 | H79: 132454 | I79: 127311 | J79: 111329 | K79: 114719 | L79: 111251 | M79: 104272 | N79: 115683 | O79: 105391 | P79: 98155 | Q79: 28790 | R79: 124372 | S79: 130845 | T79: 154262 | U79: 163519 | V79: 236571 | W79: 157843 | X79: 211109 | Y79: 195329 | Z79: 165542 | AA79: 205759 | AB79: 204690 | AC79: 201747 | AD79: 126840 | AE79: 245240 | AF79: 288244 | AG79: 285515 | AH79: 289374 | AI79: 279783 | AJ79: 86695 | AK79: 84979 | AL79: 77851 | AM79: 75119 | AN79: 74858 | AO79: 173872 | AP79: 190455 | AQ79: 186666 | AR79: 205108 | AS79: 213772 | AT79: 234046 | AU79: 205108 | AV79: 275374 | AW79: 260495 | AX79: 230972 | AY79: 229600 | AZ79: 225380
A80: Charge for use of public good | B80: ='Consolidado"'!B80 -> 48452 | C80: ='Consolidado"'!C80 -> 46139 | D80: ='Consolidado"'!D80 -> 46082 | E80: ='Consolidado"'!E80 -> 45738 | F80: ='Consolidado"'!F80 -> 45234 | G80: 43947 | H80: 43269 | I80: 41070 | J80: 39113 | K80: 36744 | L80: 35609 | M80: 32991 | N80: 30343 | O80: 29644 | P80: 29326 | Q80: 90684 | R80: 28565 | S80: 28112 | T80: 28405 | U80: 28985 | V80: 28252 | W80: 27564 | X80: 29224 | Y80: 29225 | Z80: 29350 | AA80: 29633 | AB80: 29502 | AC80: 28931 | AD80: 27903 | AE80: 27497 | AF80: 27206 | AG80: 26677 | AH80: 26853 | AI80: 26302 | AJ80: 25835 | AK80: 25628 | AL80: 24162 | AM80: 23981 | AN80: 23723 | AO80: 22809 | AP80: 22161 | AQ80: 21965 | AR80: 21953 | AS80: 21750 | AT80: 21079 | AU80: 21953 | AV80: 20184 | AW80: 19971 | AX80: 19774 | AY80: 19340 | AZ80: 19440
A81: Reserve for reversion and amortization | B81: ='Consolidado"'!B81 -> 1957 | C81: ='Consolidado"'!C81 -> 1755 | D81: ='Consolidado"'!D81 -> 1945 | E81: ='Consolidado"'!E81 -> 1946 | F81: ='Consolidado"'!F81 -> 1944 | G81: 1944 | H81: 1944 | I81: 1944 | J81: 1944 | K81: 1944 | L81: 1945 | M81: 1944 | N81: 1944 | O81: 1944 | P81: 1944 | Q81: 1944 | R81: 1944 | S81: - | T81: - | U81: 1944 | V81: - | W81: - | X81: -
A82: Provisions for contingencies | B82: ='Consolidado"'!B82 -> 75503 | C82: ='Consolidado"'!C82 -> 93339 | D82: ='Consolidado"'!D82 -> 87946 | E82: ='Consolidado"'!E82 -> 91221 | F82: ='Consolidado"'!F82 -> 72916 | G82: 71003 | H82: 65503 | I82: 107666 | J82: 109440 | K82: 113337 | L82: 102915 | M82: 99522 | N82: 90416 | O82: 86808 | P82: 81470 | Q82: 47315 | R82: 42428 | S82: 35949 | T82: 29871 | U82: 30136 | V82: 34556 | W82: 29576 | X82: 100695 | Y82: 177093 | Z82: 149919 | AA82: 169898 | AB82: 154669 | AC82: 175854 | AD82: 169379 | AE82: 186428 | AF82: 197013 | AG82: 34405 | AH82: 34778 | AI82: 30517 | AJ82: 22672 | AK82: 25437 | AL82: 19423 | AM82: 19671 | AN82: 21021 | AO82: 78956 | AP82: 54711 | AQ82: 55735 | AR82: 53548 | AS82: 55538 | AT82: 57273 | AU82: 53548 | AV82: 162127 | AW82: 33383 | AX82: 30659 | AY82: 30126 | AZ82: 30275
A83: Sectoral financial liabilities | B83: ='Consolidado"'!B83 -> 860171 | C83: ='Consolidado"'!C83 -> 903627 | D83: ='Consolidado"'!D83 -> 1039653 | E83: ='Consolidado"'!E83 -> 1000066 | F83: ='Consolidado"'!F83 -> 744798 | G83: 1148057 | H83: 627003 | I83: 686754 | J83: 530517 | K83: 532196 | L83: 626801 | M83: 545237 | N83: 0 | O83: 0 | P83: 0 | Q83: 3280 | R83: 1470 | S83: - | T83: 1122 | U83: 601 | V83: 7039 | W83: 29364 | X83: 52272 | Y83: 129760 | Z83: 218998 | AA83: 307490 | AB83: 353527 | AC83: 469817 | AD83: 446549 | AE83: 49763
A84: Non-current liabilities held for sale | B84: ='Consolidado"'!B84 -> 1417682 | C84: ='Consolidado"'!C84 -> 0 | D84: ='Consolidado"'!D84 -> 0 | E84: ='Consolidado"'!E84 -> 66647 | F84: ='Consolidado"'!F84 -> 58858 | G84: 169809 | H84: 178000 | I84: 895792 | J84: 0 | K84: 0 | L84: 0 | M84: 0 | N84: 0 | O84: 68187 | P84: 76427 | Q84: 165997 | R84: 78354 | S84: - | T84: - | U84: - | V84: 2991 | W84: 2658 | X84: 12960 | Y84: 0 | Z84: 0 | AF84: 11306 | AG84: 9564 | AH84: 0 | AI84: 0 | AJ84: 0 | AK84: 0 | AL84: 0 | AM84: 1934779 | AN84: 1878499 | AO84: 0 | AP84: 0 | AQ84: 0 | AR84: 0 | AS84: 462 | AT84: 477 | AU84: 0 | AV84: 0
A85: Compensation for unavailability - Adomp | B85: ='Consolidado"'!B85 -> 0 | C85: ='Consolidado"'!C85 -> 915 | D85: ='Consolidado"'!D85 -> 500 | E85: ='Consolidado"'!E85 -> 1101 | F85: ='Consolidado"'!F85 -> 1915 | G85: 2933 | H85: 2945 | I85: 3143 | J85: 3205 | K85: 3993 | L85: 5307 | M85: 6362 | N85: 9595 | O85: 29568 | P85: 62622 | Q85: 63818 | R85: 64217 | S85: 64217 | T85: 64534 | U85: 72332 | V85: 88056 | W85: 85080 | X85: - | Y85: 0 | Z85: 0 | AA85: 0 | AB85: 0 | AC85: 0 | AD85: 0 | AE85: 0 | AF85: 0 | AG85: 162511 | AH85: 210053 | AJ85: 0
A86: Future commitments | B86: ='Consolidado"'!B86 -> 1021732 | C86: ='Consolidado"'!C86 -> 1127678 | D86: ='Consolidado"'!D86 -> 1120243 | E86: ='Consolidado"'!E86 -> 685004 | F86: ='Consolidado"'!F86 -> 575468 | G86: 535353 | H86: 629905 | I86: 1118167 | J86: 1450066 | K86: 213165 | L86: 57060
A87: Other accounts payable | B87: ='Consolidado"'!B87 -> 342158 | C87: ='Consolidado"'!C87 -> 294372 | D87: ='Consolidado"'!D87 -> 263789 | E87: ='Consolidado"'!E87 -> 229941 | F87: ='Consolidado"'!F87 -> 386220 | G87: 366206 | H87: 345998 | I87: 228447 | J87: 242573 | K87: 250830 | L87: 240076 | M87: 210159 | N87: 249830 | O87: 199371 | P87: 203337 | Q87: 208652 | R87: 213953 | S87: 291621 | T87: 238369 | U87: 110561 | V87: 107440 | W87: 107659 | X87: 91404 | Y87: 82913 | Z87: 91881 | AA87: 89611 | AB87: 92845 | AC87: 129716 | AD87: 140907 | AE87: 137260 | AF87: 225968 | AG87: 286821 | AH87: 256232 | AI87: 98214 | AJ87: 96451 | AK87: 67017 | AL87: 62788 | AM87: 64351 | AN87: 63503 | AO87: 68493 | AP87: 331969 | AQ87: 122342 | AR87: 133945 | AS87: 126812 | AT87: 61673 | AU87: 133945 | AV87: 114349 | AW87: 60492 | AX87: 75007 | AY87: 88525 | AZ87: 137411
A88: NON-CURRENT LIABILITIES | B88: ='Consolidado"'!B88 -> 0 | C88: ='Consolidado"'!C88 -> 0 | D88: ='Consolidado"'!D88 -> 0 | E88: ='Consolidado"'!E88 -> 0 | F88: ='Consolidado"'!F88 -> - | G88: - | H88: - | I88: - | J88: 0
A89: Long-Term Liabilities | B89: ='Consolidado"'!B89 -> 12702555 | C89: ='Consolidado"'!C89 -> 14452094 | D89: ='Consolidado"'!D89 -> 15953348 | E89: ='Consolidado"'!E89 -> 17210277 | F89: ='Consolidado"'!F89 -> 17317897 | G89: 16519663 | H89: 14095143 | I89: 12732214 | J89: 12781239 | K89: 12742163 | L89: 10975903 | M89: 10868578 | N89: 11128471 | O89: 11233850 | P89: 11423945 | Q89: 10224291 | R89: 9319347 | S89: 8480218 | T89: 8529659 | U89: 7532995 | V89: 7322829 | W89: 7353476 | X89: 7044091 | Y89: 6182502 | Z89: 6283036 | AA89: 6229957 | AB89: 6282307 | AC89: 6347168 | AD89: 6755549 | AE89: 7147994 | AF89: 6999723 | AG89: 5998028 | AH89: 5863508 | AI89: 3128304 | AJ89: 3048638 | AK89: 3198868 | AL89: 3771380 | AM89: 3605609 | AN89: 3290284 | AO89: 3888115 | AP89: 4096871 | AQ89: 3651704 | AR89: 3884186 | AS89: 5039812 | AT89: 4475598 | AU89: 3875119 | AV89: 4379877 | AW89: 3779540.501 | AX89: 3775216 | AY89: 3781950 | AZ89: 3830865.001
A90: Suppliers | B90: ='Consolidado"'!B90 -> 0 | C90: ='Consolidado"'!C90 -> 0 | D90: ='Consolidado"'!D90 -> 0 | E90: ='Consolidado"'!E90 -> 49 | F90: ='Consolidado"'!F90 -> 87 | G90: 124 | H90: 0 | I90: 0 | J90: 0 | K90: 0 | L90: 0 | M90: 0 | N90: 0 | O90: 0 | P90: 0 | Q90: 0 | R90: - | S90: - | T90: - | U90: - | V90: - | W90: - | X90: - | Y90: 0 | Z90: 0 | AA90: 0 | AB90: 3892 | AC90: 0 | AD90: 0 | AE90: 0 | AF90: 0 | AG90: 0 | AH90: 0 | AI90: 0 | AJ90: 3065 | AK90: 5255 | AL90: 7618 | AM90: 9058 | AN90: 0 | AO90: 0 | AP90: 0 | AQ90: 0 | AR90: 0 | AU90: 0 | AV90: 0 | AW90: 0 | AX90: 0 | AY90: 458 | AZ90: 915
A91: Financial charges on debt | B91: ='Consolidado"'!B91 -> 0 | C91: ='Consolidado"'!C91 -> 0 | D91: ='Consolidado"'!D91 -> 0 | E91: ='Consolidado"'!E91 -> 0 | F91: ='Consolidado"'!F91 -> - | G91: - | H91: - | I91: 0 | J91: 0 | K91: 0 | L91: 0 | M91: 0 | N91: 0 | O91: 0 | P91: 0 | R91: - | S91: - | T91: - | U91: - | V91: - | W91: - | X91: - | Y91: 0 | Z91: 0 | AA91: - | AB91: 0 | AC91: 0 | AD91: 0 | AE91: 0 | AF91: 0 | AG91: 0 | AH91: 0 | AI91: 0 | AJ91: 0 | AK91: 0 | AL91: 0 | AM91: 0 | AN91: 0 | AO91: 0 | AP91: 0 | AQ91: 0 | AR91: 0 | AS91: 0 | AT91: 0 | AU91: 0 | AV91: 0 | AW91: 0 | AX91: 0 | AY91: 0 | AZ91: 0
A92: Income and social contribution taxes | B92: ='Consolidado"'!B92 -> 259320 | C92: ='Consolidado"'!C92 -> 264495 | D92: ='Consolidado"'!D92 -> 272352 | E92: ='Consolidado"'!E92 -> 280251 | F92: ='Consolidado"'!F92 -> 283828 | G92: 287547 | H92: 291986 | I92: 293486 | J92: 302486 | K92: 306998 | L92: 326422 | M92: 333802 | N92: 341943 | O92: 351582 | P92: 355648 | Q92: 364105 | R92: 368979 | S92: 373645 | T92: 389341 | U92: 393630 | V92: 397870 | W92: 351591 | X92: 356857 | Y92: 365183 | Z92: 51344 | AA92: 51805 | AB92: 51072 | AC92: 51648 | AD92: 60525 | AE92: 60231 | AF92: 61865 | AG92: 72443 | AH92: 71997 | AI92: 71681 | AJ92: 71446 | AK92: 72352 | AL92: 85739 | AM92: 87052 | AN92: 88289 | AO92: 90608 | AP92: 97561 | AQ92: 104704 | AR92: 111855 | AS92: 118825 | AT92: 125338 | AU92: 111855 | AV92: 136817 | AW92: 141785 | AX92: 154670 | AY92: 138523 | AZ92: 137853
A93: Deferred taxes | B93: ='Consolidado"'!B93 -> 2018313 | C93: ='Consolidado"'!C93 -> 2051516 | D93: ='Consolidado"'!D93 -> 1912520 | E93: ='Consolidado"'!E93 -> 1820505 | F93: ='Consolidado"'!F93 -> 2168914 | G93: 2141834 | H93: 1227836 | I93: 1261418 | J93: 1299565 | K93: 1140756 | L93: 1109341 | M93: 928899 | N93: 835672 | O93: 781870 | P93: 730780 | Q93: 590993 | R93: 536148 | S93: 478252 | T93: 436207 | U93: 413075 | V93: 399343 | W93: 372568 | X93: 370392 | Y93: 337305 | Z93: 336352 | AA93: 332764 | AB93: 338973 | AC93: 346174 | AD93: 349406 | AE93: 342643 | AF93: 377111 | AG93: 360960 | AH93: 364019 | AI93: 243792 | AJ93: 254992
A94: Debentures | B94: ='Consolidado"'!B94 -> 6600177 | C94: ='Consolidado"'!C94 -> 7270873 | D94: ='Consolidado"'!D94 -> 7822488 | E94: ='Consolidado"'!E94 -> 8557324 | F94: ='Consolidado"'!F94 -> 8851312 | G94: 7838536 | H94: 6944962 | I94: 6148999 | J94: 5450581 | K94: 5485607 | L94: 3955451 | M94: 4285160 | N94: 4317809 | O94: 4598098 | P94: 4816515 | Q94: 5160182 | R94: 4502617 | S94: 4350951 | T94: 4317478 | U94: 3289088 | V94: 2937576 | W94: 2870110 | X94: 2699368 | Y94: 2210379 | Z94: 2618550 | AA94: 2357439 | AB94: 2388048 | AC94: 1990102 | AD94: 2313283 | AE94: 2091171 | AF94: 1864603 | AG94: 982798 | AH94: 1060446 | AI94: 1369806 | AJ94: 1447364 | AK94: 1446893 | AL94: 1659362 | AM94: 1602968 | AN94: 1377907 | AO94: 1125303 | AP94: 1270281 | AQ94: 759595 | AR94: 1052633 | AS94: 1372157 | AT94: 912682 | AU94: 1052633 | AV94: 860637 | AW94: 554864 | AX94: 554685 | AY94: 637809 | AZ94: 637593
A95: Loans, financings and charges | B95: ='Consolidado"'!B95 -> 627986 | C95: ='Consolidado"'!C95 -> 1706239 | D95: ='Consolidado"'!D95 -> 3127081 | E95: ='Consolidado"'!E95 -> 3847284 | F95: ='Consolidado"'!F95 -> 3012690 | G95: 3211970 | H95: 2072049 | I95: 1454612 | J95: 1836247 | K95: 2078102 | L95: 1765076 | M95: 1791423 | N95: 1831801 | O95: 1659734 | P95: 1659645 | Q95: 1691736 | R95: 1448322 | S95: 1499482 | T95: 1750083 | U95: 1743309 | V95: 1909138 | W95: 2107849 | X95: 2021732 | Y95: 1855312 | Z95: 1799178 | AA95: 2069267 | AB95: 2110907 | AC95: 2785730 | AD95: 2821855 | AE95: 3400615 | AF95: 3512260 | AG95: 3562804 | AH95: 3279804 | AI95: 587774 | AJ95: 445408 | AK95: 492147 | AL95: 840457 | AM95: 828664 | AN95: 749474 | AO95: 1222389 | AP95: 1316086 | AQ95: 1417459 | AR95: 1331142 | AS95: 2392998 | AT95: 2319779 | AU95: 1331142 | AV95: 2173228 | AW95: 2232111 | AX95: 2174530 | AY95: 2090450 | AZ95: 2140882
A96: Financial Derivatives Instruments | B96: ='Consolidado"'!B96 -> 0 | C96: ='Consolidado"'!C96 -> 0 | D96: ='Consolidado"'!D96 -> 157815 | E96: ='Consolidado"'!E96 -> 126885 | F96: ='Consolidado"'!F96 -> 136290
A97: Post-employment benefits | B97: ='Consolidado"'!B97 -> 776267 | C97: ='Consolidado"'!C97 -> 709551 | D97: ='Consolidado"'!D97 -> 699450 | E97: ='Consolidado"'!E97 -> 718290 | F97: ='Consolidado"'!F97 -> 714026 | G97: 799588 | H97: 798634 | I97: 845619 | J97: 845142 | K97: 854067 | L97: 850931 | M97: 838020 | N97: 832238 | O97: 876169 | P97: 868652 | Q97: 701535 | R97: 699395 | S97: 730393 | T97: 723788 | U97: 788875 | V97: 780746 | W97: 778465 | X97: 768795 | Y97: 631792 | Z97: 629492 | AA97: 612640 | AB97: 599715 | AC97: 461600 | AD97: 455163 | AE97: 442618 | AF97: 439581 | AG97: 343073 | AH97: 348424 | AI97: 335294 | AJ97: 336574 | AK97: 480809 | AL97: 472499 | AM97: 440487 | AN97: 432145 | AO97: 544280 | AP97: 540193 | AQ97: 523856 | AR97: 518332 | AS97: 240672 | AT97: 241011 | AU97: 518332 | AV97: 262412 | AW97: 99256 | AX97: 99128 | AY97: 188033 | AZ97: 189228
A98: Tariff reimbursement | B98: ='Consolidado"'!B98 -> 0 | C98: ='Consolidado"'!C98 -> 0 | D98: ='Consolidado"'!D98 -> 0 | E98: ='Consolidado"'!E98 -> 0 | F98: ='Consolidado"'!F98 -> - | G98: - | H98: - | I98: 0 | J98: 0 | K98: 0 | L98: 0 | M98: 0 | N98: 0 | O98: 0 | P98: 0 | R98: - | S98: - | T98: - | U98: - | V98: - | W98: - | X98: - | Y98: 0 | Z98: 0 | AA98: 0 | AB98: 0 | AC98: 0 | AD98: 0 | AE98: 0 | AF98: 0 | AG98: 0 | AH98: 0 | AI98: 0 | AJ98: 0 | AK98: 0 | AL98: 0 | AM98: 0 | AN98: 0 | AO98: 0 | AP98: 0 | AQ98: 0 | AR98: 0 | AS98: 0 | AT98: 0 | AU98: 0 | AV98: 0 | AW98: 0 | AX98: 0 | AY98: 0 | AZ98: 0
A99: Account for compensation in variation of installment "A" costs | B99: ='Consolidado"'!B99 -> 0 | C99: ='Consolidado"'!C99 -> 0 | D99: ='Consolidado"'!D99 -> 0 | E99: ='Consolidado"'!E99 -> 0 | F99: ='Consolidado"'!F99 -> - | G99: - | H99: - | I99: 0 | J99: 0 | K99: 0 | L99: 0 | M99: 0 | N99: 0 | O99: 0 | P99: 0 | R99: - | S99: - | T99: - | U99: - | V99: - | W99: - | X99: - | Y99: 0 | Z99: 0 | AA99: 0 | AB99: 0 | AC99: 0 | AD99: 0 | AE99: 0 | AF99: 0 | AG99: 0 | AH99: 0 | AI99: 0 | AJ99: 0 | AL99: 0 | AM99: 0 | AN99: 0 | AO99: 0 | AP99: 0 | AR99: 0 | AU99: 0 | AW99: 0 | AX99: 0 | AY99: 0
A100: Related parties | B100: ='Consolidado"'!B100 -> 0 | C100: ='Consolidado"'!C100 -> 0 | D100: ='Consolidado"'!D100 -> 0 | E100: ='Consolidado"'!E100 -> 0 | F100: ='Consolidado"'!F100 -> - | G100: - | H100: - | I100: 0 | J100: 0 | K100: 0 | L100: 0 | M100: 0 | N100: 0 | O100: 0 | P100: 0 | R100: - | S100: - | T100: - | U100: - | V100: - | W100: - | X100: - | Y100: 0 | Z100: 0 | AA100: 0 | AB100: 0 | AC100: 0 | AD100: 0 | AE100: 0 | AF100: 0 | AG100: 0 | AH100: 0 | AI100: 0 | AJ100: 0 | AK100: 0 | AL100: 0 | AM100: 0 | AN100: 0 | AO100: 0 | AP100: 0 | AQ100: 0 | AR100: 0 | AS100: 0 | AT100: 0 | AU100: 0 | AV100: 0 | AW100: 0 | AX100: 0 | AY100: 0 | AZ100: 0
A101: Regulatory and sector charges | B101: ='Consolidado"'!B101 -> 3345 | C101: ='Consolidado"'!C101 -> 2790 | D101: ='Consolidado"'!D101 -> 2098 | E101: ='Consolidado"'!E101 -> 3460 | F101: ='Consolidado"'!F101 -> 2767 | G101: 2325 | H101: 109 | I101: 582 | J101: 3154 | K101: 1631 | L101: 0 | M101: 0 | N101: 0 | O101: 6896 | P101: 8803 | Q101: 12835 | R101: 12191 | S101: 14862 | T101: 14617 | U101: 14641 | V101: 12101 | W101: 7289 | X101: 10984 | Y101: 29481 | Z101: 32495 | AA101: 22304 | AB101: 18896 | AC101: 14368 | AD101: 20408 | AE101: 0 | AF101: 16594 | AG101: 16601 | AH101: 13743 | AI101: 11661 | AJ101: 7019 | AK101: 5493 | AL101: 10149 | AM101: 16268 | AN101: 12871 | AO101: 11367 | AP101: 5882 | AQ101: 9418 | AR101: 17071 | AS101: 15941 | AT101: 13574 | AU101: 17071 | AV101: 7035 | AW101: 14151 | AX101: 12374 | AY101: 12336 | AZ101: 12913
A102: Advances for future capital increase | B102: ='Consolidado"'!B102 -> 0 | C102: ='Consolidado"'!C102 -> 0 | D102: ='Consolidado"'!D102 -> 20 | E102: ='Consolidado"'!E102 -> 0 | F102: ='Consolidado"'!F102 -> 17600 | G102: 14999 | H102: 15000 | I102: 10000 | J102: 0 | K102: 3800 | L102: 0 | M102: 0 | N102: 0 | O102: 10000 | P102: 10000 | Q102: 10000 | R102: - | S102: 1350 | T102: 1350 | U102: 1350 | V102: 1350 | W102: 950 | X102: 850 | Y102: 250 | Z102: 0 | AA102: 0 | AB102: 0 | AC102: 0 | AD102: 0 | AE102: 0 | AF102: 0 | AG102: 0 | AH102: 0 | AI102: 0 | AJ102: 0 | AK102: 0 | AL102: 0 | AM102: 0 | AN102: 0 | AO102: 0 | AP102: 0 | AQ102: 0 | AR102: 0 | AS102: 0 | AT102: 0 | AU102: 0 | AV102: 0 | AW102: 0 | AX102: 0 | AY102: 0 | AZ102: 0
A103: Charge for use of public good | B103: ='Consolidado"'!B103 -> 456095 | C103: ='Consolidado"'!C103 -> 481217 | D103: ='Consolidado"'!D103 -> 484370 | E103: ='Consolidado"'!E103 -> 482479 | F103: ='Consolidado"'!F103 -> 493494 | G103: 483716 | H103: 462865 | I103: 460828 | J103: 461905 | K103: 436449 | L103: 407226 | M103: 326128 | N103: 301472 | O103: 296236 | P103: 294765 | Q103: 288540 | R103: 292618 | S103: 289149 | T103: 285707 | U103: 290125 | V103: 285021 | W103: 277242 | X103: 275351 | Y103: 273639 | Z103: 276677 | AA103: 286864 | AB103: 287354 | AC103: 287971 | AD103: 284287 | AE103: 282137 | AF103: 277382 | AG103: 268568 | AH103: 267359 | AI103: 263710 | AJ103: 258344 | AK103: 256551 | AL103: 256640 | AM103: 258781 | AN103: 253945 | AO103: 267234 | AP103: 245130 | AQ103: 244444 | AR103: 251207 | AS103: 240346 | AT103: 233287 | AU103: 242140 | AV103: 231139 | AW103: 228348 | AX103: 229318 | AY103: 226658 | AZ103: 215764
A104: Provisions | B104: ='Consolidado"'!B104 -> 709436 | C104: ='Consolidado"'!C104 -> 693615 | D104: ='Consolidado"'!D104 -> 669067 | E104: ='Consolidado"'!E104 -> 681098 | F104: ='Consolidado"'!F104 -> 655229 | G104: 630626 | H104: 587029 | I104: 573930 | J104: 565767 | K104: 562007 | L104: 552212 | M104: 510368 | N104: 495087 | O104: 486576 | P104: 483399 | Q104: 415872 | R104: 404612 | S104: 404375 | T104: 387092 | U104: 370619 | V104: 346507 | W104: 337962 | X104: 353678 | Y104: 309962 | Z104: 334742 | AA104: 336712 | AB104: 344628 | AC104: 305503 | AD104: 335811 | AE104: 381772 | AF104: 386365 | AG104: 231990 | AH104: 230141 | AI104: 199999 | AJ104: 195573 | AK104: 169924 | AL104: 175140 | AM104: 166563 | AN104: 173701 | AO104: 215050 | AP104: 211266 | AQ104: 178358 | AR104: 180428 | AS104: 179961 | AT104: 177457 | AU104: 180428 | AV104: 182568 | AW104: 168284 | AX104: 233716 | AY104: 155085 | AZ104: 153566
A105: Provisions for unsecured liabilities | B105: ='Consolidado"'!B105 -> 6906 | C105: ='Consolidado"'!C105 -> 5694 | D105: ='Consolidado"'!D105 -> 4070 | E105: ='Consolidado"'!E105 -> 3381 | F105: ='Consolidado"'!F105 -> 1325 | G105: 972 | H105: 2329 | I105: 3451 | J105: 3731 | K105: 4212 | L105: 0 | M105: 19575 | N105: 18409 | O105: 17142 | P105: 11046 | Q105: 11206 | R105: 9153 | S105: 8877 | T105: 7857 | U105: 7984 | V105: 6945 | W105: 4449 | X105: 4521 | Y105: 3100 | Z105: 2549 | AA105: 1431 | AB105: 1169 | AC105: 3592 | AD105: 3085 | AE105: 1509 | AF105: 0 | AG105: 747 | AH105: 177 | AI105: 1241 | AJ105: 912 | AK105: 970 | AL105: 441 | AM105: 57 | AN105: 9 | AO105: 13 | AP105: 1425 | AQ105: 1435 | AR105: 1455 | AS105: 1486 | AT105: 1504 | AU105: 1455 | AV105: 1587 | AW105: 1671 | AX105: 2340 | AY105: 2340 | AZ105: 12847
A106: Reversal and amortization reserve | B106: ='Consolidado"'!B106 -> 4859 | C106: ='Consolidado"'!C106 -> 5507 | D106: ='Consolidado"'!D106 -> 5831 | E106: ='Consolidado"'!E106 -> 6316 | F106: ='Consolidado"'!F106 -> 6802 | G106: 7288 | H106: 7774 | I106: 8260 | J106: 8746 | K106: 9232 | L106: 9718 | M106: 10204 | N106: 10689 | O106: 11175 | P106: 11661 | Q106: 12147 | R106: 12633 | S106: - | T106: - | U106: 14090 | V106: 17248 | W106: 17248 | X106: 17248 | Y106: 17248 | Z106: 17248 | AA106: 17248 | AB106: 17248 | AC106: 17248 | AD106: 17248 | AE106: 17248 | AF106: 17248 | AG106: 17248 | AH106: 17248 | AI106: 17248 | AJ106: 17248 | AK106: 17248 | AL106: 17248 | AM106: 17248 | AN106: 17248 | AO106: 17248 | AP106: 17248 | AQ106: 17248 | AR106: 17248 | AS106: 17248 | AT106: 17248 | AU106: 17248 | AV106: 17248 | AW106: 17248 | AX106: 17248 | AY106: 17248 | AZ106: 17248
A107: Sectoral financial liabilities | B107: ='Consolidado"'!B107 -> 196792 | C107: ='Consolidado"'!C107 -> 192387 | D107: ='Consolidado"'!D107 -> 117094 | E107: ='Consolidado"'!E107 -> 325244 | F107: ='Consolidado"'!F107 -> 780146 | G107: 914704 | H107: 1496347 | I107: 1270626 | J107: 1437995 | K107: 1736634 | L107: 1770600 | M107: 1747399 | N107: 2077330 | O107: 2069762 | P107: 2099003 | Q107: 871761 | R107: 966936 | S107: 236150 | T107: 171884 | U107: 193878 | V107: 214394 | W107: 209793 | X107: 153745 | Y107: 137893 | Z107: 173438 | AA107: 130508 | AB107: 109434 | AC107: 72571 | AD107: 83595 | AE107: 115948 | AF107: 27797 | AG107: 27330 | AH107: 64000 | AI107: 15041 | AJ107: 0
A108: Compensation for unavailability - Adomp | B108: ='Consolidado"'!B108 -> 0 | C108: ='Consolidado"'!C108 -> 0 | D108: ='Consolidado"'!D108 -> 0 | E108: ='Consolidado"'!E108 -> 0 | F108: ='Consolidado"'!F108 -> - | G108: - | H108: - | I108: 0 | J108: 0 | K108: 0 | L108: 0 | M108: 0 | N108: 0 | O108: 0 | P108: 0 | Q108: 0 | R108: - | S108: - | T108: - | U108: - | V108: 2762 | W108: 5676 | X108: - | Y108: 0 | Z108: 0 | AA108: 0 | AB108: 0 | AC108: 0 | AD108: 0 | AE108: 0 | AF108: 0 | AG108: 99661 | AH108: 133862 | AJ108: 0
A109: Future commitments | B109: ='Consolidado"'!B109 -> 922160 | C109: ='Consolidado"'!C109 -> 918366 | D109: ='Consolidado"'!D109 -> 524899 | E109: ='Consolidado"'!E109 -> 241563 | F109: ='Consolidado"'!F109 -> 82301 | G109: 69911 | H109: 85737 | I109: 297891 | J109: 446863 | K109: 133 | L109: 141445
A110: Other accounts payable | B110: ='Consolidado"'!B110 -> 120899 | C110: ='Consolidado"'!C110 -> 149844 | D110: ='Consolidado"'!D110 -> 154193 | E110: ='Consolidado"'!E110 -> 116148 | F110: ='Consolidado"'!F110 -> 111086 | G110: 115523 | H110: 102486 | I110: 102512 | J110: 119057 | K110: 122535 | L110: 87481 | M110: 77600 | N110: 66021 | O110: 68610 | P110: 74028 | Q110: 93379 | R110: 65743 | S110: 92732 | T110: 44255 | U110: 12331 | V110: 11828 | W110: 12284 | X110: 10570 | Y110: 10958 | Z110: 10971 | AA110: 10975 | AB110: 10971 | AC110: 10661 | AD110: 10883 | AE110: 12102 | AF110: 18917 | AG110: 13805 | AH110: 12288 | AI110: 11057 | AJ110: 10693 | AK110: 10985 | AL110: 10694 | AM110: 10806 | AN110: 10975 | AO110: 15338 | AP110: 15509 | AQ110: 15397 | AR110: 15562 | AS110: 44661 | AT110: 16978 | AU110: 15562 | AV110: 38496 | AW110: 37439 | AX110: 27720 | AY110: 21601 | AZ110: 23053.3037
A111: Shareholders' equity | B111: ='Consolidado"'!B111 -> 11970907 | C111: ='Consolidado"'!C111 -> 12366216 | D111: ='Consolidado"'!D111 -> 11895759 | E111: ='Consolidado"'!E111 -> 13041542 | F111: ='Consolidado"'!F111 -> 12444111 | G111: 12726785 | H111: 12294012 | I111: 12229049 | J111: 11655678 | K111: 10352270 | L111: 10121080 | M111: 9879764 | N111: 9623194 | O111: 9346004 | P111: 9229047 | Q111: 9280792 | R111: 8936362 | S111: 8783488 | T111: 8523707 | U111: 8389434 | V111: 8085930 | W111: 8061229 | X111: 7881837 | Y111: 7931803 | Z111: 7791304 | AA111: 7656408 | AB111: 7523306 | AC111: 7911511 | AD111: 7690339 | AE111: 6101168 | AF111: 5811654 | AG111: 5794148 | AH111: 5741039 | AI111: 4976148 | AJ111: 4891013 | AK111: 4692497 | AL111: 4637210 | AM111: 4667317 | AN111: 4573217 | AO111: 4532368 | AP111: 4327723 | AQ111: 4525462 | AR111: 4445684 | AS111: 4604562 | AT111: 4596035 | AU111: 4445703 | AV111: 4605014 | AW111: 4766503 | AX111: 4679466 | AY111: 4735619 | AZ111: 4554478
A112: Capital | B112: ='Consolidado"'!B112 -> 6002716 | C112: ='Consolidado"'!C112 -> 5502716 | D112: ='Consolidado"'!D112 -> 5502716 | E112: ='Consolidado"'!E112 -> 5502716 | F112: ='Consolidado"'!F112 -> 5502716 | G112: 5502716 | H112: 5502716 | I112: 5502716 | J112: 5502716 | K112: 5502716 | L112: 5502716 | M112: 5502716 | N112: 5502716 | O112: 5502716 | P112: 4682716 | Q112: 4682716 | R112: 4682716 | S112: 4682716 | T112: 4682716 | U112: 4682716 | V112: 4682716 | W112: 4682716 | X112: 4682716 | Y112: 4682716 | Z112: 4682716 | AA112: 4682716 | AB112: 4682716 | AC112: 4682716 | AD112: 3182716 | AE112: 3182716 | AF112: 3182716 | AG112: 3182716 | AH112: 3182716 | AI112: 3182716 | AJ112: 3182716 | AK112: 3182716 | AL112: 3182716 | AM112: 3182716 | AN112: 3182716 | AO112: 3182716 | AP112: 3182715 | AQ112: 3182716 | AR112: 3182716 | AS112: 3182716 | AT112: 3182716 | AU112: 3182716 | AV112: 3182716 | AW112: 3182716 | AX112: 3182716 | AY112: 3182716 | AZ112: 3182716
A113: Capital reserves | B113: ='Consolidado"'!B113 -> 118082 | C113: ='Consolidado"'!C113 -> 127343 | D113: ='Consolidado"'!D113 -> 127375 | E113: ='Consolidado"'!E113 -> 128079 | F113: ='Consolidado"'!F113 -> 128634 | G113: 132940 | H113: 132834 | I113: 139466 | J113: 139542 | K113: 141864 | L113: 141069 | M113: 140435 | N113: 139305 | O113: 140673 | P113: 139578 | Q113: 138596 | R113: 137897 | S113: 137002 | T113: 136733 | U113: 136697 | V113: 136403 | W113: 135787 | X113: 135787 | Y113: 135771 | Z113: 135606 | AA113: 135191 | AB113: 135499 | AC113: 135808 | AD113: 1638700 | AE113: 139314 | AF113: 139717 | AG113: 140122 | AH113: 140525 | AI113: 140926 | AJ113: 141327 | AK113: 141727 | AL113: 142129 | AM113: 142531 | AN113: 142932 | AO113: 143333 | AP113: 143735 | AQ113: 144137 | AR113: 144540 | AS113: 144998 | AT113: 145456 | AU113: 144540 | AV113: 95598 | AW113: 95598 | AX113: 95598 | AY113: 95598 | AZ113: 95598
A114: Profit reserves | B114: ='Consolidado"'!B114 -> 5301489 | C114: ='Consolidado"'!C114 -> 5953946 | D114: ='Consolidado"'!D114 -> 5953946 | E114: ='Consolidado"'!E114 -> 5583748 | F114: ='Consolidado"'!F114 -> 5583748 | G114: 6260565 | H114: 6260565 | I114: 5162037 | J114: 5162038 | K114: 5365110 | L114: 5365110 | M114: 4239602 | N114: 4239602 | O114: 4239602 | P114: 5059602 | Q114: 4073763 | R114: 4073763 | S114: 4110950 | T114: 4110950 | U114: 3310590 | V114: 3310590 | W114: 3521493 | X114: 3521493 | Y114: 3065860 | Z114: 3065860 | AA114: 3065860 | AB114: 3065860 | AC114: 2729258 | AD114: 2729258 | AE114: 2729258 | AF114: 2729258 | AG114: 1766171 | AH114: 1766171 | AI114: 1766171 | AJ114: 1766171 | AK114: 1219245 | AL114: 1219245 | AM114: 1500066 | AN114: 1500066 | AO114: 938944 | AP114: 938944 | AQ114: 1194422 | AR114: 1194422 | AS114: 1268407 | AT114: 1268407 | AU114: 1194422 | AV114: 1507656 | AW114: 1147942 | AX114: 1147942 | AY114: 1386620 | AZ114: 1386620
A115: Other comprehensive income | B115: ='Consolidado"'!B115 -> -642039 | C115: ='Consolidado"'!C115 -> -586858 | D115: ='Consolidado"'!D115 -> -546220 | E115: ='Consolidado"'!E115 -> -539752 | F115: ='Consolidado"'!F115 -> -590939 | G115: -674401 | H115: -654184 | I115: -674243 | J115: -670993 | K115: -684285 | L115: -741827 | M115: -736603 | N115: -735668 | O115: -775867 | P115: -620694 | Q115: -422165 | R115: -422199 | S115: -438077 | T115: -401954 | U115: -447622 | V115: -446044 | W115: -452701 | X115: -452766 | Y115: -363980 | Z115: -364024 | AA115: -356160 | AB115: -354811 | AC115: -261018 | AD115: -254092 | AE115: -245567 | AF115: -233423 | AG115: -171128 | AH115: -169317 | AI115: -190650 | AJ115: -192587 | AK115: -270792 | AL115: -267648 | AM115: -250967 | AN115: -245883 | AO115: -42625 | AP115: -48279 | AQ115: -53417 | AR115: -51721 | AS115: -175884 | AT115: -175404 | AU115: -51721 | AV115: -174342 | AW115: -74826 | AX115: -56716 | AY115: -110443 | AZ115: -103842
A116: Treasury shares | B116: ='Consolidado"'!B116 -> -299270 | C116: ='Consolidado"'!C116 -> -311837 | D116: ='Consolidado"'!D116 -> -311906 | E116: ='Consolidado"'!E116 -> -312107 | F116: ='Consolidado"'!F116 -> -279374 | G116: -189488 | H116: -90534 | I116: -483866 | J116: -486028 | K116: -468917 | L116: -145988 | M116: -74431 | N116: -31034 | O116: -32155 | P116: -32155 | Q116: -32155 | R116: -21884 | S116: -4738 | T116: -4738 | U116: -4718 | V116: -4738 | W116: -5393 | X116: -5393 | Y116: -5393 | Z116: -5611 | AA116: -5958 | AB116: -5958 | AC116: -5958 | AD116: -6150 | AE116: -6614 | AF116: -6614 | AG116: -6614 | AH116: -6614 | AI116: -6614 | AJ116: -6614 | AK116: -6614 | AL116: -6614 | AM116: -6614 | AN116: -6614 | AO116: -6614 | AP116: -6614 | AQ116: -6614 | AR116: -6614 | AS116: -6614 | AT116: -6614 | AU116: -6614 | AV116: -6614 | AW116: -6614 | AX116: -6614 | AY116: -6614 | AZ116: -6614
A117: Retained earnings | B117: ='Consolidado"'!B117 -> 264072 | C117: ='Consolidado"'!C117 -> 486826 | D117: ='Consolidado"'!D117 -> 0 | E117: ='Consolidado"'!E117 -> 1418341 | F117: ='Consolidado"'!F117 -> 903909 | G117: 522798 | H117: 0 | I117: 1350790 | J117: 840272 | K117: 495782 | L117: 0 | M117: 808045 | N117: 508273 | O117: 271035 | P117: 0 | Q117: 840037 | R117: 486069 | S117: 295635 | T117: - | U117: 711771 | V117: 407003 | W117: 179327 | X117: - | Y117: 416829 | Z117: 276757 | AA117: 134759 | AB117: 0 | AC117: 630705 | AD117: 399907 | AE117: 302061 | AF117: 0 | AG117: 882881 | AH117: 827558 | AI117: 83599 | AJ117: 0 | AK117: 426215 | AL117: 367382 | AM117: 99585 | AN117: 0 | AO117: 316614 | AP117: 117222 | AQ117: 64218 | AR117: -17659 | AS117: 190939 | AT117: 181474 | AU117: -17640 | AV117: 0 | AW117: 421687 | AX117: 316540 | AY117: 187742 | AZ117: 0
A118: Minority interest | B118: ='Consolidado"'!B118 -> 1225857 | C118: ='Consolidado"'!C118 -> 1194080 | D118: ='Consolidado"'!D118 -> 1169848 | E118: ='Consolidado"'!E118 -> 1260517 | F118: ='Consolidado"'!F118 -> 1195417 | G118: 1171655 | H118: 1142615 | I118: 1232149 | J118: 1168131 | K118: 1158537 | L118: 1135194 | M118: 1158813 | N118: 1149950 | O118: 1131007 | P118: 1102550 | Q118: 1132318 | R118: 1108385 | S118: 1125230 | T118: 1150874 | U118: 1198535 | V118: 1198953 | W118: 1198373 | X118: 1155760 | Y118: 1472439 | Z118: 1490143 | AA118: 1473838 | AB118: 1461752 | AC118: 1652531 | AD118: 1679355 | AE118: 1702736 | AF118: 1676793 | AG118: 1733742 | AH118: 1697328 | AI118: 1699338 | AJ118: 1675790 | AK118: 1692489 | AL118: 1681880 | AM118: 1713732 | AN118: 1679956 | AO118: 1744962 | AP118: 1710611 | AQ118: 1943314 | AR118: 1886702 | AS118: 1969219 | AT118: 1930687 | AU118: 1886683 | AV118: 1942624 | AW118: 1945650.38 | AX118: 1918303 | AY118: 1923702 | AZ118: 1900643
A119: TOTAL LIABILITIES | B119: ='Consolidado"'!B119 -> 36409855 | C119: ='Consolidado"'!C119 -> 37252581 | D119: ='Consolidado"'!D119 -> 37001192 | E119: ='Consolidado"'!E119 -> 37237475 | F119: ='Consolidado"'!F119 -> 35564038 | G119: 36525760 | H119: 33628739 | I119: 33562475 | J119: 31721409 | K119: 31002291 | L119: 30291260 | M119: 28579446 | N119: 28214966 | O119: 27194418 | P119: 27489068 | Q119: 25680885 | R119: 24435364 | S119: 23430036 | T119: 22772071 | U119: 21639504 | V119: 21248325 | W119: 20915273 | X119: 20607952 | Y119: 20065110 | Z119: 19330487 | AA119: 19243672 | AB119: 19243826 | AC119: 19735189 | AD119: 19435312 | AE119: 18547459 | AF119: 18412340 | AG119: 18057231 | AH119: 18302291 | AI119: 14253423 | AJ119: 13171799 | AK119: 13095401 | AL119: 13139802 | AM119: 14610030 | AN119: 14141494 | AO119: 13669569 | AP119: 13620847 | AQ119: 13500567 | AR119: 12828372 | AS119: 13921324 | AT119: 13383533 | AU119: 12819270 | AV119: 13615953 | AW119: 12691603.88 | AX119: 12411318 | AY119: 12614391 | AZ119: 12811397

Sheet EDP SP"
A2: EDP SP
A4: R$ Mil | B4: 2023-06-01 | C4: 2023-03-01 | D4: 2022-12-01 | E4: 2022-09-01 | F4: 2022-06-01 | G4: 2022-03-01 | H4: 2021-12-01 | I4: 2021-09-01 | J4: 2021-06-30 | K4: 2021-03-01 | L4: 2020-12-01 | M4: 2020-09-30 | N4: 2020-06-30 | O4: 2020-03-31 | P4: 2019-12-30 | Q4: 2019-09-30 | R4: 2019-06-30 | S4: 2019-03-31 | T4: 2018-12-30 | U4: 2018-09-30 | V4: 2018-06-30 | W4: 2018-03-31 | X4: 2017-12-31 | Y4: 2017-09-30 | Z4: 2017-06-30 | AA4: 2017-03-31 | AB4: 2016-12-31 | AC4: 2016-09-30 | AD4: 2016-06-30 | AE4: 2016-03-31 | AF4: 2015-12-31 | AG4: 2015-09-30 | AH4: 2015-06-30 | AI4: 2015-03-31 | AJ4: 2014-12-31 | AK4: 2014-09-30 | AL4: 2014-06-30 | AM4: 2014-03-31 | AN4: 2013-12-31 | AO4: 2013-09-30 | AP4: 2013-06-30 | AQ4: 2013-03-31 | AR4: 2012-12-30 | AS4: 2012-09-30 | AT4: 2012-06-30 | AU4: 2012-03-31 | AV4: 2011-12-31 | AW4: 2011-09-30 | AX4: 2011-06-30 | AY4: 2011-03-31 | AZ4: 2010-12-31
B5: 2T23 | C5: 1T23 | D5: 4T22 | E5: 3T22 | F5: 2T22 | G5: 1T22 | H5: 4T21 | I5: 3T21 | J5: 2T21 | K5: 1T21 | L5: 4T20 | M5: 3T20 | N5: 2T20 | O5: 1T20 | P5: 4T19 | Q5: 3T19 | R5: 2T19 | S5: 1T19 | T5: 4T18 | U5: 3T18 | V5: 2T18 | W5: 1T18 | X5: 4T17 | Y5: 3T17 | Z5: 2T17 | AA5: 1T17 | AB5: 4T16 | AC5: 3T16 | AD5: 2T16 | AE5: 1T16 | AF5: 4T15 | AG5: 3T15 | AH5: 2T15 | AI5: 1T15 | AJ5: 4T14 | AK5: 3T14 | AL5: 2T14 | AM5: 1T14 | AN5: 4T13 | AO5: 3T13 | AP5: 2T13 | AQ5: 1T13 | AR5: 4T12 | AS5: 3T12 | AT5: 2T12 | AU5: 1T12 | AV5: 4T11 | AW5: 3T11 | AX5: 2T11 | AY5: 1T11 | AZ5: 4T10
A7: ATIVO
A8: CIRCULANTE | B8: =SUM(B9:B31) -> 1733057 | C8: =SUM(C9:C31) -> 1872930 | D8: =SUM(D9:D31) -> 2039494 | E8: =SUM(E9:E30) -> 2136878 | F8: 2309117 | G8: 2858193 | H8: 2755689 | I8: 2370776 | J8: 2026915 | K8: 2211299 | L8: 2128711 | M8: 2474343 | N8: 2283161 | O8: 1814499 | P8: 2001416 | Q8: 1707561 | R8: 1638837 | S8: 1757276 | T8: 1601961 | U8: 1751985 | V8: 1618873 | W8: 1552432 | X8: 1423101 | Y8: 1495826 | Z8: 981529 | AA8: 1006964 | AB8: 1094454 | AC8: 1418554 | AD8: 1329391 | AE8: 1640866 | AF8: 1691079 | AG8: 1736200 | AH8: 1747118 | AI8: 1337986 | AJ8: 1131637 | AK8: 920866 | AL8: 1023981 | AM8: 914764 | AN8: 841452 | AO8: 1004210 | AP8: 872704 | AQ8: 879405 | AR8: 785672 | AS8: 892478 | AT8: 879630 | AU8: 873609 | AV8: 981673 | AW8: 948597 | AX8: 909220 | AY8: 977098 | AZ8: 1103176
A9: Caixa e equivalentes de caixa | B9: 296065 | C9: 394064 | D9: 629265 | E9: 659665 | F9: 587775 | G9: 707468 | H9: 687156 | I9: 348736 | J9: 307770 | K9: 492796 | L9: 469267 | M9: 975049 | N9: 755960 | O9: 248160 | P9: 422018 | Q9: 394117 | R9: 266884 | S9: 284739 | T9: 151754 | U9: 286992 | V9: 191379 | W9: 152891 | X9: 132915 | Y9: 370851 | Z9: 272083 | AA9: 219963 | AB9: 355496 | AC9: 488664 | AD9: 355894 | AE9: 429602 | AF9: 301943 | AG9: 337873 | AH9: 507810 | AI9: 302810 | AJ9: 282437 | AK9: 331122 | AL9: 449860 | AM9: 231924 | AN9: 333989 | AO9: 215570 | AP9: 249206 | AQ9: 187954 | AR9: 111544 | AS9: 196172 | AT9: 183958 | AU9: 188232 | AV9: 191654 | AW9: 246060 | AX9: 163423 | AY9: 281848 | AZ9: 364086
A10: Títulos a receber | B10: 0 | C10: 0 | D10: 0 | E10: 0 | F10: 0 | G10: 0 | H10: 0 | I10: 0 | J10: 0 | K10: 0 | L10: 0 | M10: 0 | N10: 0 | O10: 0 | P10: - | Q10: - | R10: - | S10: - | T10: - | U10: - | V10: - | W10: 46197 | X10: - | Y10: 0 | Z10: 0 | AA10: 0 | AB10: 0 | AC10: 0 | AD10: 0 | AE10: 0 | AF10: 0 | AG10: 0 | AH10: 0 | AI10: 0 | AJ10: 0 | AK10: 0 | AL10: 0 | AM10: 0 | AN10: 0 | AO10: 0 | AP10: 0 | AQ10: 0 | AR10: 0 | AS10: 0 | AT10: 0 | AU10: 0 | AV10: 0 | AW10: 0 | AX10: 0 | AY10: 0 | AZ10: 0
A11: Tributos diferidos | B11: 0 | C11: 0 | D11: 0 | E11: 0 | F11: 0 | G11: 0 | H11: 0 | I11: 0 | J11: 0 | K11: 0 | L11: 0 | M11: 0 | N11: 0 | O11: 0 | P11: - | Q11: - | R11: - | S11: - | T11: - | U11: - | V11: - | W11: - | X11: - | Y11: 0 | Z11: 18785 | AA11: 28787 | AB11: 34824 | AC11: 42251 | AD11: 22395 | AF11: 0
A12: Títulos a receber | B12: 0 | C12: 0 | D12: 0 | E12: 0 | F12: 0 | G12: 0 | H12: 0 | I12: 0 | J12: 0 | K12: 0 | L12: 0 | M12: 0 | N12: 0 | O12: 0 | P12: - | Q12: - | R12: - | S12: - | T12: - | U12: - | V12: - | W12: - | X12: - | Y12: 0 | Z12: 0 | AA12: 0 | AB12: 0 | AC12: 0 | AD12: 0 | AE12: 0 | AF12: 0 | AG12: 0 | AH12: 0 | AI12: 0 | AJ12: 0 | AK12: 0 | AL12: 0 | AM12: 0 | AN12: 0 | AO12: 0 | AP12: 0 | AQ12: 0 | AR12: 0 | AS12: 0 | AT12: 0 | AU12: 0 | AV12: 0 | AW12: 0 | AX12: 0 | AY12: 0 | AZ12: 0
A13: Ativo financeiro indenizável | B13: 0 | C13: 0 | D13: 0 | E13: 0 | F13: 0 | G13: 0 | H13: 0 | I13: 0 | J13: 0 | K13: 0 | L13: 0 | M13: 0 | N13: 0 | O13: 0 | P13: - | Q13: - | R13: - | S13: - | T13: - | U13: - | V13: - | W13: - | X13: - | Y13: 0 | Z13: 0 | AA13: 0 | AB13: 0 | AC13: 0 | AD13: 0 | AE13: 0 | AF13: 0 | AG13: 0 | AH13: 0 | AI13: 0 | AJ13: 0 | AK13: 0 | AL13: 0 | AM13: 0 | AN13: 0 | AO13: 0 | AP13: 0 | AQ13: 0 | AR13: 0 | AS13: 0 | AT13: 0 | AU13: 0 | AV13: 0 | AZ13: 0
A14: Consumidores e concessionárias | B14: 1026505 | C14: 1071299 | D14: 1035561 | E14: 1003005 | F14: 1102669 | G14: 1329022 | H14: 1235716 | I14: 1104565 | J14: 1012352 | K14: 1163143 | L14: 1105254 | M14: 1036007 | N14: 1001807 | O14: 1048930 | P14: 1054696 | Q14: 1140420 | R14: 1116709 | S14: 1128141 | T14: 1040969 | U14: 999498 | V14: 916079 | W14: 921199 | X14: 819444 | Y14: 645352 | Z14: 607671 | AA14: 667186 | AB14: 617737 | AC14: 778335 | AD14: 772252 | AE14: 812017 | AF14: 817882 | AG14: 702566 | AH14: 713528 | AI14: 709601 | AJ14: 520910 | AK14: 464066 | AL14: 471850 | AM14: 504914 | AN14: 461629 | AO14: 463689 | AP14: 477965 | AQ14: 569925 | AR14: 601889 | AS14: 473348 | AT14: 481590 | AU14: 477714 | AV14: 453640 | AW14: 449931 | AX14: 458460 | AY14: 447673 | AZ14: 430004
A15: Imposto de renda e Contribuição social a compensar | B15: 8340 | C15: 8112 | D15: 17907 | E15: 27641 | F15: 58602 | G15: 62726 | H15: 64020 | I15: 16096 | J15: 15801 | K15: 15802 | L15: 15802 | M15: 6024 | N15: 6024 | O15: 11224 | P15: 11129 | Q15: 1318 | R15: 1317 | S15: 33582 | T15: 69036 | U15: 94098 | V15: 145821 | W15: 242206 | X15: 341179 | Y15: 413816 | Z15: 24498 | AA15: 22105 | AB15: 32208 | AC15: 31096 | AD15: 24802 | AE15: 22427 | AF15: 41339 | AG15: 51054 | AH15: 51225 | AI15: 24623 | AJ15: 41294 | AK15: 19754 | AL15: 27787 | AM15: 14764 | AN15: 16085 | AO15: 20413 | AP15: 29213 | AQ15: 26252 | AR15: 31273 | AS15: 145335 | AT15: 116139 | AU15: 112547 | AV15: 232456 | AW15: 160461 | AX15: 169336 | AY15: 138241 | AZ15: 199542
A16: Outros tributos compensáveis | B16: 122579 | C16: 116596 | D16: 151286 | E16: 169344 | F16: 230236 | G16: 222129 | H16: 214755 | I16: 277422 | J16: 274403 | K16: 273236 | L16: 337845 | M16: 346303 | N16: 346078 | O16: 341287 | P16: 341307 | Q16: 13352 | R16: 12310 | S16: 12179 | T16: 19164 | U16: - | V16: - | W16: - | X16: - | Y16: 0 | Z16: 0 | AA16: - | AB16: 0 | AC16: 0 | AD16: 0 | AE16: 0 | AF16: 0 | AG16: 0 | AH16: 0 | AI16: 0 | AJ16: 0 | AK16: 0 | AL16: 0 | AM16: 0 | AN16: 0 | AO16: 0 | AP16: 0 | AQ16: 0 | AR16: 0 | AS16: 0 | AT16: 0 | AU16: 0 | AV16: 0 | AW16: 0 | AX16: 0 | AY16: 0 | AZ16: 0
A17: Empréstimos a receber | B17: 0 | C17: 0 | D17: 0 | E17: 0 | F17: 0 | G17: 0 | H17: 0 | I17: 0 | J17: 0 | K17: 0 | L17: 0 | M17: 0 | N17: 0 | O17: 0 | P17: - | Q17: - | R17: - | S17: - | T17: - | U17: - | V17: - | W17: - | X17: - | Y17: 0 | Z17: 0 | AA17: 0 | AB17: 0 | AC17: 0 | AD17: - | AE17: 0 | AF17: 0 | AG17: 0 | AH17: 0 | AI17: 0 | AJ17: 0 | AK17: 0 | AL17: 0 | AM17: 0 | AN17: 0 | AO17: 0 | AP17: 0 | AQ17: 0 | AR17: 0 | AS17: 0 | AT17: 0 | AU17: 0 | AV17: 0 | AW17: 0 | AX17: 0 | AY17: 0 | AZ17: 0
A18: Instrumentos Financeiros Derivativos | B18: 4219 | C18: 0 | D18: 0 | E18: 0 | F18: -
A19: Dividendos a receber | B19: 0 | C19: 0 | D19: 0 | E19: 0 | F19: 0 | G19: 0 | H19: 0 | I19: 0 | J19: 0 | K19: 0 | L19: 0 | M19: 0 | N19: 0 | O19: 0 | P19: - | Q19: - | R19: - | S19: - | T19: - | U19: - | V19: - | W19: - | X19: - | Y19: 0 | Z19: 0 | AA19: 0 | AB19: 0 | AC19: 0 | AD19: 0 | AE19: 0 | AF19: 0 | AG19: 0 | AH19: 0 | AI19: 0 | AJ19: 0 | AK19: 0 | AL19: 0 | AM19: 0 | AN19: 0 | AO19: 0 | AP19: 0 | AQ19: 0 | AR19: 0 | AS19: 0 | AT19: 0 | AU19: 0 | AV19: 0 | AW19: 0 | AX19: 0 | AY19: 0 | AZ19: 0
A20: Estoques | B20: 26266 | C20: 24897 | D20: 21782 | E20: 23949 | F20: 26273 | G20: 19248 | H20: 16191 | I20: 17346 | J20: 19739 | K20: 22301 | L20: 15832 | M20: 14745 | N20: 12675 | O20: 11941 | P20: 12297 | Q20: 15152 | R20: 13592 | S20: - | T20: - | U20: 9145 | V20: 10497 | W20: 8859 | X20: 7909 | Y20: 7414 | Z20: 8224 | AA20: 3587 | AB20: 3667 | AC20: 5540 | AD20: 5706 | AE20: 4537 | AF20: 4427 | AG20: 4021 | AH20: 3889 | AI20: 3330 | AJ20: 4430 | AK20: 4502 | AL20: 7145 | AM20: 5452 | AN20: 3960 | AO20: 3095 | AP20: 17395 | AQ20: 18410 | AR20: 15648 | AS20: 17303 | AT20: 23240 | AU20: 23625 | AV20: 21174 | AW20: 20273 | AX20: 19782 | AY20: 17262 | AZ20: 15436
A21: Cauções e depósitos vinculados | B21: 236 | C21: 236 | D21: 235 | E21: 197 | F21: 197 | G21: 197 | H21: 197 | I21: 197 | J21: 197 | K21: 197 | L21: 197 | M21: 230 | N21: 230 | O21: 262 | P21: 229 | Q21: 130 | R21: 130 | S21: 282 | T21: 286 | U21: 286 | V21: 286 | W21: 234 | X21: 229 | Y21: 259 | Z21: 375 | AA21: 276 | AB21: 279 | AC21: 250 | AD21: 134 | AE21: 134 | AF21: 134 | AG21: 134 | AH21: 2295 | AI21: 2788 | AJ21: 764 | AK21: 161 | AL21: 160 | AM21: 246 | AN21: 245 | AO21: 184 | AP21: 134 | AQ21: 327 | AR21: 327 | AS21: 327 | AT21: 327 | AU21: 130 | AV21: 149 | AW21: 148 | AX21: 145 | AY21: 288 | AZ21: 362
A22: Prêmio de risco e Ressarcimento - GSF | B22: 0 | C22: 0 | D22: 0 | E22: 0 | F22: - | G22: - | H22: 0 | I22: 0 | J22: 0 | K22: 0 | L22: 0 | M22: 0 | N22: 0 | O22: 0 | P22: - | Q22: - | R22: - | S22: - | T22: - | U22: - | V22: - | W22: - | X22: - | Y22: 0 | Z22: 0 | AA22: 0 | AB22: 0 | AC22: 0 | AD22: 0 | AE22: 0 | AF22: 0 | AJ22: 0
A23: Ativos não circulantes mantidos para venda | B23: 0 | C23: 0 | D23: 0 | E23: 0 | F23: 0 | G23: 0 | H23: 0 | I23: 0 | J23: 0 | K23: 0 | L23: 0 | M23: 0 | N23: 0 | O23: 0 | P23: - | Q23: - | R23: - | S23: - | T23: - | U23: - | V23: - | W23: - | X23: - | Y23: 0 | Z23: 0 | AA23: 0 | AB23: 0 | AC23: 0 | AD23: 0 | AE23: 0 | AF23: 0 | AJ23: 0
A24: Despesas pagas antecipadamente | B24: 0 | C24: 0 | D24: 0 | E24: 0 | F24: - | G24: - | H24: 0 | I24: 0 | J24: 0 | K24: 0 | L24: 0 | M24: 0 | N24: 0 | O24: 0 | P24: - | Q24: - | R24: - | S24: - | T24: - | U24: - | V24: - | W24: - | X24: - | Y24: 0 | Z24: 0 | AA24: 0 | AB24: 0 | AC24: 0 | AD24: 0 | AE24: 0 | AF24: 0 | AG24: 1125 | AH24: 2148 | AI24: 1695 | AJ24: 0 | AK24: 883 | AL24: 1731 | AM24: 1590 | AN24: 11 | AO24: 654 | AP24: 622 | AQ24: 1478 | AR24: 133 | AS24: 356 | AT24: 799 | AU24: 1291 | AV24: 1050 | AW24: 359 | AX24: 973 | AY24: 994 | AZ24: 1097
A25: Conta de compensação de variação de custos da parcela "A" | B25: 0 | C25: 0 | D25: 0 | E25: 0 | F25: - | G25: - | H25: 0 | I25: 0 | J25: 0 | K25: 0 | L25: 0 | M25: 0 | N25: 0 | O25: 0 | P25: - | Q25: - | R25: - | S25: - | T25: - | U25: - | V25: - | W25: - | X25: - | Y25: 0 | Z25: 0 | AA25: 0 | AB25: 0 | AC25: 0 | AD25: - | AE25: 0 | AF25: 0 | AG25: 0 | AH25: 0 | AI25: 0 | AJ25: 0 | AS25: 0 | AT25: 0 | AU25: 0 | AV25: 0 | AX25: 0 | AY25: 0 | AZ25: 0
A26: Rendas a receber | B26: 0 | C26: 0 | D26: 0 | E26: 0 | F26: 0 | G26: 0 | H26: 0 | I26: 0 | J26: 0 | K26: 0 | L26: 0 | M26: 0 | N26: 0 | O26: 0 | P26: - | Q26: - | R26: - | S26: - | T26: - | U26: - | V26: - | W26: - | X26: - | Y26: 0 | Z26: 0 | AA26: 0 | AB26: 0 | AC26: 0 | AD26: 0 | AE26: 0 | AF26: 0 | AG26: 0 | AH26: 0 | AI26: 0 | AJ26: 0 | AK26: 0 | AL26: 0 | AM26: 0 | AN26: 0 | AO26: 0 | AP26: 0 | AQ26: 0 | AR26: 0 | AS26: 0 | AT26: 0 | AU26: 0 | AV26: 0 | AW26: 0 | AX26: 0 | AY26: 0 | AZ26: 0
A27: Títulos e valores mobiliários | B27: 88340 | C27: 85603
A28: Ativos financeiros setoriais | B28: 28693 | C28: 54537 | D28: 69111 | E28: 110729 | F28: 173342 | G28: 385045 | H28: 366289 | I28: 500973 | J28: 301466 | K28: 148745 | L28: 93072 | M28: 22293 | N28: 90047 | O28: 83452 | P28: 95384 | Q28: 95844 | R28: 182457 | S28: 228233 | T28: 261319 | U28: 320437 | V28: 303276 | W28: 121132 | X28: 55365 | Y28: 12467 | Z28: 6765 | AA28: 6102 | AB28: 1145 | AC28: 34784 | AD28: 82066 | AE28: 334866 | AF28: 470256 | AG28: 575894 | AH28: 408439 | AI28: 242961 | AJ28: 227901 | AK28: 0 | AL28: 0 | AM28: 0 | AN28: 0 | AO28: 0 | AP28: 0 | AQ28: 0 | AR28: 0 | AS28: 0 | AT28: 0 | AU28: 0 | AV28: 0 | AW28: 0 | AX28: 0 | AY28: 0 | AZ28: 0
A29: Ressarcimento de custos - CCEE | B29: 0 | C29: 0 | D29: 0 | E29: 0 | F29: - | G29: - | H29: 0 | I29: 0 | J29: 0 | K29: 0 | L29: 0 | M29: 0 | N29: 0 | O29: 0 | P29: - | Q29: - | R29: - | S29: - | T29: - | U29: - | V29: - | W29: - | X29: - | Z29: 0 | AA29: 0 | AB29: 0 | AC29: 0 | AD29: 0 | AE29: 0 | AF29: 0 | AG29: 0 | AH29: 0 | AI29: 0 | AJ29: 0 | AK29: 41220 | AL29: 15895 | AM29: 122110
A30: Outros créditos | B30: 131814 | C30: 117586 | D30: 114347 | E30: 142348 | F30: 130023 | G30: 132358 | H30: 171365 | I30: 105441 | J30: 95187 | K30: 95079 | L30: 91442 | M30: 73692 | N30: 70340 | O30: 69243 | P30: 64356 | Q30: 47228 | R30: 45438 | S30: 70120 | T30: 59433 | U30: 41529 | V30: 51535 | W30: 59714 | X30: 66060 | Y30: 45667 | Z30: 43128 | AA30: 58958 | AB30: 49098 | AC30: 37634 | AD30: 66142 | AE30: 37283 | AF30: 55098 | AG30: 63533 | AH30: 57784 | AI30: 50178 | AJ30: 53901 | AK30: 59158 | AL30: 49553 | AM30: 33764 | AN30: 25533 | AO30: 300605 | AP30: 98169 | AQ30: 75059 | AR30: 24858 | AS30: 59637 | AT30: 73577 | AU30: 70070 | AV30: 81550 | AW30: 71365 | AX30: 97101 | AY30: 90792 | AZ30: 92649
A31: NÃO CIRCULANTE | B31: 0 | C31: 0 | D31: 0 | E31: 0
A32: Realizável a Longo Prazo | B32: =SUM(B33:B47) -> 3975508 | C32: =SUM(C33:C47) -> 3838551 | D32: =SUM(D33:D47) -> 3619036 | E32: =SUM(E33:E47) -> 3365037 | F32: 3239298 | G32: 3378502 | H32: 3569409 | I32: 3131611 | J32: 2945458 | K32: 3071621 | L32: 3079462 | M32: 2772139 | N32: 2780243 | O32: 2691553 | P32: 2634785 | Q32: 1726202 | R32: 1586195 | S32: 1618087 | T32: 1589989 | U32: 1368704 | V32: 1305684 | W32: 1279962 | X32: 1241589 | Y32: 1207148 | Z32: 1100723 | AA32: 1094743 | AB32: 1080929 | AC32: 1082497 | AD32: 986655 | AE32: 813997 | AF32: 735148 | AG32: 504270 | AH32: 634896 | AI32: 686709 | AJ32: 713368 | AK32: 647874 | AL32: 652799 | AM32: 622416 | AN32: 613959 | AO32: 590728 | AP32: 639997 | AQ32: 615035 | AR32: 608895 | AS32: 543879 | AT32: 538263 | AU32: 590149 | AV32: 563695 | AW32: 554264 | AX32: 597719 | AY32: 547655 | AZ32: 542044
A33: Títulos e valores mobiliários | B33: 0 | C33: 0 | D33: 0 | E33: 0 | F33: 0 | G33: 0 | H33: 0 | I33: 0 | J33: 0 | K33: 0 | L33: 0 | M33: 0 | N33: 0 | O33: 0 | P33: - | Q33: - | R33: - | S33: - | T33: - | U33: - | V33: - | W33: - | X33: - | Y33: 0 | Z33: 0 | AA33: 0 | AB33: 0 | AC33: 0 | AD33: 0 | AE33: 0 | AF33: 0 | AG33: 0 | AH33: 0 | AI33: 0 | AJ33: 0 | AK33: 0 | AL33: 0 | AM33: 0 | AN33: 0 | AO33: 0 | AP33: 0 | AQ33: 0 | AR33: 0 | AS33: 0 | AT33: 0 | AU33: 0 | AV33: 0 | AW33: 0 | AX33: 0 | AY33: 0 | AZ33: 0
A34: Títulos a receber | B34: 0 | C34: 0 | D34: 0 | E34: 0 | F34: 0 | G34: 0 | H34: 0 | I34: 0 | J34: 0 | K34: 0 | L34: 0 | M34: 0 | N34: 0 | O34: 0 | P34: - | Q34: - | R34: - | S34: - | T34: - | U34: - | V34: - | W34: - | X34: - | Y34: 0 | Z34: 0 | AA34: 0 | AB34: 0 | AC34: 0 | AD34: 0 | AE34: 0 | AF34: 0 | AG34: 0 | AH34: 0 | AI34: 0 | AJ34: 0 | AK34: 0 | AL34: 0 | AM34: 0 | AN34: 0 | AO34: 0 | AP34: 0 | AQ34: 0 | AR34: 0 | AS34: 0 | AT34: 0 | AU34: 0 | AV34: 0 | AW34: 0 | AX34: 0 | AY34: 0 | AZ34: 0
A35: Ativo financeiro indenizável | B35: 2774314 | C35: 2530700 | D35: 2320880 | E35: 2185807 | F35: 2061129 | G35: 1907581 | H35: 1799077 | I35: 1679000 | J35: 1589266 | K35: 1525074 | L35: 1428130 | M35: 1336199 | N35: 1277454 | O35: 1248093 | P35: 1211586 | Q35: 1162962 | R35: 1036870 | S35: 961986 | T35: 916218 | U35: 873587 | V35: 850120 | W35: 804897 | X35: 736074 | Y35: 704807 | Z35: 677433 | AA35: 653658 | AB35: 626138 | AC35: 603435 | AD35: 570017 | AE35: 554559 | AF35: 520649 | AG35: 326723 | AH35: 322256 | AI35: 353250 | AJ35: 345948 | AK35: 326986 | AL35: 325478 | AM35: 295486 | AN35: 274758 | AO35: 270800 | AP35: 254891 | AQ35: 248279 | AR35: 238834 | AS35: 199751 | AT35: 194249 | AU35: 203150 | AV35: 188432 | AW35: 193560 | AX35: 187613 | AY35: 149921 | AZ35: 135379
A36: Consumidores e concessionárias | B36: 29920 | C36: 32518 | D36: 32761 | E36: 27754 | F36: 24744 | G36: 16105 | H36: 15908 | I36: 14449 | J36: 15363 | K36: 14859 | L36: 12443 | M36: 7933 | N36: 6780 | O36: 7446 | P36: 7663 | Q36: 9328 | R36: 12830 | S36: 18019 | T36: 18965 | U36: 17693 | V36: 17980 | W36: 20903 | X36: 37135 | Y36: 36206 | Z36: 37347 | AA36: 41659 | AB36: 47090 | AC36: 44061 | AD36: 43552 | AE36: 46157 | AF36: 47846 | AG36: 42993 | AH36: 46239 | AI36: 46845 | AJ36: 50815 | AK36: 31096 | AL36: 34121 | AM36: 39688 | AN36: 40660 | AO36: 33184 | AP36: 40033 | AQ36: 29434 | AR36: 31363 | AS36: 25369 | AT36: 24632 | AU36: 58342 | AV36: 52943 | AW36: 51856 | AX36: 51171 | AY36: 48315 | AZ36: 48860
A37: Imposto de renda e Contribuição social a compensar | B37: 35351 | C37: 34479 | D37: 33621 | E37: 19954 | F37: - | G37: - | H37: - | I37: 0 | J37: 0 | K37: 0 | L37: 0 | M37: 0 | N37: 0 | O37: 0 | P37: - | Q37: - | R37: - | S37: - | T37: 101548 | U37: 96537 | V37: 90861 | W37: 87137 | X37: 84866 | Y37: 84561 | Z37: 80871 | AA37: 77451 | AB37: 72688 | AC37: 68393 | AD37: 62781 | AE37: 58973 | AF37: 57326 | AG37: 55269 | AH37: 53018 | AI37: 52391 | AJ37: 51431 | AK37: 51213 | AL37: 47316 | AM37: 47630 | AN37: 43359 | AO37: 36842 | AP37: 32404 | AQ37: 35376 | AR37: 32797 | AS37: 28423 | AT37: 26438 | AU37: 24775 | AV37: 21317 | AW37: 21654 | AX37: 19687 | AY37: 20330 | AZ37: 19481
A38: Outros tributos compensáveis | B38: 234943 | C38: 225960 | D38: 212214 | E38: 274622 | F38: 334266 | G38: 450705 | H38: 502476 | I38: 570537 | J38: 594211 | K38: 797480 | L38: 794189 | M38: 832224 | N38: 855335 | O38: 806895 | P38: 804547 | Q38: 111845 | R38: 108409 | S38: 105113 | T38: - | U38: - | V38: - | W38: - | X38: - | Y38: 0 | Z38: 0 | AA38: 0 | AB38: 0 | AC38: 0 | AD38: 0 | AE38: 0 | AF38: 0 | AG38: 0 | AH38: 0 | AI38: 0 | AJ38: 0 | AK38: 164499 | AL38: 151631 | AM38: 134689 | AN38: 150474 | AO38: 149739 | AP38: 212563 | AQ38: 208634 | AR38: 209777 | AS38: 194321 | AT38: 193417 | AU38: 205589 | AV38: 210213 | AW38: 186255 | AX38: 188692 | AY38: 200465 | AZ38: 209117
A39: Tributos diferidos | B39: 131913 | C39: 122451 | D39: 148311 | E39: 157700 | F39: 135528 | G39: 170322 | H39: 187493 | I39: 186763 | J39: 208383 | K39: 215346 | L39: 225914 | M39: 208835 | N39: 192824 | O39: 191235 | P39: 192500 | Q39: 134093 | R39: 159294 | S39: 170503 | T39: 152580 | U39: 120811 | V39: 129668 | W39: 136974 | X39: 122814 | Y39: 108381 | Z39: 212964 | AA39: 230867 | AB39: 247905 | AC39: 241997 | AD39: 172734 | AE39: 71368 | AF39: 0 | AG39: 0 | AH39: 23598 | AI39: 42516 | AJ39: 63898 | AK39: 0 | AL39: 0 | AM39: 0 | AN39: 0 | AO39: 0 | AP39: 0 | AQ39: 0 | AR39: 0 | AS39: 0 | AT39: 0 | AU39: 0 | AV39: 0 | AW39: 0 | AX39: 0 | AY39: 0 | AZ39: 0
A40: Empréstimos a receber | B40: 0 | C40: 0 | D40: 0 | E40: 0 | F40: 0 | G40: 0 | H40: 0 | I40: 0 | J40: 0 | K40: 0 | L40: 0 | M40: 0 | N40: 0 | O40: 0 | P40: - | Q40: - | R40: - | S40: - | T40: - | U40: - | V40: - | W40: - | X40: - | Y40: 0 | Z40: 0 | AA40: 0 | AB40: 0 | AC40: 0 | AD40: 0 | AE40: 0 | AF40: 0 | AG40: 0 | AH40: 0 | AI40: 0 | AJ40: 0 | AK40: 0 | AL40: 295 | AM40: 287 | AN40: 281 | AO40: 274 | AP40: 1052 | AQ40: 1042 | AR40: 1033 | AS40: 1369 | AT40: 1352 | AU40: 1335 | AV40: 1421 | AW40: 477 | AX40: 477 | AY40: 1122 | AZ40: 963
A41: Instrumentos Financeiros Derivativos | B41: 107565 | C41: 80640 | D41: 41267 | E41: 0 | F41: -
A42: Adiantamentos para futuros aumentos de capital | B42: 0 | C42: 0 | D42: 0 | E42: 0 | F42: - | G42: - | H42: 0 | I42: 0 | J42: 0 | K42: 0 | L42: 0 | M42: 0 | N42: 0 | O42: 0 | P42: - | Q42: - | R42: - | S42: - | T42: - | U42: - | V42: - | W42: - | X42: - | Y42: 0 | Z42: 0 | AA42: 0 | AB42: 0 | AC42: 0 | AD42: 0 | AE42: 0 | AF42: 0 | AG42: 0 | AH42: 0 | AI42: 0 | AJ42: 0 | AK42: 0 | AL42: 0 | AM42: 0 | AN42: 0 | AO42: 0 | AP42: 0 | AQ42: 0 | AR42: 0 | AS42: 0 | AT42: 0 | AU42: 0 | AV42: 0 | AW42: 0 | AX42: 0 | AY42: 0 | AZ42: 0
A43: Cauções e depósitos vinculados | B43: 159629 | C43: 157337 | D43: 147574 | E43: 150950 | F43: 138392 | G43: 132968 | H43: 131427 | I43: 131994 | J43: 129887 | K43: 130865 | L43: 126892 | M43: 121338 | N43: 118597 | O43: 117840 | P43: 114847 | Q43: 111888 | R43: 109743 | S43: 113880 | T43: 112202 | U43: 108983 | V43: 98112 | W43: 95699 | X43: 91742 | Y43: 79081 | Z43: 78079 | AA43: 77165 | AB43: 75488 | AC43: 74327 | AD43: 72472 | AE43: 71983 | AF43: 69292 | AG43: 66574 | AH43: 65601 | AI43: 66411 | AJ43: 67248 | AK43: 66021 | AL43: 75956 | AM43: 75026 | AN43: 73720 | AO43: 71665 | AP43: 70607 | AQ43: 68574 | AR43: 70341 | AS43: 67806 | AT43: 71824 | AU43: 71791 | AV43: 63885 | AW43: 70205 | AX43: 135629 | AY43: 116189 | AZ43: 115798
A44: Despesas pagas antecipadamente | B44: 0 | C44: 0 | D44: 0 | E44: 0 | F44: - | G44: - | H44: 0 | I44: 0 | J44: 0 | K44: 0 | L44: 0 | M44: 0 | N44: 0 | O44: 0 | P44: - | Q44: - | R44: - | S44: - | T44: - | U44: - | V44: - | W44: - | X44: - | Y44: 0 | Z44: 0 | AA44: 0 | AB44: 0 | AC44: 0 | AD44: 0 | AE44: 0 | AF44: 0 | AG44: 0 | AH44: 0 | AI44: 33 | AJ44: 0 | AK44: 0 | AL44: 0 | AM44: 0 | AN44: 0 | AO44: 0 | AP44: 0 | AQ44: 0 | AR44: 0 | AS44: 0 | AT44: 0 | AU44: 0 | AV44: 0 | AW44: 0 | AX44: 0 | AY44: 0 | AZ44: 0
A45: Ativos da concessão | B45: 460198 | C45: 607120 | D45: 623565 | E45: 538117 | F45: 510799 | G45: 488889 | H45: 427811 | I45: 387742 | J45: 302570 | K45: 253680 | L45: 285113 | M45: 255323 | N45: 298108 | O45: 278575 | P45: 236862 | Q45: 185653 | R45: 148135 | S45: 207239 | T45: 207320 | U45: - | V45: - | W45: - | X45: - | Y45: 0 | Z45: 0 | AA45: 0 | AB45: 0 | AC45: 0 | AD45: 0 | AE45: 0 | AF45: 0 | AG45: 0 | AH45: 0 | AI45: 0 | AJ45: 0 | AK45: 0 | AL45: 0 | AM45: 0 | AN45: 0 | AO45: 0 | AP45: 0 | AQ45: 0 | AR45: 0 | AS45: 0 | AT45: 0 | AU45: 0 | AV45: 0 | AW45: 0 | AX45: 0 | AY45: 0 | AZ45: 0
A46: Ativos financeiros setoriais | B46: 30521 | C46: 37072 | D46: 49169 | E46: 0 | F46: 22272 | G46: 200754 | H46: 495569 | I46: 151709 | J46: 95690 | K46: 124031 | L46: 196943 | M46: 0 | N46: 20604 | O46: 30666 | P46: 54492 | Q46: - | R46: - | S46: 29481 | T46: 67977 | U46: 129125 | V46: 99746 | W46: 121132 | X46: 154433 | Y46: 181390 | Z46: 0 | AA46: 0 | AB46: 0 | AC46: 39686 | AD46: 53495 | AE46: 0 | AF46: 28420 | AG46: 0 | AH46: 110262 | AI46: 115177 | AJ46: 123614 | AK46: 0 | AL46: 0 | AM46: 0 | AN46: 0 | AO46: 0 | AP46: 0 | AQ46: 0 | AR46: 0 | AS46: 0 | AT46: 0 | AU46: 0 | AV46: 0 | AW46: 0 | AX46: 0 | AY46: 0 | AZ46: 0
A47: Outros créditos | B47: 11154 | C47: 10274 | D47: 9674 | E47: 10133 | F47: 12168 | G47: 11178 | H47: 9648 | I47: 9417 | J47: 10088 | K47: 10286 | L47: 9838 | M47: 10287 | N47: 10541 | O47: 10803 | P47: 12288 | Q47: 10433 | R47: 10914 | S47: 11866 | T47: 13179 | U47: 21968 | V47: 19197 | W47: 13220 | X47: 14525 | Y47: 12722 | Z47: 14029 | AA47: 13943 | AB47: 11620 | AC47: 10598 | AD47: 11604 | AE47: 10957 | AF47: 11615 | AG47: 12711 | AH47: 13922 | AI47: 10086 | AJ47: 10414 | AK47: 8059 | AL47: 18002 | AM47: 29610 | AN47: 30707 | AO47: 28224 | AP47: 28447 | AQ47: 23696 | AR47: 24750 | AS47: 26840 | AT47: 26351 | AU47: 25167 | AV47: 25484 | AW47: 30257 | AX47: 14450 | AY47: 11313 | AZ47: 12446
A48: Permanente | B48: =SUM(B49:B52) -> 1023581 | C48: =SUM(C49:C52) -> 957683 | D48: =SUM(D49:D52) -> 937076 | E48: =SUM(E49:E52) -> 935434 | F48: 924012 | G48: 917128 | H48: 889889 | I48: 897273 | J48: 916656 | K48: 924813 | L48: 889181 | M48: 902992 | N48: 862077 | O48: 863303 | P48: 877452 | Q48: 901035 | R48: 876567 | S48: 857832 | T48: 846835 | U48: 1010881 | V48: 973806 | W48: 972925 | X48: 1013001 | Y48: 1012472 | Z48: 999896 | AA48: 983918 | AB48: 961996 | AC48: 938338 | AD48: 914482 | AE48: 897666 | AF48: 905823 | AG48: 959803 | AH48: 954082 | AI48: 915501 | AJ48: 924801 | AK48: 964250 | AL48: 966701 | AM48: 992113 | AN48: 1001959 | AO48: 956636 | AP48: 988220 | AQ48: 988392 | AR48: 1006921 | AS48: 1011146 | AT48: 1012857 | AU48: 1029386 | AV48: 1032170 | AW48: 1020722 | AX48: 992784 | AY48: 1017370 | AZ48: 1011619
A49: Investimentos | B49: 0 | C49: 0 | D49: 0 | E49: 0 | F49: 0 | G49: 0 | H49: 0 | I49: 0 | J49: 0 | K49: 0 | L49: 0 | M49: 0 | N49: 0 | O49: 0 | P49: - | Q49: - | R49: - | S49: - | T49: - | U49: - | V49: - | W49: - | X49: - | Y49: 0 | Z49: 0 | AA49: 0 | AB49: 0 | AC49: 0 | AD49: 0 | AE49: 0 | AF49: 0 | AG49: 0 | AH49: 0 | AI49: 0 | AJ49: 0 | AK49: 0 | AL49: 0 | AM49: 0 | AN49: 0 | AO49: 0 | AP49: 0 | AQ49: 0 | AR49: 0 | AS49: 0 | AT49: 0 | AU49: 0 | AV49: 0 | AW49: 0 | AZ49: 0
A50: Propriedades para investimentos | B50: 977 | C50: 979 | D50: 982 | E50: 985 | F50: 987 | G50: 990 | H50: 992 | I50: 995 | J50: 997 | K50: 1000 | L50: 1003 | M50: 1016 | N50: 1065 | O50: 1113 | P50: 1161 | Q50: 1210 | R50: 1258 | S50: 1307 | T50: 1355 | U50: 1404 | V50: 1452 | W50: 1501 | X50: 1549 | Y50: 1597 | Z50: 1646 | AA50: 1694 | AB50: 1743 | AC50: 1791 | AD50: 1840 | AE50: 1888 | AF50: 1937 | AG50: 1985 | AH50: 2034 | AI50: 2082 | AJ50: 3053 | AK50: 3053 | AL50: 3053 | AM50: 3053 | AN50: 3053 | AO50: 3053 | AP50: 3053 | AQ50: 3053 | AR50: 3053 | AS50: 3053 | AT50: 3053 | AU50: 3053 | AV50: 3053 | AW50: 3053 | AX50: 3053 | AY50: 3053 | AZ50: 3053
A51: Imobilizado | B51: 60374 | C51: 51771 | D51: 53143 | E51: 54626 | F51: 56163 | G51: 60212 | H51: 60162 | I51: 62582 | J51: 65879 | K51: 69261 | L51: 58410 | M51: 61494 | N51: 28792 | O51: 30841 | P51: 33198 | Q51: 48675 | R51: 12655 | S51: 13671 | T51: 22 | U51: 54 | V51: 86 | W51: 122 | X51: 164 | Y51: 207 | Z51: 229 | AA51: 250 | AB51: 2 | AC51: 0 | AD51: 0 | AE51: 0 | AF51: 0 | AG51: 0 | AH51: 0 | AI51: 59 | AJ51: 65 | AK51: 70 | AL51: 76 | AM51: 82 | AN51: 88 | AO51: 95 | AP51: 101 | AQ51: 107 | AR51: 112 | AS51: 118 | AT51: 124 | AU51: 130 | AV51: 136 | AW51: 145 | AX51: 154 | AY51: 163 | AZ51: 173
A52: Intangível | B52: 962230 | C52: 904933 | D52: 882951 | E52: 879823 | F52: 866862 | G52: 855926 | H52: 828735 | I52: 833696 | J52: 849780 | K52: 854552 | L52: 829768 | M52: 840482 | N52: 832220 | O52: 831349 | P52: 843093 | Q52: 851150 | R52: 862654 | S52: 842854 | T52: 845458 | U52: 1009423 | V52: 972268 | W52: 971302 | X52: 1011288 | Y52: 1010668 | Z52: 998021 | AA52: 981974 | AB52: 960251 | AC52: 936547 | AD52: 912642 | AE52: 895778 | AF52: 903886 | AG52: 957818 | AH52: 952048 | AI52: 913360 | AJ52: 921683 | AK52: 961127 | AL52: 963572 | AM52: 988978 | AN52: 998818 | AO52: 953488 | AP52: 985066 | AQ52: 985232 | AR52: 1003756 | AS52: 1007975 | AT52: 1009680 | AU52: 1026203 | AV52: 1028981 | AW52: 1017524 | AX52: 989577 | AY52: 1014154 | AZ52: 1008393
A53: TOTAL DO ATIVO | B53: =SUM(B48+B32+B8) -> 6732146 | C53: =SUM(C48+C32+C8) -> 6669164 | D53: =SUM(D48+D32+D8) -> 6595606 | E53: =SUM(E48+E32+E8) -> 6437349 | F53: 6472427 | G53: 7153823 | H53: 7214987 | I53: 6399660 | J53: 5889029 | K53: 6207733 | L53: 6097354 | M53: 6149474 | N53: 5925481 | O53: 5369355 | P53: 5513653 | Q53: 4334798 | R53: 4101599 | S53: 4233195 | T53: 4038785 | U53: 4131570 | V53: 3898363 | W53: 3805319 | X53: 3677691 | Y53: 3715446 | Z53: 3082148 | AA53: 3085625 | AB53: 3137379 | AC53: 3439389 | AD53: 3230528 | AE53: 3352529 | AF53: 3332050 | AG53: 3200273 | AH53: 3336096 | AI53: 2940196 | AJ53: 2769806 | AK53: 2532990 | AL53: 2643481 | AM53: 2529293 | AN53: 2457370 | AO53: 2551574 | AP53: 2500921 | AQ53: 2482832 | AR53: 2401488 | AS53: 2447503 | AT53: 2430750 | AU53: 2493144 | AV53: 2577538 | AW53: 2523583 | AX53: 2499723 | AY53: 2542123 | AZ53: 2656839
A55: PASSIVO
A56: CIRCULANTE | B56: =SUM(B57:B77) -> 2511906 | C56: =SUM(C57:C77) -> 1907882 | D56: =SUM(D57:D77) -> 2103485 | E56: =SUM(E57:E76) -> 1817785 | F56: 1542860 | G56: 1968976 | H56: 1849268 | I56: 1913575 | J56: 1523155 | K56: 1641209 | L56: 2323588 | M56: 2239237 | N56: 1978262 | O56: 1203581 | P56: 1266128 | Q56: 1250397 | R56: 1421609 | S56: 1563434 | T56: 1370644 | U56: 1580644 | V56: 1443700 | W56: 1149861 | X56: 1245483 | Y56: 1490581 | Z56: 1132719 | AA56: 1171087 | AB56: 1253014 | AC56: 1414838 | AD56: 1238627 | AE56: 1103564 | AF56: 1225426 | AG56: 1148438 | AH56: 1279609 | AI56: 1150500 | AJ56: 1057705 | AK56: 964959 | AL56: 826232 | AM56: 934524 | AN56: 795984 | AO56: 812467 | AP56: 807335 | AQ56: 766470 | AR56: 780246 | AS56: 983702 | AT56: 945856 | AU56: 796632 | AV56: 966532 | AW56: 879267 | AX56: 857734 | AY56: 832928 | AZ56: 1029121
A57: Fornecedores | B57: 541497 | C57: 539899 | D57: 568498 | E57: 556499 | F57: 513001 | G57: 542232 | H57: 738677 | I57: 765348 | J57: 545759 | K57: 491670 | L57: 596358 | M57: 502159 | N57: 534474 | O57: 524698 | P57: 579263 | Q57: 546978 | R57: 485300 | S57: 570873 | T57: 497035 | U57: 676726 | V57: 640798 | W57: 516699 | X57: 575007 | Y57: 667650 | Z57: 382127 | AA57: 386655 | AB57: 373149 | AC57: 393015 | AD57: 360194 | AE57: 404935 | AF57: 485607 | AG57: 509666 | AH57: 467674 | AI57: 431108 | AJ57: 448406 | AK57: 407878 | AL57: 380499 | AM57: 455917 | AN57: 379505 | AO57: 332989 | AP57: 396633 | AQ57: 414673 | AR57: 448325 | AS57: 331686 | AT57: 322595 | AU57: 302184 | AV57: 325473 | AW57: 273238 | AX57: 268035 | AY57: 269191 | AZ57: 302629
A58: Encargos de dívidas | B58: 0 | C58: 0 | D58: 0 | E58: 0 | F58: - | G58: - | H58: 0 | I58: 0 | J58: 0 | K58: 0 | L58: 0 | M58: 0 | N58: 0 | O58: 0 | P58: - | Q58: - | R58: - | S58: - | T58: - | U58: - | V58: - | W58: - | X58: - | Y58: 0 | Z58: 0 | AA58: 0 | AB58: 0 | AC58: 0 | AD58: 0 | AE58: 0 | AF58: 0 | AG58: 0 | AH58: 0 | AI58: 0 | AJ58: 0 | AK58: 0 | AL58: 0 | AM58: 0 | AN58: 0 | AO58: 0 | AP58: 0 | AQ58: 0 | AR58: 0 | AS58: 0 | AT58: 0 | AU58: 0 | AV58: 0 | AW58: 0 | AX58: 0 | AY58: 0 | AZ58: 0
A59: Imposto de renda e Contribuição social a recolher | B59: 9409 | C59: 12444 | D59: 52704 | E59: 30997 | F59: 47162 | G59: 59281 | H59: 1474 | I59: 21615 | J59: 7099 | K59: 18679 | L59: 9022 | M59: 41397 | N59: 16491 | O59: 0 | P59: 4345 | Q59: 19178 | R59: 1948 | S59: 9690 | T59: 4804 | U59: 175474 | V59: 176714 | W59: 158551 | X59: 170928 | Y59: 170190 | Z59: 110966 | AA59: 124348 | AB59: 175001 | AC59: 267791 | AD59: 255151 | AE59: 211512 | AF59: 179865 | AG59: 137981 | AH59: 135381 | AI59: 137546 | AJ59: 109576 | AK59: 91893 | AL59: 91713 | AM59: 96957 | AN59: 122853 | AO59: 98980 | AP59: 101983 | AQ59: 100361 | AR59: 85607 | AS59: 139695 | AT59: 143970 | AU59: 164647 | AV59: 246766 | AW59: 257068 | AX59: 233593 | AY59: 209439 | AZ59: 265584
A60: Outros tributos a recolher | B60: 142074 | C60: 148221 | D60: 97917 | E60: 104548 | F60: 156952 | G60: 234784 | H60: 230375 | I60: 218919 | J60: 172406 | K60: 178501 | L60: 203740 | M60: 199875 | N60: 190466 | O60: 172716 | P60: 186199 | Q60: 184586 | R60: 171230 | S60: 188128 | T60: 196351 | U60: - | V60: - | W60: - | X60: - | Y60: 0 | Z60: 0 | AA60: 0 | AB60: 0 | AC60: 0 | AD60: 0 | AE60: 0 | AF60: 0 | AG60: 0 | AH60: 0 | AI60: 0 | AJ60: 0 | AK60: 0 | AL60: 2849 | AM60: 11295 | AN60: 0 | AO60: 21830 | AP60: 0 | AQ60: 0 | AR60: 0 | AS60: 0 | AT60: 0 | AU60: 0 | AV60: 0 | AW60: 0 | AX60: 0 | AY60: 0 | AZ60: 0
A61: Partes relacionadas | B61: 0 | C61: 0 | D61: 0 | E61: 0 | F61: 0 | G61: 0 | H61: 0 | I61: 0 | J61: 0 | K61: 0 | L61: 0 | M61: 0 | N61: 0 | O61: 0 | P61: - | Q61: - | R61: - | S61: - | T61: - | U61: - | V61: - | W61: - | X61: - | Y61: 0 | Z61: 0 | AA61: 0 | AB61: 0 | AC61: 0 | AD61: 0 | AE61: 0 | AF61: 0 | AG61: 0 | AH61: 0 | AI61: 0 | AJ61: 0 | AK61: 0 | AL61: 0 | AM61: 0 | AN61: 0 | AO61: 0 | AP61: 0 | AQ61: 0 | AR61: 0 | AS61: 0 | AT61: 0 | AU61: 0 | AV61: 0 | AW61: 0 | AX61: 0 | AY61: 0 | AZ61: 0
A62: Tributos diferidos | B62: 0 | C62: 0 | D62: 0 | E62: 0 | F62: 0 | G62: 0 | H62: 0 | I62: 0 | J62: 0 | K62: 0 | L62: 0 | M62: 0 | N62: 0 | O62: 0 | P62: - | Q62: - | R62: - | S62: - | T62: - | U62: - | V62: - | W62: - | X62: - | Y62: 0 | Z62: 0 | AA62: 0 | AB62: 0 | AC62: 0 | AD62: 0 | AE62: 23871 | AF62: 41645 | AG62: 51401 | AH62: 37668 | AI62: 21679 | AJ62: 19495 | AK62: 0 | AL62: 0 | AM62: 0 | AN62: 0 | AO62: 0 | AP62: 0 | AQ62: 0 | AR62: 0 | AS62: 0 | AT62: 0 | AU62: 0 | AV62: 0 | AW62: 0 | AX62: 0 | AY62: 0 | AZ62: 0
A63: Dividendos | B63: 513094 | C63: 131312 | D63: 131312 | E63: 52830 | F63: 37572 | G63: 61928 | H63: 43335 | I63: 0 | J63: 46672 | K63: 46672 | L63: 93569 | M63: 262036 | N63: 321713 | O63: 83061 | P63: 83061 | Q63: 136524 | R63: 192874 | S63: 56350 | T63: 56350 | U63: 174550 | V63: 174550 | W63: 55780 | X63: 55780 | Y63: 124490 | Z63: 124490 | AA63: 55888 | AB63: 55888 | AC63: 0 | AD63: 0 | AE63: 62217 | AF63: 62217 | AG63: 0 | AH63: 64551 | AI63: 0 | AJ63: 58199 | AK63: 68191 | AL63: 68191 | AM63: 57344 | AN63: 45311 | AO63: 34819 | AP63: 34819 | AQ63: 34819 | AR63: 34819 | AS63: 214931 | AT63: 214931 | AU63: 48907 | AV63: 48907 | AW63: 73604 | AX63: 73604 | AY63: 61614 | AZ63: 61614
A64: Debêntures | B64: 425538 | C64: 201732 | D64: 250319 | E64: 260962 | F64: 85393 | G64: 82619 | H64: 90322 | I64: 87986 | J64: 89756 | K64: 75887 | L64: 179772 | M64: 175099 | N64: 180056 | O64: 176302 | P64: 176855 | Q64: 138706 | R64: 145954 | S64: 145649 | T64: 49504 | U64: 82916 | V64: 82031 | W64: 84132 | X64: 75382 | Y64: 127739 | Z64: 103740 | AA64: 100278 | AB64: 78442 | AC64: 81609 | AD64: 157468 | AE64: 101440 | AF64: 175282 | AG64: 180289 | AH64: 178213 | AI64: 178996 | AJ64: 181733 | AK64: 180484 | AL64: 183525 | AM64: 166195 | AN64: 97952 | AO64: 87153 | AP64: 15646 | AQ64: 7038 | AR64: 16545 | AS64: 8288 | AT64: 20240 | AU64: 10361 | AV64: 24825 | AW64: 12540 | AX64: 23812 | AY64: 11050 | AZ64: 109245
A65: Empréstimos, financiamentos e encargos de dívidas | B65: 54204 | C65: 57674 | D65: 55996 | E65: 52006 | F65: 50794 | G65: 97187 | H65: 85395 | I65: 109110 | J65: 109133 | K65: 245752 | L65: 602114 | M65: 590656 | N65: 567924 | O65: 99062 | P65: 84297 | Q65: 80998 | R65: 265077 | S65: 439521 | T65: 405304 | U65: 307820 | V65: 168598 | W65: 165306 | X65: 162003 | Y65: 157646 | Z65: 123830 | AA65: 72719 | AB65: 74802 | AC65: 77088 | AD65: 79187 | AE65: 46955 | AF65: 42157 | AG65: 35221 | AH65: 145302 | AI65: 138142 | AJ65: 135271 | AK65: 132515 | AL65: 30448 | AM65: 71009 | AN65: 74147 | AO65: 96700 | AP65: 100285 | AQ65: 60796 | AR65: 60508 | AS65: 60909 | AT65: 59801 | AU65: 58510 | AV65: 62041 | AW65: 67850 | AX65: 67521 | AY65: 72404 | AZ65: 67219
A66: Instrumentos Financeiros Derivativos | B66: 31782 | C66: 14391 | D66: 32997 | E66: 0 | F66: -
A67: Benefícios pós-emprego | B67: 36841 | C67: 28439 | D67: 36899 | E67: 12689 | F67: 7044 | G67: 12689 | H67: 12746 | I67: 7665 | J67: 7712 | K67: 7721 | L67: 7760 | M67: 8544 | N67: 8545 | O67: 8575 | P67: 8580 | Q67: 7709 | R67: 7708 | S67: 7704 | T67: 7702 | U67: 7968 | V67: 7949 | W67: 7948 | X67: 7948 | Y67: 6382 | Z67: 326 | AA67: 351 | AB67: 1016 | AC67: 292 | AD67: 249 | AE67: 270 | AF67: 159 | AG67: 18973 | AH67: 21734 | AI67: 17701 | AJ67: 21695 | AK67: 73 | AL67: 36 | AM67: 66 | AN67: 36 | AO67: 16105 | AP67: 16085 | AQ67: 16076 | AR67: 16076 | AS67: 18317 | AT67: 18316 | AU67: 18317 | AV67: 18317 | AW67: 16478 | AX67: 18509 | AY67: 19220 | AZ67: 19245
A68: Conta de compensação de variação de custos da parcela "A" | B68: 0 | C68: 0 | D68: 0 | E68: 0 | F68: - | G68: - | H68: 0 | I68: 0 | J68: 0 | K68: 0 | L68: 0 | M68: 0 | N68: 0 | O68: 0 | P68: - | Q68: - | R68: - | S68: - | T68: - | U68: - | V68: - | W68: - | X68: - | Y68: 0 | Z68: 0 | AA68: 0 | AB68: 0 | AC68: 0 | AD68: - | AE68: 0 | AF68: 0 | AG68: 0 | AH68: 0 | AI68: 0 | AJ68: 0 | AU68: 0 | AV68: 0 | AW68: 0 | AX68: 0 | AY68: 0 | AZ68: 0
A69: Devolução tarifária | B69: 0 | C69: 0 | D69: 0 | E69: 0 | F69: - | G69: - | H69: 0 | I69: 0 | J69: 0 | K69: 0 | L69: 0 | M69: 0 | N69: 0 | O69: 0 | P69: - | Q69: - | R69: - | S69: - | T69: - | U69: - | V69: - | W69: - | X69: - | Y69: 0 | Z69: 0 | AA69: 0 | AB69: 0 | AC69: 0 | AD69: 0 | AE69: 0 | AF69: 0 | AG69: 0 | AH69: 0 | AI69: 0 | AJ69: 0 | AK69: 0 | AL69: 0 | AM69: 0 | AN69: 0 | AO69: 0 | AP69: 0 | AQ69: 0 | AR69: 0 | AS69: 0 | AT69: 0 | AU69: 0 | AV69: 0 | AW69: 0 | AX69: 0 | AY69: 0 | AZ69: 0
A70: Obrigações Sociais e Trabalhistas | B70: 30596 | C70: 37783 | D70: 34311 | E70: 36432 | F70: 31325 | G70: 36433 | H70: 35915 | I70: 33015 | J70: 31995 | K70: 41161 | L70: 37650 | M70: 30118 | N70: 23486 | O70: 28608 | P70: 30803 | Q70: 32906 | R70: 27036 | S70: - | T70: - | U70: 26370 | V70: 21023 | W70: 26059 | X70: 28840 | Y70: 27126 | Z70: 21636 | AA70: 26259 | AB70: 27318 | AC70: 30397 | AD70: 26446 | AE70: 31764 | AF70: 32063 | AG70: 24827 | AH70: 19788 | AI70: 28369 | AJ70: 23782 | AK70: 23325 | AL70: 18374 | AM70: 25231 | AN70: 22876 | AO70: 23590 | AP70: 17942 | AQ70: 26511 | AR70: 22661 | AS70: 21541 | AT70: 16052 | AU70: 25114 | AV70: 21864 | AW70: 20946 | AX70: 14881 | AY70: 23000 | AZ70: 20920
A71: Encargos setoriais | B71: 41513 | C71: 40971 | D71: 37509 | E71: 42097 | F71: 41584 | G71: 51992 | H71: 50104 | I71: 44252 | J71: 37304 | K71: 36742 | L71: 35302 | M71: 34507 | N71: 39176 | O71: 32839 | P71: 31764 | Q71: 30701 | R71: 51095 | S71: 49151 | T71: 63155 | U71: 69819 | V71: 114991 | W71: 61353 | X71: 91594 | Y71: 80752 | Z71: 74419 | AA71: 95648 | AB71: 91627 | AC71: 89158 | AD71: 42400 | AE71: 115244 | AF71: 149690 | AG71: 138769 | AH71: 159533 | AI71: 157543 | AJ71: 21026 | AK71: 20888 | AL71: 20384 | AM71: 18170 | AN71: 15529 | AO71: 53575 | AP71: 74049 | AQ71: 67602 | AR71: 41449 | AS71: 93559 | AT71: 112101 | AU71: 113056 | AV71: 130916 | AW71: 117938 | AX71: 103385 | AY71: 100898 | AZ71: 98061
A72: Uso do bem público | B72: 0 | C72: 0 | D72: 0 | E72: 0 | F72: 0 | G72: 0 | H72: 0 | I72: 0 | J72: 0 | K72: 0 | L72: 0 | M72: 0 | N72: 0 | O72: 0 | P72: - | Q72: - | R72: - | S72: - | T72: - | U72: - | V72: - | W72: - | X72: - | Y72: 0 | Z72: 0 | AA72: 0 | AB72: 0 | AC72: 0 | AD72: 0 | AE72: 0 | AF72: 0 | AG72: 0 | AH72: 0 | AI72: 0 | AJ72: 0 | AK72: 0 | AL72: 0 | AM72: 0 | AN72: 0 | AO72: 0 | AP72: 0 | AQ72: 0 | AR72: 0 | AS72: 0 | AT72: 0 | AU72: 0 | AV72: 0 | AW72: 0 | AX72: 0 | AY72: 0 | AZ72: 0
A73: Provisões | B73: 22799 | C73: 22616 | D73: 22124 | E73: 26089 | F73: 7835 | G73: 7556 | H73: 7437 | I73: 7379 | J73: 7015 | K73: 7049 | L73: 7067 | M73: 6914 | N73: 6835 | O73: 7598 | P73: 6313 | Q73: 6274 | R73: 7546 | S73: 7724 | T73: 6953 | U73: 6871 | V73: 6960 | W73: 6490 | X73: 6508 | Y73: 6088 | Z73: 6388 | AA73: 14726 | AB73: 14605 | AC73: 11337 | AD73: 11400 | AE73: 11434 | AF73: 13540 | AG73: 10042 | AH73: 10074 | AI73: 8387 | AJ73: 8396 | AK73: 11002 | AL73: 3850 | AM73: 3713 | AN73: 5458 | AO73: 5439 | AP73: 5167 | AQ73: 5977 | AR73: 6404 | AS73: 5273 | AT73: 6819 | AU73: 6784 | AV73: 6900 | AW73: 6935 | AX73: 7082 | AY73: 6272 | AZ73: 6572
A74: Reserva para reversão e amortização | B74: 1957 | C74: 1755 | D74: 1945 | E74: 1946 | F74: 1944 | G74: 1944 | H74: 1944 | I74: 1944 | J74: 1944 | K74: 1944 | L74: 1945 | M74: 1944 | N74: 1944 | O74: 1944 | P74: 1944 | Q74: 1944 | R74: 1944 | S74: - | T74: - | U74: 1944 | V74: - | W74: - | X74: -
A75: Passivos financeiros setoriais | B75: 582444 | C75: 604672 | D75: 715188 | E75: 576837 | F75: 491170 | G75: 701345 | H75: 400427 | I75: 516399 | J75: 365161 | K75: 382264 | L75: 433852 | M75: 308473 | N75: 0 | O75: 0 | P75: - | Q75: 1206 | R75: - | S75: - | T75: 1122 | U75: 601 | V75: 4394 | W75: 17747 | X75: 29675 | Y75: 82857 | Z75: 143317 | AA75: 251449 | AB75: 316711 | AC75: 420044 | AD75: 258136 | AE75: 49763 | AF75: 0
A76: Outras contas a pagar | B76: 78158 | C76: 65973 | D76: 65766 | E76: 63853 | F76: 71084 | G76: 78986 | H76: 151117 | I76: 99943 | J76: 101199 | K76: 107167 | L76: 115437 | M76: 77515 | N76: 87152 | O76: 68178 | P76: 72704 | Q76: 62687 | R76: 63897 | S76: 88644 | T76: 82364 | U76: 49585 | V76: 45692 | W76: 49796 | X76: 41818 | Y76: 39661 | Z76: 41480 | AA76: 42766 | AB76: 44455 | AC76: 44107 | AD76: 47996 | AE76: 44159 | AF76: 43201 | AG76: 41269 | AH76: 39691 | AI76: 31029 | AJ76: 30126 | AK76: 28710 | AL76: 26363 | AM76: 28627 | AN76: 32317 | AO76: 41287 | AP76: 44726 | AQ76: 32617 | AR76: 47852 | AS76: 89503 | AT76: 31031 | AU76: 48752 | AV76: 80523 | AW76: 32670 | AX76: 47312 | AY76: 59840 | AZ76: 78032
A77: NÃO CIRCULANTE | G77: - | H77: 0 | I77: 0 | J77: 0
A78: Exigível a Longo Prazo | B78: =SUM(B79:B98) -> 3466289 | C78: =SUM(C79:C98) -> 3667744 | D78: =SUM(D79:D98) -> 3509524 | E78: =SUM(E79:E98) -> 3704633 | F78: 4036611 | G78: 3738093 | H78: 4075201 | I78: 3278065 | J78: 3187989 | K78: 3459746 | L78: 2785803 | M78: 2686357 | N78: 2835510 | O78: 2868252 | P78: 3004037 | Q78: 1775938 | R78: 1497791 | S78: 1399431 | T78: 1470732 | U78: 1440322 | V78: 1381219 | W78: 1510548 | X78: 1326507 | Y78: 1183749 | Z78: 933962 | AA78: 868102 | AB78: 882183 | AC78: 992032 | AD78: 991254 | AE78: 1107524 | AF78: 973139 | AG78: 915418 | AH78: 967257 | AI78: 658598 | AJ78: 643345 | AK78: 623353 | AL78: 864565 | AM78: 574497 | AN78: 557130 | AO78: 719483 | AP78: 806303 | AQ78: 910047 | AR78: 841953 | AS78: 779420 | AT78: 794125 | AU78: 850040 | AV78: 819638 | AW78: 777908 | AX78: 828974 | AY78: 793473 | AZ78: 807447
A79: Fornecedores | B79: 0 | C79: 0 | D79: 0 | E79: 0 | F79: 0 | G79: 0 | H79: 0 | I79: 0 | J79: 0 | K79: 0 | L79: 0 | M79: 0 | N79: 0 | O79: - | P79: - | Q79: - | R79: - | S79: - | T79: - | U79: - | V79: - | W79: - | X79: - | Y79: 0 | Z79: 0 | AA79: 0 | AB79: 0 | AC79: 0 | AD79: 0 | AE79: 0 | AF79: 0 | AG79: 0 | AH79: 0 | AI79: 0 | AJ79: 1211 | AK79: 2076 | AL79: 3010 | AM79: 3579 | AN79: 0 | AO79: 0 | AP79: 0 | AQ79: 0 | AR79: 0 | AS79: 0 | AT79: 0 | AU79: 0 | AV79: 0 | AW79: 0 | AX79: 0 | AY79: 0 | AZ79: 0
A80: Encargos de dívidas | B80: 0 | C80: 0 | D80: 0 | E80: 0 | F80: - | G80: - | H80: 0 | I80: 0 | J80: 0 | K80: 0 | L80: 0 | M80: 0 | N80: 0 | O80: - | P80: - | Q80: - | R80: - | S80: - | T80: - | U80: - | V80: - | W80: - | X80: - | Y80: 0 | Z80: 0 | AA80: 0 | AB80: 0 | AC80: 0 | AD80: 0 | AE80: 0 | AF80: 0 | AG80: 0 | AH80: 0 | AI80: 0 | AJ80: 0 | AK80: 0 | AL80: 0 | AM80: 0 | AN80: 0 | AO80: 0 | AP80: 0 | AQ80: 0 | AR80: 0 | AS80: 0 | AT80: 0 | AU80: 0 | AV80: 0 | AW80: 0 | AX80: 0 | AY80: 0 | AZ80: 0
A81: Outros tributos a recolher | B81: 135554 | C81: 137729 | D81: 139105 | E81: 144902 | F81: 146920 | G81: 148733 | H81: 150762 | I81: 152782 | J81: 157683 | K81: 161933 | L81: 166421 | M81: 170872 | N81: 174515 | O81: 180815 | P81: 181905 | Q81: 184918 | R81: 187418 | S81: 189795 | T81: 202059 | U81: 204210 | V81: 206558 | W81: 207695 | X81: 210548 | Y81: 215483 | Z81: 0 | AA81: 0 | AB81: 0 | AC81: 0 | AD81: 0 | AE81: 0 | AF81: 0 | AG81: 0 | AH81: 0 | AI81: 0 | AJ81: 0 | AK81: 0 | AL81: 11959 | AM81: 11849 | AN81: 11742 | AO81: 13148 | AP81: 17481 | AQ81: 21713 | AR81: 25846 | AS81: 29858 | AT81: 33688 | AU81: 37316 | AV81: 40713 | AW81: 43896 | AX81: 47120 | AY81: 34717 | AZ81: 34291
A82: Impostos e contribuições sociais diferidos | B82: 0 | C82: 0 | D82: 0 | E82: 0 | F82: - | G82: - | H82: 0 | I82: 0 | J82: 0 | K82: 0 | L82: 0 | M82: 0 | N82: 0 | O82: 0 | P82: - | Q82: - | R82: - | S82: - | T82: - | U82: - | V82: - | W82: - | X82: - | Y82: 0 | Z82: 0 | AA82: 0 | AB82: 0 | AC82: 0 | AD82: 0 | AE82: 0 | AF82: 0 | AG82: 0 | AH82: 0 | AI82: 0 | AJ82: 0 | AK82: 0 | AL82: 0 | AM82: 0 | AN82: 0 | AO82: 0 | AP82: 0 | AQ82: 0 | AR82: 0 | AS82: 0 | AT82: 0 | AU82: 0 | AV82: 0 | AW82: 0 | AX82: 0 | AY82: 0 | AZ82: 0
A83: Tributos diferidos | B83: 1761 | C83: 1661 | D83: 1532 | E83: 1446 | F83: 1303 | G83: 1191 | H83: 1093 | I83: 1019 | J83: 963 | K83: 918 | L83: 879 | M83: 844 | N83: 807 | O83: 838 | P83: 813 | Q83: 746 | R83: 684 | S83: 624 | T83: 566 | U83: 508 | V83: 449 | W83: 404 | X83: 4 | Y83: 0 | Z83: 0 | AA83: 0 | AB83: 0 | AC83: 3592 | AD83: 4668 | AE83: 0 | AF83: 24057 | AG83: 2551 | AH83: 4279 | AI83: 9263 | AJ83: 11054 | AK83: 0 | AL83: 0 | AM83: 0 | AN83: 0 | AO83: 0 | AP83: 0 | AQ83: 0 | AR83: 0 | AS83: 0 | AT83: 0 | AU83: 0 | AV83: 0 | AW83: 0 | AX83: 0 | AY83: 0 | AZ83: 0
A84: Debêntures | B84: 2233206 | C84: 2416665 | D84: 2334854 | E84: 2289102 | F84: 2470253 | G84: 2011388 | H84: 2002820 | I84: 1544937 | J84: 1186112 | K84: 1205399 | L84: 498922 | M84: 519554 | N84: 518722 | O84: 547159 | P84: 654885 | Q84: 684463 | R84: 683318 | S84: 509749 | T84: 606615 | U84: 604402 | V84: 348295 | W84: 384104 | X84: 284376 | Y84: 280131 | Z84: 299844 | AA84: 186599 | AB84: 206347 | AC84: 338094 | AD84: 337842 | AE84: 397591 | AF84: 298590 | AG84: 298439 | AH84: 376289 | AI84: 376111 | AJ84: 453934 | AK84: 453730 | AL84: 531526 | AM84: 233759 | AN84: 311678 | AO84: 311571 | AP84: 389464 | AQ84: 389330 | AR84: 389195 | AS84: 389061 | AT84: 388928 | AU84: 388794 | AV84: 388550 | AW84: 388416 | AX84: 388282 | AY84: 388149 | AZ84: 388001
A85: Empréstimos, financiamentos e encargos de dívidas | B85: 443662 | C85: 459474 | D85: 453024 | E85: 449645 | F85: 444571 | G85: 461143 | H85: 468770 | I85: 443114 | J85: 444421 | K85: 501844 | L85: 508776 | M85: 516212 | N85: 525298 | O85: 518256 | P85: 533791 | Q85: 538322 | R85: 244060 | S85: 289889 | T85: 295830 | U85: 302613 | V85: 485325 | W85: 582680 | X85: 548594 | Y85: 435197 | Z85: 344509 | AA85: 443909 | AB85: 449488 | AC85: 456215 | AD85: 462244 | AE85: 481311 | AF85: 487156 | AG85: 456439 | AH85: 388036 | AI85: 133646 | AJ85: 50883 | AK85: 57700 | AL85: 209167 | AM85: 214502 | AN85: 125066 | AO85: 129895 | AP85: 137154 | AQ85: 160552 | AR85: 170429 | AS85: 198454 | AT85: 206320 | AU85: 205074 | AV85: 171960 | AW85: 191061 | AX85: 187451 | AY85: 157943 | AZ85: 170520
A86: Instrumentos Financeiros Derivativos | B86: 0 | C86: 0 | D86: 0 | E86: 8702 | F86: 302
A87: Benefícios pós-emprego | B87: 210829 | C87: 188463 | D87: 172698 | E87: 199438 | F87: 189300 | G87: 251237 | H87: 254025 | I87: 212260 | J87: 210819 | K87: 224888 | L87: 226346 | M87: 139954 | N87: 139416 | O87: 151630 | P87: 150978 | Q87: 24314 | R87: 25943 | S87: 52346 | T87: 53994 | U87: 5769 | V87: 7479 | W87: 17738 | X87: 19447 | Y87: 0 | Z87: 8838 | AA87: 0 | AB87: 0 | AC87: 0 | AD87: 0 | AE87: 0 | AF87: 0 | AG87: 0 | AH87: 8592 | AI87: 0 | AJ87: 5991 | AK87: 7655 | AL87: 7692 | AM87: 7529 | AN87: 7427 | AO87: 155959 | AP87: 155993 | AQ87: 145321 | AR87: 145230 | AS87: 54145 | AT87: 56402 | AU87: 78304 | AV87: 82718 | AW87: 6867 | AX87: 6867 | AY87: 97129 | AZ87: 100865
A88: Devolução tarifária | B88: 0 | C88: 0 | D88: 0 | E88: 0 | F88: - | G88: - | H88: 0 | I88: 0 | J88: 0 | K88: 0 | L88: 0 | M88: 0 | N88: 0 | O88: 0 | P88: - | Q88: - | R88: - | S88: - | T88: - | U88: - | V88: - | W88: - | X88: - | Y88: 0 | Z88: 0 | AA88: 0 | AB88: 0 | AC88: 0 | AD88: 0 | AE88: 0 | AF88: 0 | AG88: 0 | AH88: 0 | AI88: 0 | AJ88: 0 | AK88: 0 | AL88: 0 | AM88: 0 | AN88: 0 | AO88: 0 | AP88: 0 | AQ88: 0 | AR88: 0 | AS88: 0 | AT88: 0 | AU88: 0 | AV88: 0 | AW88: 0 | AX88: 0 | AY88: 0 | AZ88: 0
A89: Conta de compensação de variação de custos da Parcela "A" | B89: 0 | C89: 0 | D89: 0 | E89: 0 | F89: - | G89: - | H89: 0 | I89: 0 | J89: 0 | K89: 0 | L89: 0 | M89: 0 | N89: 0 | O89: 0 | P89: - | Q89: - | R89: - | S89: - | T89: - | U89: - | V89: - | W89: - | X89: - | Y89: 0 | Z89: 0 | AA89: 0 | AB89: 0 | AC89: 0 | AD89: 0 | AE89: 0 | AF89: 0 | AG89: 0 | AH89: 0 | AI89: 0 | AJ89: 0 | AK89: 0 | AL89: 0 | AM89: 0 | AN89: 0 | AO89: 0 | AP89: 0 | AQ89: 0 | AR89: 0 | AS89: 0 | AT89: 0 | AU89: 0 | AV89: 0 | AW89: 0 | AX89: 0 | AY89: 0 | AZ89: 0
A90: Partes relacionadas | B90: 0 | C90: 0 | D90: 0 | E90: 0 | F90: 0 | G90: 0 | H90: 0 | I90: 0 | J90: 0 | K90: 0 | L90: 0 | M90: 0 | N90: 0 | O90: 0 | P90: - | Q90: - | R90: - | S90: - | T90: - | U90: - | V90: - | W90: - | X90: - | Y90: 0 | Z90: 0 | AA90: 0 | AB90: 0 | AC90: 0 | AD90: 0 | AE90: 0 | AF90: 0 | AG90: 0 | AH90: 0 | AI90: 0 | AJ90: 0 | AK90: 509 | AL90: 614 | AM90: 613 | AN90: 668 | AO90: 1290 | AP90: 492 | AQ90: 897 | AR90: 3714 | AS90: 229 | AT90: 186 | AU90: 145 | AV90: 856 | AW90: 1020 | AX90: 435 | AY90: 1096 | AZ90: 15
A91: Encargos setoriais | B91: 0 | C91: 0 | D91: 0 | E91: 0 | F91: 0 | G91: 0 | H91: 0 | I91: 0 | J91: 0 | K91: 0 | L91: 0 | M91: 0 | N91: 0 | O91: 3436 | P91: 2427 | Q91: 3245 | R91: 3640 | S91: 6961 | T91: 7058 | U91: 5260 | V91: 6374 | W91: 4307 | X91: 3798 | Y91: 12426 | Z91: 11372 | AA91: 7921 | AB91: 7613 | AC91: 4282 | AD91: 9673 | AE91: 6606 | AF91: 5745 | AG91: 7730 | AH91: 6428 | AI91: 5331 | AJ91: 4070 | AK91: 2020 | AL91: 3412 | AM91: 5791 | AN91: 4371 | AO91: 5421 | AP91: 1666 | AQ91: 6864 | AR91: 6988 | AS91: 7452 | AT91: 6467 | AU91: 4670 | AV91: 885 | AW91: 7806 | AX91: 6605 | AY91: 5955 | AZ91: 7064
A92: Adiantamento para futuro aumento de capital | B92: 0 | C92: 0 | D92: 0 | E92: 0 | F92: 0 | G92: 0 | H92: 0 | I92: 0 | J92: 0 | K92: 0 | L92: 0 | M92: 0 | N92: 0 | O92: 0 | P92: - | Q92: - | R92: - | S92: - | T92: - | U92: - | V92: - | W92: - | X92: - | Y92: 0 | Z92: 0 | AA92: 0 | AB92: 0 | AC92: 0 | AD92: 0 | AE92: 0 | AF92: 0 | AG92: 0 | AH92: 0 | AI92: 0 | AJ92: 0 | AK92: 0 | AL92: 0 | AM92: 0 | AN92: 0 | AO92: 0 | AP92: 0 | AQ92: 85000 | AR92: 0 | AS92: 0 | AT92: 0 | AU92: 0 | AV92: 0 | AW92: 0 | AX92: 0 | AY92: 0 | AZ92: 0
A93: Uso do bem público | B93: 0 | C93: 0 | D93: 0 | E93: 0 | F93: 0 | G93: 0 | H93: 0 | I93: 0 | J93: 0 | K93: 0 | L93: 0 | M93: 0 | N93: 0 | O93: 0 | P93: - | Q93: - | R93: - | S93: - | T93: - | U93: - | V93: - | W93: - | X93: - | Y93: 0 | Z93: 0 | AA93: 0 | AB93: 0 | AC93: 0 | AD93: 0 | AE93: 0 | AF93: 0 | AG93: 0 | AH93: 0 | AI93: 0 | AJ93: 0 | AK93: 0 | AL93: 0 | AM93: 0 | AN93: 0 | AO93: 0 | AP93: 0 | AQ93: 0 | AR93: 0 | AS93: 0 | AT93: 0 | AU93: 0 | AV93: 0 | AW93: 0 | AX93: 0 | AY93: 0 | AZ93: 0
A94: Provisões | B94: 292740 | C94: 274467 | D94: 258675 | E94: 256173 | F94: 253273 | G94: 239729 | H94: 226787 | I94: 223223 | J94: 211657 | K94: 206417 | L94: 198322 | M94: 191952 | N94: 185393 | O94: 186431 | P94: 182924 | Q94: 169738 | R94: 161665 | S94: 156311 | T94: 153888 | U94: 149531 | V94: 135007 | W94: 126668 | X94: 122266 | Y94: 113420 | Z94: 110504 | AA94: 104513 | AB94: 99172 | AC94: 101732 | AD94: 98805 | AE94: 98878 | AF94: 102274 | AG94: 95695 | AH94: 92412 | AI94: 91790 | AJ94: 88441 | AK94: 72109 | AL94: 69920 | AM94: 69557 | AN94: 68781 | AO94: 70562 | AP94: 72336 | AQ94: 68574 | AR94: 68675 | AS94: 65923 | AT94: 70102 | AU94: 82546 | AV94: 80685 | AW94: 85493 | AX94: 148802 | AY94: 71280 | AZ94: 69410
A95: Provisão para passivo a descoberto | B95: 0 | C95: 0 | D95: 0 | E95: 0 | F95: 0 | G95: 0 | H95: 0 | I95: 0 | J95: 0 | K95: 0 | L95: 0 | M95: 0 | N95: 0 | O95: 0 | P95: - | Q95: - | R95: - | S95: - | T95: - | U95: - | V95: - | W95: - | X95: - | Y95: 0 | Z95: 0 | AA95: 0 | AB95: 0 | AC95: 0 | AD95: 0 | AE95: 0 | AF95: 0 | AG95: 0 | AH95: 0 | AI95: 0 | AJ95: 0 | AK95: 0 | AL95: 0 | AM95: 0 | AN95: 0 | AO95: 0 | AP95: 0 | AQ95: 0 | AR95: 0 | AS95: 0 | AT95: 0 | AU95: 0 | AV95: 0 | AW95: 0 | AX95: 0 | AY95: 0 | AZ95: 0
A96: Reserva para reversão e amortização | B96: 4859 | C96: 5507 | D96: 5831 | E96: 6316 | F96: 6802 | G96: 7288 | H96: 7774 | I96: 8260 | J96: 8746 | K96: 9232 | L96: 9718 | M96: 10204 | N96: 10689 | O96: 11175 | P96: 11661 | Q96: 12147 | R96: 12633 | S96: - | T96: - | U96: 14090 | V96: 17248 | W96: 17248 | X96: 17248 | Y96: 17248 | Z96: 17248 | AA96: 17248 | AB96: 17248 | AC96: 17248 | AD96: 17248 | AE96: 17248 | AF96: 17248 | AG96: 17248 | AH96: 17248 | AI96: 17248 | AJ96: 17248 | AK96: 17248 | AL96: 17248 | AM96: 17248 | AN96: 17248 | AO96: 17248 | AP96: 17248 | AQ96: 17248 | AR96: 17248 | AS96: 17248 | AT96: 17248 | AU96: 17248 | AV96: 17248 | AW96: 17248 | AX96: 17248 | AY96: 17248 | AZ96: 17248
A97: Passivos financeiros setoriais | B97: 105721 | C97: 142633 | D97: 99197 | E97: 307347 | F97: 475403 | G97: 571884 | H97: 920440 | I97: 641909 | J97: 907368 | K97: 1082527 | L97: 1112545 | M97: 1102103 | N97: 1244932 | O97: 1233242 | P97: 1247873 | Q97: 106807 | R97: 161441 | S97: 160439 | T97: 126333 | U97: 135852 | V97: 160286 | W97: 157412 | X97: 109883 | Y97: 99578 | Z97: 131458 | AA97: 97785 | AB97: 92054 | AC97: 60620 | AD97: 50526 | AE97: 95588 | AF97: 27797 | AG97: 27330 | AH97: 64000 | AI97: 15041 | AJ97: 0
A98: Outras contas a pagar | B98: 37957 | C98: 41145 | D98: 44608 | E98: 41562 | F98: 48484 | G98: 45500 | H98: 42730 | I98: 50561 | J98: 60220 | K98: 66588 | L98: 63874 | M98: 34662 | N98: 35738 | O98: 35270 | P98: 36780 | Q98: 51238 | R98: 16989 | S98: 33317 | T98: 24389 | U98: 18087 | V98: 14198 | W98: 12292 | X98: 10343 | Y98: 10266 | Z98: 10189 | AA98: 10127 | AB98: 10261 | AC98: 10249 | AD98: 10248 | AE98: 10302 | AF98: 10272 | AG98: 9986 | AH98: 9973 | AI98: 10168 | AJ98: 10513 | AK98: 10306 | AL98: 10017 | AM98: 10070 | AN98: 10149 | AO98: 14389 | AP98: 14469 | AQ98: 14548 | AR98: 14628 | AS98: 17050 | AT98: 14784 | AU98: 35943 | AV98: 36023 | AW98: 36101 | AX98: 26164 | AY98: 19956 | AZ98: 20033
A99: Patrimônio Líquido | B99: =SUM(B100:B105) -> 753951 | C99: =SUM(C100:C105) -> 1093538 | D99: =SUM(D100:D105) -> 982597 | E99: =SUM(E100:E105) -> 914931 | F99: 892956 | G99: 1446754 | H99: 1290518 | I99: 1208020 | J99: 1177885 | K99: 1106778 | L99: 987963 | M99: 1223880 | N99: 1111709 | O99: 1297522 | P99: 1243488 | Q99: 1308463 | R99: 1182199 | S99: 1270330 | T99: 1197409 | U99: 1110604 | V99: 1073444 | W99: 1144910 | X99: 1105701 | Y99: 1041116 | Z99: 1015467 | AA99: 1046436 | AB99: 1002182 | AC99: 1032519 | AD99: 1000647 | AE99: 1141441 | AF99: 1133485 | AG99: 1136417 | AH99: 1089230 | AI99: 1131098 | AJ99: 1068756 | AK99: 944678 | AL99: 952684 | AM99: 1020272 | AN99: 1104256 | AO99: 1019624 | AP99: 887283 | AQ99: 806315 | AR99: 779289 | AS99: 684381 | AT99: 690769 | AU99: 846472 | AV99: 791368 | AW99: 866408 | AX99: 813015 | AY99: 915722 | AZ99: 820271
A100: Capital social | B100: 596669 | C100: 596669 | D100: 596669 | E100: 596669 | F100: 596669 | G100: 596669 | H100: 596669 | I100: 596669 | J100: 596669 | K100: 596669 | L100: 596669 | M100: 596669 | N100: 596669 | O100: 596669 | P100: 596669 | Q100: 596669 | R100: 596669 | S100: 596669 | T100: 596669 | U100: 596669 | V100: 596669 | W100: 596669 | X100: 596669 | Y100: 596669 | Z100: 596669 | AA100: 596669 | AB100: 596669 | AC100: 596669 | AD100: 596669 | AE100: 596669 | AF100: 596669 | AG100: 339628 | AH100: 339628 | AI100: 339628 | AJ100: 339628 | AK100: 339628 | AL100: 339628 | AM100: 339628 | AN100: 339628 | AO100: 339628 | AP100: 339628 | AQ100: 254628 | AR100: 254628 | AS100: 254628 | AT100: 254628 | AU100: 254628 | AV100: 254628 | AW100: 254628 | AX100: 254628 | AY100: 254628 | AZ100: 254628
A101: Reservas de capital | B101: 77687 | C101: 77687 | D101: 77687 | E101: 77687 | F101: 77687 | G101: 77687 | H101: 77687 | I101: 77687 | J101: 77687 | K101: 77687 | L101: 77687 | M101: 77687 | N101: 77687 | O101: 77687 | P101: 77687 | Q101: 77687 | R101: 77687 | S101: 77687 | T101: 77687 | U101: 77687 | V101: 77687 | W101: 77687 | X101: 77687 | Y101: 77687 | Z101: 77687 | AA101: 77687 | AB101: 77687 | AC101: 77687 | AD101: 77687 | AE101: 77687 | AF101: 77687 | AG101: 334728 | AH101: 334728 | AI101: 334728 | AJ101: 334728 | AK101: 334728 | AL101: 334728 | AM101: 334728 | AN101: 334728 | AO101: 334728 | AP101: 334728 | AQ101: 334728 | AR101: 334728 | AS101: 334728 | AT101: 334728 | AU101: 334728 | AV101: 334728 | AW101: 334728 | AX101: 334728 | AY101: 334728 | AZ101: 334728
A102: Reservas de lucros | B102: 133965 | C102: 515747 | D102: 515747 | E102: 133966 | F102: 133965 | G102: 851966 | H102: 851966 | I102: 529598 | J102: 529598 | K102: 529598 | L102: 529598 | M102: 495516 | N102: 495516 | O102: 734168 | P102: 734168 | Q102: 484657 | R102: 484657 | S102: 621181 | T102: 621181 | U102: 383577 | V102: 383577 | W102: 502347 | X102: 502347 | Y102: 305269 | Z102: 305269 | AA102: 373871 | AB102: 373871 | AC102: 298198 | AD102: 298198 | AE102: 475355 | AF102: 475355 | AG102: 335100 | AH102: 335100 | AI102: 399651 | AJ102: 399651 | AK102: 254448 | AL102: 254448 | AM102: 290294 | AN102: 402327 | AO102: 182802 | AP102: 182802 | AQ102: 189933 | AR102: 263666 | AS102: 62480 | AT102: 62480 | AU102: 228504 | AV102: 228504 | AW102: 60944 | AX102: 60944 | AY102: 262934 | AZ102: 262934
A103: Outros resultados abrangentes | B103: -244397 | C103: -218758 | D103: -207506 | E103: -206014 | F103: -193204 | G103: -235804 | H103: -235804 | I103: -205873 | J103: -205873 | K103: -215991 | L103: -215991 | M103: -156545 | N103: -156545 | O103: -165036 | P103: -165036 | Q103: -81777 | R103: -81777 | S103: -98128 | T103: -98128 | U103: -65360 | V103: -65360 | W103: -71002 | X103: -71002 | Y103: -55080 | Z103: -55080 | AA103: -47410 | AB103: -46045 | AC103: -43672 | AD103: -36746 | AE103: -28369 | AF103: -16226 | AG103: -20523 | AH103: -20523 | AI103: -5251 | AJ103: -5251 | AK103: 16052 | AL103: 21344 | AM103: 24012 | AN103: 27573 | AO103: 0 | AP103: 0 | AQ103: 0 | AR103: -73733 | AS103: -13602 | AT103: -13602 | AU103: -26492 | AV103: -26492 | AW103: 26348 | AX103: 26348 | AY103: -32019 | AZ103: -32019
A104: Ações em tesouraria | B104: 0 | C104: 0 | D104: 0 | E104: 0 | F104: 0 | G104: 0 | H104: 0 | I104: 0 | J104: 0 | K104: 0 | L104: 0 | M104: 0 | N104: 0 | O104: 0 | P104: - | Q104: - | R104: - | S104: - | T104: - | U104: - | V104: - | W104: - | X104: - | Y104: 0 | Z104: 0 | AA104: 0 | AB104: 0 | AC104: 0 | AD104: 0 | AE104: 0 | AF104: 0 | AG104: 0 | AH104: 0 | AI104: 0 | AJ104: 0 | AK104: 0 | AL104: 0 | AM104: 0 | AN104: 0 | AO104: 0 | AP104: 0 | AQ104: 0 | AR104: 0 | AS104: 0 | AT104: 0 | AU104: 0 | AV104: 0 | AW104: 0 | AX104: 0 | AY104: 0 | AZ104: 0
A105: Lucros acumulados | B105: 190027 | C105: 122193 | D105: 0 | E105: 312623 | F105: 277839 | G105: 156236 | H105: 0 | I105: 209939 | J105: 179804 | K105: 118815 | L105: 0 | M105: 210553 | N105: 98382 | O105: 54034 | P105: - | Q105: 231227 | R105: 104963 | S105: 72921 | T105: - | U105: 118031 | V105: 80871 | W105: 39209 | X105: - | Y105: 116571 | Z105: 90922 | AA105: 45619 | AB105: 0 | AC105: 103637 | AD105: 64839 | AE105: 20099 | AF105: 0 | AG105: 147484 | AH105: 100297 | AI105: 62342 | AJ105: 0 | AK105: -178 | AL105: 2536 | AM105: 31610 | AN105: 0 | AO105: 162466 | AP105: 30125 | AQ105: 27026 | AR105: 0 | AS105: 46147 | AT105: 52535 | AU105: 55104 | AV105: 0 | AW105: 189760 | AX105: 136367 | AY105: 95451 | AZ105: 0
A106: TOTAL DO PASSIVO | B106: =SUM(B99+B78+B56) -> 6732146 | C106: =SUM(C99+C78+C56) -> 6669164 | D106: =SUM(D99+D78+D56) -> 6595606 | E106: =SUM(E99+E78+E56) -> 6437349 | F106: 6472427 | G106: 7153823 | H106: 7214987 | I106: 6399660 | J106: 5889029 | K106: 6207733 | L106: 6097354 | M106: 6149474 | N106: 5925481 | O106: 5369355 | P106: 5513653 | Q106: 4334798 | R106: 4101599 | S106: 4233195 | T106: 4038785 | U106: 4131570 | V106: 3898363 | W106: 3805319 | X106: 3677691 | Y106: 3715446 | Z106: 3082148 | AA106: 3085625 | AB106: 3137379 | AC106: 3439389 | AD106: 3230528 | AE106: 3352529 | AF106: 3332050 | AG106: 3200273 | AH106: 3336096 | AI106: 2940196 | AJ106: 2769806 | AK106: 2532990 | AL106: 2643481 | AM106: 2529293 | AN106: 2457370 | AO106: 2551574 | AP106: 2500921 | AQ106: 2482832 | AR106: 2401488 | AS106: 2447503 | AT106: 2430750 | AU106: 2493144 | AV106: 2577538 | AW106: 2523583 | AX106: 2499723 | AY106: 2542123 | AZ106: 2656839
B108: =B106-B53 -> 0 | C108: =C106-C53 -> 0 | D108: =D106-D53 -> 0

Sheet EDP SP EN"
A2: EDP SP
A4: R$ Thousand | B4: Jun-23 | C4: Mar-23 | D4: Dec-22 | E4: Sep-22 | F4: 2022-06-01 | G4: 2022-03-01 | H4: Dec-21 | I4: Sep-21 | J4: 2021-06-30 | K4: 2021-03-01 | L4: 2020-12-30 | M4: Sep-20 | N4: 2020-06-30 | O4: 2020-03-31 | P4: 2019-12-30 | Q4: Sep-19 | R4: 2019-06-30 | S4: 2019-03-31 | T4: 2018-12-30 | U4: Sep-18 | V4: 2018-06-30 | W4: 2018-03-31 | X4: 2017-12-31 | Y4: Sep-17 | Z4: 2017-06-30 | AA4: 2017-03-31 | AB4: 2016-12-31 | AC4: Sep-16 | AD4: 2016-06-30 | AE4: 2016-03-31 | AF4: 2015-12-31 | AG4: Sep-15 | AH4: 2015-06-30 | AI4: 2015-03-31 | AJ4: 2014-12-31 | AK4: Sep-14 | AL4: 2014-06-30 | AM4: 2014-03-31 | AN4: 2013-12-31 | AO4: Sep-13 | AP4: 2013-06-30 | AQ4: 2013-03-31 | AR4: 2012-12-30 | AS4: Sep-12 | AT4: 2012-06-30 | AU4: 2012-03-31 | AV4: 2011-12-31 | AW4: Sep-11 | AX4: 2011-06-30 | AY4: 2011-03-31 | AZ4: 2010-12-31
B5: 2Q23 | C5: 1Q23 | D5: 4Q22 | E5: 3Q22 | F5: 2Q22 | G5: 1Q22 | H5: 4Q21 | I5: 3Q21 | J5: 2Q21 | K5: 1Q21 | L5: 4Q20 | M5: 3Q20 | N5: 2Q20 | O5: 1Q20 | P5: 4Q19 | Q5: 3Q19 | R5: 2Q19 | S5: 1Q19 | T5: 4Q18 | U5: 3Q18 | V5: 2Q18 | W5: 1Q18 | X5: 4Q17 | Y5: 3Q17 | Z5: 2Q17 | AA5: 1Q17 | AB5: 4Q16 | AC5: 3Q16 | AD5: 2Q16 | AE5: 1Q16 | AF5: 4Q15 | AG5: 3Q15 | AH5: 2Q15 | AI5: 1Q15 | AJ5: 4Q14 | AK5: 3Q14 | AL5: 2Q14 | AM5: 1Q14 | AN5: 4Q13 | AO5: 3Q13 | AP5: 2Q13 | AQ5: 1Q13 | AR5: 4Q12 | AS5: 3Q12 | AT5: 2Q12 | AU5: 1Q12 | AV5: 4Q11 | AW5: 3Q11 | AX5: 2Q11 | AY5: 1Q11 | AZ5: 4Q10
A7: ASSETS
A8: CURRENT ASSETS | B8: ='EDP SP"'!B8 -> 1733057 | C8: ='EDP SP"'!C8 -> 1872930 | D8: ='EDP SP"'!D8 -> 2039494 | E8: ='EDP SP"'!E8 -> 2136878 | F8: ='EDP SP"'!F8 -> 2309117 | G8: 2858193 | H8: 2755689 | I8: 2370776 | J8: 2026915 | K8: 2211299 | L8: 2128711 | M8: 2474343 | N8: 2283161 | O8: 1814499 | P8: 2001416 | Q8: 1707561 | R8: 1638837 | S8: 1757276 | T8: 1601961 | U8: 1751985 | V8: 1618873 | W8: 1552432 | X8: 1423101 | Y8: 1495826 | Z8: 981529 | AA8: 1006964 | AB8: 1094454 | AC8: 1418554 | AD8: 1329391 | AE8: 1640866 | AF8: 1691079 | AG8: 1736200 | AH8: 1747118 | AI8: 1337986 | AJ8: 1131637 | AK8: 920866 | AL8: 1023981 | AM8: 914764 | AN8: 841452 | AO8: 1004210 | AP8: 872704 | AQ8: 879405 | AR8: 785672 | AS8: 892478 | AT8: 879630 | AU8: 873609 | AV8: 981673 | AW8: 948597 | AX8: 909220 | AY8: 977098 | AZ8: 1103176
A9: Cash and cash equivalents | B9: ='EDP SP"'!B9 -> 296065 | C9: ='EDP SP"'!C9 -> 394064 | D9: ='EDP SP"'!D9 -> 629265 | E9: ='EDP SP"'!E9 -> 659665 | F9: ='EDP SP"'!F9 -> 587775 | G9: 707468 | H9: 687156 | I9: 348736 | J9: 307770 | K9: 492796 | L9: 469267 | M9: 975049 | N9: 755960 | O9: 248160 | P9: 422018 | Q9: 394117 | R9: 266884 | S9: 284739 | T9: 151754 | U9: 286992 | V9: 191379 | W9: 152891 | X9: 132915 | Y9: 370851 | Z9: 272083 | AA9: 219963 | AB9: 355496 | AC9: 488664 | AD9: 355894 | AE9: 429602 | AF9: 301943 | AG9: 337873 | AH9: 507810 | AI9: 302810 | AJ9: 282437 | AK9: 331122 | AL9: 449860 | AM9: 231924 | AN9: 333989 | AO9: 215570 | AP9: 249206 | AQ9: 187954 | AR9: 111544 | AS9: 196172 | AT9: 183958 | AU9: 188232 | AV9: 191654 | AW9: 246060 | AX9: 163423 | AY9: 281848 | AZ9: 364086
A10: Marketable securities | B10: ='EDP SP"'!B10 -> 0 | C10: ='EDP SP"'!C10 -> 0 | D10: ='EDP SP"'!D10 -> 0 | E10: ='EDP SP"'!E10 -> 0 | F10: ='EDP SP"'!F10 -> 0 | G10: 0 | H10: 0 | I10: 0 | J10: 0 | K10: 0 | L10: 0 | M10: 0 | N10: 0 | O10: 0 | P10: - | Q10: - | R10: - | S10: - | T10: - | U10: - | V10: - | W10: 46197 | X10: - | Y10: 0 | Z10: 0 | AA10: 0 | AB10: 0 | AC10: 0 | AD10: 0 | AE10: 0 | AF10: 0 | AG10: 0 | AH10: 0 | AI10: 0 | AJ10: 0 | AK10: 0 | AL10: 0 | AM10: 0 | AN10: 0 | AO10: 0 | AP10: 0 | AQ10: 0 | AR10: 0 | AS10: 0 | AT10: 0 | AU10: 0 | AV10: 0 | AW10: 0 | AX10: 0 | AY10: 0 | AZ10: 0
A11: Deferred taxes | B11: ='EDP SP"'!B11 -> 0 | C11: ='EDP SP"'!C11 -> 0 | D11: ='EDP SP"'!D11 -> 0 | E11: ='EDP SP"'!E11 -> 0 | F11: ='EDP SP"'!F11 -> 0 | G11: 0 | H11: 0 | I11: 0 | J11: 0 | K11: 0 | L11: 0 | M11: 0 | N11: 0 | O11: 0 | P11: - | Q11: - | R11: - | S11: - | T11: - | U11: - | V11: - | W11: - | X11: - | Y11: 0 | Z11: 18785 | AA11: 28787 | AB11: 34824 | AC11: 42251 | AD11: 22395 | AF11: 0
A12: Accounts receivable | B12: ='EDP SP"'!B12 -> 0 | C12: ='EDP SP"'!C12 -> 0 | D12: ='EDP SP"'!D12 -> 0 | E12: ='EDP SP"'!E12 -> 0 | F12: ='EDP SP"'!F12 -> 0 | G12: 0 | H12: 0 | I12: 0 | J12: 0 | K12: 0 | L12: 0 | M12: 0 | N12: 0 | O12: 0 | P12: - | Q12: - | R12: - | S12: - | T12: - | U12: - | V12: - | W12: - | X12: - | Y12: 0 | Z12: 0 | AA12: 0 | AB12: 0 | AC12: 0 | AD12: 0 | AE12: 0 | AF12: 0 | AG12: 0 | AH12: 0 | AI12: 0 | AJ12: 0 | AK12: 0 | AL12: 0 | AM12: 0 | AN12: 0 | AO12: 0 | AP12: 0 | AQ12: 0 | AR12: 0 | AS12: 0 | AT12: 0 | AU12: 0 | AV12: 0 | AW12: 0 | AX12: 0 | AY12: 0 | AZ12: 0
A13: Financial asset to be indemnified | B13: ='EDP SP"'!B13 -> 0 | C13: ='EDP SP"'!C13 -> 0 | D13: ='EDP SP"'!D13 -> 0 | E13: ='EDP SP"'!E13 -> 0 | F13: ='EDP SP"'!F13 -> 0 | G13: 0 | H13: 0 | I13: 0 | J13: 0 | K13: 0 | L13: 0 | M13: 0 | N13: 0 | O13: 0 | P13: - | Q13: - | R13: - | S13: - | T13: - | U13: - | V13: - | W13: - | X13: - | Y13: 0 | Z13: 0 | AA13: 0 | AB13: 0 | AC13: 0 | AD13: 0 | AE13: 0 | AF13: 0 | AG13: 0 | AH13: 0 | AI13: 0 | AJ13: 0 | AK13: 0 | AL13: 0 | AM13: 0 | AN13: 0 | AO13: 0 | AP13: 0 | AQ13: 0 | AR13: 0 | AS13: 0 | AT13: 0 | AU13: 0 | AV13: 0 | AZ13: 0
A14: Consumers and concessionaires | B14: ='EDP SP"'!B14 -> 1026505 | C14: ='EDP SP"'!C14 -> 1071299 | D14: ='EDP SP"'!D14 -> 1035561 | E14: ='EDP SP"'!E14 -> 1003005 | F14: ='EDP SP"'!F14 -> 1102669 | G14: 1329022 | H14: 1235716 | I14: 1104565 | J14: 1012352 | K14: 1163143 | L14: 1105254 | M14: 1036007 | N14: 1001807 | O14: 1048930 | P14: 1054696 | Q14: 1140420 | R14: 1116709 | S14: 1128141 | T14: 1040969 | U14: 999498 | V14: 916079 | W14: 921199 | X14: 819444 | Y14: 645352 | Z14: 607671 | AA14: 667186 | AB14: 617737 | AC14: 778335 | AD14: 772252 | AE14: 812017 | AF14: 817882 | AG14: 702566 | AH14: 713528 | AI14: 709601 | AJ14: 520910 | AK14: 464066 | AL14: 471850 | AM14: 504914 | AN14: 461629 | AO14: 463689 | AP14: 477965 | AQ14: 569925 | AR14: 601889 | AS14: 473348 | AT14: 481590 | AU14: 477714 | AV14: 453640 | AW14: 449931 | AX14: 458460 | AY14: 447673 | AZ14: 430004
A15: Income and social contribution taxes | B15: ='EDP SP"'!B15 -> 8340 | C15: ='EDP SP"'!C15 -> 8112 | D15: ='EDP SP"'!D15 -> 17907 | E15: ='EDP SP"'!E15 -> 27641 | F15: ='EDP SP"'!F15 -> 58602 | G15: 62726 | H15: 64020 | I15: 16096 | J15: 15801 | K15: 15802 | L15: 15802 | M15: 6024 | N15: 6024 | O15: 11224 | P15: 11129 | Q15: 1318 | R15: 1317 | S15: 33582 | T15: 69036 | U15: 94098 | V15: 145821 | W15: 242206 | X15: 341179 | Y15: 413816 | Z15: 24498 | AA15: 22105 | AB15: 32208 | AC15: 31096 | AD15: 24802 | AE15: 22427 | AF15: 41339 | AG15: 51054 | AH15: 51225 | AI15: 24623 | AJ15: 41294 | AK15: 19754 | AL15: 27787 | AM15: 14764 | AN15: 16085 | AO15: 20413 | AP15: 29213 | AQ15: 26252 | AR15: 31273 | AS15: 145335 | AT15: 116139 | AU15: 112547 | AV15: 232456 | AW15: 160461 | AX15: 169336 | AY15: 138241 | AZ15: 199542
A16: Deferred income and social contribution taxes | B16: ='EDP SP"'!B16 -> 122579 | C16: ='EDP SP"'!C16 -> 116596 | D16: ='EDP SP"'!D16 -> 151286 | E16: ='EDP SP"'!E16 -> 169344 | F16: ='EDP SP"'!F16 -> 230236 | G16: 222129 | H16: 214755 | I16: 277422 | J16: 274403 | K16: 273236 | L16: 337845 | M16: 346303 | N16: 346078 | O16: 341287 | P16: 341307 | Q16: 13352 | R16: 12310 | S16: 12179 | T16: 19164 | U16: - | V16: - | W16: - | X16: - | Y16: 0 | Z16: 0 | AA16: - | AB16: 0 | AC16: 0 | AD16: 0 | AE16: 0 | AF16: 0 | AG16: 0 | AH16: 0 | AI16: 0 | AJ16: 0 | AK16: 0 | AL16: 0 | AM16: 0 | AN16: 0 | AO16: 0 | AP16: 0 | AQ16: 0 | AR16: 0 | AS16: 0 | AT16: 0 | AU16: 0 | AV16: 0 | AW16: 0 | AX16: 0 | AY16: 0 | AZ16: 0
A17: Related parties | B17: ='EDP SP"'!B17 -> 0 | C17: ='EDP SP"'!C17 -> 0 | D17: ='EDP SP"'!D17 -> 0 | E17: ='EDP SP"'!E17 -> 0 | F17: ='EDP SP"'!F17 -> 0 | G17: 0 | H17: 0 | I17: 0 | J17: 0 | K17: 0 | L17: 0 | M17: 0 | N17: 0 | O17: 0 | P17: - | Q17: - | R17: - | S17: - | T17: - | U17: - | V17: - | W17: - | X17: - | Y17: 0 | Z17: 0 | AA17: 0 | AB17: 0 | AC17: 0 | AD17: - | AE17: 0 | AF17: 0 | AG17: 0 | AH17: 0 | AI17: 0 | AJ17: 0 | AK17: 0 | AL17: 0 | AM17: 0 | AN17: 0 | AO17: 0 | AP17: 0 | AQ17: 0 | AR17: 0 | AS17: 0 | AT17: 0 | AU17: 0 | AV17: 0 | AW17: 0 | AX17: 0 | AY17: 0 | AZ17: 0
A18: Financial Derivatives Instruments | B18: ='EDP SP"'!B18 -> 4219 | C18: ='EDP SP"'!C18 -> 0 | D18: ='EDP SP"'!D18 -> 0 | E18: ='EDP SP"'!E18 -> 0
A19: Dividends receivable | B19: ='EDP SP"'!B19 -> 0 | C19: ='EDP SP"'!C19 -> 0 | D19: ='EDP SP"'!D19 -> 0 | E19: ='EDP SP"'!E19 -> 0 | F19: ='EDP SP"'!F19 -> 0 | G19: 0 | H19: 0 | I19: 0 | J19: 0 | K19: 0 | L19: 0 | M19: 0 | N19: 0 | O19: 0 | P19: - | Q19: - | R19: - | S19: - | T19: - | U19: - | V19: - | W19: - | X19: - | Y19: 0 | Z19: 0 | AA19: 0 | AB19: 0 | AC19: 0 | AD19: 0 | AE19: 0 | AF19: 0 | AG19: 0 | AH19: 0 | AI19: 0 | AJ19: 0 | AK19: 0 | AL19: 0 | AM19: 0 | AN19: 0 | AO19: 0 | AP19: 0 | AQ19: 0 | AR19: 0 | AS19: 0 | AT19: 0 | AU19: 0 | AV19: 0 | AW19: 0 | AX19: 0 | AY19: 0 | AZ19: 0
A20: Inventories | B20: ='EDP SP"'!B20 -> 26266 | C20: ='EDP SP"'!C20 -> 24897 | D20: ='EDP SP"'!D20 -> 21782 | E20: ='EDP SP"'!E20 -> 23949 | F20: ='EDP SP"'!F20 -> 26273 | G20: 19248 | H20: 16191 | I20: 17346 | J20: 19739 | K20: 22301 | L20: 15832 | M20: 14745 | N20: 12675 | O20: 11941 | P20: 12297 | Q20: 15152 | R20: 13592 | S20: - | T20: - | U20: 9145 | V20: 10497 | W20: 8859 | X20: 7909 | Y20: 7414 | Z20: 8224 | AA20: 3587 | AB20: 3667 | AC20: 5540 | AD20: 5706 | AE20: 4537 | AF20: 4427 | AG20: 4021 | AH20: 3889 | AI20: 3330 | AJ20: 4430 | AK20: 4502 | AL20: 7145 | AM20: 5452 | AN20: 3960 | AO20: 3095 | AP20: 17395 | AQ20: 18410 | AR20: 15648 | AS20: 17303 | AT20: 23240 | AU20: 23625 | AV20: 21174 | AW20: 20273 | AX20: 19782 | AY20: 17262 | AZ20: 15436
A21: Collaterals and committed deposits | B21: ='EDP SP"'!B21 -> 236 | C21: ='EDP SP"'!C21 -> 236 | D21: ='EDP SP"'!D21 -> 235 | E21: ='EDP SP"'!E21 -> 197 | F21: ='EDP SP"'!F21 -> 197 | G21: 197 | H21: 197 | I21: 197 | J21: 197 | K21: 197 | L21: 197 | M21: 230 | N21: 230 | O21: 262 | P21: 229 | Q21: 130 | R21: 130 | S21: 282 | T21: 286 | U21: 286 | V21: 286 | W21: 234 | X21: 229 | Y21: 259 | Z21: 375 | AA21: 276 | AB21: 279 | AC21: 250 | AD21: 134 | AE21: 134 | AF21: 134 | AG21: 134 | AH21: 2295 | AI21: 2788 | AJ21: 764 | AK21: 161 | AL21: 160 | AM21: 246 | AN21: 245 | AO21: 184 | AP21: 134 | AQ21: 327 | AR21: 327 | AS21: 327 | AT21: 327 | AU21: 130 | AV21: 149 | AW21: 148 | AX21: 145 | AY21: 288 | AZ21: 362
A22: Premium Risk - GSF | B22: ='EDP SP"'!B22 -> 0 | C22: ='EDP SP"'!C22 -> 0 | D22: ='EDP SP"'!D22 -> 0 | E22: ='EDP SP"'!E22 -> 0 | F22: ='EDP SP"'!F22 -> - | G22: - | H22: 0 | I22: 0 | J22: 0 | K22: 0 | L22: 0 | M22: 0 | N22: 0 | O22: 0 | P22: - | Q22: - | R22: - | S22: - | T22: - | U22: - | V22: - | W22: - | X22: - | Y22: 0 | Z22: 0 | AA22: 0 | AB22: 0 | AC22: 0 | AD22: 0 | AE22: 0 | AF22: 0 | AJ22: 0
A23: Non-current assets held for sale | B23: ='EDP SP"'!B23 -> 0 | C23: ='EDP SP"'!C23 -> 0 | D23: ='EDP SP"'!D23 -> 0 | E23: ='EDP SP"'!E23 -> 0 | F23: ='EDP SP"'!F23 -> 0 | G23: 0 | H23: 0 | I23: 0 | J23: 0 | K23: 0 | L23: 0 | M23: 0 | N23: 0 | O23: 0 | P23: - | Q23: - | R23: - | S23: - | T23: - | U23: - | V23: - | W23: - | X23: - | Y23: 0 | Z23: 0 | AA23: 0 | AB23: 0 | AC23: 0 | AD23: 0 | AE23: 0 | AF23: 0 | AJ23: 0
A24: Prepaid expenses | B24: ='EDP SP"'!B24 -> 0 | C24: ='EDP SP"'!C24 -> 0 | D24: ='EDP SP"'!D24 -> 0 | E24: ='EDP SP"'!E24 -> 0 | F24: ='EDP SP"'!F24 -> - | G24: - | H24: 0 | I24: 0 | J24: 0 | K24: 0 | L24: 0 | M24: 0 | N24: 0 | O24: 0 | P24: - | Q24: - | R24: - | S24: - | T24: - | U24: - | V24: - | W24: - | X24: - | Y24: 0 | Z24: 0 | AA24: 0 | AB24: 0 | AC24: 0 | AD24: 0 | AE24: 0 | AF24: 0 | AG24: 1125 | AH24: 2148 | AI24: 1695 | AJ24: 0 | AK24: 883 | AL24: 1731 | AM24: 1590 | AN24: 11 | AO24: 654 | AP24: 622 | AQ24: 1478 | AR24: 133 | AS24: 356 | AT24: 799 | AU24: 1291 | AV24: 1050 | AW24: 359 | AX24: 973 | AY24: 994 | AZ24: 1097
A25: Account for compensation in variation of installment "A" costs | B25: ='EDP SP"'!B25 -> 0 | C25: ='EDP SP"'!C25 -> 0 | D25: ='EDP SP"'!D25 -> 0 | E25: ='EDP SP"'!E25 -> 0 | F25: ='EDP SP"'!F25 -> - | G25: - | H25: 0 | I25: 0 | J25: 0 | K25: 0 | L25: 0 | M25: 0 | N25: 0 | O25: 0 | P25: - | Q25: - | R25: - | S25: - | T25: - | U25: - | V25: - | W25: - | X25: - | Y25: 0 | Z25: 0 | AA25: 0 | AB25: 0 | AC25: 0 | AD25: - | AE25: 0 | AF25: 0 | AG25: 0 | AH25: 0 | AI25: 0 | AJ25: 0 | AS25: 0 | AT25: 0 | AU25: 0 | AV25: 0 | AX25: 0 | AY25: 0 | AZ25: 0
A26: Other receivable revenues | B26: ='EDP SP"'!B26 -> 0 | C26: ='EDP SP"'!C26 -> 0 | D26: ='EDP SP"'!D26 -> 0 | E26: ='EDP SP"'!E26 -> 0 | F26: ='EDP SP"'!F26 -> 0 | G26: 0 | H26: 0 | I26: 0 | J26: 0 | K26: 0 | L26: 0 | M26: 0 | N26: 0 | O26: 0 | P26: - | Q26: - | R26: - | S26: - | T26: - | U26: - | V26: - | W26: - | X26: - | Y26: 0 | Z26: 0 | AA26: 0 | AB26: 0 | AC26: 0 | AD26: 0 | AE26: 0 | AF26: 0 | AG26: 0 | AH26: 0 | AI26: 0 | AJ26: 0 | AK26: 0 | AL26: 0 | AM26: 0 | AN26: 0 | AO26: 0 | AP26: 0 | AQ26: 0 | AR26: 0 | AS26: 0 | AT26: 0 | AU26: 0 | AV26: 0 | AW26: 0 | AX26: 0 | AY26: 0 | AZ26: 0
A27: Securities | B27: ='EDP SP"'!B27 -> 88340 | C27: ='EDP SP"'!C27 -> 85603
A28: Financial assets available for sale | B28: ='EDP SP"'!B28 -> 28693 | C28: ='EDP SP"'!C28 -> 54537 | D28: ='EDP SP"'!D28 -> 69111 | E28: ='EDP SP"'!E28 -> 110729 | F28: ='EDP SP"'!F28 -> 173342 | G28: 385045 | H28: 366289 | I28: 500973 | J28: 301466 | K28: 148745 | L28: 93072 | M28: 22293 | N28: 90047 | O28: 83452 | P28: 95384 | Q28: 95844 | R28: 182457 | S28: 228233 | T28: 261319 | U28: 320437 | V28: 303276 | W28: 121132 | X28: 55365 | Y28: 12467 | Z28: 6765 | AA28: 6102 | AB28: 1145 | AC28: 34784 | AD28: 82066 | AE28: 334866 | AF28: 470256 | AG28: 575894 | AH28: 408439 | AI28: 242961 | AJ28: 227901 | AK28: 0 | AL28: 0 | AM28: 0 | AN28: 0 | AO28: 0 | AP28: 0 | AQ28: 0 | AR28: 0 | AS28: 0 | AT28: 0 | AU28: 0 | AV28: 0 | AW28: 0 | AX28: 0 | AY28: 0 | AZ28: 0
A29: Reimbuserment Costs - CCEE | B29: ='EDP SP"'!B29 -> 0 | C29: ='EDP SP"'!C29 -> 0 | D29: ='EDP SP"'!D29 -> 0 | E29: ='EDP SP"'!E29 -> 0 | F29: ='EDP SP"'!F29 -> - | G29: - | H29: 0 | I29: 0 | J29: 0 | K29: 0 | L29: 0 | M29: 0 | N29: 0 | O29: 0 | P29: - | Q29: - | R29: - | S29: - | T29: - | U29: - | V29: - | W29: - | X29: - | Z29: 0 | AA29: 0 | AB29: 0 | AC29: 0 | AD29: 0 | AE29: 0 | AF29: 0 | AG29: 0 | AH29: 0 | AI29: 0 | AJ29: 0 | AK29: 41220 | AL29: 15895 | AM29: 122110
A30: Other credits | B30: ='EDP SP"'!B30 -> 131814 | C30: ='EDP SP"'!C30 -> 117586 | D30: ='EDP SP"'!D30 -> 114347 | E30: ='EDP SP"'!E30 -> 142348 | F30: ='EDP SP"'!F30 -> 130023 | G30: 132358 | H30: 171365 | I30: 105441 | J30: 95187 | K30: 95079 | L30: 91442 | M30: 73692 | N30: 70340 | O30: 69243 | P30: 64356 | Q30: 47228 | R30: 45438 | S30: 70120 | T30: 59433 | U30: 41529 | V30: 51535 | W30: 59714 | X30: 66060 | Y30: 45667 | Z30: 43128 | AA30: 58958 | AB30: 49098 | AC30: 37634 | AD30: 66142 | AE30: 37283 | AF30: 55098 | AG30: 63533 | AH30: 57784 | AI30: 50178 | AJ30: 53901 | AK30: 59158 | AL30: 49553 | AM30: 33764 | AN30: 25533 | AO30: 300605 | AP30: 98169 | AQ30: 75059 | AR30: 24858 | AS30: 59637 | AT30: 73577 | AU30: 70070 | AV30: 81550 | AW30: 71365 | AX30: 97101 | AY30: 90792 | AZ30: 92649
A31: NON-CURRENT ASSETS | B31: ='EDP SP"'!B31 -> 0 | C31: ='EDP SP"'!C31 -> 0 | D31: ='EDP SP"'!D31 -> 0 | E31: ='EDP SP"'!E31 -> 0 | F31: ='EDP SP"'!F31 -> 0 | H31: 0 | I31: - | J31: 0
A32: Non-Current Assets | B32: ='EDP SP"'!B32 -> 3975508 | C32: ='EDP SP"'!C32 -> 3838551 | D32: ='EDP SP"'!D32 -> 3619036 | E32: ='EDP SP"'!E32 -> 3365037 | F32: ='EDP SP"'!F32 -> 3239298 | G32: 3378502 | H32: 3569409 | I32: 3131611 | J32: 2945458 | K32: 3071621 | L32: 3079462 | M32: 2772139 | N32: 2780243 | O32: 2691553 | P32: 2634785 | Q32: 1726202 | R32: 1586195 | S32: 1618087 | T32: 1589989 | U32: 1368704 | V32: 1305684 | W32: 1279962 | X32: 1241589 | Y32: 1207148 | Z32: 1100723 | AA32: 1094743 | AB32: 1080929 | AC32: 1082497 | AD32: 986655 | AE32: 813997 | AF32: 735148 | AG32: 504270 | AH32: 634896 | AI32: 686709 | AJ32: 713368 | AK32: 647874 | AL32: 652799 | AM32: 622416 | AN32: 613959 | AO32: 590728 | AP32: 639997 | AQ32: 615035 | AR32: 608895 | AS32: 543879 | AT32: 538263 | AU32: 590149 | AV32: 563695 | AW32: 554264 | AX32: 597719 | AY32: 547655 | AZ32: 542044
A33: Marketable securities | B33: ='EDP SP"'!B33 -> 0 | C33: ='EDP SP"'!C33 -> 0 | D33: ='EDP SP"'!D33 -> 0 | E33: ='EDP SP"'!E33 -> 0 | F33: ='EDP SP"'!F33 -> 0 | G33: 0 | H33: 0 | I33: 0 | J33: 0 | K33: 0 | L33: 0 | M33: 0 | N33: 0 | O33: 0 | P33: - | Q33: - | R33: - | S33: - | T33: - | U33: - | V33: - | W33: - | X33: - | Y33: 0 | Z33: 0 | AA33: 0 | AB33: 0 | AC33: 0 | AD33: 0 | AE33: 0 | AF33: 0 | AG33: 0 | AH33: 0 | AI33: 0 | AJ33: 0 | AK33: 0 | AL33: 0 | AM33: 0 | AN33: 0 | AO33: 0 | AP33: 0 | AQ33: 0 | AR33: 0 | AS33: 0 | AT33: 0 | AU33: 0 | AV33: 0 | AW33: 0 | AX33: 0 | AY33: 0 | AZ33: 0
A34: Accounts receivable | B34: ='EDP SP"'!B34 -> 0 | C34: ='EDP SP"'!C34 -> 0 | D34: ='EDP SP"'!D34 -> 0 | E34: ='EDP SP"'!E34 -> 0 | F34: ='EDP SP"'!F34 -> 0 | G34: 0 | H34: 0 | I34: 0 | J34: 0 | K34: 0 | L34: 0 | M34: 0 | N34: 0 | O34: 0 | P34: - | Q34: - | R34: - | S34: - | T34: - | U34: - | V34: - | W34: - | X34: - | Y34: 0 | Z34: 0 | AA34: 0 | AB34: 0 | AC34: 0 | AD34: 0 | AE34: 0 | AF34: 0 | AG34: 0 | AH34: 0 | AI34: 0 | AJ34: 0 | AK34: 0 | AL34: 0 | AM34: 0 | AN34: 0 | AO34: 0 | AP34: 0 | AQ34: 0 | AR34: 0 | AS34: 0 | AT34: 0 | AU34: 0 | AV34: 0 | AW34: 0 | AX34: 0 | AY34: 0 | AZ34: 0
A35: Financial asset to be indemnified | B35: ='EDP SP"'!B35 -> 2774314 | C35: ='EDP SP"'!C35 -> 2530700 | D35: ='EDP SP"'!D35 -> 2320880 | E35: ='EDP SP"'!E35 -> 2185807 | F35: ='EDP SP"'!F35 -> 2061129 | G35: 1907581 | H35: 1799077 | I35: 1679000 | J35: 1589266 | K35: 1525074 | L35: 1428130 | M35: 1336199 | N35: 1277454 | O35: 1248093 | P35: 1211586 | Q35: 1162962 | R35: 1036870 | S35: 961986 | T35: 916218 | U35: 873587 | V35: 850120 | W35: 804897 | X35: 736074 | Y35: 704807 | Z35: 677433 | AA35: 653658 | AB35: 626138 | AC35: 603435 | AD35: 570017 | AE35: 554559 | AF35: 520649 | AG35: 326723 | AH35: 322256 | AI35: 353250 | AJ35: 345948 | AK35: 326986 | AL35: 325478 | AM35: 295486 | AN35: 274758 | AO35: 270800 | AP35: 254891 | AQ35: 248279 | AR35: 238834 | AS35: 199751 | AT35: 194249 | AU35: 203150 | AV35: 188432 | AW35: 193560 | AX35: 187613 | AY35: 149921 | AZ35: 135379
A36: Consumers and concessionaires | B36: ='EDP SP"'!B36 -> 29920 | C36: ='EDP SP"'!C36 -> 32518 | D36: ='EDP SP"'!D36 -> 32761 | E36: ='EDP SP"'!E36 -> 27754 | F36: ='EDP SP"'!F36 -> 24744 | G36: 16105 | H36: 15908 | I36: 14449 | J36: 15363 | K36: 14859 | L36: 12443 | M36: 7933 | N36: 6780 | O36: 7446 | P36: 7663 | Q36: 9328 | R36: 12830 | S36: 18019 | T36: 18965 | U36: 17693 | V36: 17980 | W36: 20903 | X36: 37135 | Y36: 36206 | Z36: 37347 | AA36: 41659 | AB36: 47090 | AC36: 44061 | AD36: 43552 | AE36: 46157 | AF36: 47846 | AG36: 42993 | AH36: 46239 | AI36: 46845 | AJ36: 50815 | AK36: 31096 | AL36: 34121 | AM36: 39688 | AN36: 40660 | AO36: 33184 | AP36: 40033 | AQ36: 29434 | AR36: 31363 | AS36: 25369 | AT36: 24632 | AU36: 58342 | AV36: 52943 | AW36: 51856 | AX36: 51171 | AY36: 48315 | AZ36: 48860
A37: Income and social contribution taxes | B37: ='EDP SP"'!B37 -> 35351 | C37: ='EDP SP"'!C37 -> 34479 | D37: ='EDP SP"'!D37 -> 33621 | E37: ='EDP SP"'!E37 -> 19954 | F37: ='EDP SP"'!F37 -> - | G37: - | H37: - | I37: 0 | J37: 0 | K37: 0 | L37: 0 | M37: 0 | N37: 0 | O37: 0 | P37: - | Q37: - | R37: - | S37: - | T37: 101548 | U37: 96537 | V37: 90861 | W37: 87137 | X37: 84866 | Y37: 84561 | Z37: 80871 | AA37: 77451 | AB37: 72688 | AC37: 68393 | AD37: 62781 | AE37: 58973 | AF37: 57326 | AG37: 55269 | AH37: 53018 | AI37: 52391 | AJ37: 51431 | AK37: 51213 | AL37: 47316 | AM37: 47630 | AN37: 43359 | AO37: 36842 | AP37: 32404 | AQ37: 35376 | AR37: 32797 | AS37: 28423 | AT37: 26438 | AU37: 24775 | AV37: 21317 | AW37: 21654 | AX37: 19687 | AY37: 20330 | AZ37: 19481
A38: Deferred income and social contribution taxes | B38: ='EDP SP"'!B38 -> 234943 | C38: ='EDP SP"'!C38 -> 225960 | D38: ='EDP SP"'!D38 -> 212214 | E38: ='EDP SP"'!E38 -> 274622 | F38: ='EDP SP"'!F38 -> 334266 | G38: 450705 | H38: 502476 | I38: 570537 | J38: 594211 | K38: 797480 | L38: 794189 | M38: 832224 | N38: 855335 | O38: 806895 | P38: 804547 | Q38: 111845 | R38: 108409 | S38: 105113 | T38: - | U38: - | V38: - | W38: - | X38: - | Y38: 0 | Z38: 0 | AA38: 0 | AB38: 0 | AC38: 0 | AD38: 0 | AE38: 0 | AF38: 0 | AG38: 0 | AH38: 0 | AI38: 0 | AJ38: 0 | AK38: 164499 | AL38: 151631 | AM38: 134689 | AN38: 150474 | AO38: 149739 | AP38: 212563 | AQ38: 208634 | AR38: 209777 | AS38: 194321 | AT38: 193417 | AU38: 205589 | AV38: 210213 | AW38: 186255 | AX38: 188692 | AY38: 200465 | AZ38: 209117
A39: Deferred taxes | B39: ='EDP SP"'!B39 -> 131913 | C39: ='EDP SP"'!C39 -> 122451 | D39: ='EDP SP"'!D39 -> 148311 | E39: ='EDP SP"'!E39 -> 157700 | F39: ='EDP SP"'!F39 -> 135528 | G39: 170322 | H39: 187493 | I39: 186763 | J39: 208383 | K39: 215346 | L39: 225914 | M39: 208835 | N39: 192824 | O39: 191235 | P39: 192500 | Q39: 134093 | R39: 159294 | S39: 170503 | T39: 152580 | U39: 120811 | V39: 129668 | W39: 136974 | X39: 122814 | Y39: 108381 | Z39: 212964 | AA39: 230867 | AB39: 247905 | AC39: 241997 | AD39: 172734 | AE39: 71368 | AF39: 0 | AG39: 0 | AH39: 23598 | AI39: 42516 | AJ39: 63898 | AK39: 0 | AL39: 0 | AM39: 0 | AN39: 0 | AO39: 0 | AP39: 0 | AQ39: 0 | AR39: 0 | AS39: 0 | AT39: 0 | AU39: 0 | AV39: 0 | AW39: 0 | AX39: 0 | AY39: 0 | AZ39: 0
A40: Related parties | B40: ='EDP SP"'!B40 -> 0 | C40: ='EDP SP"'!C40 -> 0 | D40: ='EDP SP"'!D40 -> 0 | E40: ='EDP SP"'!E40 -> 0 | F40: ='EDP SP"'!F40 -> 0 | G40: 0 | H40: 0 | I40: 0 | J40: 0 | K40: 0 | L40: 0 | M40: 0 | N40: 0 | O40: 0 | P40: - | Q40: - | R40: - | S40: - | T40: - | U40: - | V40: - | W40: - | X40: - | Y40: 0 | Z40: 0 | AA40: 0 | AB40: 0 | AC40: 0 | AD40: 0 | AE40: 0 | AF40: 0 | AG40: 0 | AH40: 0 | AI40: 0 | AJ40: 0 | AK40: 0 | AL40: 295 | AM40: 287 | AN40: 281 | AO40: 274 | AP40: 1052 | AQ40: 1042 | AR40: 1033 | AS40: 1369 | AT40: 1352 | AU40: 1335 | AV40: 1421 | AW40: 477 | AX40: 477 | AY40: 1122 | AZ40: 963
A41: Financial Derivatives Instruments | B41: ='EDP SP"'!B41 -> 107565 | C41: ='EDP SP"'!C41 -> 80640 | D41: ='EDP SP"'!D41 -> 41267 | E41: ='EDP SP"'!E41 -> 0
A42: Advances for future capital increase | B42: ='EDP SP"'!B42 -> 0 | C42: ='EDP SP"'!C42 -> 0 | D42: ='EDP SP"'!D42 -> 0 | E42: ='EDP SP"'!E42 -> 0 | F42: ='EDP SP"'!F42 -> - | G42: - | H42: 0 | I42: 0 | J42: 0 | K42: 0 | L42: 0 | M42: 0 | N42: 0 | O42: 0 | P42: - | Q42: - | R42: - | S42: - | T42: - | U42: - | V42: - | W42: - | X42: - | Y42: 0 | Z42: 0 | AA42: 0 | AB42: 0 | AC42: 0 | AD42: 0 | AE42: 0 | AF42: 0 | AG42: 0 | AH42: 0 | AI42: 0 | AJ42: 0 | AK42: 0 | AL42: 0 | AM42: 0 | AN42: 0 | AO42: 0 | AP42: 0 | AQ42: 0 | AR42: 0 | AS42: 0 | AT42: 0 | AU42: 0 | AV42: 0 | AW42: 0 | AX42: 0 | AY42: 0 | AZ42: 0
A43: Collaterals and committed deposits | B43: ='EDP SP"'!B43 -> 159629 | C43: ='EDP SP"'!C43 -> 157337 | D43: ='EDP SP"'!D43 -> 147574 | E43: ='EDP SP"'!E43 -> 150950 | F43: ='EDP SP"'!F43 -> 138392 | G43: 132968 | H43: 131427 | I43: 131994 | J43: 129887 | K43: 130865 | L43: 126892 | M43: 121338 | N43: 118597 | O43: 117840 | P43: 114847 | Q43: 111888 | R43: 109743 | S43: 113880 | T43: 112202 | U43: 108983 | V43: 98112 | W43: 95699 | X43: 91742 | Y43: 79081 | Z43: 78079 | AA43: 77165 | AB43: 75488 | AC43: 74327 | AD43: 72472 | AE43: 71983 | AF43: 69292 | AG43: 66574 | AH43: 65601 | AI43: 66411 | AJ43: 67248 | AK43: 66021 | AL43: 75956 | AM43: 75026 | AN43: 73720 | AO43: 71665 | AP43: 70607 | AQ43: 68574 | AR43: 70341 | AS43: 67806 | AT43: 71824 | AU43: 71791 | AV43: 63885 | AW43: 70205 | AX43: 135629 | AY43: 116189 | AZ43: 115798
A44: Prepaid expenses | B44: ='EDP SP"'!B44 -> 0 | C44: ='EDP SP"'!C44 -> 0 | D44: ='EDP SP"'!D44 -> 0 | E44: ='EDP SP"'!E44 -> 0 | F44: ='EDP SP"'!F44 -> - | G44: - | H44: 0 | I44: 0 | J44: 0 | K44: 0 | L44: 0 | M44: 0 | N44: 0 | O44: 0 | P44: - | Q44: - | R44: - | S44: - | T44: - | U44: - | V44: - | W44: - | X44: - | Y44: 0 | Z44: 0 | AA44: 0 | AB44: 0 | AC44: 0 | AD44: 0 | AE44: 0 | AF44: 0 | AG44: 0 | AH44: 0 | AI44: 33 | AJ44: 0 | AK44: 0 | AL44: 0 | AM44: 0 | AN44: 0 | AO44: 0 | AP44: 0 | AQ44: 0 | AR44: 0 | AS44: 0 | AT44: 0 | AU44: 0 | AV44: 0 | AW44: 0 | AX44: 0 | AY44: 0 | AZ44: 0
A45: Concession Assets | B45: ='EDP SP"'!B45 -> 460198 | C45: ='EDP SP"'!C45 -> 607120 | D45: ='EDP SP"'!D45 -> 623565 | E45: ='EDP SP"'!E45 -> 538117 | F45: ='EDP SP"'!F45 -> 510799 | G45: 488889 | H45: 427811 | I45: 387742 | J45: 302570 | K45: 253680 | L45: 285113 | M45: 255323 | N45: 298108 | O45: 278575 | P45: 236862 | Q45: 185653 | R45: 148135 | S45: 207239 | T45: 207320 | U45: - | V45: - | W45: - | X45: - | Y45: 0 | Z45: 0 | AA45: 0 | AB45: 0 | AC45: 0 | AD45: 0 | AE45: 0 | AF45: 0 | AG45: 0 | AH45: 0 | AI45: 0 | AJ45: 0 | AK45: 0 | AL45: 0 | AM45: 0 | AN45: 0 | AO45: 0 | AP45: 0 | AQ45: 0 | AR45: 0 | AS45: 0 | AT45: 0 | AU45: 0 | AV45: 0 | AW45: 0 | AX45: 0 | AY45: 0 | AZ45: 0
A46: Account for compensation in variation of installment "A" costs | B46: ='EDP SP"'!B46 -> 30521 | C46: ='EDP SP"'!C46 -> 37072 | D46: ='EDP SP"'!D46 -> 49169 | E46: ='EDP SP"'!E46 -> 0 | F46: ='EDP SP"'!F46 -> 22272 | G46: 200754 | H46: 495569 | I46: 151709 | J46: 95690 | K46: 124031 | L46: 196943 | M46: 0 | N46: 20604 | O46: 30666 | P46: 54492 | Q46: - | R46: - | S46: 29481 | T46: 67977 | U46: 129125 | V46: 99746 | W46: 121132 | X46: 154433 | Y46: 181390 | Z46: 0 | AA46: 0 | AB46: 0 | AC46: 39686 | AD46: 53495 | AE46: 0 | AF46: 28420 | AG46: 0 | AH46: 110262 | AI46: 115177 | AJ46: 123614 | AK46: 0 | AL46: 0 | AM46: 0 | AN46: 0 | AO46: 0 | AP46: 0 | AQ46: 0 | AR46: 0 | AS46: 0 | AT46: 0 | AU46: 0 | AV46: 0 | AW46: 0 | AX46: 0 | AY46: 0 | AZ46: 0
A47: Other credits | B47: ='EDP SP"'!B47 -> 11154 | C47: ='EDP SP"'!C47 -> 10274 | D47: ='EDP SP"'!D47 -> 9674 | E47: ='EDP SP"'!E47 -> 10133 | F47: ='EDP SP"'!F47 -> 12168 | G47: 11178 | H47: 9648 | I47: 9417 | J47: 10088 | K47: 10286 | L47: 9838 | M47: 10287 | N47: 10541 | O47: 10803 | P47: 12288 | Q47: 10433 | R47: 10914 | S47: 11866 | T47: 13179 | U47: 21968 | V47: 19197 | W47: 13220 | X47: 14525 | Y47: 12722 | Z47: 14029 | AA47: 13943 | AB47: 11620 | AC47: 10598 | AD47: 11604 | AE47: 10957 | AF47: 11615 | AG47: 12711 | AH47: 13922 | AI47: 10086 | AJ47: 10414 | AK47: 8059 | AL47: 18002 | AM47: 29610 | AN47: 30707 | AO47: 28224 | AP47: 28447 | AQ47: 23696 | AR47: 24750 | AS47: 26840 | AT47: 26351 | AU47: 25167 | AV47: 25484 | AW47: 30257 | AX47: 14450 | AY47: 11313 | AZ47: 12446
A48: Permanent Assets | B48: ='EDP SP"'!B48 -> 1023581 | C48: ='EDP SP"'!C48 -> 957683 | D48: ='EDP SP"'!D48 -> 937076 | E48: ='EDP SP"'!E48 -> 935434 | F48: ='EDP SP"'!F48 -> 924012 | G48: 917128 | H48: 889889 | I48: 897273 | J48: 916656 | K48: 924813 | L48: 889181 | M48: 902992 | N48: 862077 | O48: 863303 | P48: 877452 | Q48: 901035 | R48: 876567 | S48: 857832 | T48: 846835 | U48: 1010881 | V48: 973806 | W48: 972925 | X48: 1013001 | Y48: 1012472 | Z48: 999896 | AA48: 983918 | AB48: 961996 | AC48: 938338 | AD48: 914482 | AE48: 897666 | AF48: 905823 | AG48: 959803 | AH48: 954082 | AI48: 915501 | AJ48: 924801 | AK48: 964250 | AL48: 966701 | AM48: 992113 | AN48: 1001959 | AO48: 956636 | AP48: 988220 | AQ48: 988392 | AR48: 1006921 | AS48: 1011146 | AT48: 1012857 | AU48: 1029386 | AV48: 1032170 | AW48: 1020722 | AX48: 992784 | AY48: 1017370 | AZ48: 1011619
A49: Investments | B49: ='EDP SP"'!B49 -> 0 | C49: ='EDP SP"'!C49 -> 0 | D49: ='EDP SP"'!D49 -> 0 | E49: ='EDP SP"'!E49 -> 0 | F49: ='EDP SP"'!F49 -> 0 | G49: 0 | H49: 0 | I49: 0 | J49: 0 | K49: 0 | L49: 0 | M49: 0 | N49: 0 | O49: 0 | P49: - | Q49: - | R49: - | S49: - | T49: - | U49: - | V49: - | W49: - | X49: - | Y49: 0 | Z49: 0 | AA49: 0 | AB49: 0 | AC49: 0 | AD49: 0 | AE49: 0 | AF49: 0 | AG49: 0 | AH49: 0 | AI49: 0 | AJ49: 0 | AK49: 0 | AL49: 0 | AM49: 0 | AN49: 0 | AO49: 0 | AP49: 0 | AQ49: 0 | AR49: 0 | AS49: 0 | AT49: 0 | AU49: 0 | AV49: 0 | AW49: 0 | AZ49: 0
A50: Properties for investment | B50: ='EDP SP"'!B50 -> 977 | C50: ='EDP SP"'!C50 -> 979 | D50: ='EDP SP"'!D50 -> 982 | E50: ='EDP SP"'!E50 -> 985 | F50: ='EDP SP"'!F50 -> 987 | G50: 990 | H50: 992 | I50: 995 | J50: 997 | K50: 1000 | L50: 1003 | M50: 1016 | N50: 1065 | O50: 1113 | P50: 1161 | Q50: 1210 | R50: 1258 | S50: 1307 | T50: 1355 | U50: 1404 | V50: 1452 | W50: 1501 | X50: 1549 | Y50: 1597 | Z50: 1646 | AA50: 1694 | AB50: 1743 | AC50: 1791 | AD50: 1840 | AE50: 1888 | AF50: 1937 | AG50: 1985 | AH50: 2034 | AI50: 2082 | AJ50: 3053 | AK50: 3053 | AL50: 3053 | AM50: 3053 | AN50: 3053 | AO50: 3053 | AP50: 3053 | AQ50: 3053 | AR50: 3053 | AS50: 3053 | AT50: 3053 | AU50: 3053 | AV50: 3053 | AW50: 3053 | AX50: 3053 | AY50: 3053 | AZ50: 3053
A51: Fixed assets | B51: ='EDP SP"'!B51 -> 60374 | C51: ='EDP SP"'!C51 -> 51771 | D51: ='EDP SP"'!D51 -> 53143 | E51: ='EDP SP"'!E51 -> 54626 | F51: ='EDP SP"'!F51 -> 56163 | G51: 60212 | H51: 60162 | I51: 62582 | J51: 65879 | K51: 69261 | L51: 58410 | M51: 61494 | N51: 28792 | O51: 30841 | P51: 33198 | Q51: 48675 | R51: 12655 | S51: 13671 | T51: 22 | U51: 54 | V51: 86 | W51: 122 | X51: 164 | Y51: 207 | Z51: 229 | AA51: 250 | AB51: 2 | AC51: 0 | AD51: 0 | AE51: 0 | AF51: 0 | AG51: 0 | AH51: 0 | AI51: 59 | AJ51: 65 | AK51: 70 | AL51: 76 | AM51: 82 | AN51: 88 | AO51: 95 | AP51: 101 | AQ51: 107 | AR51: 112 | AS51: 118 | AT51: 124 | AU51: 130 | AV51: 136 | AW51: 145 | AX51: 154 | AY51: 163 | AZ51: 173
A52: Intangible assets | B52: ='EDP SP"'!B52 -> 962230 | C52: ='EDP SP"'!C52 -> 904933 | D52: ='EDP SP"'!D52 -> 882951 | E52: ='EDP SP"'!E52 -> 879823 | F52: ='EDP SP"'!F52 -> 866862 | G52: 855926 | H52: 828735 | I52: 833696 | J52: 849780 | K52: 854552 | L52: 829768 | M52: 840482 | N52: 832220 | O52: 831349 | P52: 843093 | Q52: 851150 | R52: 862654 | S52: 842854 | T52: 845458 | U52: 1009423 | V52: 972268 | W52: 971302 | X52: 1011288 | Y52: 1010668 | Z52: 998021 | AA52: 981974 | AB52: 960251 | AC52: 936547 | AD52: 912642 | AE52: 895778 | AF52: 903886 | AG52: 957818 | AH52: 952048 | AI52: 913360 | AJ52: 921683 | AK52: 961127 | AL52: 963572 | AM52: 988978 | AN52: 998818 | AO52: 953488 | AP52: 985066 | AQ52: 985232 | AR52: 1003756 | AS52: 1007975 | AT52: 1009680 | AU52: 1026203 | AV52: 1028981 | AW52: 1017524 | AX52: 989577 | AY52: 1014154 | AZ52: 1008393
A53: TOTAL ASSETS | B53: ='EDP SP"'!B53 -> 6732146 | C53: ='EDP SP"'!C53 -> 6669164 | D53: ='EDP SP"'!D53 -> 6595606 | E53: ='EDP SP"'!E53 -> 6437349 | F53: ='EDP SP"'!F53 -> 6472427 | G53: 7153823 | H53: 7214987 | I53: 6399660 | J53: 5889029 | K53: 6207733 | L53: 6097354 | M53: 6149474 | N53: 5925481 | O53: 5369355 | P53: 5513653 | Q53: 4334798 | R53: 4101599 | S53: 4233195 | T53: 4038785 | U53: 4131570 | V53: 3898363 | W53: 3805319 | X53: 3677691 | Y53: 3715446 | Z53: 3082148 | AA53: 3085625 | AB53: 3137379 | AC53: 3439389 | AD53: 3230528 | AE53: 3352529 | AF53: 3332050 | AG53: 3200273 | AH53: 3336096 | AI53: 2940196 | AJ53: 2769806 | AK53: 2532990 | AL53: 2643481 | AM53: 2529293 | AN53: 2457370 | AO53: 2551574 | AP53: 2500921 | AQ53: 2482832 | AR53: 2401488 | AS53: 2447503 | AT53: 2430750 | AU53: 2493144 | AV53: 2577538 | AW53: 2523583 | AX53: 2499723 | AY53: 2542123 | AZ53: 2656839
A55: LIABILITIES AND SHAREHOLDERS
A56: CURRENT LIABILITIES | B56: ='EDP SP"'!B56 -> 2511906 | C56: ='EDP SP"'!C56 -> 1907882 | D56: ='EDP SP"'!D56 -> 2103485 | E56: ='EDP SP"'!E56 -> 1817785 | F56: ='EDP SP"'!F56 -> 1542860 | G56: 1968976 | H56: 1849268 | I56: 1913575 | J56: 1523155 | K56: 1641209 | L56: 2323588 | M56: 2239237 | N56: 1978262 | O56: 1203581 | P56: 1266128 | Q56: 1250397 | R56: 1421609 | S56: 1563434 | T56: 1370644 | U56: 1580644 | V56: 1443700 | W56: 1149861 | X56: 1245483 | Y56: 1490581 | Z56: 1132719 | AA56: 1171087 | AB56: 1253014 | AC56: 1414838 | AD56: 1238627 | AE56: 1103564 | AF56: 1225426 | AG56: 1148438 | AH56: 1279609 | AI56: 1150500 | AJ56: 1057705 | AK56: 964959 | AL56: 826232 | AM56: 934524 | AN56: 795984 | AO56: 812467 | AP56: 807335 | AQ56: 766470 | AR56: 780246 | AS56: 983702 | AT56: 945856 | AU56: 796632 | AV56: 966532 | AW56: 879267 | AX56: 857734 | AY56: 832928 | AZ56: 1029121
A57: Suppliers | B57: ='EDP SP"'!B57 -> 541497 | C57: ='EDP SP"'!C57 -> 539899 | D57: ='EDP SP"'!D57 -> 568498 | E57: ='EDP SP"'!E57 -> 556499 | F57: ='EDP SP"'!F57 -> 513001 | G57: 542232 | H57: 738677 | I57: 765348 | J57: 545759 | K57: 491670 | L57: 596358 | M57: 502159 | N57: 534474 | O57: 524698 | P57: 579263 | Q57: 546978 | R57: 485300 | S57: 570873 | T57: 497035 | U57: 676726 | V57: 640798 | W57: 516699 | X57: 575007 | Y57: 667650 | Z57: 382127 | AA57: 386655 | AB57: 373149 | AC57: 393015 | AD57: 360194 | AE57: 404935 | AF57: 485607 | AG57: 509666 | AH57: 467674 | AI57: 431108 | AJ57: 448406 | AK57: 407878 | AL57: 380499 | AM57: 455917 | AN57: 379505 | AO57: 332989 | AP57: 396633 | AQ57: 414673 | AR57: 448325 | AS57: 331686 | AT57: 322595 | AU57: 302184 | AV57: 325473 | AW57: 273238 | AX57: 268035 | AY57: 269191 | AZ57: 302629
A58: Financial charges on debt | B58: ='EDP SP"'!B58 -> 0 | C58: ='EDP SP"'!C58 -> 0 | D58: ='EDP SP"'!D58 -> 0 | E58: ='EDP SP"'!E58 -> 0 | F58: ='EDP SP"'!F58 -> - | G58: - | H58: 0 | I58: 0 | J58: 0 | K58: 0 | L58: 0 | M58: 0 | N58: 0 | O58: 0 | P58: - | Q58: - | R58: - | S58: - | T58: - | U58: - | V58: - | W58: - | X58: - | Y58: 0 | Z58: 0 | AA58: 0 | AB58: 0 | AC58: 0 | AD58: 0 | AE58: 0 | AF58: 0 | AG58: 0 | AH58: 0 | AI58: 0 | AJ58: 0 | AK58: 0 | AL58: 0 | AM58: 0 | AN58: 0 | AO58: 0 | AP58: 0 | AQ58: 0 | AR58: 0 | AS58: 0 | AT58: 0 | AU58: 0 | AV58: 0 | AW58: 0 | AX58: 0 | AY58: 0 | AZ58: 0
A59: Income and social contribution taxes | B59: ='EDP SP"'!B59 -> 9409 | C59: ='EDP SP"'!C59 -> 12444 | D59: ='EDP SP"'!D59 -> 52704 | E59: ='EDP SP"'!E59 -> 30997 | F59: ='EDP SP"'!F59 -> 47162 | G59: 59281 | H59: 1474 | I59: 21615 | J59: 7099 | K59: 18679 | L59: 9022 | M59: 41397 | N59: 16491 | O59: 0 | P59: 4345 | Q59: 19178 | R59: 1948 | S59: 9690 | T59: 4804 | U59: 175474 | V59: 176714 | W59: 158551 | X59: 170928 | Y59: 170190 | Z59: 110966 | AA59: 124348 | AB59: 175001 | AC59: 267791 | AD59: 255151 | AE59: 211512 | AF59: 179865 | AG59: 137981 | AH59: 135381 | AI59: 137546 | AJ59: 109576 | AK59: 91893 | AL59: 91713 | AM59: 96957 | AN59: 122853 | AO59: 98980 | AP59: 101983 | AQ59: 100361 | AR59: 85607 | AS59: 139695 | AT59: 143970 | AU59: 164647 | AV59: 246766 | AW59: 257068 | AX59: 233593 | AY59: 209439 | AZ59: 265584
A60: Deferred income and social contribution taxes | B60: ='EDP SP"'!B60 -> 142074 | C60: ='EDP SP"'!C60 -> 148221 | D60: ='EDP SP"'!D60 -> 97917 | E60: ='EDP SP"'!E60 -> 104548 | F60: ='EDP SP"'!F60 -> 156952 | G60: 234784 | H60: 230375 | I60: 218919 | J60: 172406 | K60: 178501 | L60: 203740 | M60: 199875 | N60: 190466 | O60: 172716 | P60: 186199 | Q60: 184586 | R60: 171230 | S60: 188128 | T60: 196351 | U60: - | V60: - | W60: - | X60: - | Y60: 0 | Z60: 0 | AA60: 0 | AB60: 0 | AC60: 0 | AD60: 0 | AE60: 0 | AF60: 0 | AG60: 0 | AH60: 0 | AI60: 0 | AJ60: 0 | AK60: 0 | AL60: 2849 | AM60: 11295 | AN60: 0 | AO60: 21830 | AP60: 0 | AQ60: 0 | AR60: 0 | AS60: 0 | AT60: 0 | AU60: 0 | AV60: 0 | AW60: 0 | AX60: 0 | AY60: 0 | AZ60: 0
A61: Related parties | B61: ='EDP SP"'!B61 -> 0 | C61: ='EDP SP"'!C61 -> 0 | D61: ='EDP SP"'!D61 -> 0 | E61: ='EDP SP"'!E61 -> 0 | F61: ='EDP SP"'!F61 -> 0 | G61: 0 | H61: 0 | I61: 0 | J61: 0 | K61: 0 | L61: 0 | M61: 0 | N61: 0 | O61: 0 | P61: - | Q61: - | R61: - | S61: - | T61: - | U61: - | V61: - | W61: - | X61: - | Y61: 0 | Z61: 0 | AA61: 0 | AB61: 0 | AC61: 0 | AD61: 0 | AE61: 0 | AF61: 0 | AG61: 0 | AH61: 0 | AI61: 0 | AJ61: 0 | AK61: 0 | AL61: 0 | AM61: 0 | AN61: 0 | AO61: 0 | AP61: 0 | AQ61: 0 | AR61: 0 | AS61: 0 | AT61: 0 | AU61: 0 | AV61: 0 | AW61: 0 | AX61: 0 | AY61: 0 | AZ61: 0
A62: Deferred taxes | B62: ='EDP SP"'!B62 -> 0 | C62: ='EDP SP"'!C62 -> 0 | D62: ='EDP SP"'!D62 -> 0 | E62: ='EDP SP"'!E62 -> 0 | F62: ='EDP SP"'!F62 -> 0 | G62: 0 | H62: 0 | I62: 0 | J62: 0 | K62: 0 | L62: 0 | M62: 0 | N62: 0 | O62: 0 | P62: - | Q62: - | R62: - | S62: - | T62: - | U62: - | V62: - | W62: - | X62: - | Y62: 0 | Z62: 0 | AA62: 0 | AB62: 0 | AC62: 0 | AD62: 0 | AE62: 23871 | AF62: 41645 | AG62: 51401 | AH62: 37668 | AI62: 21679 | AJ62: 19495 | AK62: 0 | AL62: 0 | AM62: 0 | AN62: 0 | AO62: 0 | AP62: 0 | AQ62: 0 | AR62: 0 | AS62: 0 | AT62: 0 | AU62: 0 | AV62: 0 | AW62: 0 | AX62: 0 | AY62: 0 | AZ62: 0
A63: Didividends | B63: ='EDP SP"'!B63 -> 513094 | C63: ='EDP SP"'!C63 -> 131312 | D63: ='EDP SP"'!D63 -> 131312 | E63: ='EDP SP"'!E63 -> 52830 | F63: ='EDP SP"'!F63 -> 37572 | G63: 61928 | H63: 43335 | I63: 0 | J63: 46672 | K63: 46672 | L63: 93569 | M63: 262036 | N63: 321713 | O63: 83061 | P63: 83061 | Q63: 136524 | R63: 192874 | S63: 56350 | T63: 56350 | U63: 174550 | V63: 174550 | W63: 55780 | X63: 55780 | Y63: 124490 | Z63: 124490 | AA63: 55888 | AB63: 55888 | AC63: 0 | AD63: 0 | AE63: 62217 | AF63: 62217 | AG63: 0 | AH63: 64551 | AI63: 0 | AJ63: 58199 | AK63: 68191 | AL63: 68191 | AM63: 57344 | AN63: 45311 | AO63: 34819 | AP63: 34819 | AQ63: 34819 | AR63: 34819 | AS63: 214931 | AT63: 214931 | AU63: 48907 | AV63: 48907 | AW63: 73604 | AX63: 73604 | AY63: 61614 | AZ63: 61614
A64: Debentures | B64: ='EDP SP"'!B64 -> 425538 | C64: ='EDP SP"'!C64 -> 201732 | D64: ='EDP SP"'!D64 -> 250319 | E64: ='EDP SP"'!E64 -> 260962 | F64: ='EDP SP"'!F64 -> 85393 | G64: 82619 | H64: 90322 | I64: 87986 | J64: 89756 | K64: 75887 | L64: 179772 | M64: 175099 | N64: 180056 | O64: 176302 | P64: 176855 | Q64: 138706 | R64: 145954 | S64: 145649 | T64: 49504 | U64: 82916 | V64: 82031 | W64: 84132 | X64: 75382 | Y64: 127739 | Z64: 103740 | AA64: 100278 | AB64: 78442 | AC64: 81609 | AD64: 157468 | AE64: 101440 | AF64: 175282 | AG64: 180289 | AH64: 178213 | AI64: 178996 | AJ64: 181733 | AK64: 180484 | AL64: 183525 | AM64: 166195 | AN64: 97952 | AO64: 87153 | AP64: 15646 | AQ64: 7038 | AR64: 16545 | AS64: 8288 | AT64: 20240 | AU64: 10361 | AV64: 24825 | AW64: 12540 | AX64: 23812 | AY64: 11050 | AZ64: 109245
A65: Loans, financings and charges | B65: ='EDP SP"'!B65 -> 54204 | C65: ='EDP SP"'!C65 -> 57674 | D65: ='EDP SP"'!D65 -> 55996 | E65: ='EDP SP"'!E65 -> 52006 | F65: ='EDP SP"'!F65 -> 50794 | G65: 97187 | H65: 85395 | I65: 109110 | J65: 109133 | K65: 245752 | L65: 602114 | M65: 590656 | N65: 567924 | O65: 99062 | P65: 84297 | Q65: 80998 | R65: 265077 | S65: 439521 | T65: 405304 | U65: 307820 | V65: 168598 | W65: 165306 | X65: 162003 | Y65: 157646 | Z65: 123830 | AA65: 72719 | AB65: 74802 | AC65: 77088 | AD65: 79187 | AE65: 46955 | AF65: 42157 | AG65: 35221 | AH65: 145302 | AI65: 138142 | AJ65: 135271 | AK65: 132515 | AL65: 30448 | AM65: 71009 | AN65: 74147 | AO65: 96700 | AP65: 100285 | AQ65: 60796 | AR65: 60508 | AS65: 60909 | AT65: 59801 | AU65: 58510 | AV65: 62041 | AW65: 67850 | AX65: 67521 | AY65: 72404 | AZ65: 67219
A66: Financial Derivatives Instruments | B66: ='EDP SP"'!B66 -> 31782 | C66: ='EDP SP"'!C66 -> 14391 | D66: ='EDP SP"'!D66 -> 32997 | E66: ='EDP SP"'!E66 -> 0
A67: Post-employment benefits | B67: ='EDP SP"'!B67 -> 36841 | C67: ='EDP SP"'!C67 -> 28439 | D67: ='EDP SP"'!D67 -> 36899 | E67: ='EDP SP"'!E67 -> 12689 | F67: ='EDP SP"'!F67 -> 7044 | G67: 12689 | H67: 12746 | I67: 7665 | J67: 7712 | K67: 7721 | L67: 7760 | M67: 8544 | N67: 8545 | O67: 8575 | P67: 8580 | Q67: 7709 | R67: 7708 | S67: 7704 | T67: 7702 | U67: 7968 | V67: 7949 | W67: 7948 | X67: 7948 | Y67: 6382 | Z67: 326 | AA67: 351 | AB67: 1016 | AC67: 292 | AD67: 249 | AE67: 270 | AF67: 159 | AG67: 18973 | AH67: 21734 | AI67: 17701 | AJ67: 21695 | AK67: 73 | AL67: 36 | AM67: 66 | AN67: 36 | AO67: 16105 | AP67: 16085 | AQ67: 16076 | AR67: 16076 | AS67: 18317 | AT67: 18316 | AU67: 18317 | AV67: 18317 | AW67: 16478 | AX67: 18509 | AY67: 19220 | AZ67: 19245
A68: Account for compensation in variation of installment "A" costs | B68: ='EDP SP"'!B68 -> 0 | C68: ='EDP SP"'!C68 -> 0 | D68: ='EDP SP"'!D68 -> 0 | E68: ='EDP SP"'!E68 -> 0 | F68: ='EDP SP"'!F68 -> - | G68: - | H68: 0 | I68: 0 | J68: 0 | K68: 0 | L68: 0 | M68: 0 | N68: 0 | O68: 0 | P68: - | Q68: - | R68: - | S68: - | T68: - | U68: - | V68: - | W68: - | X68: - | Y68: 0 | Z68: 0 | AA68: 0 | AB68: 0 | AC68: 0 | AD68: - | AE68: 0 | AF68: 0 | AG68: 0 | AH68: 0 | AI68: 0 | AJ68: 0 | AU68: 0 | AV68: 0 | AW68: 0 | AX68: 0 | AY68: 0 | AZ68: 0
A69: Tariff reimbursement | B69: ='EDP SP"'!B69 -> 0 | C69: ='EDP SP"'!C69 -> 0 | D69: ='EDP SP"'!D69 -> 0 | E69: ='EDP SP"'!E69 -> 0 | F69: ='EDP SP"'!F69 -> - | G69: - | H69: 0 | I69: 0 | J69: 0 | K69: 0 | L69: 0 | M69: 0 | N69: 0 | O69: 0 | P69: - | Q69: - | R69: - | S69: - | T69: - | U69: - | V69: - | W69: - | X69: - | Y69: 0 | Z69: 0 | AA69: 0 | AB69: 0 | AC69: 0 | AD69: 0 | AE69: 0 | AF69: 0 | AG69: 0 | AH69: 0 | AI69: 0 | AJ69: 0 | AK69: 0 | AL69: 0 | AM69: 0 | AN69: 0 | AO69: 0 | AP69: 0 | AQ69: 0 | AR69: 0 | AS69: 0 | AT69: 0 | AU69: 0 | AV69: 0 | AW69: 0 | AX69: 0 | AY69: 0 | AZ69: 0
A70: Estimated employee benefits and social charges | B70: ='EDP SP"'!B70 -> 30596 | C70: ='EDP SP"'!C70 -> 37783 | D70: ='EDP SP"'!D70 -> 34311 | E70: ='EDP SP"'!E70 -> 36432 | F70: ='EDP SP"'!F70 -> 31325 | G70: 36433 | H70: 35915 | I70: 33015 | J70: 31995 | K70: 41161 | L70: 37650 | M70: 30118 | N70: 23486 | O70: 28608 | P70: 30803 | Q70: 32906 | R70: 27036 | S70: - | T70: - | U70: 26370 | V70: 21023 | W70: 26059 | X70: 28840 | Y70: 27126 | Z70: 21636 | AA70: 26259 | AB70: 27318 | AC70: 30397 | AD70: 26446 | AE70: 31764 | AF70: 32063 | AG70: 24827 | AH70: 19788 | AI70: 28369 | AJ70: 23782 | AK70: 23325 | AL70: 18374 | AM70: 25231 | AN70: 22876 | AO70: 23590 | AP70: 17942 | AQ70: 26511 | AR70: 22661 | AS70: 21541 | AT70: 16052 | AU70: 25114 | AV70: 21864 | AW70: 20946 | AX70: 14881 | AY70: 23000 | AZ70: 20920
A71: Regulatory and sector charges | B71: ='EDP SP"'!B71 -> 41513 | C71: ='EDP SP"'!C71 -> 40971 | D71: ='EDP SP"'!D71 -> 37509 | E71: ='EDP SP"'!E71 -> 42097 | F71: ='EDP SP"'!F71 -> 41584 | G71: 51992 | H71: 50104 | I71: 44252 | J71: 37304 | K71: 36742 | L71: 35302 | M71: 34507 | N71: 39176 | O71: 32839 | P71: 31764 | Q71: 30701 | R71: 51095 | S71: 49151 | T71: 63155 | U71: 69819 | V71: 114991 | W71: 61353 | X71: 91594 | Y71: 80752 | Z71: 74419 | AA71: 95648 | AB71: 91627 | AC71: 89158 | AD71: 42400 | AE71: 115244 | AF71: 149690 | AG71: 138769 | AH71: 159533 | AI71: 157543 | AJ71: 21026 | AK71: 20888 | AL71: 20384 | AM71: 18170 | AN71: 15529 | AO71: 53575 | AP71: 74049 | AQ71: 67602 | AR71: 41449 | AS71: 93559 | AT71: 112101 | AU71: 113056 | AV71: 130916 | AW71: 117938 | AX71: 103385 | AY71: 100898 | AZ71: 98061
A72: Charge for use of public good | B72: ='EDP SP"'!B72 -> 0 | C72: ='EDP SP"'!C72 -> 0 | D72: ='EDP SP"'!D72 -> 0 | E72: ='EDP SP"'!E72 -> 0 | F72: ='EDP SP"'!F72 -> 0 | G72: 0 | H72: 0 | I72: 0 | J72: 0 | K72: 0 | L72: 0 | M72: 0 | N72: 0 | O72: 0 | P72: - | Q72: - | R72: - | S72: - | T72: - | U72: - | V72: - | W72: - | X72: - | Y72: 0 | Z72: 0 | AA72: 0 | AB72: 0 | AC72: 0 | AD72: 0 | AE72: 0 | AF72: 0 | AG72: 0 | AH72: 0 | AI72: 0 | AJ72: 0 | AK72: 0 | AL72: 0 | AM72: 0 | AN72: 0 | AO72: 0 | AP72: 0 | AQ72: 0 | AR72: 0 | AS72: 0 | AT72: 0 | AU72: 0 | AV72: 0 | AW72: 0 | AX72: 0 | AY72: 0 | AZ72: 0
A73: Provisions for contingencies | B73: ='EDP SP"'!B73 -> 22799 | C73: ='EDP SP"'!C73 -> 22616 | D73: ='EDP SP"'!D73 -> 22124 | E73: ='EDP SP"'!E73 -> 26089 | F73: ='EDP SP"'!F73 -> 7835 | G73: 7556 | H73: 7437 | I73: 7379 | J73: 7015 | K73: 7049 | L73: 7067 | M73: 6914 | N73: 6835 | O73: 7598 | P73: 6313 | Q73: 6274 | R73: 7546 | S73: 7724 | T73: 6953 | U73: 6871 | V73: 6960 | W73: 6490 | X73: 6508 | Y73: 6088 | Z73: 6388 | AA73: 14726 | AB73: 14605 | AC73: 11337 | AD73: 11400 | AE73: 11434 | AF73: 13540 | AG73: 10042 | AH73: 10074 | AI73: 8387 | AJ73: 8396 | AK73: 11002 | AL73: 3850 | AM73: 3713 | AN73: 5458 | AO73: 5439 | AP73: 5167 | AQ73: 5977 | AR73: 6404 | AS73: 5273 | AT73: 6819 | AU73: 6784 | AV73: 6900 | AW73: 6935 | AX73: 7082 | AY73: 6272 | AZ73: 6572
A74: Reserve for reversion and amortization | B74: ='EDP SP"'!B74 -> 1957 | C74: ='EDP SP"'!C74 -> 1755 | D74: ='EDP SP"'!D74 -> 1945 | E74: ='EDP SP"'!E74 -> 1946 | F74: ='EDP SP"'!F74 -> 1944 | G74: 1944 | H74: 1944 | I74: 1944 | J74: 1944 | K74: 1944 | L74: 1945 | M74: 1944 | N74: 1944 | O74: 1944 | P74: 1944 | Q74: 1944 | R74: 1944 | S74: - | T74: - | U74: 1944 | V74: - | W74: - | X74: -
A75: Financial liabilities | B75: ='EDP SP"'!B75 -> 582444 | C75: ='EDP SP"'!C75 -> 604672 | D75: ='EDP SP"'!D75 -> 715188 | E75: ='EDP SP"'!E75 -> 576837 | F75: ='EDP SP"'!F75 -> 491170 | G75: 701345 | H75: 400427 | I75: 516399 | J75: 365161 | K75: 382264 | L75: 433852 | M75: 308473 | N75: 0 | O75: 0 | P75: - | Q75: 1206 | R75: - | S75: - | T75: 1122 | U75: 601 | V75: 4394 | W75: 17747 | X75: 29675 | Y75: 82857 | Z75: 143317 | AA75: 251449 | AB75: 316711 | AC75: 420044 | AD75: 258136 | AE75: 49763 | AF75: 0
A76: Other accounts payable | B76: ='EDP SP"'!B76 -> 78158 | C76: ='EDP SP"'!C76 -> 65973 | D76: ='EDP SP"'!D76 -> 65766 | E76: ='EDP SP"'!E76 -> 63853 | F76: ='EDP SP"'!F76 -> 71084 | G76: 78986 | H76: 151117 | I76: 99943 | J76: 101199 | K76: 107167 | L76: 115437 | M76: 77515 | N76: 87152 | O76: 68178 | P76: 72704 | Q76: 62687 | R76: 63897 | S76: 88644 | T76: 82364 | U76: 49585 | V76: 45692 | W76: 49796 | X76: 41818 | Y76: 39661 | Z76: 41480 | AA76: 42766 | AB76: 44455 | AC76: 44107 | AD76: 47996 | AE76: 44159 | AF76: 43201 | AG76: 41269 | AH76: 39691 | AI76: 31029 | AJ76: 30126 | AK76: 28710 | AL76: 26363 | AM76: 28627 | AN76: 32317 | AO76: 41287 | AP76: 44726 | AQ76: 32617 | AR76: 47852 | AS76: 89503 | AT76: 31031 | AU76: 48752 | AV76: 80523 | AW76: 32670 | AX76: 47312 | AY76: 59840 | AZ76: 78032
A77: NON-CURRENT LIABILITIES | B77: ='EDP SP"'!B77 -> 0 | C77: ='EDP SP"'!C77 -> 0 | D77: ='EDP SP"'!D77 -> 0 | E77: ='EDP SP"'!E77 -> 0 | F77: ='EDP SP"'!F77 -> 0 | G77: - | H77: 0 | I77: 0 | J77: 0
A78: Long-Term Liabilities | B78: ='EDP SP"'!B78 -> 3466289 | C78: ='EDP SP"'!C78 -> 3667744 | D78: ='EDP SP"'!D78 -> 3509524 | E78: ='EDP SP"'!E78 -> 3704633 | F78: ='EDP SP"'!F78 -> 4036611 | G78: 3738093 | H78: 4075201 | I78: 3278065 | J78: 3187989 | K78: 3459746 | L78: 2785803 | M78: 2686357 | N78: 2835510 | O78: 2868252 | P78: 3004037 | Q78: 1775938 | R78: 1497791 | S78: 1399431 | T78: 1470732 | U78: 1440322 | V78: 1381219 | W78: 1510548 | X78: 1326507 | Y78: 1183749 | Z78: 933962 | AA78: 868102 | AB78: 882183 | AC78: 992032 | AD78: 991254 | AE78: 1107524 | AF78: 973139 | AG78: 915418 | AH78: 967257 | AI78: 658598 | AJ78: 643345 | AK78: 623353 | AL78: 864565 | AM78: 574497 | AN78: 557130 | AO78: 719483 | AP78: 806303 | AQ78: 910047 | AR78: 841953 | AS78: 779420 | AT78: 794125 | AU78: 850040 | AV78: 819638 | AW78: 777908 | AX78: 828974 | AY78: 793473 | AZ78: 807447
A79: Suppliers | B79: ='EDP SP"'!B79 -> 0 | C79: ='EDP SP"'!C79 -> 0 | D79: ='EDP SP"'!D79 -> 0 | E79: ='EDP SP"'!E79 -> 0 | F79: ='EDP SP"'!F79 -> 0 | G79: 0 | H79: 0 | I79: 0 | J79: 0 | K79: 0 | L79: 0 | M79: 0 | N79: 0 | O79: - | P79: - | Q79: - | R79: - | S79: - | T79: - | U79: - | V79: - | W79: - | X79: - | Y79: 0 | Z79: 0 | AA79: 0 | AB79: 0 | AC79: 0 | AD79: 0 | AE79: 0 | AF79: 0 | AG79: 0 | AH79: 0 | AI79: 0 | AJ79: 1211 | AK79: 2076 | AL79: 3010 | AM79: 3579 | AN79: 0 | AO79: 0 | AP79: 0 | AQ79: 0 | AR79: 0 | AS79: 0 | AT79: 0 | AU79: 0 | AV79: 0 | AW79: 0 | AX79: 0 | AY79: 0 | AZ79: 0
A80: Financial charges on debt | B80: ='EDP SP"'!B80 -> 0 | C80: ='EDP SP"'!C80 -> 0 | D80: ='EDP SP"'!D80 -> 0 | E80: ='EDP SP"'!E80 -> 0 | F80: ='EDP SP"'!F80 -> - | G80: - | H80: 0 | I80: 0 | J80: 0 | K80: 0 | L80: 0 | M80: 0 | N80: 0 | O80: - | P80: - | Q80: - | R80: - | S80: - | T80: - | U80: - | V80: - | W80: - | X80: - | Y80: 0 | Z80: 0 | AA80: 0 | AB80: 0 | AC80: 0 | AD80: 0 | AE80: 0 | AF80: 0 | AG80: 0 | AH80: 0 | AI80: 0 | AJ80: 0 | AK80: 0 | AL80: 0 | AM80: 0 | AN80: 0 | AO80: 0 | AP80: 0 | AQ80: 0 | AR80: 0 | AS80: 0 | AT80: 0 | AU80: 0 | AV80: 0 | AW80: 0 | AX80: 0 | AY80: 0 | AZ80: 0
A81: Income and social contribution taxes | B81: ='EDP SP"'!B81 -> 135554 | C81: ='EDP SP"'!C81 -> 137729 | D81: ='EDP SP"'!D81 -> 139105 | E81: ='EDP SP"'!E81 -> 144902 | F81: ='EDP SP"'!F81 -> 146920 | G81: 148733 | H81: 150762 | I81: 152782 | J81: 157683 | K81: 161933 | L81: 166421 | M81: 170872 | N81: 174515 | O81: 180815 | P81: 181905 | Q81: 184918 | R81: 187418 | S81: 189795 | T81: 202059 | U81: 204210 | V81: 206558 | W81: 207695 | X81: 210548 | Y81: 215483 | Z81: 0 | AA81: 0 | AB81: 0 | AC81: 0 | AD81: 0 | AE81: 0 | AF81: 0 | AG81: 0 | AH81: 0 | AI81: 0 | AJ81: 0 | AK81: 0 | AL81: 11959 | AM81: 11849 | AN81: 11742 | AO81: 13148 | AP81: 17481 | AQ81: 21713 | AR81: 25846 | AS81: 29858 | AT81: 33688 | AU81: 37316 | AV81: 40713 | AW81: 43896 | AX81: 47120 | AY81: 34717 | AZ81: 34291
A82: Deferred income and social contribution taxes | B82: ='EDP SP"'!B82 -> 0 | C82: ='EDP SP"'!C82 -> 0 | D82: ='EDP SP"'!D82 -> 0 | E82: ='EDP SP"'!E82 -> 0 | F82: ='EDP SP"'!F82 -> - | G82: - | H82: 0 | I82: 0 | J82: 0 | K82: 0 | L82: 0 | M82: 0 | N82: 0 | O82: 0 | P82: - | Q82: - | R82: - | S82: - | T82: - | U82: - | V82: - | W82: - | X82: - | Y82: 0 | Z82: 0 | AA82: 0 | AB82: 0 | AC82: 0 | AD82: 0 | AE82: 0 | AF82: 0 | AG82: 0 | AH82: 0 | AI82: 0 | AJ82: 0 | AK82: 0 | AL82: 0 | AM82: 0 | AN82: 0 | AO82: 0 | AP82: 0 | AQ82: 0 | AR82: 0 | AS82: 0 | AT82: 0 | AU82: 0 | AV82: 0 | AW82: 0 | AX82: 0 | AY82: 0 | AZ82: 0
A83: Deferred taxes | B83: ='EDP SP"'!B83 -> 1761 | C83: ='EDP SP"'!C83 -> 1661 | D83: ='EDP SP"'!D83 -> 1532 | E83: ='EDP SP"'!E83 -> 1446 | F83: ='EDP SP"'!F83 -> 1303 | G83: 1191 | H83: 1093 | I83: 1019 | J83: 963 | K83: 918 | L83: 879 | M83: 844 | N83: 807 | O83: 838 | P83: 813 | Q83: 746 | R83: 684 | S83: 624 | T83: 566 | U83: 508 | V83: 449 | W83: 404 | X83: 4 | Y83: 0 | Z83: 0 | AA83: 0 | AB83: 0 | AC83: 3592 | AD83: 4668 | AE83: 0 | AF83: 24057 | AG83: 2551 | AH83: 4279 | AI83: 9263 | AJ83: 11054 | AK83: 0 | AL83: 0 | AM83: 0 | AN83: 0 | AO83: 0 | AP83: 0 | AQ83: 0 | AR83: 0 | AS83: 0 | AT83: 0 | AU83: 0 | AV83: 0 | AW83: 0 | AX83: 0 | AY83: 0 | AZ83: 0
A84: Debentures | B84: ='EDP SP"'!B84 -> 2233206 | C84: ='EDP SP"'!C84 -> 2416665 | D84: ='EDP SP"'!D84 -> 2334854 | E84: ='EDP SP"'!E84 -> 2289102 | F84: ='EDP SP"'!F84 -> 2470253 | G84: 2011388 | H84: 2002820 | I84: 1544937 | J84: 1186112 | K84: 1205399 | L84: 498922 | M84: 519554 | N84: 518722 | O84: 547159 | P84: 654885 | Q84: 684463 | R84: 683318 | S84: 509749 | T84: 606615 | U84: 604402 | V84: 348295 | W84: 384104 | X84: 284376 | Y84: 280131 | Z84: 299844 | AA84: 186599 | AB84: 206347 | AC84: 338094 | AD84: 337842 | AE84: 397591 | AF84: 298590 | AG84: 298439 | AH84: 376289 | AI84: 376111 | AJ84: 453934 | AK84: 453730 | AL84: 531526 | AM84: 233759 | AN84: 311678 | AO84: 311571 | AP84: 389464 | AQ84: 389330 | AR84: 389195 | AS84: 389061 | AT84: 388928 | AU84: 388794 | AV84: 388550 | AW84: 388416 | AX84: 388282 | AY84: 388149 | AZ84: 388001
A85: Loans, financings and charges | B85: ='EDP SP"'!B85 -> 443662 | C85: ='EDP SP"'!C85 -> 459474 | D85: ='EDP SP"'!D85 -> 453024 | E85: ='EDP SP"'!E85 -> 449645 | F85: ='EDP SP"'!F85 -> 444571 | G85: 461143 | H85: 468770 | I85: 443114 | J85: 444421 | K85: 501844 | L85: 508776 | M85: 516212 | N85: 525298 | O85: 518256 | P85: 533791 | Q85: 538322 | R85: 244060 | S85: 289889 | T85: 295830 | U85: 302613 | V85: 485325 | W85: 582680 | X85: 548594 | Y85: 435197 | Z85: 344509 | AA85: 443909 | AB85: 449488 | AC85: 456215 | AD85: 462244 | AE85: 481311 | AF85: 487156 | AG85: 456439 | AH85: 388036 | AI85: 133646 | AJ85: 50883 | AK85: 57700 | AL85: 209167 | AM85: 214502 | AN85: 125066 | AO85: 129895 | AP85: 137154 | AQ85: 160552 | AR85: 170429 | AS85: 198454 | AT85: 206320 | AU85: 205074 | AV85: 171960 | AW85: 191061 | AX85: 187451 | AY85: 157943 | AZ85: 170520
A86: Financial Derivatives Instruments | B86: ='EDP SP"'!B86 -> 0 | C86: ='EDP SP"'!C86 -> 0 | D86: ='EDP SP"'!D86 -> 0 | E86: ='EDP SP"'!E86 -> 8702 | F86: ='EDP SP"'!F86 -> 302
A87: Post-employment benefits | B87: ='EDP SP"'!B87 -> 210829 | C87: ='EDP SP"'!C87 -> 188463 | D87: ='EDP SP"'!D87 -> 172698 | E87: ='EDP SP"'!E87 -> 199438 | F87: ='EDP SP"'!F87 -> 189300 | G87: 251237 | H87: 254025 | I87: 212260 | J87: 210819 | K87: 224888 | L87: 226346 | M87: 139954 | N87: 139416 | O87: 151630 | P87: 150978 | Q87: 24314 | R87: 25943 | S87: 52346 | T87: 53994 | U87: 5769 | V87: 7479 | W87: 17738 | X87: 19447 | Y87: 0 | Z87: 8838 | AA87: 0 | AB87: 0 | AC87: 0 | AD87: 0 | AE87: 0 | AF87: 0 | AG87: 0 | AH87: 8592 | AI87: 0 | AJ87: 5991 | AK87: 7655 | AL87: 7692 | AM87: 7529 | AN87: 7427 | AO87: 155959 | AP87: 155993 | AQ87: 145321 | AR87: 145230 | AS87: 54145 | AT87: 56402 | AU87: 78304 | AV87: 82718 | AW87: 6867 | AX87: 6867 | AY87: 97129 | AZ87: 100865
A88: Tariff reimbursement | B88: ='EDP SP"'!B88 -> 0 | C88: ='EDP SP"'!C88 -> 0 | D88: ='EDP SP"'!D88 -> 0 | E88: ='EDP SP"'!E88 -> 0 | F88: ='EDP SP"'!F88 -> - | G88: - | H88: 0 | I88: 0 | J88: 0 | K88: 0 | L88: 0 | M88: 0 | N88: 0 | O88: 0 | P88: - | Q88: - | R88: - | S88: - | T88: - | U88: - | V88: - | W88: - | X88: - | Y88: 0 | Z88: 0 | AA88: 0 | AB88: 0 | AC88: 0 | AD88: 0 | AE88: 0 | AF88: 0 | AG88: 0 | AH88: 0 | AI88: 0 | AJ88: 0 | AK88: 0 | AL88: 0 | AM88: 0 | AN88: 0 | AO88: 0 | AP88: 0 | AQ88: 0 | AR88: 0 | AS88: 0 | AT88: 0 | AU88: 0 | AV88: 0 | AW88: 0 | AX88: 0 | AY88: 0 | AZ88: 0
A89: Account for compensation in variation of installment "A" costs | B89: ='EDP SP"'!B89 -> 0 | C89: ='EDP SP"'!C89 -> 0 | D89: ='EDP SP"'!D89 -> 0 | E89: ='EDP SP"'!E89 -> 0 | F89: ='EDP SP"'!F89 -> - | G89: - | H89: 0 | I89: 0 | J89: 0 | K89: 0 | L89: 0 | M89: 0 | N89: 0 | O89: 0 | P89: - | Q89: - | R89: - | S89: - | T89: - | U89: - | V89: - | W89: - | X89: - | Y89: 0 | Z89: 0 | AA89: 0 | AB89: 0 | AC89: 0 | AD89: 0 | AE89: 0 | AF89: 0 | AG89: 0 | AH89: 0 | AI89: 0 | AJ89: 0 | AK89: 0 | AL89: 0 | AM89: 0 | AN89: 0 | AO89: 0 | AP89: 0 | AQ89: 0 | AR89: 0 | AS89: 0 | AT89: 0 | AU89: 0 | AV89: 0 | AW89: 0 | AX89: 0 | AY89: 0 | AZ89: 0
A90: Related parties | B90: ='EDP SP"'!B90 -> 0 | C90: ='EDP SP"'!C90 -> 0 | D90: ='EDP SP"'!D90 -> 0 | E90: ='EDP SP"'!E90 -> 0 | F90: ='EDP SP"'!F90 -> 0 | G90: 0 | H90: 0 | I90: 0 | J90: 0 | K90: 0 | L90: 0 | M90: 0 | N90: 0 | O90: 0 | P90: - | Q90: - | R90: - | S90: - | T90: - | U90: - | V90: - | W90: - | X90: - | Y90: 0 | Z90: 0 | AA90: 0 | AB90: 0 | AC90: 0 | AD90: 0 | AE90: 0 | AF90: 0 | AG90: 0 | AH90: 0 | AI90: 0 | AJ90: 0 | AK90: 509 | AL90: 614 | AM90: 613 | AN90: 668 | AO90: 1290 | AP90: 492 | AQ90: 897 | AR90: 3714 | AS90: 229 | AT90: 186 | AU90: 145 | AV90: 856 | AW90: 1020 | AX90: 435 | AY90: 1096 | AZ90: 15
A91: Regulatory and sector charges | B91: ='EDP SP"'!B91 -> 0 | C91: ='EDP SP"'!C91 -> 0 | D91: ='EDP SP"'!D91 -> 0 | E91: ='EDP SP"'!E91 -> 0 | F91: ='EDP SP"'!F91 -> 0 | G91: 0 | H91: 0 | I91: 0 | J91: 0 | K91: 0 | L91: 0 | M91: 0 | N91: 0 | O91: 3436 | P91: 2427 | Q91: 3245 | R91: 3640 | S91: 6961 | T91: 7058 | U91: 5260 | V91: 6374 | W91: 4307 | X91: 3798 | Y91: 12426 | Z91: 11372 | AA91: 7921 | AB91: 7613 | AC91: 4282 | AD91: 9673 | AE91: 6606 | AF91: 5745 | AG91: 7730 | AH91: 6428 | AI91: 5331 | AJ91: 4070 | AK91: 2020 | AL91: 3412 | AM91: 5791 | AN91: 4371 | AO91: 5421 | AP91: 1666 | AQ91: 6864 | AR91: 6988 | AS91: 7452 | AT91: 6467 | AU91: 4670 | AV91: 885 | AW91: 7806 | AX91: 6605 | AY91: 5955 | AZ91: 7064
A92: Advances for future capital increase | B92: ='EDP SP"'!B92 -> 0 | C92: ='EDP SP"'!C92 -> 0 | D92: ='EDP SP"'!D92 -> 0 | E92: ='EDP SP"'!E92 -> 0 | F92: ='EDP SP"'!F92 -> 0 | G92: 0 | H92: 0 | I92: 0 | J92: 0 | K92: 0 | L92: 0 | M92: 0 | N92: 0 | O92: 0 | P92: - | Q92: - | R92: - | S92: - | T92: - | U92: - | V92: - | W92: - | X92: - | Y92: 0 | Z92: 0 | AA92: 0 | AB92: 0 | AC92: 0 | AD92: 0 | AE92: 0 | AF92: 0 | AG92: 0 | AH92: 0 | AI92: 0 | AJ92: 0 | AK92: 0 | AL92: 0 | AM92: 0 | AN92: 0 | AO92: 0 | AP92: 0 | AQ92: 85000 | AR92: 0 | AS92: 0 | AT92: 0 | AU92: 0 | AV92: 0 | AW92: 0 | AX92: 0 | AY92: 0 | AZ92: 0
A93: Charge for use of public good | B93: ='EDP SP"'!B93 -> 0 | C93: ='EDP SP"'!C93 -> 0 | D93: ='EDP SP"'!D93 -> 0 | E93: ='EDP SP"'!E93 -> 0 | F93: ='EDP SP"'!F93 -> 0 | G93: 0 | H93: 0 | I93: 0 | J93: 0 | K93: 0 | L93: 0 | M93: 0 | N93: 0 | O93: 0 | P93: - | Q93: - | R93: - | S93: - | T93: - | U93: - | V93: - | W93: - | X93: - | Y93: 0 | Z93: 0 | AA93: 0 | AB93: 0 | AC93: 0 | AD93: 0 | AE93: 0 | AF93: 0 | AG93: 0 | AH93: 0 | AI93: 0 | AJ93: 0 | AK93: 0 | AL93: 0 | AM93: 0 | AN93: 0 | AO93: 0 | AP93: 0 | AQ93: 0 | AR93: 0 | AS93: 0 | AT93: 0 | AU93: 0 | AV93: 0 | AW93: 0 | AX93: 0 | AY93: 0 | AZ93: 0
A94: Provisions | B94: ='EDP SP"'!B94 -> 292740 | C94: ='EDP SP"'!C94 -> 274467 | D94: ='EDP SP"'!D94 -> 258675 | E94: ='EDP SP"'!E94 -> 256173 | F94: ='EDP SP"'!F94 -> 253273 | G94: 239729 | H94: 226787 | I94: 223223 | J94: 211657 | K94: 206417 | L94: 198322 | M94: 191952 | N94: 185393 | O94: 186431 | P94: 182924 | Q94: 169738 | R94: 161665 | S94: 156311 | T94: 153888 | U94: 149531 | V94: 135007 | W94: 126668 | X94: 122266 | Y94: 113420 | Z94: 110504 | AA94: 104513 | AB94: 99172 | AC94: 101732 | AD94: 98805 | AE94: 98878 | AF94: 102274 | AG94: 95695 | AH94: 92412 | AI94: 91790 | AJ94: 88441 | AK94: 72109 | AL94: 69920 | AM94: 69557 | AN94: 68781 | AO94: 70562 | AP94: 72336 | AQ94: 68574 | AR94: 68675 | AS94: 65923 | AT94: 70102 | AU94: 82546 | AV94: 80685 | AW94: 85493 | AX94: 148802 | AY94: 71280 | AZ94: 69410
A95: Provisions for unsecured liabilities | B95: ='EDP SP"'!B95 -> 0 | C95: ='EDP SP"'!C95 -> 0 | D95: ='EDP SP"'!D95 -> 0 | E95: ='EDP SP"'!E95 -> 0 | F95: ='EDP SP"'!F95 -> 0 | G95: 0 | H95: 0 | I95: 0 | J95: 0 | K95: 0 | L95: 0 | M95: 0 | N95: 0 | O95: 0 | P95: - | Q95: - | R95: - | S95: - | T95: - | U95: - | V95: - | W95: - | X95: - | Y95: 0 | Z95: 0 | AA95: 0 | AB95: 0 | AC95: 0 | AD95: 0 | AE95: 0 | AF95: 0 | AG95: 0 | AH95: 0 | AI95: 0 | AJ95: 0 | AK95: 0 | AL95: 0 | AM95: 0 | AN95: 0 | AO95: 0 | AP95: 0 | AQ95: 0 | AR95: 0 | AS95: 0 | AT95: 0 | AU95: 0 | AV95: 0 | AW95: 0 | AX95: 0 | AY95: 0 | AZ95: 0
A96: Reversal and amortization reserve | B96: ='EDP SP"'!B96 -> 4859 | C96: ='EDP SP"'!C96 -> 5507 | D96: ='EDP SP"'!D96 -> 5831 | E96: ='EDP SP"'!E96 -> 6316 | F96: ='EDP SP"'!F96 -> 6802 | G96: 7288 | H96: 7774 | I96: 8260 | J96: 8746 | K96: 9232 | L96: 9718 | M96: 10204 | N96: 10689 | O96: 11175 | P96: 11661 | Q96: 12147 | R96: 12633 | S96: - | T96: - | U96: 14090 | V96: 17248 | W96: 17248 | X96: 17248 | Y96: 17248 | Z96: 17248 | AA96: 17248 | AB96: 17248 | AC96: 17248 | AD96: 17248 | AE96: 17248 | AF96: 17248 | AG96: 17248 | AH96: 17248 | AI96: 17248 | AJ96: 17248 | AK96: 17248 | AL96: 17248 | AM96: 17248 | AN96: 17248 | AO96: 17248 | AP96: 17248 | AQ96: 17248 | AR96: 17248 | AS96: 17248 | AT96: 17248 | AU96: 17248 | AV96: 17248 | AW96: 17248 | AX96: 17248 | AY96: 17248 | AZ96: 17248
A97: Sectoral financial liabilities | B97: ='EDP SP"'!B97 -> 105721 | C97: ='EDP SP"'!C97 -> 142633 | D97: ='EDP SP"'!D97 -> 99197 | E97: ='EDP SP"'!E97 -> 307347 | F97: ='EDP SP"'!F97 -> 475403 | G97: 571884 | H97: 920440 | I97: 641909 | J97: 907368 | K97: 1082527 | L97: 1112545 | M97: 1102103 | N97: 1244932 | O97: 1233242 | P97: 1247873 | Q97: 106807 | R97: 161441 | S97: 160439 | T97: 126333 | U97: 135852 | V97: 160286 | W97: 157412 | X97: 109883 | Y97: 99578 | Z97: 131458 | AA97: 97785 | AB97: 92054 | AC97: 60620 | AD97: 50526 | AE97: 95588 | AF97: 27797 | AG97: 27330 | AH97: 64000 | AI97: 15041 | AJ97: 0
A98: Other accounts payable | B98: ='EDP SP"'!B98 -> 37957 | C98: ='EDP SP"'!C98 -> 41145 | D98: ='EDP SP"'!D98 -> 44608 | E98: ='EDP SP"'!E98 -> 41562 | F98: ='EDP SP"'!F98 -> 48484 | G98: 45500 | H98: 42730 | I98: 50561 | J98: 60220 | K98: 66588 | L98: 63874 | M98: 34662 | N98: 35738 | O98: 35270 | P98: 36780 | Q98: 51238 | R98: 16989 | S98: 33317 | T98: 24389 | U98: 18087 | V98: 14198 | W98: 12292 | X98: 10343 | Y98: 10266 | Z98: 10189 | AA98: 10127 | AB98: 10261 | AC98: 10249 | AD98: 10248 | AE98: 10302 | AF98: 10272 | AG98: 9986 | AH98: 9973 | AI98: 10168 | AJ98: 10513 | AK98: 10306 | AL98: 10017 | AM98: 10070 | AN98: 10149 | AO98: 14389 | AP98: 14469 | AQ98: 14548 | AR98: 14628 | AS98: 17050 | AT98: 14784 | AU98: 35943 | AV98: 36023 | AW98: 36101 | AX98: 26164 | AY98: 19956 | AZ98: 20033
A99: Shareholders' equity | B99: ='EDP SP"'!B99 -> 753951 | C99: ='EDP SP"'!C99 -> 1093538 | D99: ='EDP SP"'!D99 -> 982597 | E99: ='EDP SP"'!E99 -> 914931 | F99: ='EDP SP"'!F99 -> 892956 | G99: 1446754 | H99: 1290518 | I99: 1208020 | J99: 1177885 | K99: 1106778 | L99: 987963 | M99: 1223880 | N99: 1111709 | O99: 1297522 | P99: 1243488 | Q99: 1308463 | R99: 1182199 | S99: 1270330 | T99: 1197409 | U99: 1110604 | V99: 1073444 | W99: 1144910 | X99: 1105701 | Y99: 1041116 | Z99: 1015467 | AA99: 1046436 | AB99: 1002182 | AC99: 1032519 | AD99: 1000647 | AE99: 1141441 | AF99: 1133485 | AG99: 1136417 | AH99: 1089230 | AI99: 1131098 | AJ99: 1068756 | AK99: 944678 | AL99: 952684 | AM99: 1020272 | AN99: 1104256 | AO99: 1019624 | AP99: 887283 | AQ99: 806315 | AR99: 779289 | AS99: 684381 | AT99: 690769 | AU99: 846472 | AV99: 791368 | AW99: 866408 | AX99: 813015 | AY99: 915722 | AZ99: 820271
A100: Capital | B100: ='EDP SP"'!B100 -> 596669 | C100: ='EDP SP"'!C100 -> 596669 | D100: ='EDP SP"'!D100 -> 596669 | E100: ='EDP SP"'!E100 -> 596669 | F100: ='EDP SP"'!F100 -> 596669 | G100: 596669 | H100: 596669 | I100: 596669 | J100: 596669 | K100: 596669 | L100: 596669 | M100: 596669 | N100: 596669 | O100: 596669 | P100: 596669 | Q100: 596669 | R100: 596669 | S100: 596669 | T100: 596669 | U100: 596669 | V100: 596669 | W100: 596669 | X100: 596669 | Y100: 596669 | Z100: 596669 | AA100: 596669 | AB100: 596669 | AC100: 596669 | AD100: 596669 | AE100: 596669 | AF100: 596669 | AG100: 339628 | AH100: 339628 | AI100: 339628 | AJ100: 339628 | AK100: 339628 | AL100: 339628 | AM100: 339628 | AN100: 339628 | AO100: 339628 | AP100: 339628 | AQ100: 254628 | AR100: 254628 | AS100: 254628 | AT100: 254628 | AU100: 254628 | AV100: 254628 | AW100: 254628 | AX100: 254628 | AY100: 254628 | AZ100: 254628
A101: Capital reserves | B101: ='EDP SP"'!B101 -> 77687 | C101: ='EDP SP"'!C101 -> 77687 | D101: ='EDP SP"'!D101 -> 77687 | E101: ='EDP SP"'!E101 -> 77687 | F101: ='EDP SP"'!F101 -> 77687 | G101: 77687 | H101: 77687 | I101: 77687 | J101: 77687 | K101: 77687 | L101: 77687 | M101: 77687 | N101: 77687 | O101: 77687 | P101: 77687 | Q101: 77687 | R101: 77687 | S101: 77687 | T101: 77687 | U101: 77687 | V101: 77687 | W101: 77687 | X101: 77687 | Y101: 77687 | Z101: 77687 | AA101: 77687 | AB101: 77687 | AC101: 77687 | AD101: 77687 | AE101: 77687 | AF101: 77687 | AG101: 334728 | AH101: 334728 | AI101: 334728 | AJ101: 334728 | AK101: 334728 | AL101: 334728 | AM101: 334728 | AN101: 334728 | AO101: 334728 | AP101: 334728 | AQ101: 334728 | AR101: 334728 | AS101: 334728 | AT101: 334728 | AU101: 334728 | AV101: 334728 | AW101: 334728 | AX101: 334728 | AY101: 334728 | AZ101: 334728
A102: Profit reserves | B102: ='EDP SP"'!B102 -> 133965 | C102: ='EDP SP"'!C102 -> 515747 | D102: ='EDP SP"'!D102 -> 515747 | E102: ='EDP SP"'!E102 -> 133966 | F102: ='EDP SP"'!F102 -> 133965 | G102: 851966 | H102: 851966 | I102: 529598 | J102: 529598 | K102: 529598 | L102: 529598 | M102: 495516 | N102: 495516 | O102: 734168 | P102: 734168 | Q102: 484657 | R102: 484657 | S102: 621181 | T102: 621181 | U102: 383577 | V102: 383577 | W102: 502347 | X102: 502347 | Y102: 305269 | Z102: 305269 | AA102: 373871 | AB102: 373871 | AC102: 298198 | AD102: 298198 | AE102: 475355 | AF102: 475355 | AG102: 335100 | AH102: 335100 | AI102: 399651 | AJ102: 399651 | AK102: 254448 | AL102: 254448 | AM102: 290294 | AN102: 402327 | AO102: 182802 | AP102: 182802 | AQ102: 189933 | AR102: 263666 | AS102: 62480 | AT102: 62480 | AU102: 228504 | AV102: 228504 | AW102: 60944 | AX102: 60944 | AY102: 262934 | AZ102: 262934
A103: Other comprehensive results | B103: ='EDP SP"'!B103 -> -244397 | C103: ='EDP SP"'!C103 -> -218758 | D103: ='EDP SP"'!D103 -> -207506 | E103: ='EDP SP"'!E103 -> -206014 | F103: ='EDP SP"'!F103 -> -193204 | G103: -235804 | H103: -235804 | I103: -205873 | J103: -205873 | K103: -215991 | L103: -215991 | M103: -156545 | N103: -156545 | O103: -165036 | P103: -165036 | Q103: -81777 | R103: -81777 | S103: -98128 | T103: -98128 | U103: -65360 | V103: -65360 | W103: -71002 | X103: -71002 | Y103: -55080 | Z103: -55080 | AA103: -47410 | AB103: -46045 | AC103: -43672 | AD103: -36746 | AE103: -28369 | AF103: -16226 | AG103: -20523 | AH103: -20523 | AI103: -5251 | AJ103: -5251 | AK103: 16052 | AL103: 21344 | AM103: 24012 | AN103: 27573 | AO103: 0 | AP103: 0 | AQ103: 0 | AR103: -73733 | AS103: -13602 | AT103: -13602 | AU103: -26492 | AV103: -26492 | AW103: 26348 | AX103: 26348 | AY103: -32019 | AZ103: -32019
A104: Treasury shares | B104: ='EDP SP"'!B104 -> 0 | C104: ='EDP SP"'!C104 -> 0 | D104: ='EDP SP"'!D104 -> 0 | E104: ='EDP SP"'!E104 -> 0 | F104: ='EDP SP"'!F104 -> 0 | G104: 0 | H104: 0 | I104: 0 | J104: 0 | K104: 0 | L104: 0 | M104: 0 | N104: 0 | O104: 0 | P104: - | Q104: - | R104: - | S104: - | T104: - | U104: - | V104: - | W104: - | X104: - | Y104: 0 | Z104: 0 | AA104: 0 | AB104: 0 | AC104: 0 | AD104: 0 | AE104: 0 | AF104: 0 | AG104: 0 | AH104: 0 | AI104: 0 | AJ104: 0 | AK104: 0 | AL104: 0 | AM104: 0 | AN104: 0 | AO104: 0 | AP104: 0 | AQ104: 0 | AR104: 0 | AS104: 0 | AT104: 0 | AU104: 0 | AV104: 0 | AW104: 0 | AX104: 0 | AY104: 0 | AZ104: 0
A105: Retained earnings | B105: ='EDP SP"'!B105 -> 190027 | C105: ='EDP SP"'!C105 -> 122193 | D105: ='EDP SP"'!D105 -> 0 | E105: ='EDP SP"'!E105 -> 312623 | F105: ='EDP SP"'!F105 -> 277839 | G105: 156236 | H105: 0 | I105: 209939 | J105: 179804 | K105: 118815 | L105: 0 | M105: 210553 | N105: 98382 | O105: 54034 | P105: - | Q105: 231227 | R105: 104963 | S105: 72921 | T105: - | U105: 118031 | V105: 80871 | W105: 39209 | X105: - | Y105: 116571 | Z105: 90922 | AA105: 45619 | AB105: 0 | AC105: 103637 | AD105: 64839 | AE105: 20099 | AF105: 0 | AG105: 147484 | AH105: 100297 | AI105: 62342 | AJ105: 0 | AK105: -178 | AL105: 2536 | AM105: 31610 | AN105: 0 | AO105: 162466 | AP105: 30125 | AQ105: 27026 | AR105: 0 | AS105: 46147 | AT105: 52535 | AU105: 55104 | AV105: 0 | AW105: 189760 | AX105: 136367 | AY105: 95451 | AZ105: 0
A106: TOTAL LIABILITIES | B106: ='EDP SP"'!B106 -> 6732146 | C106: ='EDP SP"'!C106 -> 6669164 | D106: ='EDP SP"'!D106 -> 6595606 | E106: ='EDP SP"'!E106 -> 6437349 | F106: ='EDP SP"'!F106 -> 6472427 | G106: 7153823 | H106: 7214987 | I106: 6399660 | J106: 5889029 | K106: 6207733 | L106: 6097354 | M106: 6149474 | N106: 5925481 | O106: 5369355 | P106: 5513653 | Q106: 4334798 | R106: 4101599 | S106: 4233195 | T106: 4038785 | U106: 4131570 | V106: 3898363 | W106: 3805319 | X106: 3677691 | Y106: 3715446 | Z106: 3082148 | AA106: 3085625 | AB106: 3137379 | AC106: 3439389 | AD106: 3230528 | AE106: 3352529 | AF106: 3332050 | AG106: 3200273 | AH106: 3336096 | AI106: 2940196 | AJ106: 2769806 | AK106: 2532990 | AL106: 2643481 | AM106: 2529293 | AN106: 2457370 | AO106: 2551574 | AP106: 2500921 | AQ106: 2482832 | AR106: 2401488 | AS106: 2447503 | AT106: 2430750 | AU106: 2493144 | AV106: 2577538 | AW106: 2523583 | AX106: 2499723 | AY106: 2542123 | AZ106: 2656839

Sheet EDP ES"
A2: EDP ES
A4: R$ Mil | B4: 2023-06-01 | C4: 2023-03-01 | D4: 2022-12-01 | E4: 2022-09-01 | F4: 2022-06-01 | G4: 2022-03-01 | H4: 2021-12-01 | I4: 2021-09-01 | J4: 2021-06-30 | K4: 2021-03-01 | L4: 2020-12-30 | M4: 2020-09-30 | N4: 2020-06-30 | O4: 2020-03-31 | P4: 2019-12-30 | Q4: 2019-09-30 | R4: 2019-06-30 | S4: 2019-03-31 | T4: 2018-12-30 | U4: 2018-09-30 | V4: 2018-06-30 | W4: 2018-03-31 | X4: 2017-12-31 | Y4: 2017-09-30 | Z4: 2017-06-30 | AA4: 2017-03-31 | AB4: 2016-12-31 | AC4: 2016-09-30 | AD4: 2016-06-30 | AE4: 2016-03-31 | AF4: 2015-12-31 | AG4: 2015-09-30 | AH4: 2015-06-30 | AI4: 2015-03-31 | AJ4: 2014-12-31 | AK4: 2014-09-30 | AL4: 2014-06-30 | AM4: 2014-03-31 | AN4: 2013-12-31 | AO4: 2013-09-30 | AP4: 2013-06-30 | AQ4: 2013-03-31 | AR4: 2012-12-30 | AS4: 2012-09-30 | AT4: 2012-06-30 | AU4: 2012-03-31 | AV4: 2011-12-31 | AW4: 2011-09-30 | AX4: 2011-06-30 | AY4: 2011-03-31 | AZ4: 2010-12-31
B5: 2T23 | C5: 1T23 | D5: 4T22 | E5: 3T22 | F5: 2T22 | G5: 1T22 | H5: 4T21 | I5: 3T21 | J5: 2T21 | K5: 1T21 | L5: 4T20 | M5: 3T20 | N5: 2T20 | O5: 1T20 | P5: 4T19 | Q5: 3T19 | R5: 2T19 | S5: 1T19 | T5: 4T18 | U5: 3T18 | V5: 2T18 | W5: 1T18 | X5: 4T17 | Y5: 3T17 | Z5: 2T17 | AA5: 1T17 | AB5: 4T16 | AC5: 3T16 | AD5: 2T16 | AE5: 1T16 | AF5: 4T15 | AG5: 3T15 | AH5: 2T15 | AI5: 1T15 | AJ5: 4T14 | AK5: 3T14 | AL5: 2T14 | AM5: 1T14 | AN5: 4T13 | AO5: 3T13 | AP5: 2T13 | AQ5: 1T13 | AR5: 4T12 | AS5: 3T12 | AT5: 2T12 | AU5: 1T12 | AV5: 4T11 | AW5: 3T11 | AX5: 2T11 | AY5: 1T11 | AZ5: 4T10
A7: ATIVO
A8: CIRCULANTE | B8: =SUM(B9:B28) -> 1150697 | C8: =SUM(C9:C28) -> 1213202 | D8: =SUM(D9:D28) -> 1486670 | E8: =SUM(E9:E28) -> 1574133 | F8: 1859653 | G8: 2339856 | H8: 2211540 | I8: 1727936 | J8: 1432023 | K8: 1881558 | L8: 1454217 | M8: 1701558 | N8: 1778213 | O8: 1506929 | P8: 1427127 | Q8: 1144282 | R8: 1293952 | S8: 1361553 | T8: 1113702 | U8: 1212471 | V8: 1066578 | W8: 1318464 | X8: 1099211 | Y8: 1167441 | Z8: 1020457 | AA8: 1046148 | AB8: 975701 | AC8: 1041562 | AD8: 1149388 | AE8: 1315171 | AF8: 1256852 | AG8: 1148584 | AH8: 1213866 | AI8: 1199311 | AJ8: 999582 | AK8: 834549 | AL8: 921234 | AM8: 938185 | AN8: 561242 | AO8: 654452 | AP8: 779804 | AQ8: 796240 | AR8: 665561 | AS8: 569341 | AT8: 543204 | AU8: 605651 | AV8: 588072 | AW8: 659643 | AX8: 622667 | AY8: 693686 | AZ8: 699016
A9: Caixa e equivalentes de caixa | B9: 155089 | C9: 101720 | D9: 450478 | E9: 417024 | F9: 419487 | G9: 513455 | H9: 513773 | I9: 251070 | J9: 77114 | K9: 501916 | L9: 176793 | M9: 561300 | N9: 488571 | O9: 235212 | P9: 222272 | Q9: 164993 | R9: 265378 | S9: 183273 | T9: 69206 | U9: 139882 | V9: 82867 | W9: 320145 | X9: 185371 | Y9: 307867 | Z9: 299339 | AA9: 236613 | AB9: 237848 | AC9: 293834 | AD9: 281455 | AE9: 368447 | AF9: 228845 | AG9: 163214 | AH9: 247850 | AI9: 262789 | AJ9: 230040 | AK9: 276655 | AL9: 310511 | AM9: 196247 | AN9: 134680 | AO9: 166268 | AP9: 203891 | AQ9: 178392 | AR9: 85502 | AS9: 70302 | AT9: 70970 | AU9: 143724 | AV9: 105726 | AW9: 155603 | AX9: 107614 | AY9: 170623 | AZ9: 156039
A10: Títulos e valores mobiliários | B10: 0 | C10: 0 | D10: 0 | E10: 0 | F10: 0 | G10: 0 | H10: 0 | I10: 0 | J10: 0 | K10: 0 | L10: 0 | M10: 0 | N10: 0 | O10: 0 | P10: - | Q10: - | R10: - | S10: - | T10: - | U10: - | V10: 6116 | W10: 34260 | X10: - | Y10: 0 | Z10: 0 | AA10: 0 | AB10: 0 | AC10: 0 | AD10: 0 | AE10: 0 | AF10: 0 | AG10: 0 | AH10: 0 | AI10: 0 | AJ10: 0 | AK10: 0 | AL10: 0 | AM10: 0 | AN10: 0 | AO10: 0 | AP10: 0 | AQ10: 0 | AR10: 0 | AS10: 0 | AT10: 0 | AU10: 0 | AV10: 0 | AW10: 0 | AX10: 0 | AY10: 0 | AZ10: 0
A11: Títulos a receber | B11: 0 | C11: 0 | D11: 0 | E11: 0 | F11: 0 | G11: 0 | H11: 0 | I11: 0 | J11: 0 | K11: 0 | L11: 0 | M11: 0 | N11: 0 | O11: 0 | P11: - | Q11: - | R11: - | S11: - | T11: - | U11: - | V11: - | W11: - | X11: - | Y11: 0 | Z11: 0 | AA11: 0 | AB11: 0 | AC11: 0 | AD11: 0 | AE11: 0 | AF11: 0 | AG11: 0 | AH11: 0 | AI11: 0 | AJ11: 0 | AK11: 0 | AL11: 0 | AM11: 0 | AN11: 0 | AO11: 0 | AP11: 0 | AQ11: 0 | AR11: 0 | AS11: 0 | AT11: 0 | AU11: 0 | AV11: 0 | AW11: 0 | AX11: 0 | AY11: 0 | AZ11: 0
A12: Ativo financeiro indenizável | B12: 0 | C12: 0 | D12: 0 | E12: 0 | F12: 0 | G12: 0 | H12: 0 | I12: 0 | J12: 0 | K12: 0 | L12: 0 | M12: 0 | N12: 0 | O12: 0 | P12: - | Q12: - | R12: - | S12: - | T12: - | U12: - | V12: - | W12: - | X12: - | Y12: 0 | Z12: 0 | AA12: 0 | AB12: 0 | AC12: 0 | AD12: 0 | AE12: 0 | AF12: 0 | AG12: 0 | AH12: 0 | AI12: 0 | AJ12: 0 | AK12: 0 | AL12: 0 | AM12: 0 | AN12: 0 | AO12: 0 | AP12: 0 | AQ12: 0 | AR12: 0 | AS12: 0 | AT12: 0 | AU12: 0 | AV12: 0 | AZ12: 0
A13: Tributos diferidos | B13: 0 | C13: 0 | D13: 0 | E13: 0 | F13: 0 | G13: 0 | H13: 0 | I13: 0 | J13: 0 | K13: 0 | L13: 0 | M13: 0 | N13: 0 | O13: 0 | P13: - | Q13: - | R13: - | S13: - | T13: - | U13: - | V13: - | W13: - | X13: - | Y13: 0 | Z13: 7000 | AA13: 5184 | AB13: 2566 | AC13: 4604 | AD13: 7098 | AF13: 0
A14: Consumidores e concessionárias | B14: 806569 | C14: 935644 | D14: 772057 | E14: 810242 | F14: 843856 | G14: 1087007 | H14: 949694 | I14: 881850 | J14: 790546 | K14: 853639 | L14: 810545 | M14: 751374 | N14: 739036 | O14: 773557 | P14: 721972 | Q14: 731875 | R14: 790755 | S14: 916330 | T14: 752766 | U14: 787690 | V14: 699977 | W14: 726459 | X14: 658063 | Y14: 596152 | Z14: 602212 | AA14: 686910 | AB14: 583153 | AC14: 610898 | AD14: 615065 | AE14: 718143 | AF14: 680991 | AG14: 636374 | AH14: 641217 | AI14: 626761 | AJ14: 471864 | AK14: 400815 | AL14: 373781 | AM14: 401392 | AN14: 334553 | AO14: 346423 | AP14: 348197 | AQ14: 459873 | AR14: 437189 | AS14: 383016 | AT14: 349594 | AU14: 358630 | AV14: 338851 | AW14: 334064 | AX14: 333186 | AY14: 334736 | AZ14: 327666
A15: Imposto de renda e Contribuição social a compensar | B15: 5269 | C15: 23207 | D15: 58712 | E15: 52152 | F15: 69075 | G15: 69555 | H15: 75738 | I15: 65003 | J15: 57141 | K15: 57138 | L15: 61430 | M15: 45680 | N15: 45678 | O15: 42327 | P15: 42481 | Q15: 21533 | R15: 21527 | S15: 35176 | T15: 88318 | U15: 85730 | V15: 85703 | W15: 89009 | X15: 142985 | Y15: 195419 | Z15: 29563 | AA15: 26900 | AB15: 48208 | AC15: 31029 | AD15: 24554 | AE15: 21610 | AF15: 26286 | AG15: 20850 | AH15: 22049 | AI15: 20292 | AJ15: 30258 | AK15: 12432 | AL15: 22328 | AM15: 32180 | AN15: 41319 | AO15: 23784 | AP15: 29470 | AQ15: 32435 | AR15: 24826 | AS15: 46142 | AT15: 59046 | AU15: 46368 | AV15: 72367 | AW15: 102764 | AX15: 115653 | AY15: 113249 | AZ15: 140854
A16: Outros tributos compensáveis | B16: 38956 | C16: 29310 | D16: 63556 | E16: 131103 | F16: 198803 | G16: 207849 | H16: 190470 | I16: 206643 | J16: 204597 | K16: 206361 | L16: 194925 | M16: 205432 | N16: 187317 | O16: 205136 | P16: 203963 | Q16: 20815 | R16: 19392 | S16: 13783 | T16: 18371 | U16: - | V16: - | W16: - | X16: - | Y16: 0 | Z16: 0 | AA16: 0 | AB16: 0 | AC16: 0 | AD16: 0 | AE16: 0 | AF16: 0 | AG16: 0 | AH16: 0 | AI16: 0 | AJ16: 0 | AK16: 0 | AL16: 0 | AM16: 0 | AN16: 0 | AO16: 0 | AP16: 0 | AQ16: 0 | AR16: 0 | AS16: 0 | AT16: 0 | AU16: 0 | AV16: 0 | AW16: 0 | AX16: 0 | AY16: 0 | AZ16: 0
A17: Partes relacionadas | B17: 0 | C17: 0 | D17: 0 | E17: 0 | F17: - | G17: - | H17: - | I17: 0 | J17: 0 | K17: 0 | L17: 0 | M17: 0 | N17: 0 | O17: 0 | P17: - | Q17: - | R17: - | S17: - | T17: - | U17: - | V17: - | W17: - | X17: - | Y17: 0 | Z17: 0 | AA17: 0 | AB17: 0 | AC17: 0 | AD17: 0 | AE17: 0 | AF17: 0 | AG17: 0 | AH17: 0 | AI17: 0 | AJ17: 0 | AK17: 0 | AL17: 0 | AM17: 0 | AN17: 0 | AO17: 0 | AP17: 0 | AQ17: 0 | AR17: 0 | AS17: 0 | AT17: 0 | AU17: 0 | AV17: 0 | AW17: 0 | AX17: 0 | AY17: 0 | AZ17: 0
A18: Instrumentos Financeiros Derivativos | B18: 3047 | C18: 0 | D18: 0 | E18: 0 | F18: -
A19: Dividendos a receber | B19: 0 | C19: 0 | D19: 0 | E19: 0 | F19: 0 | G19: 0 | H19: 0 | I19: 0 | J19: 0 | K19: 0 | L19: 0 | M19: 0 | N19: 0 | O19: 0 | P19: - | Q19: - | R19: - | S19: - | T19: - | U19: - | V19: - | W19: - | X19: - | Y19: 0 | Z19: 0 | AA19: 0 | AB19: 0 | AC19: 0 | AD19: 0 | AE19: 0 | AF19: 0 | AG19: 0 | AH19: 0 | AI19: 0 | AJ19: 0 | AK19: 0 | AL19: 0 | AM19: 0 | AN19: 0 | AO19: 0 | AP19: 0 | AQ19: 0 | AR19: 0 | AS19: 0 | AT19: 0 | AU19: 0 | AV19: 0 | AW19: 0 | AX19: 0 | AY19: 0 | AZ19: 0
A20: Estoques | B20: 44134 | C20: 38169 | D20: 35485 | E20: 35196 | F20: 37981 | G20: 28254 | H20: 26700 | I20: 25739 | J20: 22846 | K20: 19273 | L20: 17351 | M20: 18441 | N20: 18106 | O20: 17709 | P20: 19391 | Q20: 18390 | R20: 20371 | S20: - | T20: - | U20: 11879 | V20: 12259 | W20: 10400 | X20: 7773 | Y20: 7377 | Z20: 7857 | AA20: 7212 | AB20: 4587 | AC20: 8161 | AD20: 7666 | AE20: 6779 | AF20: 5909 | AG20: 5589 | AH20: 4623 | AI20: 4609 | AJ20: 5675 | AK20: 5434 | AL20: 6468 | AM20: 5783 | AN20: 4789 | AO20: 4523 | AP20: 15727 | AQ20: 14022 | AR20: 15288 | AS20: 13485 | AT20: 15902 | AU20: 14072 | AV20: 14239 | AW20: 11890 | AX20: 10225 | AY20: 11763 | AZ20: 10322
A21: Cauções e depósitos vinculados | B21: 0 | C21: 0 | D21: 0 | E21: 0 | F21: 0 | G21: 0 | H21: 0 | I21: 0 | J21: 0 | K21: 0 | L21: 0 | M21: 0 | N21: 0 | O21: 0 | P21: - | Q21: - | R21: - | S21: - | T21: 4 | U21: 3 | V21: 77 | W21: 77 | X21: 73 | Y21: 73 | Z21: 77 | AA21: 80 | AB21: 80 | AC21: 79 | AD21: 79 | AE21: 75 | AF21: 75 | AG21: 145 | AH21: 4084 | AI21: 5406 | AJ21: 1542 | AK21: 882 | AL21: 862 | AM21: 1077 | AN21: 1054 | AO21: 77 | AP21: 5 | AQ21: 135 | AR21: 135 | AS21: 135 | AT21: 135 | AU21: 4 | AV21: 4 | AW21: 5 | AX21: 4 | AY21: 39 | AZ21: 39
A22: Despesas pagas antecipadamente | B22: 0 | C22: 0 | D22: 0 | E22: 0 | F22: - | G22: - | H22: - | I22: 0 | J22: 0 | K22: 0 | L22: 0 | M22: 0 | N22: 0 | O22: 0 | P22: - | Q22: - | R22: - | S22: - | T22: - | U22: - | V22: - | W22: - | X22: - | Y22: 0 | Z22: 0 | AA22: 0 | AB22: 0 | AC22: 0 | AD22: 0 | AE22: 0 | AF22: 0 | AG22: 936 | AH22: 1430 | AI22: 1374 | AJ22: 0 | AK22: 247 | AL22: 962 | AM22: 1367 | AN22: 65 | AO22: 591 | AP22: 1133 | AQ22: 1113 | AR22: 87 | AS22: 451 | AT22: 821 | AU22: 1225 | AV22: 877 | AW22: 369 | AX22: 852 | AY22: 640 | AZ22: 806
A23: Conta de compensação de variação de custos da parcela "A" | B23: 0 | C23: 0 | D23: 0 | E23: 0 | F23: - | G23: - | H23: - | I23: 0 | J23: 0 | K23: 0 | L23: 0 | M23: 0 | N23: 0 | O23: 0 | P23: - | Q23: - | R23: - | S23: - | T23: - | U23: - | V23: - | W23: - | X23: - | Y23: 0 | Z23: 0 | AA23: 0 | AB23: 0 | AC23: 0 | AD23: 0 | AE23: 0 | AF23: 0 | AG23: 0 | AH23: 0 | AI23: 0 | AJ23: 0 | AM23: 0 | AN23: 0 | AS23: 0 | AT23: 0 | AU23: 0 | AV23: 0 | AX23: 0 | AY23: 0 | AZ23: 0
A24: Rendas a receber | B24: 0 | C24: 0 | D24: 0 | E24: 0 | F24: 0 | G24: 0 | H24: 0 | I24: 0 | J24: 0 | K24: 0 | L24: 0 | M24: 0 | N24: 0 | O24: 0 | P24: - | Q24: - | R24: - | S24: - | T24: - | U24: - | V24: - | W24: - | X24: - | Y24: 0 | Z24: 0 | AA24: 0 | AB24: 0 | AC24: 0 | AD24: 0 | AE24: 0 | AF24: 0 | AG24: 0 | AH24: 0 | AI24: 0 | AJ24: 0 | AK24: 0 | AL24: 0 | AM24: 0 | AN24: 0 | AO24: 0 | AP24: 0 | AQ24: 0 | AR24: 0 | AS24: 0 | AT24: 0 | AU24: 0 | AV24: 0 | AW24: 0 | AX24: 0 | AY24: 0 | AZ24: 0
A25: Ativos financeiros disponíveis para venda | B25: 0 | C25: 0 | D25: 0 | E25: 0 | F25: - | G25: - | H25: - | I25: 0 | J25: 0 | K25: 0 | L25: 0 | M25: 0 | N25: 0 | O25: 0 | P25: - | Q25: - | R25: - | S25: - | T25: - | U25: - | V25: - | W25: - | X25: - | Y25: 0 | Z25: 0 | AA25: 0 | AB25: 0 | AC25: 0 | AD25: 0 | AE25: 0 | AF25: 0 | AG25: 0 | AH25: 0 | AI25: 0 | AJ25: 0 | AK25: 0 | AL25: 0 | AM25: 0 | AN25: 0 | AO25: 0 | AP25: 0 | AQ25: 0 | AR25: 0 | AS25: 0 | AT25: 0 | AU25: 0 | AV25: 0 | AW25: 0 | AZ25: 0
A26: Ressarcimento de custos - CCEE | B26: 0 | C26: 0 | D26: 0 | E26: 0 | F26: - | G26: - | H26: - | I26: 0 | J26: 0 | K26: 0 | L26: 0 | M26: 0 | N26: 0 | O26: 0 | P26: - | Q26: - | R26: - | S26: - | T26: - | U26: - | V26: - | W26: - | X26: - | Z26: 0 | AA26: 0 | AB26: 0 | AC26: 0 | AD26: 0 | AE26: 0 | AF26: 0 | AG26: 0 | AH26: 0 | AI26: 0 | AJ26: 0 | AK26: 61434 | AL26: 126162 | AM26: 248373 | AN26: 0
A27: Ativos financeiros setoriais | B27: 5538 | C27: 3702 | D27: 11576 | E27: 20260 | F27: 170815 | G27: 308167 | H27: 276885 | I27: 177363 | J27: 186869 | K27: 173835 | L27: 133827 | M27: 66690 | N27: 237020 | O27: 163982 | P27: 132595 | Q27: 99373 | R27: 80696 | S27: 89467 | T27: 104830 | U27: 126974 | V27: 99576 | W27: 61134 | X27: 53429 | Y27: 14259 | Z27: 18282 | AA27: 39667 | AB27: 57517 | AC27: 39880 | AD27: 152578 | AE27: 131176 | AF27: 194154 | AG27: 198972 | AH27: 177665 | AI27: 158290 | AJ27: 155477 | AK27: 0 | AL27: 0 | AM27: 0 | AN27: 0 | AO27: 0 | AP27: 0 | AQ27: 0 | AR27: 0 | AS27: 0 | AT27: 0 | AU27: 0 | AV27: 0 | AW27: 0 | AX27: 0 | AY27: 0 | AZ27: 0
A28: Outros créditos | B28: 92095 | C28: 81450 | D28: 94806 | E28: 108156 | F28: 119636 | G28: 125569 | H28: 178280 | I28: 120268 | J28: 92910 | K28: 69396 | L28: 59346 | M28: 52641 | N28: 62485 | O28: 69006 | P28: 84453 | Q28: 87303 | R28: 95833 | S28: 123524 | T28: 80207 | U28: 60313 | V28: 80003 | W28: 76980 | X28: 51517 | Y28: 46294 | Z28: 56127 | AA28: 43582 | AB28: 41742 | AC28: 53077 | AD28: 60893 | AE28: 68941 | AF28: 120592 | AG28: 122504 | AH28: 114948 | AI28: 119790 | AJ28: 104726 | AK28: 76650 | AL28: 80160 | AM28: 51766 | AN28: 44782 | AO28: 112786 | AP28: 181381 | AQ28: 110270 | AR28: 102534 | AS28: 55810 | AT28: 46736 | AU28: 41628 | AV28: 56008 | AW28: 54948 | AX28: 55133 | AY28: 62636 | AZ28: 63290
A29: NÃO CIRCULANTE
A30: Realizável a Longo Prazo | B30: =SUM(B31:B46) -> 4755991 | C30: =SUM(C31:C46) -> 4472419 | D30: =SUM(D31:D46) -> 4205903 | E30: =SUM(E31:E46) -> 3972206 | F30: 3725961 | G30: 3712202 | H30: 3851763 | I30: 3775945 | J30: 3333395 | K30: 3285299 | L30: 3276180 | M30: 3176620 | N30: 3042012 | O30: 3014497 | P30: 3014971 | Q30: 3015420 | R30: 2827279 | S30: 2032556 | T30: 2026745 | U30: 1887739 | V30: 1809291 | W30: 1662074 | X30: 1642900 | Y30: 1577338 | Z30: 1518811 | AA30: 1464474 | AB30: 1414289 | AC30: 1320499 | AD30: 1069425 | AE30: 1051709 | AF30: 1055758 | AG30: 1000590 | AH30: 979184 | AI30: 967139 | AJ30: 968016 | AK30: 969264 | AL30: 950432 | AM30: 919787 | AN30: 904063 | AO30: 891732 | AP30: 876889 | AQ30: 856921 | AR30: 832464 | AS30: 706002 | AT30: 676208 | AU30: 680791 | AV30: 625741 | AW30: 600866 | AX30: 573470 | AY30: 583232 | AZ30: 584819
A31: Títulos e valores mobiliários | B31: 0 | C31: 0 | D31: 0 | E31: 0 | F31: 0 | G31: 0 | H31: 0 | I31: 0 | J31: 0 | K31: 0 | L31: 0 | M31: 0 | N31: 0 | O31: 0 | P31: - | Q31: - | R31: - | S31: - | T31: - | U31: - | V31: - | W31: - | X31: - | Y31: 0 | Z31: 0 | AA31: 0 | AB31: 0 | AC31: 0 | AD31: 0 | AE31: 0 | AF31: 0 | AG31: 0 | AH31: 0 | AI31: 0 | AJ31: 0 | AK31: 0 | AL31: 0 | AM31: 0 | AN31: 0 | AO31: 0 | AP31: 0 | AQ31: 0 | AR31: 0 | AS31: 0 | AT31: 0 | AU31: 0 | AV31: 0 | AW31: 0 | AX31: 0 | AY31: 0 | AZ31: 0
A32: Títulos a receber | B32: 0 | C32: 0 | D32: 0 | E32: 0 | F32: 0 | G32: 0 | H32: 0 | I32: 0 | J32: 0 | K32: 0 | L32: 0 | M32: 0 | N32: 0 | O32: 0 | P32: - | Q32: - | R32: - | S32: - | T32: - | U32: - | V32: - | W32: - | X32: - | Y32: 0 | Z32: 0 | AA32: 0 | AB32: 0 | AC32: 0 | AD32: 0 | AE32: 0 | AF32: 0 | AG32: 0 | AH32: 0 | AI32: 0 | AJ32: 0 | AK32: 0 | AL32: 0 | AM32: 0 | AN32: 0 | AO32: 0 | AP32: 0 | AQ32: 0 | AR32: 0 | AS32: 0 | AT32: 0 | AU32: 0 | AV32: 0 | AW32: 0 | AX32: 0 | AY32: 0 | AZ32: 0
A33: Ativo financeiro indenizável | B33: 3726041 | C33: 3559348 | D33: 3385967 | E33: 3179649 | F33: 3021710 | G33: 2864764 | H33: 2563316 | I33: 2418120 | J33: 2288124 | K33: 2171041 | L33: 2058830 | M33: 1925288 | N33: 1869597 | O33: 1844203 | P33: 1789045 | Q33: 1715339 | R33: 1553911 | S33: 1513056 | T33: 1392637 | U33: 1336566 | V33: 1284622 | W33: 1219407 | X33: 1177831 | Y33: 1137324 | Z33: 1101813 | AA33: 1070580 | AB33: 1027840 | AC33: 1004689 | AD33: 687686 | AE33: 722541 | AF33: 709485 | AG33: 650863 | AH33: 634118 | AI33: 625317 | AJ33: 594212 | AK33: 560240 | AL33: 549088 | AM33: 533701 | AN33: 504596 | AO33: 515273 | AP33: 497010 | AQ33: 479711 | AR33: 451444 | AS33: 366273 | AT33: 337975 | AU33: 332138 | AV33: 274735 | AW33: 280395 | AX33: 253501 | AY33: 247270 | AZ33: 242520
A34: Consumidores e concessionárias | B34: 22260 | C34: 21531 | D34: 22386 | E34: 21308 | F34: 18041 | G34: 9260 | H34: 8387 | I34: 8723 | J34: 8453 | K34: 8544 | L34: 10540 | M34: 10319 | N34: 12807 | O34: 15932 | P34: 17427 | Q34: 12863 | R34: 16076 | S34: 10075 | T34: 12941 | U34: 15098 | V34: 15379 | W34: 15486 | X34: 38672 | Y34: 40436 | Z34: 43560 | AA34: 43465 | AB34: 42573 | AC34: 33670 | AD34: 25866 | AE34: 25336 | AF34: 19108 | AG34: 13605 | AH34: 11571 | AI34: 8287 | AJ34: 12326 | AK34: 13699 | AL34: 13339 | AM34: 13089 | AN34: 13177 | AO34: 12678 | AP34: 10530 | AQ34: 10365 | AR34: 8931 | AS34: 7176 | AT34: 6737 | AU34: 11828 | AV34: 10714 | AW34: 10523 | AX34: 13745 | AY34: 17621 | AZ34: 14873
A35: Imposto de renda e Contribuição social a compensar | B35: 12644 | C35: 12335 | D35: 12030 | E35: 11730
A36: Outros tributos compensáveis | B36: 105057 | C36: 98732 | D36: 95547 | E36: 93910 | F36: 99504 | G36: 202172 | H36: 287782 | I36: 356785 | J36: 382196 | K36: 416431 | L36: 465649 | M36: 513743 | N36: 576247 | O36: 559587 | P36: 594760 | Q36: 806993 | R36: 795401 | S36: 50450 | T36: 48162 | U36: 46974 | V36: 43681 | W36: 40807 | X36: 39080 | Y36: 36092 | Z36: 32728 | AA36: 32103 | AB36: 29898 | AC36: 27932 | AD36: 24919 | AE36: 22843 | AF36: 22123 | AG36: 21502 | AH36: 20893 | AI36: 19949 | AJ36: 19288 | AK36: 18767 | AL36: 15275 | AM36: 12719 | AN36: 11968 | AO36: 11313 | AP36: 10070 | AQ36: 9191 | AR36: 8942 | AS36: 8883 | AT36: 8674 | AU36: 8722 | AV36: 8722 | AW36: 8722 | AX36: 8932 | AY36: 9939 | AZ36: 10198
A37: Tributos diferidos | B37: 0 | C37: 0 | D37: 0 | E37: 3747 | F37: 16036 | G37: 50442 | H37: 71766 | I37: 120383 | J37: 148153 | K37: 152428 | L37: 163322 | M37: 200111 | N37: 180486 | O37: 192353 | P37: 194863 | Q37: 168751 | R37: 210301 | S37: 209379 | T37: 213586 | U37: 248102 | V37: 253323 | W37: 257630 | X37: 259113 | Y37: 217509 | Z37: 241811 | AA37: 228476 | AB37: 212522 | AC37: 167452 | AD37: 231679 | AE37: 182359 | AF37: 157281 | AG37: 123711 | AH37: 134055 | AI37: 145500 | AJ37: 142268 | AK37: 272579 | AL37: 261913 | AM37: 249924 | AN37: 258992 | AO37: 238497 | AP37: 244272 | AQ37: 251743 | AR37: 255692 | AS37: 221365 | AT37: 222627 | AU37: 223187 | AV37: 226836 | AW37: 198610 | AX37: 197730 | AY37: 214606 | AZ37: 221054
A38: Partes relacionadas | B38: 0 | C38: 0 | D38: 0 | E38: 0 | F38: - | G38: - | H38: - | I38: 0 | J38: 0 | K38: 0 | L38: 0 | M38: 0 | N38: 0 | O38: 0 | P38: - | Q38: - | R38: - | S38: - | T38: - | U38: - | V38: - | W38: - | X38: - | Y38: 0 | Z38: 0 | AA38: 0 | AB38: 0 | AC38: 0 | AD38: 0 | AE38: 0 | AF38: 0 | AG38: 0 | AH38: 0 | AI38: 0 | AJ38: 0 | AK38: 32 | AL38: 27 | AM38: 50 | AN38: 139 | AO38: 26 | AP38: 777 | AQ38: 778 | AR38: 777 | AS38: 15 | AT38: 17 | AU38: 17 | AV38: 20 | AW38: 21 | AX38: 0 | AY38: 22 | AZ38: 31
A39: Instrumentos Financeiros Derivativos | B39: 74006 | C39: 53996 | D39: 25557 | E39: 0 | F39: -
A40: Adiantamento para futuro aumento de capital | B40: 0 | C40: 0 | D40: 0 | E40: 0 | F40: 0 | G40: 0 | H40: 0 | I40: 0 | J40: 0 | K40: 0 | L40: 0 | M40: 0 | N40: 0 | O40: 0 | P40: - | Q40: - | R40: - | S40: - | T40: - | U40: - | V40: - | W40: - | X40: - | Y40: 0 | Z40: 0 | AA40: 0 | AB40: 0 | AC40: 0 | AD40: 0 | AE40: 0 | AF40: 0 | AG40: 0 | AH40: 0 | AI40: 0 | AJ40: 0 | AK40: 0 | AL40: 0 | AM40: 0 | AN40: 0 | AO40: 0 | AP40: 0 | AQ40: 0 | AR40: 0 | AS40: 0 | AT40: 0 | AU40: 0 | AV40: 0 | AW40: 0 | AX40: 0 | AY40: 0 | AZ40: 0
A41: Cauções e depósitos vinculados | B41: 221739 | C41: 218762 | D41: 215575 | E41: 179352 | F41: 179298 | G41: 172307 | H41: 198647 | I41: 198252 | J41: 199191 | K41: 198255 | L41: 198105 | M41: 196768 | N41: 194170 | O41: 192794 | P41: 189002 | Q41: 185172 | R41: 125184 | S41: 119683 | T41: 116404 | U41: 111456 | V41: 99032 | W41: 98553 | X41: 81000 | Y41: 72057 | Z41: 87937 | AA41: 84679 | AB41: 84264 | AC41: 82940 | AD41: 86231 | AE41: 79874 | AF41: 77291 | AG41: 108499 | AH41: 109670 | AI41: 106557 | AJ41: 103604 | AK41: 101650 | AL41: 98603 | AM41: 96879 | AN41: 100720 | AO41: 103189 | AP41: 103251 | AQ41: 98905 | AR41: 99392 | AS41: 96864 | AT41: 96510 | AU41: 103247 | AV41: 103569 | AW41: 101944 | AX41: 98881 | AY41: 93006 | AZ41: 95286
A42: Despesas pagas antecipadamente | B42: 0 | C42: 0 | D42: 0 | E42: 0 | F42: - | G42: - | H42: - | I42: 0 | J42: 0 | K42: 0 | L42: 0 | M42: 0 | N42: 0 | O42: 0 | P42: - | Q42: - | R42: - | S42: - | T42: - | U42: - | V42: - | W42: - | X42: - | Y42: 0 | Z42: 0 | AA42: 0 | AB42: 0 | AC42: 0 | AD42: 0 | AE42: 0 | AF42: 0 | AG42: 0 | AH42: 0 | AI42: 0 | AJ42: 0 | AK42: 0 | AL42: 0 | AM42: 0 | AN42: 0 | AO42: 0 | AP42: 0 | AQ42: 0 | AR42: 0 | AS42: 0 | AT42: 0 | AU42: 0 | AV42: 0 | AW42: 0 | AX42: 0 | AY42: 0 | AZ42: 0
A43: Conta de compensação de variação de custos da Parcela "A" | B43: 0 | C43: 0 | D43: 0 | E43: 0 | F43: - | G43: - | H43: - | I43: 0 | J43: 0 | K43: 0 | L43: 0 | M43: 0 | N43: 0 | O43: 0 | P43: - | Q43: - | R43: - | S43: - | T43: - | U43: - | V43: - | W43: - | X43: - | Y43: 0 | Z43: 0 | AA43: 0 | AB43: 0 | AC43: 0 | AD43: 0 | AE43: 0 | AF43: 0 | AG43: 0 | AH43: 0 | AI43: 0 | AJ43: 0 | AK43: 0 | AL43: 0 | AM43: 0 | AN43: 0 | AO43: 0 | AP43: 0 | AQ43: 0 | AR43: 0 | AS43: 0 | AT43: 0 | AU43: 0 | AV43: 0 | AW43: 0 | AX43: 0 | AY43: 0 | AZ43: 0
A44: Ativos da concessão | B44: 543261 | C44: 506844 | D44: 425101 | E44: 413060 | F44: 349178 | G44: 287838 | H44: 430765 | I44: 348739 | J44: 292217 | K44: 273819 | L44: 257143 | M44: 208037 | N44: 192334 | O44: 160319 | P44: 149435 | Q44: 124792 | R44: 118972 | S44: 97894 | T44: 184108 | U44: - | V44: - | W44: - | X44: - | Y44: 0 | Z44: 0 | AA44: 0 | AB44: 0 | AC44: 0 | AD44: 0 | AE44: 0 | AF44: 0 | AG44: 0 | AH44: 0 | AI44: 0 | AJ44: 0 | AK44: 0 | AL44: 0 | AM44: 0 | AN44: 0 | AO44: 0 | AP44: 0 | AQ44: 0 | AR44: 0 | AS44: 0 | AT44: 0 | AU44: 0 | AV44: 0 | AW44: 0 | AX44: 0 | AY44: 0 | AZ44: 0
A45: Ativos financeiros setoriais | B45: 44883 | C45: 594 | D45: 23472 | E45: 68511 | F45: 39607 | G45: 122752 | H45: 290694 | I45: 324019 | J45: 13958 | K45: 63899 | L45: 121642 | M45: 120944 | N45: 14812 | O45: 47843 | P45: 76938 | Q45: - | R45: 5613 | S45: 29451 | T45: 54461 | U45: 119366 | V45: 105404 | W45: 29487 | X45: 44208 | Y45: 71293 | Z45: 7152 | AA45: 878 | AB45: 12701 | AC45: 0 | AD45: 11847 | AE45: 18106 | AF45: 69814 | AG45: 81704 | AH45: 66578 | AI45: 59801 | AJ45: 94550 | AK45: 0 | AL45: 0 | AM45: 0 | AN45: 0 | AO45: 0 | AP45: 0 | AQ45: 0 | AR45: 0 | AS45: 0 | AT45: 0 | AU45: 0 | AV45: 0 | AW45: 0 | AX45: 0 | AY45: 0 | AZ45: 0
A46: Outros créditos | B46: 6100 | C46: 277 | D46: 268 | E46: 939 | F46: 2587 | G46: 2667 | H46: 406 | I46: 924 | J46: 1103 | K46: 882 | L46: 949 | M46: 1410 | N46: 1559 | O46: 1466 | P46: 3501 | Q46: 1510 | R46: 1821 | S46: 2568 | T46: 4446 | U46: 10177 | V46: 7850 | W46: 704 | X46: 2996 | Y46: 2627 | Z46: 3810 | AA46: 4293 | AB46: 4491 | AC46: 3816 | AD46: 1197 | AE46: 650 | AF46: 656 | AG46: 706 | AH46: 2299 | AI46: 1728 | AJ46: 1768 | AK46: 2297 | AL46: 12187 | AM46: 13425 | AN46: 14471 | AO46: 10756 | AP46: 10979 | AQ46: 6228 | AR46: 7286 | AS46: 5426 | AT46: 3668 | AU46: 1652 | AV46: 1145 | AW46: 651 | AX46: 681 | AY46: 768 | AZ46: 857
A47: Permanente | B47: =SUM(B48:B51) -> 418661 | C47: =SUM(C48:C51) -> 443992 | D47: =SUM(D48:D51) -> 476440 | E47: =SUM(E48:E51) -> 506619 | F47: 535588 | G47: 560963 | H47: 525558 | I47: 560945 | J47: 585274 | K47: 597810 | L47: 583570 | M47: 600417 | N47: 616935 | O47: 640454 | P47: 656103 | Q47: 669707 | R47: 683554 | S47: 700999 | T47: 673652 | U47: 843195 | V47: 827855 | W47: 828454 | X47: 845427 | Y47: 816856 | Z47: 799675 | AA47: 811832 | AB47: 817623 | AC47: 807117 | AD47: 922365 | AE47: 853861 | AF47: 848133 | AG47: 857847 | AH47: 860115 | AI47: 846697 | AJ47: 871523 | AK47: 894038 | AL47: 881993 | AM47: 892525 | AN47: 906834 | AO47: 890980 | AP47: 900098 | AQ47: 900877 | AR47: 919283 | AS47: 912069 | AT47: 927415 | AU47: 939137 | AV47: 995527 | AW47: 981285 | AX47: 996331 | AY47: 998413 | AZ47: 1008687
